{"text_format":"1","workbook":"xlsx","n_sheets":28,"sheets":["Feedstock Info","Feedstocks_Pathways","DS1_Information","DS1_MEB","Methodology","DS1","DS2_Information","DS2_MEB","DS2","DS3_Information","DS3_MEB","DS3","DS4_MEB_v0","DS4_v1","DS4_Information_v0","DS4_Information","DS4_MEB","DS4","DS5_Information","DS5_MEB","DS5","DS6_Information","DS6_MEB","DS6","DS7_Information","DS7_MEB","DS7","Feedstock information"],"not_rendered":{"charts":0,"images":24,"macros":1,"external_links":2,"defined_names":42,"comments":16,"pivot_tables":0},"unopened":[],"bounds":{"document_bytes":16777216,"sheet_cells":100000,"rows_first":2000,"rows_last":500,"rows_between":2000,"halvings":0,"cell_chars":16384,"cell_head_chars":4096},"cells_cut":0,"cells_raw":0,"read":"whole","date_system":"1900"}

{"sheet":"Feedstock Info","index":0,"n_rows":41,"n_cols":36,"rows_kept":41,"cut":false,"hidden":true,"merged":[]}
["COLUMN A FEEDSTOCK NAMES FROM DROPDOWN (checked and referenced feedstock hidden) green=checked reference","DO NOT CHANGE ORDER"]
[null,null,null,"Moisture content (as received)","Moisture content (application)","Ash content","Volatile matter","Fixed carbon","LHV (referring to column D)","HHV (energy potential)","Carbon","Hydrogen","Nitrogen","Oxygen","Others","Heat capacity ","Solids content [w%]","Cellulose","Hemicellulose","Lignin","Lipids","Protein","Total ash and biochemical","biogas yield Nm3/t fresh matter","%CH4","Recommended process","Process options","Potential products - these can be upgraded further",null,null,null,null,null,null,null,"List names"]
[null,"Feedstock","Residue type","wt%","wt%","wt%","wt%","wt%","MJ/kg","MJ/kg","wt.%","wt.%","wt.%","wt.%","wt.%","kJ/(kg K)",null,"wt% dry","wt% dry","wt% dry","wt% dry","wt% dry","wt% dry",null,null,null,null,null,null,"Reference"]
[{"$f":"B4","v":"Avocado waste"},"Avocado waste","mixup from avacado oil",82.75,82.75,2.2000000000000002,95,16,16.7,18,48,10,1,39,{"$f":"100-SUM(K4:N4)","v":2},3,{"$f":"100-E4","v":17.25},{"$f":"SUM(K4:O4)","v":100},null,null,null,null,null,60,null,"biological, hydrothermal","anaerobic digestion, fermentation, hydrothermal",null,"Sánchez, F., Araus, K., Domínguez, M.P., et al. Thermochemical Transformation of Residual Avocado Seeds: Torrefaction and Carbonization. Waste and Biomass Valorization 2017; 8:2495-510. 10.1007/s12649-016-9699-6","Costagli, G., Betti, M. Avocado oil extraction processes: method for cold-pressed high-quality edible oil production versus traditional production. Journal of Agricultural Engineering 2015; 46:115-22. 10.4081/jae.2015.467",null,null,null,null,null,"Avocado waste"]
[{"$f":"B5","v":"Cashew nutshell"},"Cashew nutshell","processing residue",10,10,2,73,20,19,21,49,5,1,45,0,3.3333330000000001,{"$f":"100-E5","v":90},null,null,null,null,null,null,null,null,"thermochemical","combustion, gasification, pyrolysis","Heat/power, syn-gas, char, bio-liquid,","Uamusse, M. et al., Gasification of Cashew Nut Shell Using Gasifier Stovein Mozambique , \nJournal of Power and Energy Engineering > Vol.2 No.7, July 2014, DOI: 10.4236/jpee.2014.27002 ",null,null,null,null,null,null,"Nutshells"]
[{"$f":"B6","v":"Cassava fibre"},"Cassava fibre","processing residue",7.23,67,1,89,10,5,16,45,6.2,0.04,47.42,1.3400000000000034,3.3333330000000001,33,28.5,31.3,22.2,null,null,6,null,null,"biological, hydrothermal","anaerobic digestion, fermentation, hydrothermal","Bio-liquid, bio-gas, ethanol","Zanata, E.R. et al. 2016, Kinetic studies of thermal decomposition of sugarcane bagasse and cassava bagasse, J. therm. Anal. Calorim.","TNO. (2021). Phyllis2—Database for the physico-chemical composition of (treated) lignocellulosic biomass, micro- and macroalgae, various feedstocks for biogas production and biochar. https://phyllis.nl/","Ekop, I.E. et al. (219); Utilization of Cassava Wastes for Value Added Products: An Overview; International Journal of Scientific Engineering and Science, Volume 3, Issue 1, 31-39; https://zenodo.org/record/2556466#.XwMvuEb0nIU","https://www.tistr.or.th/anbor/list.php?alldata=&key=&id=10"]
[{"$f":"B7&\" \"&C7","v":"Cassava stalks"},"Cassava","stalks",70,40,3,75,22.8,10,18,47,6,0.8,45,{"$f":"100-SUM(K7:N7)","v":1.2000000000000028},3.3333330000000001,60,30,16,20,0.5,1,2,null,null,"thermochemical","combustion, gasification, pyrolysis","Heat/power, syn-gas, char, bio-liquid,","García-Velásquez, C. A., Daza, L., & Cardona, C. A. (2020). Economic and Energy Valorization of Cassava Stalks as Feedstock for Ethanol and Electricity Production. BioEnergy Research. doi:10.1007/s12155-020-10098-8","TNO. (2021). Phyllis2—Database for the physico-chemical composition of (treated) lignocellulosic biomass, micro- and macroalgae, various feedstocks for biogas production and biochar. https://phyllis.nl/","Zhu, W., Lestander, T. A., Örberg, H., Wei, M., Hedman, B., Ren, J., Xie, G., & Xiong, S. (2015). Cassava stems: A new resource to increase food and fuel production. GCB Bioenergy, 7(1), 72–83. https://doi.org/10.1111/gcbb.12112",null,null,null,null,"Cassava stalks"]
["Cattle manure ","Cattle manure",null,75,75,13,80,18,"n/a",20,45,6,1,41,7,3.3333330000000001,25,null,null,null,null,null,null,90,55,"biological, hydrothermal","anaerobic digestion, fermentation, hydrothermal",null,"Bayerisches Staatsministerium für Ernährung. (2020). Biogasausbeuten verschiedener Substrate. https://www.lfl.bayern.de/iba/energie/049711/?sel_list=51%2Cl&anker0=substratanker#substratanker","Achinas, S., Euverink, G.J.W. Theoretical analysis of biogas potential prediction from agricultural waste. Resource-Efficient Technologies 2016; 2:143-7. https://doi.org/10.1016/j.reffit.2016.08.001","TNO. (2021). Phyllis2—Database for the physico-chemical composition of (treated) lignocellulosic biomass, micro- and macroalgae, various feedstocks for biogas production and biochar. https://phyllis.nl/",null,null,null,null,"Cattle manure"]
["Chicken manure ","Chicken manure",null,85,85,20,75,10,10,18,45,6,6,40,3,3.3333330000000001,15,null,null,null,null,null,null,55.4,58,"biological, hydrothermal","anaerobic digestion, fermentation, hydrothermal",null,"Bayerisches Staatsministerium für Ernährung. (2020). Biogasausbeuten verschiedener Substrate. https://www.lfl.bayern.de/iba/energie/049711/?sel_list=51%2Cl&anker0=substratanker#substratanker","TNO. (2021). Phyllis2—Database for the physico-chemical composition of (treated) lignocellulosic biomass, micro- and macroalgae, various feedstocks for biogas production and biochar. https://phyllis.nl/","Achinas, S., Euverink, G.J.W. Theoretical analysis of biogas potential prediction from agricultural waste. Resource-Efficient Technologies 2016; 2:143-7. https://doi.org/10.1016/j.reffit.2016.08.001",null,null,null,null,"Chicken manure"]
["Wood logs","Hardwood","harvesting residue",25,25,2,82,16,13.6,19,50,6,1,40,3,3.3333330000000001,75,null,null,null,null,null,null,null,null,"thermochemical","combustion, gasification, pyrolysis","Heat/power, syn-gas, char, bio-liquid,","Forest Research. (2021). Moisture content. Forest Research. https://www.forestresearch.gov.uk/tools-and-resources/biomass-energy-resources/reference-biomass/facts-figures/moisture-content/","TNO. (2021). Phyllis2—Database for the physico-chemical composition of (treated) lignocellulosic biomass, micro- and macroalgae, various feedstocks for biogas production and biochar. https://phyllis.nl/",null,null,null,null,null,"Wood logs"]
[{"$f":"B11","v":"Coconut husk"},"Coconut husk","processing residue",15,15,2,67.400000000000006,25.2,16,20,50,6,0.1,40,3.9000000000000057,3.3333330000000001,85,25,24.5,35,null,null,null,null,null,"thermochemical","combustion, gasification, pyrolysis","Heat/power, syn-gas, char, bio-liquid,","TNO. (2021). Phyllis2—Database for the physico-chemical composition of (treated) lignocellulosic biomass, micro- and macroalgae, various feedstocks for biogas production and biochar. https://phyllis.nl/",null,null,"Bolivar-Telleria, M., et al. (2018). Second-Generation Bioethanol from Coconut Husk. BioMed Research International, 2018, 4916497. doi:10.1155/2018/4916497","Tsamba, A. J., et al. (2006). \"Pyrolysis characteristics and global kinetics of coconut and cashew nut shells.\" Fuel Processing Technology 87(6): 523-530.",null,null,"Coconut husk"]
[{"$f":"B12","v":"Coffee husk"},"Coffee husk","processing residue",10,10,2.5,83.2,14.3,17,19,49.4,6.1,0.81,41.2,2.4899999999999949,3.3333330000000001,90,null,null,null,null,null,null,null,null,"thermochemical","combustion, gasification, pyrolysis","Heat/power, syn-gas, char, bio-liquid,","TNO. (2021). Phyllis2—Database for the physico-chemical composition of (treated) lignocellulosic biomass, micro- and macroalgae, various feedstocks for biogas production and biochar. https://phyllis.nl/","TNO. (2021). Phyllis2—Database for the physico-chemical composition of (treated) lignocellulosic biomass, micro- and macroalgae, various feedstocks for biogas production and biochar. https://phyllis.nl/"]
[{"$f":"B13","v":"Cotton stalks"},"Cotton stalks","harvesting residue",17,17,7,75,25,13,18,49,6,1.5,42,1.5,3.3333330000000001,83,67,null,25,null,null,null,null,null,"thermochemical","combustion, gasification, pyrolysis","Heat/power, syn-gas, char, bio-liquid,","TNO. (2021). Phyllis2—Database for the physico-chemical composition of (treated) lignocellulosic biomass, micro- and macroalgae, various feedstocks for biogas production and biochar. https://phyllis.nl/","Gemtos, T.A., Tsiricoglou, T. Harvesting of cotton residue for energy production. Biomass and Bioenergy 1999; 16:51-9. https://doi.org/10.1016/S0961-9534(98)00065-8",null,null,null,null,null,"Cotton straw"]
["Dairy slurry ","Dairy slurry",null,90,90,null,85,20,"n/a",18,49,6,3,41,1,3.3333330000000001,10,{"$f":"Q14*G14/100","v":8.5},null,null,null,null,null,20.2,null,"biological, hydrothermal","anaerobic digestion, fermentation, hydrothermal",null,"Bayerisches Staatsministerium für Ernährung. (2020). Biogasausbeuten verschiedener Substrate. https://www.lfl.bayern.de/iba/energie/049711/?sel_list=51%2Cl&anker0=substratanker#substratanker",null,"TNO. (2021). Phyllis2—Database for the physico-chemical composition of (treated) lignocellulosic biomass, micro- and macroalgae, various feedstocks for biogas production and biochar. https://phyllis.nl/",null,null,null,null,"Cow slurry"]
["Fruit waste","Fruit","processing residue",90,90,5,85,15,"n/a",18,48,6,1,45,0,3.3333330000000001,10,15,15,5,null,6.2,4,null,null,"biological, hydrothermal","anaerobic digestion, fermentation, hydrothermal","Bio-liquid, bio-gas, ethanol","Bayerisches Staatsministerium für Ernährung. (2020). Biogasausbeuten verschiedener Substrate. https://www.lfl.bayern.de/iba/energie/049711/?sel_list=51%2Cl&anker0=substratanker#substratanker","Adeniyi, A. G., Otoikhian, K. S., Ighalo, J. O., & Alhassan, I. (2019). Pyrolysis of Different Fruit Peel Waste Via a Thermodynamic Model. Ournal of Engineering Research and Development, 2(2), 16–24. http://ajerd.abuad.edu.ng/wp-content/uploads/2019/12/AJERD0202_03.pdf","Ouadi, M., Bashir, M. A., Speranza, L. G., Jahangiri, H., & Hornung, A. (2019). Food and Market Waste–A Pathway to Sustainable Fuels and Waste Valorization. Energy & Fuels, 33(10), 9843–9850. https://doi.org/10.1021/acs.energyfuels.9b01650","TNO. (2021). Phyllis2—Database for the physico-chemical composition of (treated) lignocellulosic biomass, micro- and macroalgae, various feedstocks for biogas production and biochar. https://phyllis.nl/","Bayerisches Staatsministerium für Ernährung. (2020). Biogasausbeuten verschiedener Substrate. https://www.lfl.bayern.de/iba/energie/049711/?sel_list=51%2Cl&anker0=substratanker#substratanker",null,null,"Fruit waste"]
[{"$f":"B16","v":"Groundnut shells"},"Groundnut shells","processing residue",10,10,4,75,20,17,21,47,6,4,41,2,3.3333330000000001,90,null,null,null,null,null,null,null,null,"thermochemical","combustion, gasification, pyrolysis","Heat/power, syn-gas, char, bio-liquid,","TNO. (2021). Phyllis2—Database for the physico-chemical composition of (treated) lignocellulosic biomass, micro- and macroalgae, various feedstocks for biogas production and biochar. https://phyllis.nl/",null,null,null,null,null,null,"Groundnut shells"]
[{"$f":"B17","v":"Macadamia shells"},"Macadamia shells","processing residue",10,10,1,75,23,19,21,55,6,1,38,0,3.3333330000000001,90,26.9,17.8,40.1,null,null,null,null,null,"thermochemical","combustion, gasification, pyrolysis","Heat/power, syn-gas, char, bio-liquid,","TNO. (2021). Phyllis2—Database for the physico-chemical composition of (treated) lignocellulosic biomass, micro- and macroalgae, various feedstocks for biogas production and biochar. https://phyllis.nl/","T. P. Xavier et al., (2016) A Study of Pyrolysis of Macadamia Nut Shell: Parametric Sensitivity Analysis of the IPR Model, Brazilian Journal of Chemical Engineering, Vol. 33,  No. 01,  pp. 115 - 122,  January - March,  2016 dx.doi.org/10.1590/0104-6632.20160331s00003629",null,null,null,null,null,"Macadamia shells"]
["Maize processing residue","Maize","processing residue",70,70,7.68,73.56,18.559999999999999,8,16,45.81,5.6,0.94,39.89,7.7599999999999909,3.3333330000000001,30,null,null,null,null,null,null,null,null,"biological, hydrothermal","anaerobic digestion, fermentation, hydrothermal","Bio-liquid, bio-gas, ethanol",null,"Tippayawong, N., et al. (2020). \"Characterization of hydrochar from hydrothermal carbonization of maize residues.\" Energy Reports 6: 114-118."]
["Maize cobs&stalks","Maize cobs","Harvesting residue",10,10,3,80,18,16,18,47,6,1,45,1,3.3333330000000001,90,45,30,7.4,null,null,null,null,null,"thermochemical","combustion, gasification, pyrolysis","Heat/power, syn-gas, char, bio-liquid,","TNO. (2021). Phyllis2—Database for the physico-chemical composition of (treated) lignocellulosic biomass, micro- and macroalgae, various feedstocks for biogas production and biochar. https://phyllis.nl/",null,null,null,null,null,null,"Maize stalks & cobs"]
["Mango Processing residue","Mango","Processing residue",60,60,3,75,26,"n/a",19,45,7,1,47,0,3.3333330000000001,40,25,15,19,26.5,null,null,null,null,"biological, hydrothermal","anaerobic digestion, fermentation, hydrothermal","Bio-liquid, bio-gas, ethanol","TNO. (2021). Phyllis2—Database for the physico-chemical composition of (treated) lignocellulosic biomass, micro- and macroalgae, various feedstocks for biogas production and biochar. https://phyllis.nl/",null,null,null,null,null,null,"Mango pulp"]
["Oil Palm residue mix","Oil Palm","residue mix",25,25,4,77,23.13,15,18,48.85,6.83,0.35,38.5,5.4699999999999989,3.3333330000000001,75,30,26,35,null,null,null,null,null,"thermochemical","combustion, gasification, pyrolysis","Heat/power, syn-gas, char, bio-liquid,","Elbersen, W. Valorization of palm oil (mill) residues. Identifying and solving the challenges. 2013; 38 p., URL: https://english.rvo.nl/sites/default/files/2013/12/Report%20palm%20oil%20byproducts.pdf","TNO. (2021). Phyllis2—Database for the physico-chemical composition of (treated) lignocellulosic biomass, micro- and macroalgae, various feedstocks for biogas production and biochar. https://phyllis.nl/","Abdullah, N., & Sulaiman, F. (2013). The Properties of the Washed Empty Fruit Bunches of Oil Palm. Journal of Physical Science, 24(2), 117–137. https://jps.usm.my/wp-content/uploads/2014/10/24-2-8.pdf",null,null,null,null,"Oil Palm residue mix"]
["Oil Palm Empty Fruit Bunch","Oil Palm","Empty Fruit Bunch",60,60,5,71,21.26,6.4,17.5,47.98,5.26,1.17,36.61,8.980000000000004,3.3333330000000001,40,38,35,22,null,null,null,null,null,"biological, hydrothermal","anaerobic digestion, fermentation, hydrothermal","Bio-liquid, bio-gas, ethanol","Elbersen, W. Valorization of palm oil (mill) residues. Identifying and solving the challenges. 2013; 38 p., URL: https://english.rvo.nl/sites/default/files/2013/12/Report%20palm%20oil%20byproducts.pdf","TNO. (2021). Phyllis2—Database for the physico-chemical composition of (treated) lignocellulosic biomass, micro- and macroalgae, various feedstocks for biogas production and biochar. https://phyllis.nl/","Wilson, L., Yang, W., Blasiak, W., John, G. R., & Mhilu, C. F. (2011). Thermal characterization of tropical biomass feedstocks. Energy Conversion and Management, 52(1), 191–198. https://doi.org/10.1016/j.enconman.2010.06.058",null,null,null,null,"Oil Palm Empty fruit bunch"]
["Oil Palm Effluent POME","Oil Palm Effluent","POME",90,90,4.75,85,17.52,"n/a",17,40,8.5,1.1000000000000001,50.06,0.34000000000000341,3.3333330000000001,10,null,null,null,null,null,null,34,null,"biological, hydrothermal","anaerobic digestion, fermentation, hydrothermal",null,"Elbersen, W. Valorization of palm oil (mill) residues. Identifying and solving the challenges. 2013; 38 p., URL: https://english.rvo.nl/sites/default/files/2013/12/Report%20palm%20oil%20byproducts.pdf","Hassan, S., Kee, L. S., & Al-Kayiem, H. H. (2013). EXPERIMENTAL STUDY OF PALM OIL MILL EFFLUENT AND OIL PALM FROND WASTE MIXTURE AS AN ALTERNATIVE BIOMASS FUEL. Journal of Engineering Science and Technology, 8(6), 703–712. http://jestec.taylors.edu.my/Vol%208%20Issue%206%20December%2013/Volume%20(8)%20Issue%20(6)%20703-%20712.pdf","Wilson, L., Yang, W., Blasiak, W., John, G. R., & Mhilu, C. F. (2011). Thermal characterization of tropical biomass feedstocks. Energy Conversion and Management, 52(1), 191–198. https://doi.org/10.1016/j.enconman.2010.06.058",null,null,null,null,"Oil Palm Effluent POME"]
["Oil Palm Fruit Fibre ","Oil Palm Fruit Fibre",null,30,20,5,73,18.8,15,20,47.48,6.01,1.4,36.409999999999997,8.7000000000000171,null,80,34.5,31.8,25.7,null,null,null,null,null,null,null,null,"Elbersen, W. Valorization of palm oil (mill) residues. Identifying and solving the challenges. 2013; 38 p., URL: https://english.rvo.nl/sites/default/files/2013/12/Report%20palm%20oil%20byproducts.pdf","Yusoff, S. (2006). Renewable energy from palm oil – innovation on effective utilization of waste. Journal of Cleaner Production, 14(1), 87–93. https://doi.org/10.1016/j.jclepro.2004.07.005","Wilson, L., Yang, W., Blasiak, W., John, G. R., & Mhilu, C. F. (2011). Thermal characterization of tropical biomass feedstocks. Energy Conversion and Management, 52(1), 191–198. https://doi.org/10.1016/j.enconman.2010.06.058",null,null,null,null,"Oil Palm Fruit Fibre "]
["Oil Palm Kernel Shells","Oil Palm Kernel Shells",null,10,10,3,70,25,18,21,49,6,2,43,0,null,90,20.8,22.7,50.7,null,null,null,null,null,null,null,null,"Elbersen, W. Valorization of palm oil (mill) residues. Identifying and solving the challenges. 2013; 38 p., URL: https://english.rvo.nl/sites/default/files/2013/12/Report%20palm%20oil%20byproducts.pdf","Yusoff, S. (2006). Renewable energy from palm oil – innovation on effective utilization of waste. Journal of Cleaner Production, 14(1), 87–93. https://doi.org/10.1016/j.jclepro.2004.07.005","Ahmad, R., Hamidin, N., Ali, U. F. M., & Abidin, C. Z. A. (2014). Characterization of Bio-Oil From Palm Kernel Shell Pyrolysis. JOURNAL OF MECHANICAL ENGINEERING AND SCIENCES, 7, 1134–1140. https://doi.org/10.15282/jmes.7.2014.12.0110","Wilson, L., Yang, W., Blasiak, W., John, G. R., & Mhilu, C. F. (2011). Thermal characterization of tropical biomass feedstocks. Energy Conversion and Management, 52(1), 191–198. https://doi.org/10.1016/j.enconman.2010.06.058","TNO. (2021). Phyllis2—Database for the physico-chemical composition of (treated) lignocellulosic biomass, micro- and macroalgae, various feedstocks for biogas production and biochar. https://phyllis.nl/",null,null,"Oil Palm Fruit Kernel "]
["Pig manure ","Pig manure",null,77.5,77.5,12,83,24,"n/a",21,49,6.5,3,40,1.5,3.3333330000000001,22.5,null,null,null,null,null,null,74.3,60,"biological, hydrothermal","anaerobic digestion, fermentation, hydrothermal",null,"Bayerisches Staatsministerium für Ernährung. (2020). Biogasausbeuten verschiedener Substrate. https://www.lfl.bayern.de/iba/energie/049711/?sel_list=51%2Cl&anker0=substratanker#substratanker","Cantrell, K.B., Martin II, J.H. Stochastic state-space temperature regulation of biochar production. Part II: Application to manure processing via pyrolysis.  2012; 92:490-5. https://doi.org/10.1002/jsfa.4617","TNO. (2021). Phyllis2—Database for the physico-chemical composition of (treated) lignocellulosic biomass, micro- and macroalgae, various feedstocks for biogas production and biochar. https://phyllis.nl/","Achinas, S., Euverink, G.J.W. Theoretical analysis of biogas potential prediction from agricultural waste. Resource-Efficient Technologies 2016; 2:143-7. https://doi.org/10.1016/j.reffit.2016.08.001",null,null,null,"Pig manure"]
["Pig slurry ","Pig slurry",null,94,94,20,85,23,"n/a",20,46,{"$f":"L14","v":6},7,41,0,3.3333330000000001,6,null,null,null,null,null,null,20.399999999999999,60,"biological, hydrothermal","anaerobic digestion, fermentation, hydrothermal",null,"Bayerisches Staatsministerium für Ernährung. (2020). Biogasausbeuten verschiedener Substrate. https://www.lfl.bayern.de/iba/energie/049711/?sel_list=51%2Cl&anker0=substratanker#substratanker","Sommer, S.G., Hjorth, M., Leahy, J.J., et al. Pig slurry characteristics, nutrient balance and biogas production as affected by separation and acidification. The Journal of Agricultural Science 2015; 153:177-91. 10.1017/S0021859614000367",null,null,null,null,null,"Pig slurry"]
["Pineapple waste Processing residue","Pineapple waste","Processing residue",90,90,4,83,18,"n/a",18,49,6.03,1,42,{"$f":"100-SUM(K28:N28)","v":1.9699999999999989},3.5,10,null,null,null,null,null,null,50,null,"biological, hydrothermal","anaerobic digestion, fermentation, hydrothermal","Bio-liquid, bio-gas, ethanol","TNO. (2021). Phyllis2—Database for the physico-chemical composition of (treated) lignocellulosic biomass, micro- and macroalgae, various feedstocks for biogas production and biochar. https://phyllis.nl/","Engineering Tool Box (2021), https://www.engineeringtoolbox.com/specific-heat-capacity-food-d_295.html","Rani, D.S., Nand, K. Ensilage of pineapple processing waste for methane generation. Waste Management 2004; 24:523-8. https://doi.org/10.1016/j.wasman.2003.10.010",null,null,null,null,"Pineapple pulp"]
["Potato peels ","Potato peels",null,89,89,5,93,14.2,"n/a",18,44,6,4,46,0,3.43,11,null,null,null,null,null,null,50,null,null,null,null,"Bayerisches Staatsministerium für Ernährung. (2020). Biogasausbeuten verschiedener Substrate. https://www.lfl.bayern.de/iba/energie/049711/?sel_list=51%2Cl&anker0=substratanker#substratanker","Liang, S., Han, Y., Wei, L., et al. Production and characterization of bio-oil and bio-char from pyrolysis of potato peel wastes. Biomass Conversion and Biorefinery 2015; 5:237-46. 10.1007/s13399-014-0130-x","Engineering Tool Box (2021), https://www.engineeringtoolbox.com/specific-heat-capacity-food-d_295.html",null,null,null,null,"Potato processing"]
["Rice husk","Rice Husk","Processing residue",10,10,18,75,23,17,19,47,6,1,46,0,3.3333330000000001,90,28.77,17.25,19.87,0.4,3.2,83.89,null,null,"thermochemical","combustion, gasification, pyrolysis","Heat/power, syn-gas, char, bio-liquid,","Wilson, L., Yang, W., Blasiak, W., John, G. R., & Mhilu, C. F. (2011). Thermal characterization of tropical biomass feedstocks. Energy Conversion and Management, 52(1), 191–198. https://doi.org/10.1016/j.enconman.2010.06.058","TNO. (2021). Phyllis2—Database for the physico-chemical composition of (treated) lignocellulosic biomass, micro- and macroalgae, various feedstocks for biogas production and biochar. https://phyllis.nl/","IRRI. Rice husk - IRRI Rice Knowledge Bank. 2020, http://www.knowledgebank.irri.org/step-by-step-production/postharvest/rice-by-products/rice-husk",null,null,null,null,"Rice husk"]
[{"$f":"B31","v":"Rice straw"},"Rice straw","Harvesting residue",15,15,18,75,19,16,19,48,6,2,40,4,3.3333330000000001,85,35.69,23.68,14.02,null,null,91.55,null,null,"thermochemical","combustion, gasification, pyrolysis","Heat/power, syn-gas, char, bio-liquid,","TNO. (2021). Phyllis2—Database for the physico-chemical composition of (treated) lignocellulosic biomass, micro- and macroalgae, various feedstocks for biogas production and biochar. https://phyllis.nl/","Van Hung, N., Maguyon-Detras, M.C., Migo, M.V., et al. Rice Straw Overview: Availability, Properties, and Management Practices. In: Gummert, Martin, et al., editors. Sustainable Rice Straw Management. Cham: Springer International Publishing; 2020. p. 1-13",null,null,null,null,null,"Rice straw"]
["Wood processing residue","Wood","processing residue",20,20,1,83,17,15,19,49,6,0.5,42,2.5,3.3333330000000001,80,null,null,null,null,null,null,null,null,"thermochemical","combustion, gasification, pyrolysis","Heat/power, syn-gas, char, bio-liquid,","TNO. (2021). Phyllis2—Database for the physico-chemical composition of (treated) lignocellulosic biomass, micro- and macroalgae, various feedstocks for biogas production and biochar. https://phyllis.nl/",null,null,null,null,null,null,"Wood processing residue"]
["Sisal Sisal pulp","Sisal","Sisal pulp",90,85.5,6.1,85,12.6,"n/a",17.350000000000001,48,7.2,1.66,39.1,4.039999999999992,3.3333330000000001,14.5,{"$f":"Q33*G33/100","v":12.324999999999999},null,null,null,null,null,null,null,"biological, hydrothermal","anaerobic digestion, fermentation, hydrothermal","Bio-liquid, bio-gas, ethanol",null,"Terrapon-Pfaff, J. C., Fischedick, M., & Monheim, H. (2012). Energy potentials and sustainability—the case of sisal residues in Tanzania. Energy for Sustainable Development, 16(3), 312-319. doi:https://doi.org/10.1016/j.esd.2012.06.001","Wilson, L., et al. (2011). \"Thermal characterization of tropical biomass feedstocks.\" Energy Conversion and Management 52(1): 191-198.",null,null,null,null,"Sisal Sisal pulp"]
["Sisal Sisal ball","Sisal","Sisal ball",70,70,6.1,93,14.6,6,17.350000000000001,48,6,0.1,42,3.9000000000000057,3.3333330000000001,30,null,null,null,null,null,null,null,null,"biological, hydrothermal","anaerobic digestion, fermentation, hydrothermal",null,null,"Terrapon-Pfaff, J. C., Fischedick, M., & Monheim, H. (2012). Energy potentials and sustainability—the case of sisal residues in Tanzania. Energy for Sustainable Development, 16(3), 312-319. doi:https://doi.org/10.1016/j.esd.2012.06.001","Wilson, L., Yang, W., Blasiak, W., John, G. R., & Mhilu, C. F. (2011). Thermal characterization of tropical biomass feedstocks. Energy Conversion and Management, 52(1), 191–198. https://doi.org/10.1016/j.enconman.2010.06.058",null,null,null,null,"Sisal Sisal ball"]
["Sisal Sisal wastewater","Sisal","Sisal wastewater",100,99.88,6.1,87,13.6,"n/a",17.350000000000001,47.5,6,0.88,40.900000000000006,4.7199999999999989,3.3333330000000001,0.12000000000000455,null,null,null,null,null,null,null,null,"biological, hydrothermal","anaerobic digestion, fermentation, hydrothermal",null,null,"Terrapon-Pfaff, J. C., Fischedick, M., & Monheim, H. (2012). Energy potentials and sustainability—the case of sisal residues in Tanzania. Energy for Sustainable Development, 16(3), 312-319. doi:https://doi.org/10.1016/j.esd.2012.06.001",null,null,null,null,null,"Sisal Sisal wastewater"]
[{"$f":"B36","v":"Sugarcane bagasse"},"Sugarcane bagasse","Processing residue",20,20,3,83,16,13,19,48.81,5.9,0.49,43.1,1.6999999999999886,3.3333330000000001,80,37.270000000000003,35.799999999999997,20.13,null,null,95.9,null,null,"thermochemical","combustion, gasification, pyrolysis","Heat/power, syn-gas, char, bio-liquid,","Celignis. (2020). Analysis of Sugarcane Bagasse, Cellulose Content of Sugarcane Bagasse, Lignin Content of Sugarcane Bagasse. https://www.celignis.com/feedstock.php?value=13","TNO. (2021). Phyllis2—Database for the physico-chemical composition of (treated) lignocellulosic biomass, micro- and macroalgae, various feedstocks for biogas production and biochar. https://phyllis.nl/","Motta, I. L., Miranda, N. T., Maciel Filho, R., & Wolf Maciel, M. R. (2019). Sugarcane bagasse gasification: Simulation and analysis of different operating parameters, fluidizing media, and gasifier types. Biomass and Bioenergy, 122, 433–445. https://doi.org/10.1016/j.biombioe.2019.01.051","Kumar, R., & Kumar, M. (2016). AN EXPERIMENTAL STUDY TO EVALUATE THE CALORIFIC VALUES OF BAGASSE AFTER OPEN SUN DRYING. International Journal of Science, Engineering and Technology Research, 5(6), 4. http://ijsetr.org/wp-content/uploads/2016/06/IJSETR-VOL-5-ISSUE-6-2153-2156.pdf",null,null,null,"Bagasse"]
[{"$f":"B37","v":"Sugarcane leaves"},"Sugarcane leaves","Harvesting residue",30,30,7.72,77.400000000000006,14.88,10,16,39.75,5.5,0.19,46.84,7.7199999999999989,3.3333330000000001,70,null,null,null,null,null,null,null,null,"thermochemical","combustion, gasification, pyrolysis","Heat/power, syn-gas, char, bio-liquid,","Celignis. (2020). Analysis of Sugarcane Bagasse, Cellulose Content of Sugarcane Bagasse, Lignin Content of Sugarcane Bagasse. https://www.celignis.com/feedstock.php?value=13","TNO. (2021). Phyllis2—Database for the physico-chemical composition of (treated) lignocellulosic biomass, micro- and macroalgae, various feedstocks for biogas production and biochar. https://phyllis.nl/"]
[{"$f":"B38","v":"Vegetable waste"},"Vegetable waste","more green stuff, fibre more than starch",90,90,10,85,15,"n/a",18,48,7,4,41,0,4,10,null,null,null,null,null,null,60,null,null,null,null,"Bayerisches Staatsministerium für Ernährung. (2020). Biogasausbeuten verschiedener Substrate. https://www.lfl.bayern.de/iba/energie/049711/?sel_list=51%2Cl&anker0=substratanker#substratanker","TNO. (2021). Phyllis2—Database for the physico-chemical composition of (treated) lignocellulosic biomass, micro- and macroalgae, various feedstocks for biogas production and biochar. https://phyllis.nl/","Ouadi, M., Bashir, M. A., Speranza, L. G., Jahangiri, H., & Hornung, A. (2019). Food and Market Waste–A Pathway to Sustainable Fuels and Waste Valorization. Energy & Fuels, 33(10), 9843–9850. https://doi.org/10.1021/acs.energyfuels.9b01650",null,null,null,null,"Vegetable waste"]
[{"$f":"B39","v":"Wood chips"},"Wood chips","processing residue",{"$f":"D32","v":20},{"$f":"E32","v":20},1,83,17,15,19,49,6,0.5,42,2.5,3.3333330000000001,80,null,null,null,null,null,null,null,null,"thermochemical","combustion, gasification, pyrolysis","Heat/power, syn-gas, char, bio-liquid,","Forest Research. (2021). Moisture content. Forest Research. https://www.forestresearch.gov.uk/tools-and-resources/biomass-energy-resources/reference-biomass/facts-figures/moisture-content/","TNO. (2021). Phyllis2—Database for the physico-chemical composition of (treated) lignocellulosic biomass, micro- and macroalgae, various feedstocks for biogas production and biochar. https://phyllis.nl/",null,null,null,null,null,"Wood chips"]
["Biomass briquettes",null,null,10,10,2,85,20,17,19,48,5,0.5,45,1.5,3.3333330000000001,90,null,null,null,null,null,null,null,null,null,null,null,"TNO. (2021). Phyllis2—Database for the physico-chemical composition of (treated) lignocellulosic biomass, micro- and macroalgae, various feedstocks for biogas production and biochar. https://phyllis.nl/",null,null,null,null,null,null,"Briquettes"]
["NO SECOND FEEDSTOCK",0,0,0,0,0,0,0,0,0,0,0,0,0,0,0,null,0,0,0,0,0,0,0,0,0,0,0,0,0]

{"sheet":"Feedstocks_Pathways","index":1,"n_rows":69,"n_cols":38,"rows_kept":69,"cut":false,"hidden":false,"merged":[[0,5,0,7],[0,8,0,11],[29,10,39,10],[6,1,6,3],[2,1,2,3],[2,5,2,7],[2,9,2,12],[7,2,7,3],[8,2,8,3],[8,9,8,10],[9,9,9,10],[10,9,10,10],[11,9,11,10],[12,11,12,12],[14,9,14,10],[14,11,14,12],[2,15,2,16],[6,15,10,16],[3,13,19,13],[13,9,13,10],[13,11,13,12],[3,0,19,0],[19,1,19,12],[3,1,3,12],[4,1,4,3],[4,5,4,7],[4,9,4,12],[5,2,5,3],[5,9,5,10],[6,9,7,9],[9,2,9,3],[13,1,15,3],[12,9,12,10]]}
[null,null,null,null,null,"Bioenergy Mass-Energy Balance Model",null,null,"Created by Jorge López Ordovás, Katie Chong, Mirjam Röder. Energy & Bioproducts Research Institute (EBRI), Aston University, 2020-21. Contact: bioenergy@aston.ac.uk  "]
[]
[null,"1. Choose demand sector and feedstocks from dropdown menus. ",null,null,null,"2. Choose specific inputs for each demand sector. Clear the values that are not required by clicking on \"Clear Values\" button",null,null,null,"3. Results displayed below. "]
[]
[null,"General Inputs",null,null,null,"Specific Demand Sector Inputs",null,null,null,"Results"]
[null,"Demand Sector",null,null,null,{"$f":"INDIRECT(\"'\"&$E$22&\"'!A\"&I6)","v":{"$error":"#N/A"}},null,{"$f":"INDIRECT(\"'\"&$E$22&\"'!C\"&I6)","v":{"$error":"#N/A"}},50,null,null,{"$f":"INDIRECT(\"'\"&$E$22&\"'!H\"&I6)","v":{"$error":"#N/A"}},{"$f":"INDIRECT(\"'\"&$E$22&\"'!I\"&I6)","v":{"$error":"#N/A"}}]
[null,{"$f":"LOOKUP(E22,T21:T27,U21:U27)","v":{"$error":"#N/A"}},null,null,null,{"$error":"#N/A"},null,{"$f":"INDIRECT(\"'\"&$E$22&\"'!C\"&I7)","v":{"$error":"#N/A"}},51,{"$f":"INDIRECT(\"'\"&$E$22&\"'!F\"&I7)","v":{"$error":"#N/A"}},{"$f":"INDIRECT(\"'\"&$E$22&\"'!G\"&I7)","v":{"$error":"#N/A"}},{"$error":"#N/A"},{"$error":"#N/A"}]
[null,"Feedstock 1",null,null,null,{"$error":"#N/A"},null,{"$f":"INDIRECT(\"'\"&$E$22&\"'!C\"&I8)","v":{"$error":"#N/A"}},52,null,{"$f":"INDIRECT(\"'\"&$E$22&\"'!G\"&I8)","v":{"$error":"#N/A"}},{"$error":"#N/A"},{"$error":"#N/A"}]
[null,"Feedstock 2",null,null,null,{"$error":"#N/A"},null,null,53,{"$f":"INDIRECT(\"'\"&$E$22&\"'!F\"&I9)","v":{"$error":"#N/A"}},null,{"$error":"#N/A"},{"$error":"#N/A"}]
[null,"Percentage of second feedstock",null,null,null,{"$error":"#N/A"},null,{"$f":"INDIRECT(\"'\"&$E$22&\"'!C\"&I10)","v":{"$error":"#N/A"}},54,{"$error":"#N/A"},null,{"$error":"#N/A"},{"$error":"#N/A"}]
[null,{"$f":"IF(E22=\"ds2\",\"Target capacity as MWth\",IF(E22=\"ds1\",\"Target capacity as MWth\",\"Target capacity as MW\"))","v":{"$error":"#N/A"}},null,"MW",null,{"$error":"#N/A"},null,{"$error":"#N/A"},55,{"$error":"#N/A"},null,{"$error":"#N/A"},{"$error":"#N/A"}]
[null,"Capacity factor / Plant availability",null,"%",null,{"$f":"INDIRECT(\"'\"&$E$22&\"'!A\"&I12)","v":{"$error":"#N/A"}},null,{"$error":"#N/A"},56,{"$error":"#N/A"},null,{"$error":"#N/A"},{"$error":"#N/A"}]
[null,null,null,null,null,null,null,{"$error":"#N/A"},57,{"$error":"#N/A"},null,{"$f":"INDIRECT(\"'\"&$E$22&\"'!I\"&I13)","v":{"$error":"#N/A"}}]
[null,"The cells that can be amended by the user are highlighted in orange",null,null,null,null,null,{"$error":"#N/A"},58,{"$error":"#N/A"},null,{"$f":"INDIRECT(\"'\"&$E$22&\"'!I\"&I14)","v":{"$error":"#N/A"}}]
[null,null,null,null,null,null,null,{"$error":"#N/A"},59,{"$f":"H24","v":"Annual operational hours"},null,{"$f":"ROUND(I24,0)","v":0}]
[]
[]
[]
[]
[]
[null,"Demand Sector","Country","Feedstock","Acronym","Biomass annual(D4)","Hello","kW",1000,"Feedstock 1",{"$f":"LOOKUP(C8,P22:P58,Q22:Q58)","v":{"$error":"#N/A"}},null,null,null,null,"Feedstock name from list","Name on MASTER Spreadsheet",null,null,"DS1","Biomass used to replace fossil fuels in clinker production"]
[null,{"$f":"C6","v":0},{"$f":"LOOKUP(B22,C29:I29,C53:I53)","v":{"$error":"#N/A"}},{"$f":"C8","v":0},{"$f":"LOOKUP(B22,C29:I29,C54:I54)","v":{"$error":"#N/A"}},{"$f":"INDIRECT(\"'\"&E22&\"'!\"&E24)","v":{"$error":"#N/A"}},"my","MW",1,"Feedstock 2",{"$f":"LOOKUP(C9,P22:P58,Q22:Q58)","v":{"$error":"#N/A"}},null,null,null,null,"Avocado waste","Avocado waste",null,null,"DS2","Biomass used to replace fuelwood for withering and/or drying of tea leaves"]
[null,{"$f":"LOOKUP(B22,C29:I29,C30:I30)","v":{"$error":"#N/A"}},{"$f":"B23&\"Feedstock1\"","v":{"$error":"#N/A"}},null,{"$f":"LOOKUP(B22,C29:I29,C55:I55)","v":{"$error":"#N/A"}},null,null,null,null,null,null,{"$f":"14","v":14},{"$f":"L23/L24","v":1.5981735159817351E-4},null,null,"Bagasse","Sugarcane bagasse",null,null,"DS3","Biomass used in wood production industry to provide heat and/or power"]
[null,{"$f":"C11/LOOKUP(D11,H21:H22,I21:I22)","v":0},"MW",null,"D4",{"$f":"'DS2'!D4","v":{"$error":"#N/A"}},"name","Annual operational hours",{"$f":"24*365*C12","v":0},"h",null,{"$f":"365*24*10","v":87600},null,null,null,"Briquettes","Biomass briquettes",null,null,"DS4","Palm industry residues used for anaerobic digestion. The subsequent biogas used to provide heat and/or power"]
[null,{"$f":"LOOKUP(B22,C29:I29,C57:I57)","v":{"$error":"#N/A"}},"Choice First",null,{"$f":"E23&B27","v":{"$error":"#N/A"}},null,{"$f":"G21&\" \"&G22&\" \"&G24","v":"Hello my name"},null,null,null,null,null,null,null,null,"Cassava fibre","Cassava fibre",null,null,"DS5","Fruit and vegetable residuse used for anaerobic digestion. The subsequent biogas used to provide heat and/or power"]
[null,{"$f":"LOOKUP(E22,C54:I54,C62:I62)","v":{"$error":"#N/A"}},"Choice Second",null,null,null,null,null,null,null,null,null,null,null,null,"Cassava stalks","Cassava stalks",null,null,"DS6","Dairy and cattle manure/slurry used for anaerobic digestion. The subsequent biogas used to provide heat and/or power"]
[null,"FlowDiagram",null,null,null,null,null,null,null,null,null,null,null,null,null,"Cattle manure","Cattle manure ",null,null,"DS7","Sisal industry residues used for anaerobic digestion. The subsequent biogas used to provide heat and/or power"]
[null,null,null,null,null,null,null,null,null,null,null,null,null,null,null,"Chicken manure","Chicken manure "]
[null,"Pathway","1. Cement manufacturing","2. Tea processing","3. Wood processing","4. Palm oil processing","5. Horticulture","6. Dairy","7. Sisal processing",null,null,null,null,null,null,"Coconut husk","Coconut husk"]
[null,null,"Cement","Tea","Wood","PalmOil","Fruit","Dairy","Sisal",null,"Feedstock choices for the model; If changed, it must be changed on the table on the right",null,null,null,null,"Coffee husk","Coffee husk"]
[null,"Feedstock 1","Briquettes","Bagasse","Bagasse","Cattle manure","Avocado waste","Cattle manure","Sisal Sisal ball",null,null,null,null,null,null,"Cotton straw","Cotton stalks"]
[null,"Feedstock 2","Cassava stalks","Briquettes","Cassava stalks","Chicken manure","Fruit waste","Chicken manure","Sisal Sisal pulp",null,null,null,null,null,null,"Cow slurry","Dairy slurry "]
[null,"Feedstock 3","Cotton straw","Cassava stalks","Coconut husk","Maize stalks & cobs","Mango pulp","Cow slurry","Sisal Sisal wastewater",null,null,null,null,null,null,"Fruit waste","Fruit waste"]
[null,"Feedstock 4","Groundnut shells","Coconut husk","Groundnut shells","Oil Palm Effluent POME","Pineapple pulp","Pig manure","Cattle manure",null,null,null,null,null,null,"Groundnut shells","Groundnut shells"]
[null,"Feedstock 5","Maize stalks & cobs","Macadamia shells","Maize stalks & cobs","Oil Palm Empty Fruit Bunch","Potato processing","Pig slurry","Chicken manure",null,null,null,null,null,null,"Macadamia shells","Macadamia shells"]
[null,"Feedstock 6","Oil Palm Empty Fruit Bunch","Maize stalks & cobs","Oil Palm Empty Fruit Bunch","Cow slurry","Vegetable waste","Rice husk","Cow slurry",null,null,null,null,null,null,"Maize processing residue","Maize processing residue"]
[null,"Feedstock 7","Oil Palm Fruit Fibre ","Nutshells","Oil Palm Fruit Fibre ","Pig manure",{"$f":"B44","v":"No feedstock"},"Rice straw","Pig manure",null,null,null,null,null,null,"Maize stalks & cobs","Maize cobs&stalks"]
[null,"Feedstock 8","Oil Palm Kernel Shells","Wood chips","Oil Palm Kernel Shells","Pig slurry"," ",{"$f":"B44","v":"No feedstock"},"Pig slurry",null,null,null,null,null,null,"Mango pulp","Mango Processing residue"]
[null,"Feedstock 9","Oil Palm residue mix","Wood logs","Oil Palm residue mix","Rice husk"," "," ",{"$f":"B44","v":"No feedstock"},null,null,null,null,null,null,"Nutshells","Cashew nutshell"]
[null,"Feedstock 10","Rice husk",{"$f":"B44","v":"No feedstock"},"Rice husk","Rice straw"," "," "," ",null,null,null,null,null,null,"Oil Palm Effluent POME","Oil Palm Effluent POME"]
[null,"Feedstock 11","Wood chips"," ","Wood chips",{"$f":"B44","v":"No feedstock"}," "," "," ",null,null,null,null,null,null,"Oil Palm Empty Fruit Bunch","Oil Palm Empty Fruit Bunch"]
[null,"Feedstock 12","Wood logs"," ","Wood logs"," "," "," "," ",null,null,null,null,null,null,"Oil Palm Fruit Fibre ","Oil Palm Fruit Fibre "]
[null,"Feedstock 13","Wood processing residue"," ","Wood processing residue"," "," "," "," ",null,null,null,null,null,null,"Oil Palm Kernel Shells","Oil Palm Kernel Shells"]
[null,"No feedstock",{"$f":"B44","v":"No feedstock"}," ",{"$f":"B44","v":"No feedstock"}," "," "," "," ",null,null,null,null,null,null,"Oil Palm residue mix","Oil Palm residue mix"]
[null,null,"CementFeedstock1","TeaFeedstock1","WoodFeedstock1","PalmOilFeedstock1","FruitFeedstock1","DairyFeedstock1","SisalFeedstock1",null,null,null,null,null,null,"Pig manure","Pig manure "]
[null,null,"-"," "," "," "," "," "," ",null,null,null,null,null,null,"Pig slurry","Pig slurry "]
[null,null,"NOTE: for palm oil residues use processing residues OR use EFB number from Elbersen, W. Valorization of palm oil (mill) residues. Identifying and solving the challenges. 2013; 38 p.","NOTE: for softwood use softwood residues","NOTE: for SRC use Eucalyptus","NOTE: for palm oil residues use processing residues OR use EFB number from Elbersen, W. Valorization of palm oil (mill) residues. Identifying and solving the challenges. 2013; 38 p.",null,"Note: I think you still need to do the manure stuff",null,null,null,null,null,null,null,"Pineapple pulp","Pineapple waste Processing residue"]
[null,null,"NOTE: for hardwood use cocoa trimmings","NOTE: for hardwood use Eucalyptus","NOTE: for old trees use coconut timber",null,null,"Cow slurry is the liquid stuff",null,null,null,null,null,null,null,"Potato processing","Potato peels "]
[null,null,null,null,"NOTE: for sawmill residues use sawdust",null,null,"Cow manure the more solid",null,null,null,null,null,null,null,"Rice husk","Rice husk"]
[null,null,null,null,null,null,null,"Pig slurry is the liquid stuff",null,null,null,null,null,null,null,"Rice straw","Rice straw"]
[null,null,null,null,null,null,null,"pig manure the more solid",null,null,null,null,null,null,null,"Sisal Sisal ball","Sisal Sisal ball"]
[null,null,null,null,null,null,null,"Chicken manure",null,null,null,null,null,null,null,"Sisal Sisal pulp","Sisal Sisal pulp"]
[null,"Country","Nigeria","Kenya","Tanzania","Ghana","Kenya","South Africa","Kenya",null,null,null,null,null,null,"Sisal Sisal wastewater","Sisal Sisal wastewater"]
[null,"Demand Sector","DS1","DS2","DS3","DS4","DS5","DS6","DS7",null,null,null,null,null,null,"Sugarcane leaves","Sugarcane leaves"]
[null,{"$f":"E22","v":{"$error":"#N/A"}},"Cement","Tea","Wood","PalmOil","Fruit&Veg","Dairy","Sisal",null,null,null,null,null,null,"Vegetable waste","Vegetable waste",null,null,null,null,null,null,"Moisture content\n(as received) \n[wt.%]","Moisture content \n(application)\n[wt.%]","Ash content\n[wt.%]","Volatile matter\n[wt.%]","Fixed carbon\n[wt.%]","LHV\n[MJ/kg]","HHV\n[MJ/kg]","Carbon\n[wt.%]","Hydrogen\n[wt.%]","Nitrogen\n[wt.%]","Oxygen\n[wt.%]","Others\n[wt.%]","Heat capacity \n[kJ/kg K]","solids content [w%]"]
[null,null,null,null,null,null,null,null,null,null,null,null,null,null,null,"Wood chips","Wood chips",null,null,null,null,null,{"$f":"C8","v":0},{"$f":"VLOOKUP($K$21,'Feedstock Info'!$1:$1048576,4,FALSE)","v":{"$error":"#N/A"}},{"$f":"VLOOKUP($K$21,'Feedstock Info'!$1:$1048576,5,FALSE)","v":{"$error":"#N/A"}},{"$f":"VLOOKUP($K$21,'Feedstock Info'!$1:$1048576,6,FALSE)","v":{"$error":"#N/A"}},{"$f":"VLOOKUP($K$21,'Feedstock Info'!$1:$1048576,7,FALSE)","v":{"$error":"#N/A"}},{"$f":"VLOOKUP($K$21,'Feedstock Info'!$1:$1048576,8,FALSE)","v":{"$error":"#N/A"}},{"$f":"VLOOKUP($K$21,'Feedstock Info'!$1:$1048576,9,FALSE)","v":{"$error":"#N/A"}},{"$f":"VLOOKUP($K$21,'Feedstock Info'!$1:$1048576,10,FALSE)","v":{"$error":"#N/A"}},{"$f":"VLOOKUP($K$21,'Feedstock Info'!$1:$1048576,11,FALSE)","v":{"$error":"#N/A"}},{"$f":"VLOOKUP($K$21,'Feedstock Info'!$1:$1048576,12,FALSE)","v":{"$error":"#N/A"}},{"$f":"VLOOKUP($K$21,'Feedstock Info'!$1:$1048576,13,FALSE)","v":{"$error":"#N/A"}},{"$f":"VLOOKUP($K$21,'Feedstock Info'!$1:$1048576,14,FALSE)","v":{"$error":"#N/A"}},{"$f":"VLOOKUP($K$21,'Feedstock Info'!$1:$1048576,15,FALSE)","v":{"$error":"#N/A"}},{"$f":"VLOOKUP($K$21,'Feedstock Info'!$1:$1048576,16,FALSE)","v":{"$error":"#N/A"}},{"$f":"VLOOKUP($K$21,'Feedstock Info'!$1:$1048576,17,FALSE)","v":{"$error":"#N/A"}},{"$f":"AK56*AA56/100","v":{"$error":"#N/A"}}]
[null,null,"CementFossilfuel","TeaDemand","WoodEnergyProduction","PalmOilTechnology","FruitVegEnergyProduction","DairyEnergyProduction","SisalEnergyProduction",null,null,null,null,null,null,"Wood logs","Wood logs",null,null,null,null,null,{"$f":"C9","v":0},{"$f":"IF($C$9=$B$44,X56,VLOOKUP($K$22,'Feedstock Info'!$1:$1048576,4,FALSE))","v":{"$error":"#N/A"}},{"$f":"IF($C$9=$B$44,Y56,VLOOKUP($K$22,'Feedstock Info'!$1:$1048576,5,FALSE))","v":{"$error":"#N/A"}},{"$f":"IF($C$9=$B$44,Z56,VLOOKUP($K$22,'Feedstock Info'!$1:$1048576,6,FALSE))","v":{"$error":"#N/A"}},{"$f":"IF($C$9=$B$44,AA56,VLOOKUP($K$22,'Feedstock Info'!$1:$1048576,7,FALSE))","v":{"$error":"#N/A"}},{"$f":"IF($C$9=$B$44,AB56,VLOOKUP($K$22,'Feedstock Info'!$1:$1048576,8,FALSE))","v":{"$error":"#N/A"}},{"$f":"IF($C$9=$B$44,AC56,VLOOKUP($K$22,'Feedstock Info'!$1:$1048576,9,FALSE))","v":{"$error":"#N/A"}},{"$f":"IF($C$9=$B$44,AD56,VLOOKUP($K$22,'Feedstock Info'!$1:$1048576,10,FALSE))","v":{"$error":"#N/A"}},{"$f":"IF($C$9=$B$44,AE56,VLOOKUP($K$22,'Feedstock Info'!$1:$1048576,11,FALSE))","v":{"$error":"#N/A"}},{"$f":"IF($C$9=$B$44,AF56,VLOOKUP($K$22,'Feedstock Info'!$1:$1048576,12,FALSE))","v":{"$error":"#N/A"}},{"$f":"IF($C$9=$B$44,AG56,VLOOKUP($K$22,'Feedstock Info'!$1:$1048576,13,FALSE))","v":{"$error":"#N/A"}},{"$f":"IF($C$9=$B$44,AH56,VLOOKUP($K$22,'Feedstock Info'!$1:$1048576,14,FALSE))","v":{"$error":"#N/A"}},{"$f":"IF($C$9=$B$44,AI56,VLOOKUP($K$22,'Feedstock Info'!$1:$1048576,15,FALSE))","v":{"$error":"#N/A"}},{"$f":"IF($C$9=$B$44,AJ56,VLOOKUP($K$22,'Feedstock Info'!$1:$1048576,16,FALSE))","v":{"$error":"#N/A"}},{"$f":"IF($C$9=$B$44,AK56,VLOOKUP($K$22,'Feedstock Info'!$1:$1048576,17,FALSE))","v":{"$error":"#N/A"}},{"$f":"AK57*AA57/100","v":{"$error":"#N/A"}}]
[null,null,{"$f":"DS1_Information!K36","v":"Coal"},{"$f":"DS2_Information!B16","v":"Drying"},"CHP","CHP",{"$f":"DS5_Information!I44","v":"CHP"},{"$f":"DS6_Information!L49","v":"CHP"},{"$f":"DS7_Information!I49","v":"CHP"},null,null,null,null,null,null,"Wood processing residue","Wood processing residue",null,null,null,null,null,"Mixture",{"$f":"X56*(1-$C$10)+X57*$C$10","v":{"$error":"#N/A"}},{"$f":"Y56*(1-$C$10)+Y57*$C$10","v":{"$error":"#N/A"}},{"$f":"Z56*(1-$C$10)+Z57*$C$10","v":{"$error":"#N/A"}},{"$error":"#N/A"},{"$error":"#N/A"},{"$error":"#N/A"},{"$error":"#N/A"},{"$error":"#N/A"},{"$error":"#N/A"},{"$error":"#N/A"},{"$error":"#N/A"},{"$error":"#N/A"},{"$error":"#N/A"},{"$error":"#N/A"},{"$error":"#N/A"}]
[null,null,{"$f":"DS1_Information!K38","v":"Natural Gas"},{"$f":"DS2_Information!B17","v":"Drying + Withering"},"Electricity only","Electricity only",{"$f":"DS5_Information!J44","v":"Electricity only"},{"$f":"DS6_Information!M49","v":"Electricity only"},{"$f":"DS7_Information!J49","v":"Electricity only"}]
[null,null,{"$f":"DS1_Information!K37","v":"Petcoke"},{"$f":"DS2_Information!B19","v":"Withering"},"Heat only","Heat only",{"$f":"DS5_Information!K44","v":"Heat only"},{"$f":"DS6_Information!N49","v":"Heat only"},{"$f":"DS7_Information!K49","v":"Heat only"}]
[null,null,null,null,null,null,null,null,null,null,null,null,null,null,null,null,null,null,null,null,null,null,"DS2 mixture 50:50",{"$f":"AVERAGE(X56:X57)","v":{"$error":"#N/A"}},{"$f":"AVERAGE(Y56:Y57)","v":{"$error":"#N/A"}},{"$f":"AVERAGE(Z56:Z57)","v":{"$error":"#N/A"}},{"$error":"#N/A"},{"$error":"#N/A"},{"$error":"#N/A"},{"$error":"#N/A"},{"$error":"#N/A"},{"$error":"#N/A"},{"$error":"#N/A"},{"$error":"#N/A"},{"$error":"#N/A"},{"$error":"#N/A"},{"$error":"#N/A"}]
[null,null,"CementEnergyDemand","TeaNA","WoodNA","PalmOilEnergyProduction","FruitVegNA","DairyNA","SisalNA"]
[null,null,{"$f":"DS1_Information!E3","v":"Dry (multi-stage)"},"N/A",null,{"$f":"IF($E$22=\"ds4\", IF($G$6=\"heat only\", \"High-pressure steam\", \" \"), \" \")","v":{"$error":"#N/A"}},"N/A","N/A","N/A"]
[null,null,{"$f":"DS1_Information!E4","v":"Dry (single-stage)"},null,null,{"$f":"IF($E$22=\"ds4\", IF($G$6=\"heat only\", \"Low-pressure steam\", \" \"), \" \")","v":{"$error":"#N/A"}}]
[null,null,{"$f":"DS1_Information!E5","v":"Wet"}]
[]
[]
[]
[null,"User guidance. For further information see the \"Methodology\" tab."]

{"sheet":"DS1_Information","index":2,"n_rows":80,"n_cols":38,"rows_kept":80,"cut":false,"hidden":true,"merged":[[12,4,17,4],[77,23,77,24],[77,25,77,26],[77,27,77,28],[77,29,77,30],[75,23,75,24],[75,25,75,26],[75,27,75,28],[75,29,75,30],[76,23,76,24],[76,25,76,26],[76,27,76,28],[76,29,76,30],[73,23,73,26],[73,27,73,30],[74,23,74,24],[74,25,74,26],[74,27,74,28],[74,29,74,30],[68,23,68,24],[68,25,68,26],[68,27,68,28],[68,29,68,30],[69,23,69,24],[69,25,69,26],[69,27,69,28],[69,29,69,30],[66,23,66,24],[66,25,66,26],[66,27,66,28],[66,29,66,30],[67,23,67,24],[67,25,67,26],[67,27,67,28],[67,29,67,30],[61,23,61,24],[61,25,61,26],[61,27,61,28],[61,29,61,30],[65,23,65,26],[65,27,65,30],[59,23,59,24],[59,25,59,26],[59,27,59,28],[59,29,59,30],[60,23,60,24],[60,25,60,26],[60,27,60,28],[60,29,60,30],[57,23,57,24],[57,25,57,26],[57,27,57,28],[57,29,57,30],[58,23,58,24],[58,25,58,26],[58,27,58,28],[58,29,58,30],[52,23,52,24],[52,25,52,26],[52,27,52,28],[52,29,52,30],[56,23,56,26],[56,27,56,30],[50,23,50,24],[50,25,50,26],[50,27,50,28],[50,29,50,30],[51,23,51,24],[51,25,51,26],[51,27,51,28],[51,29,51,30],[48,23,48,24],[48,25,48,26],[48,27,48,28],[48,29,48,30],[49,23,49,24],[49,25,49,26],[49,27,49,28],[49,29,49,30],[43,23,43,24],[43,25,43,26],[43,27,43,28],[43,29,43,30],[46,5,46,7],[47,23,47,26],[47,27,47,30],[41,23,41,24],[41,25,41,26],[41,27,41,28],[41,29,41,30],[42,23,42,24],[42,25,42,26],[42,27,42,28],[42,29,42,30],[39,4,39,7],[39,23,39,24],[39,25,39,26],[39,27,39,28],[39,29,39,30],[40,23,40,24],[40,25,40,26],[40,27,40,28],[40,29,40,30],[34,23,34,24],[34,25,34,26],[34,27,34,28],[34,29,34,30],[36,5,36,7],[38,23,38,26],[38,27,38,30],[32,23,32,24],[32,25,32,26],[32,27,32,28],[32,29,32,30],[33,23,33,24],[33,25,33,26],[33,27,33,28],[33,29,33,30],[30,23,30,24],[30,25,30,26],[30,27,30,28],[30,29,30,30],[31,23,31,24],[31,25,31,26],[31,27,31,28],[31,29,31,30],[25,23,25,24],[25,25,25,26],[25,27,25,28],[25,29,25,30],[29,4,29,7],[29,23,29,26],[29,27,29,30],[23,5,23,8],[23,23,23,24],[23,25,23,26],[23,27,23,28],[23,29,23,30],[24,23,24,24],[24,25,24,26],[24,27,24,28],[24,29,24,30],[21,23,21,24],[21,25,21,26],[21,27,21,28],[21,29,21,30],[22,10,22,15],[22,23,22,24],[22,25,22,26],[22,27,22,28],[22,29,22,30],[16,23,16,24],[16,25,16,26],[16,27,16,28],[16,29,16,30],[20,23,20,26],[20,27,20,30],[14,23,14,24],[14,25,14,26],[14,27,14,28],[14,29,14,30],[15,23,15,24],[15,25,15,26],[15,27,15,28],[15,29,15,30],[12,23,12,24],[12,25,12,26],[12,27,12,28],[12,29,12,30],[13,23,13,24],[13,25,13,26],[13,27,13,28],[13,29,13,30],[7,23,7,24],[7,25,7,26],[7,27,7,28],[7,29,7,30],[10,10,10,13],[11,23,11,26],[11,27,11,30],[6,10,6,13],[6,15,6,20],[6,23,6,24],[6,25,6,26],[6,27,6,28],[6,29,6,30],[4,23,4,24],[4,25,4,26],[4,27,4,28],[4,29,4,30],[5,23,5,24],[5,25,5,26],[5,27,5,28],[5,29,5,30],[2,23,2,26],[2,27,2,30],[3,23,3,24],[3,25,3,26],[3,27,3,28],[3,29,3,30]]}
[null,null,null,null,null,null,null,null,null,null,null,null,null,null,null,null,null,null,null,"CaSO4","CaO","SO3"]
[null,null,"Phase",null,"Energy demand [GJ/t clinker] or [MJ/kg clinker]",null,null,"Reaction heat [GJ/t]",null,null,"Clinker production [t raw material/ t clinker]",null,null,null,null,null,null,null,null,{"$f":"1/AI12","v":7.3421439060205587E-3},2.2727000000000001E-2,2.2727000000000001E-2]
[null,null,"Solid",null,"Dry (multi-stage)",3.4,null,"Max",1.6,null,"Min",1.5,null,null,null,"Cement conversion (clinker-->cement)",0.75,null,null,null,{"$f":"U2*AI13","v":1.2749847000000001},null,null,"Reagents",null,null,null,"Products",null,null,null,null,null,"Molecular weight",null,null,"Molecular weight"]
[null,null,"Gas",null,"Dry (single-stage)",4.5,null,"Min",1.85,null,"Max",1.6,null,null,null,null,null,null,null,null,null,null,null,"Reagent 1",null,"Reagent 2",null,"Product 1",null,"Product 2",null,null,null,"Ca",40.1,null,"Al",27]
[null,null,null,null,"Wet",6.06,null,null,null,null,null,null,null,null,null,null,null,null,null,null,null,null,null,"CaCO3",null,null,null,"CaO",null,"CO2",null,null,null,"Si",28.1,null,"C",12]
[null,null,null,null,null,null,null,null,null,null,null,null,null,null,null,null,null,null,null,null,null,null,"Stoichiometric coefficient",1,null,null,null,1,null,1,null,null,null,"Al",27,null,"Ca",40.1]
[null,null,null,null,"Reaction calcination","CaCO3-->CaO+CO2",null,null,null,null,"Typical composition of coal ash",null,null,null,null,"Formula",null,null,null,null,null,null,"Molecular weight",{"$f":"IF(NOT(X5=\"\"),LOOKUP(X5,$AK$4:$AK$33,$AL$4:$AL$33),\"\")","v":100.1},null,{"$f":"IF(NOT(Z5=\"\"),LOOKUP(Z5,$AK$4:$AK$33,$AL$4:$AL$33),\"\")","v":""},null,{"$f":"IF(NOT(AB5=\"\"),LOOKUP(AB5,$AK$4:$AK$33,$AL$4:$AL$33),\"\")","v":56.1},null,{"$f":"IF(NOT(AD5=\"\"),LOOKUP(AD5,$AK$4:$AK$33,$AL$4:$AL$33),\"\")","v":44},null,null,null,"Fe",55.8,null,"CaCO3",100.1]
[null,null,null,null,null,"limestone--> lime + CO2",null,null,null,null,"SiO2","Al2O3","Fe2O3","CaO",null,"Component","Al","Mg","Ca","Si","Fe",null,null,{"$f":"IF(NOT(X5=\"\"),\"kg reagent/kg product\",\"\")","v":"kg reagent/kg product"},null,{"$f":"IF(NOT(Z5=\"\"),\"kg reagent/kg product\",\"\")","v":""},null,{"$f":"IF(NOT(AB5=\"\"),\"kg product/kg reagent\",\"\")","v":"kg product/kg reagent"},null,{"$f":"IF(NOT(AD5=\"\"),\"kg product/kg reagent\",\"\")","v":"kg product/kg reagent"},null,null,null,"S",32.1,null,"CaO",56.1]
[null,null,null,null,"Clinkerization","CaO+SiO2+Al2O3+Fe2O3",null,null,null,null,0.46300000000000002,0.25600000000000001,0.187,2.8000000000000001E-2,null,"Composition",null,null,null,null,null,null,null,{"$f":"IF(NOT(OR(AB5=\"\",X5=\"\")),AB5,\"\")","v":"CaO"},{"$f":"IF(NOT(OR(AD5=\"\",X5=\"\")),AD5,\"\")","v":"CO2"},{"$f":"IF(NOT(OR(AB5=\"\",Z5=\"\")),AB5,\"\")","v":""},{"$f":"IF(NOT(OR(AD5=\"\",Z5=\"\")),AD5,\"\")","v":""},{"$f":"IF(NOT(OR(X5=\"\",AB5=\"\")),X5,\"\")","v":"CaCO3"},{"$f":"IF(NOT(OR(Z5=\"\",AB5=\"\")),Z5,\"\")","v":""},{"$f":"IF(NOT(OR(AD5=\"\",X5=\"\")),X5,\"\")","v":"CaCO3"},{"$f":"IF(NOT(OR(Z5=\"\",AD5=\"\")),Z5,\"\")","v":""},null,null,"O",16,null,"CaSO4",136.19999999999999]
[null,null,null,null,null,"Lime+Silica+Alumina+Iron(+Gypsum)-->Clinker",null,null,null,null,{"$f":"K9/SUM($K$9:$N$9)","v":0.49571734475374724},{"$f":"L9/SUM($K$9:$N$9)","v":0.27408993576017127},{"$f":"M9/SUM($K$9:$N$9)","v":0.20021413276231259},{"$f":"N9/SUM($K$9:$N$9)","v":2.997858672376873E-2},"NORMALISED","Coefficient",61.902000000000001,97.599000000000004,115.261,-77.055000000000007,-8886,null,null,{"$f":"IF(OR(X5=\"\",AB5=\"\"),\"\",X6*X7/(AB6*AB7))","v":1.784313725490196},{"$f":"IF(OR(X5=\"\",AD5=\"\"),\"\",X6*X7/(AD6*AD7))","v":2.2749999999999999},{"$f":"IF(OR(Z5=\"\",AB5=\"\"),\"\",Z6*Z7/(AB6*AB7))","v":""},{"$f":"IF(OR(Z5=\"\",AD5=\"\"),\"\",Z6*Z7/(AD6*AD7))","v":""},{"$f":"IF(OR(X5=\"\",AB5=\"\"),\"\",AB6*AB7/(X6*X7))","v":0.56043956043956045},{"$f":"IF(OR(Z5=\"\",AB5=\"\"),\"\",AB6*AB7/(Z6*Z7))","v":""},{"$f":"IF(OR(X5=\"\",AD5=\"\"),\"\",AD6*AD7/(X6*X7))","v":0.43956043956043961},{"$f":"IF(OR(Z5=\"\",AD5=\"\"),\"\",AD6*AD7/(Z6*Z7))","v":""},null,null,"H",1,null,"CaSO4.2H2O",172.2]
[null,null,null,null,"Temperature",1450,"°C",null,null,null,{"$f":"K10*AI22+L10*AI23+M10*AI24+N10*AI25","v":107.2487152034261},null,null,null,"Weight","Heat required [kcal/kg clinker]",{"$f":"SUM(Q10*Q9,R10*R9,S10*S9,T10*T9,U10*U9)","v":0},"Heat required [MJ/kg]",{"$f":"Q11*4.184/1000","v":0},null,null,null,null,null,null,null,null,null,null,null,null,null,null,"C",12,null,"CH4",16]
[null,null,null,null,null,null,null,null,null,null,null,null,null,null,null,null,null,null,null,null,null,null,null,"Reagents",null,null,null,"Products",null,null,null,null,null,"CaSO4",{"$f":"AI4+AI8+AI9*4","v":136.19999999999999},null,"CO2",44]
[null,null,null,null,"Clinker composition","Percentage\\Source","Application of Electric Arc Furnace Slag","Sodium sulphate effect on cement produced with building stone waste","Industrial versus Laboratory Clinker Processing Using Grinding Aids (Scale Effect)","Chemical activation and set acceleration of lime-natural pozzolan cement","Estimation","Normalised",null,null,null,null,null,"Excess air",null,null,null,null,null,"Reagent 1",null,"Reagent 2",null,"Product 1",null,"Product 2",null,null,null,"CaO",{"$f":"($AI$9+$AI$4)","v":56.1},null,"Fe",55.8]
[null,null,null,null,null,"CaO",66.5,65.959999999999994,64.2,64.73,{"$f":"AVERAGE(G14:J14)/100","v":0.65347499999999992},{"$f":"K14/(SUM($K$14:$K$17))","v":0.68020714062662635},null,null,null,null,null,"O2 exit gas","Percent excess air",null,null,null,null,"H",null,"O2",null,"H2O",null,null,null,null,null,"SO3",{"$f":"($AI$9*3+$AI$8)","v":80.099999999999994},null,"H",1]
[null,null,null,null,null,"SiO2",21.3,21.01,20.6,21.88,{"$f":"AVERAGE(G15:J15)/100","v":0.21197500000000002},{"$f":"K15/(SUM($K$14:$K$17))","v":0.22064640366399502},null,null,null,null,null,0.5,0.3,null,null,null,"Stoichiometric coefficient",2,null,0.5,null,1,null,null,null,null,null,"CaCO3",{"$f":"($AI$9*3+$AI$11+$AI$4)","v":100.1},null,"H2O",18]
[null,null,null,null,null,"Al2O3",6,4.6399999999999997,6.32,5.56,{"$f":"AVERAGE(G16:J16)/100","v":5.6299999999999996E-2},{"$f":"K16/(SUM($K$14:$K$17))","v":5.8603101904861038E-2},null,null,null,null,null,1,5,null,null,null,"Molecular weight",{"$f":"IF(NOT(X14=\"\"),LOOKUP(X14,$AK$4:$AK$33,$AL$4:$AL$33),\"\")","v":1},null,{"$f":"IF(NOT(Z14=\"\"),LOOKUP(Z14,$AK$4:$AK$33,$AL$4:$AL$33),\"\")","v":32},null,{"$f":"IF(NOT(AB14=\"\"),LOOKUP(AB14,$AK$4:$AK$33,$AL$4:$AL$33),\"\")","v":18},null,{"$f":"IF(NOT(AD14=\"\"),LOOKUP(AD14,$AK$4:$AK$33,$AL$4:$AL$33),\"\")","v":""},null,null,null,"CO2",{"$f":"($AI$9*2+$AI$11)","v":44},null,"O",16]
[null,null,null,null,null,"Fe2O3",3.23,4.24,4.3,3.81,{"$f":"AVERAGE(G17:J17)/100","v":3.8949999999999999E-2},{"$f":"K17/(SUM($K$14:$K$17))","v":4.054335380451754E-2},null,null,null,null,null,1.5,8,null,null,null,null,{"$f":"IF(NOT(X14=\"\"),\"kg reagent/kg product\",\"\")","v":"kg reagent/kg product"},null,{"$f":"IF(NOT(Z14=\"\"),\"kg reagent/kg product\",\"\")","v":"kg reagent/kg product"},null,{"$f":"IF(NOT(AB14=\"\"),\"kg product/kg reagent\",\"\")","v":"kg product/kg reagent"},null,{"$f":"IF(NOT(AD14=\"\"),\"kg product/kg reagent\",\"\")","v":""},null,null,null,"CaSO4.2H2O",{"$f":"AI12+2*(AI19)","v":172.2},null,"O2",32]
[null,null,null,null,null,null,null,null,null,"Summation",{"$f":"SUM(K14:K17)","v":0.9607},{"$f":"K18/(SUM($K$14:$K$17))","v":1},null,null,null,null,null,2,10,null,null,null,null,{"$f":"IF(NOT(OR(AB14=\"\",X14=\"\")),AB14,\"\")","v":"H2O"},{"$f":"IF(NOT(OR(AD14=\"\",X14=\"\")),AD14,\"\")","v":""},{"$f":"IF(NOT(OR(AB14=\"\",Z14=\"\")),AB14,\"\")","v":"H2O"},{"$f":"IF(NOT(OR(AD14=\"\",Z14=\"\")),AD14,\"\")","v":""},{"$f":"IF(NOT(OR(X14=\"\",AB14=\"\")),X14,\"\")","v":"H"},{"$f":"IF(NOT(OR(Z14=\"\",AB14=\"\")),Z14,\"\")","v":"O2"},{"$f":"IF(NOT(OR(AD14=\"\",X14=\"\")),X14,\"\")","v":""},{"$f":"IF(NOT(OR(Z14=\"\",AD14=\"\")),Z14,\"\")","v":""},null,null,"O2",{"$f":"AI9*2","v":32},null,"S",32.1]
[null,null,null,null,null,"Size","Excess air ratio",null,null,null,null,null,null,null,null,null,null,2.5,13,null,null,null,null,{"$f":"IF(OR(X14=\"\",AB14=\"\"),\"\",X15*X16/(AB15*AB16))","v":0.1111111111111111},{"$f":"IF(OR(X14=\"\",AD14=\"\"),\"\",X15*X16/(AD15*AD16))","v":""},{"$f":"IF(OR(Z14=\"\",AB14=\"\"),\"\",Z15*Z16/(AB15*AB16))","v":0.88888888888888884},{"$f":"IF(OR(Z14=\"\",AD14=\"\"),\"\",Z15*Z16/(AD15*AD16))","v":""},{"$f":"IF(OR(X14=\"\",AB14=\"\"),\"\",AB15*AB16/(X15*X16))","v":9},{"$f":"IF(OR(Z14=\"\",AB14=\"\"),\"\",AB15*AB16/(Z15*Z16))","v":1.125},{"$f":"IF(OR(X14=\"\",AD14=\"\"),\"\",AD15*AD16/(X15*X16))","v":""},{"$f":"IF(OR(Z14=\"\",AD14=\"\"),\"\",AD15*AD16/(Z15*Z16))","v":""},null,null,"H2O",{"$f":"2*AI10+AI9","v":18},null,"Si",28.1]
[null,null,null,null,null,"Small Scale","Above",1.5,null,null,null,null,null,null,null,null,null,3,16.5,null,null,null,null,null,null,null,null,null,null,null,null,null,null,"SO4",{"$f":"AI8+4*AI9","v":96.1},null,"SO3",80.099999999999994]
[null,null,null,null,null,null,null,null,null,null,null,null,null,null,null,null,null,3.5,20,null,null,null,null,"Reagents",null,null,null,"Products",null,null,null,null,null,"CH4",{"$f":"4*AI10+AI11","v":16},null,"SO4",96.1]
[null,null,null,null,null,"Reaction heat clinkerization",1.6950000000000001,"MJ/kg clinker",null,null,null,null,null,null,null,null,null,"o2 exit gas=5.9143 x [excess air] - 1.2238",null,null,null,null,null,"Reagent 1",null,"Reagent 2",null,"Product 1",null,"Product 2",null,null,null,"SiO2",{"$f":"AI5+2*AI18","v":92.1}]
[null,null,null,null,null,null,null,null,null,null,"Coal",null,null,null,null,null,null,null,null,null,null,null,null,"C",null,"O2",null,"CO2",null,null,null,null,null,"Al2O3",{"$f":"2*AI6+3*AI9","v":102}]
[null,null,null,null,null,"Ultimate analysis (d.b.) biomass fuels",null,null,null,null,"Reference","Moisture","Low heating value [MJ/kg]","LHV dry [MJ/kg]","High Heating Value [MJ/kg]","HHV dry [MJ/kg]","ash content (d.b.)","C (d.b)","H (d.b.)","Density",null,null,"Stoichiometric coefficient",1,null,1,null,1,null,null,null,null,null,"Fe2O3",{"$f":"2*AI7+3*AI9","v":159.6}]
[null,null,null,null,null,null,"Max","Min","Average",null,1859,6.4000000000000001E-2,28.02,30.1,29.29,31.29,8.8999999999999996E-2,0.76619999999999999,5.45E-2,null,null,null,"Molecular weight",{"$f":"IF(NOT(X23=\"\"),LOOKUP(X23,$AK$4:$AK$33,$AL$4:$AL$33),\"\")","v":12},null,{"$f":"IF(NOT(Z23=\"\"),LOOKUP(Z23,$AK$4:$AK$33,$AL$4:$AL$33),\"\")","v":32},null,{"$f":"IF(NOT(AB23=\"\"),LOOKUP(AB23,$AK$4:$AK$33,$AL$4:$AL$33),\"\")","v":44},null,{"$f":"IF(NOT(AD23=\"\"),LOOKUP(AD23,$AK$4:$AK$33,$AL$4:$AL$33),\"\")","v":""},null,null,null,"CaO",{"$f":"AI4+AI9","v":56.1}]
[null,null,null,null,null,"C",43.2,54.9,0.5,null,3077,0.11,24.41,27.73,25.56,28.72,0.108,0.69899999999999995,4.5999999999999999E-2,null,null,null,null,{"$f":"IF(NOT(X23=\"\"),\"kg reagent/kg product\",\"\")","v":"kg reagent/kg product"},null,{"$f":"IF(NOT(Z23=\"\"),\"kg reagent/kg product\",\"\")","v":"kg reagent/kg product"},null,{"$f":"IF(NOT(AB23=\"\"),\"kg product/kg reagent\",\"\")","v":"kg product/kg reagent"},null,{"$f":"IF(NOT(AD23=\"\"),\"kg product/kg reagent\",\"\")","v":""}]
[null,null,null,null,null,"H",4.4000000000000004,7.2,0.05,null,3078,4.1000000000000002E-2,26.73,27.98,27.72,28.91,0.125,0.72399999999999998,4.2999999999999997E-2,null,null,null,null,{"$f":"IF(NOT(OR(AB23=\"\",X23=\"\")),AB23,\"\")","v":"CO2"},{"$f":"IF(NOT(OR(AD23=\"\",X23=\"\")),AD23,\"\")","v":""},{"$f":"IF(NOT(OR(AB23=\"\",Z23=\"\")),AB23,\"\")","v":"CO2"},{"$f":"IF(NOT(OR(AD23=\"\",Z23=\"\")),AD23,\"\")","v":""},{"$f":"IF(NOT(OR(X23=\"\",AB23=\"\")),X23,\"\")","v":"C"},{"$f":"IF(NOT(OR(Z23=\"\",AB23=\"\")),Z23,\"\")","v":"O2"},{"$f":"IF(NOT(OR(AD23=\"\",X23=\"\")),X23,\"\")","v":""},{"$f":"IF(NOT(OR(Z23=\"\",AD23=\"\")),Z23,\"\")","v":""}]
[null,null,null,null,null,"O",34.1,48.2,{"$f":"40%","v":0.4},null,3079,0.11799999999999999,25.31,29.02,26.52,30.07,7.3999999999999996E-2,0.73499999999999999,4.9000000000000002E-2,null,null,null,null,{"$f":"IF(OR(X23=\"\",AB23=\"\"),\"\",X24*X25/(AB24*AB25))","v":0.27272727272727271},{"$f":"IF(OR(X23=\"\",AD23=\"\"),\"\",X24*X25/(AD24*AD25))","v":""},{"$f":"IF(OR(Z23=\"\",AB23=\"\"),\"\",Z24*Z25/(AB24*AB25))","v":0.72727272727272729},{"$f":"IF(OR(Z23=\"\",AD23=\"\"),\"\",Z24*Z25/(AD24*AD25))","v":""},{"$f":"IF(OR(X23=\"\",AB23=\"\"),\"\",AB24*AB25/(X24*X25))","v":3.6666666666666665},{"$f":"IF(OR(Z23=\"\",AB23=\"\"),\"\",AB24*AB25/(Z24*Z25))","v":1.375},{"$f":"IF(OR(X23=\"\",AD23=\"\"),\"\",AD24*AD25/(X24*X25))","v":""},{"$f":"IF(OR(Z23=\"\",AD23=\"\"),\"\",AD24*AD25/(Z24*Z25))","v":""}]
[null,null,null,null,null,null,null,null,null,null,3267,7.3999999999999996E-2,28.66,31.15,29.89,32.28,8.7999999999999995E-2,0.78300000000000003,5.1999999999999998E-2]
[null,null,null,null,"COAL",null,null,null,null,null,3268,0.11799999999999999,25.28,28.99,26.51,30.06,8.4000000000000005E-2,0.745,4.9000000000000002E-2,null,null,null,null,"Reagents",null,null,null,"Products"]
[null,null,null,null,null,"C","H","O",null,null,3269,9.9000000000000005E-2,25.74,28.84,26.98,29.94,0.10299999999999999,0.74,5.0999999999999997E-2,null,null,null,null,"Reagent 1",null,"Reagent 2",null,"Product 1",null,"Product 2"]
[null,null,null,null,"Mol. Weight",{"$f":"AI11","v":12},{"$f":"AI10","v":1},{"$f":"AI9","v":16},null,null,3270,0.11,24.57,27.91,25.75,28.93,0.123,0.72299999999999998,4.7E-2,null,null,null,null,"CaSO4.2H2O",null,null,null,"CaO",null,"SO3"]
[null,null,null,null,"Composition",{"$f":"F38","v":0.73939999999999995},{"$f":"G38","v":4.8937499999999995E-2},{"$f":"H38","v":0.21166250000000009},null,null,"AVERAGE",{"$f":"AVERAGE(L25:L32)","v":9.1749999999999984E-2},{"$f":"AVERAGE(M25:M32)","v":26.09},28.965,27.277499999999996,30.025000000000002,9.9249999999999991E-2,0.73939999999999995,4.8937499999999995E-2,null,null,null,"Stoichiometric coefficient",1,null,null,null,1,null,1]
[null,null,null,null,"Mol transformation",{"$f":"F33/F32","v":6.161666666666666E-2},{"$f":"G33/G32","v":4.8937499999999995E-2},{"$f":"H33/H32","v":1.3228906250000005E-2},null,null,"STDEV [%]",{"$f":"_xlfn.STDEV.P(L25:L32)/L33","v":0.29239228342586243},{"$f":"_xlfn.STDEV.P(M25:M32)/M33","v":5.6297778511556457E-2},3.7996871840684003E-2,5.4384512585929148E-2,3.8770969643347239E-2,0.17522146387343829,3.3157599381217706E-2,6.9378170398677261E-2,null,null,null,"Molecular weight",{"$f":"IF(NOT(X32=\"\"),LOOKUP(X32,$AK$4:$AK$33,$AL$4:$AL$33),\"\")","v":172.2},null,{"$f":"IF(NOT(Z32=\"\"),LOOKUP(Z32,$AK$4:$AK$33,$AL$4:$AL$33),\"\")","v":""},null,{"$f":"IF(NOT(AB32=\"\"),LOOKUP(AB32,$AK$4:$AK$33,$AL$4:$AL$33),\"\")","v":56.1},null,{"$f":"IF(NOT(AD32=\"\"),LOOKUP(AD32,$AK$4:$AK$33,$AL$4:$AL$33),\"\")","v":80.099999999999994}]
[null,null,null,null,"Mol fraction",{"$f":"F34/SUM($F$34:$I$34)","v":0.4977794234285029},{"$f":"G34/SUM($F$34:$I$34)","v":0.39534888613522901},{"$f":"H34/SUM($F$34:$I$34)","v":0.10687169043626814},null,null,"Average","C",0.75,"H",0.05,null,null,null,null,null,null,null,null,{"$f":"IF(NOT(X32=\"\"),\"kg reagent/kg product\",\"\")","v":"kg reagent/kg product"},null,{"$f":"IF(NOT(Z32=\"\"),\"kg reagent/kg product\",\"\")","v":""},null,{"$f":"IF(NOT(AB32=\"\"),\"kg product/kg reagent\",\"\")","v":"kg product/kg reagent"},null,{"$f":"IF(NOT(AD32=\"\"),\"kg product/kg reagent\",\"\")","v":"kg product/kg reagent"}]
[null,null,null,null,"Formula",{"$f":"F35/MIN($F$35:$H$35)","v":4.6577294828638331},{"$f":"G35/MIN($F$35:$H$35)","v":3.6992854190043092},{"$f":"H35/MIN($F$35:$H$35)","v":1},null,null,"Coal",{"$f":"L33","v":9.1749999999999984E-2},26,{"$f":"N33","v":28.965},27.277499999999996,30.025000000000002,9.9249999999999991E-2,0.73939999999999995,4.8937499999999995E-2,1.2,null,null,null,{"$f":"IF(NOT(OR(AB32=\"\",X32=\"\")),AB32,\"\")","v":"CaO"},{"$f":"IF(NOT(OR(AD32=\"\",X32=\"\")),AD32,\"\")","v":"SO3"},{"$f":"IF(NOT(OR(AB32=\"\",Z32=\"\")),AB32,\"\")","v":""},{"$f":"IF(NOT(OR(AD32=\"\",Z32=\"\")),AD32,\"\")","v":""},{"$f":"IF(NOT(OR(X32=\"\",AB32=\"\")),X32,\"\")","v":"CaSO4.2H2O"},{"$f":"IF(NOT(OR(Z32=\"\",AB32=\"\")),Z32,\"\")","v":""},{"$f":"IF(NOT(OR(AD32=\"\",X32=\"\")),X32,\"\")","v":"CaSO4.2H2O"},{"$f":"IF(NOT(OR(Z32=\"\",AD32=\"\")),Z32,\"\")","v":""}]
[null,null,null,null,"Mol Weight",{"$f":"F36*F32+G36*G32+H36*H32","v":75.592039213370313},null,null,null,null,"Petcoke",0.03,33,33,34,34,0.03,0.8,0.05,1.3,null,null,null,{"$f":"IF(OR(X32=\"\",AB32=\"\"),\"\",X33*X34/(AB33*AB34))","v":3.0695187165775399},{"$f":"IF(OR(X32=\"\",AD32=\"\"),\"\",X33*X34/(AD33*AD34))","v":2.1498127340823969},{"$f":"IF(OR(Z32=\"\",AB32=\"\"),\"\",Z33*Z34/(AB33*AB34))","v":""},{"$f":"IF(OR(Z32=\"\",AD32=\"\"),\"\",Z33*Z34/(AD33*AD34))","v":""},{"$f":"IF(OR(X32=\"\",AB32=\"\"),\"\",AB33*AB34/(X33*X34))","v":0.32578397212543558},{"$f":"IF(OR(Z32=\"\",AB32=\"\"),\"\",AB33*AB34/(Z33*Z34))","v":""},{"$f":"IF(OR(X32=\"\",AD32=\"\"),\"\",AD33*AD34/(X33*X34))","v":0.46515679442508712},{"$f":"IF(OR(Z32=\"\",AD32=\"\"),\"\",AD33*AD34/(Z33*Z34))","v":""}]
[null,null,null,null,"Coal composition",{"$f":"DS1_MEB!Z20","v":0.73939999999999995},{"$f":"DS1_MEB!AA20","v":4.8937499999999995E-2},{"$f":"DS1_MEB!AB20","v":0.21166250000000009},null,null,"Natural Gas",0,50,47.1,52.2,52.2,0,0.75,0.25,0.8]
[null,null,null,null,null,null,null,null,null,null,null,null,null,null,null,null,null,null,null,null,null,null,null,"Reagents",null,null,null,"Products"]
[null,null,null,null,"BIOMASS",null,null,null,null,null,"Clay composition","Type 1 (Gbankil)","Type 2 (Kusanaab)","Type 3 (Yaane)","Type 4 (Yikine)","Average","STDEV",null,null,null,null,null,null,"Reagent 1",null,"Reagent 2",null,"Product 1",null,"Product 2"]
[null,null,null,null,null,"C","H","O",null,null,"Na2O",6.1000000000000004E-3,4.1000000000000003E-3,3.3999999999999998E-3,1.29E-2,{"$f":"AVERAGE(L41:O41)","v":6.6250000000000007E-3},{"$f":"STDEV(L41:O41)/P41","v":0.65463450806383283},null,null,null,null,null,null,"CaSO4.2H2O",null,null,null,"H2O"]
[null,null,null,null,"Molar weight",{"$f":"AI11","v":12},{"$f":"AI10","v":1},{"$f":"AI9","v":16},null,null,"MgO",8.8000000000000005E-3,7.4000000000000003E-3,9.2999999999999992E-3,1.1299999999999999E-2,{"$f":"AVERAGE(L42:O42)","v":9.1999999999999998E-3},{"$f":"STDEV(L42:O42)/P42","v":0.1754910295407584},null,"Components",null,null,null,"Stoichiometric coefficient",1,null,null,null,2]
[null,null,null,null,"Composition",{"$f":"F48","v":{"$error":"#N/A"}},{"$f":"G48","v":{"$error":"#N/A"}},{"$f":"H48","v":{"$error":"#N/A"}},null,null,"Al2O3",0.23100000000000001,0.24099999999999999,0.27700000000000002,0.19,0.23475000000000001,0.1524199417492213,null,{"$f":"K44","v":"SiO2"},{"$f":"P44","v":0.63324999999999998},null,null,"Molecular weight",{"$f":"IF(NOT(X41=\"\"),LOOKUP(X41,$AK$4:$AK$33,$AL$4:$AL$33),\"\")","v":172.2},null,{"$f":"IF(NOT(Z41=\"\"),LOOKUP(Z41,$AK$4:$AK$33,$AL$4:$AL$33),\"\")","v":""},null,{"$f":"IF(NOT(AB41=\"\"),LOOKUP(AB41,$AK$4:$AK$33,$AL$4:$AL$33),\"\")","v":18},null,{"$f":"IF(NOT(AD41=\"\"),LOOKUP(AD41,$AK$4:$AK$33,$AL$4:$AL$33),\"\")","v":""}]
[null,null,null,null,"Mol tranf",{"$f":"F43/F42","v":{"$error":"#N/A"}},{"$f":"G43/G42","v":{"$error":"#N/A"}},{"$f":"H43/H42","v":{"$error":"#N/A"}},null,null,"SiO2",0.63600000000000001,0.63200000000000001,0.59899999999999998,0.66600000000000004,0.63324999999999998,4.3292570412929089E-2,null,{"$f":"K43","v":"Al2O3"},{"$f":"P43","v":0.23475000000000001},null,null,null,{"$f":"IF(NOT(X41=\"\"),\"kg reagent/kg product\",\"\")","v":"kg reagent/kg product"},null,{"$f":"IF(NOT(Z41=\"\"),\"kg reagent/kg product\",\"\")","v":""},null,{"$f":"IF(NOT(AB41=\"\"),\"kg product/kg reagent\",\"\")","v":"kg product/kg reagent"},null,{"$f":"IF(NOT(AD41=\"\"),\"kg product/kg reagent\",\"\")","v":""}]
[null,null,null,null,"Mol fraction",{"$f":"F44/SUM($F$44:$H$44)","v":{"$error":"#N/A"}},{"$f":"G44/SUM($F$44:$H$44)","v":{"$error":"#N/A"}},{"$f":"H44/SUM($F$44:$H$44)","v":{"$error":"#N/A"}},null,null,"P2O5",2.0999999999999999E-3,3.5000000000000001E-3,2.5000000000000001E-3,8.9999999999999998E-4,2.2499999999999998E-3,0.47799306088597576,null,{"$f":"K51","v":"Fe2O3"},{"$f":"P51","v":5.3949999999999998E-2},null,null,null,{"$f":"IF(NOT(OR(AB41=\"\",X41=\"\")),AB41,\"\")","v":"H2O"},{"$f":"IF(NOT(OR(AD41=\"\",X41=\"\")),AD41,\"\")","v":""},{"$f":"IF(NOT(OR(AB41=\"\",Z41=\"\")),AB41,\"\")","v":""},{"$f":"IF(NOT(OR(AD41=\"\",Z41=\"\")),AD41,\"\")","v":""},{"$f":"IF(NOT(OR(X41=\"\",AB41=\"\")),X41,\"\")","v":"CaSO4.2H2O"},{"$f":"IF(NOT(OR(Z41=\"\",AB41=\"\")),Z41,\"\")","v":""},{"$f":"IF(NOT(OR(AD41=\"\",X41=\"\")),X41,\"\")","v":""},{"$f":"IF(NOT(OR(Z41=\"\",AD41=\"\")),Z41,\"\")","v":""}]
[null,null,null,null,"Formula",{"$f":"F45/MIN($F$45:$H$45)","v":{"$error":"#N/A"}},{"$f":"G45/MIN($F$45:$H$45)","v":{"$error":"#N/A"}},{"$f":"H45/MIN($F$45:$H$45)","v":{"$error":"#N/A"}},null,null,"SO3",1.4E-3,2.0999999999999999E-3,8.0000000000000004E-4,5.0000000000000001E-4,1.2000000000000001E-3,0.58925565098878951,null,{"$f":"K49","v":"CaO"},{"$f":"P49","v":1.3000000000000001E-2},null,null,null,{"$f":"IF(OR(X41=\"\",AB41=\"\"),\"\",X42*X43/(AB42*AB43))","v":4.7833333333333332},{"$f":"IF(OR(X41=\"\",AD41=\"\"),\"\",X42*X43/(AD42*AD43))","v":""},{"$f":"IF(OR(Z41=\"\",AB41=\"\"),\"\",Z42*Z43/(AB42*AB43))","v":""},{"$f":"IF(OR(Z41=\"\",AD41=\"\"),\"\",Z42*Z43/(AD42*AD43))","v":""},{"$f":"IF(OR(X41=\"\",AB41=\"\"),\"\",AB42*AB43/(X42*X43))","v":0.20905923344947736},{"$f":"IF(OR(Z41=\"\",AB41=\"\"),\"\",AB42*AB43/(Z42*Z43))","v":""},{"$f":"IF(OR(X41=\"\",AD41=\"\"),\"\",AD42*AD43/(X42*X43))","v":""},{"$f":"IF(OR(Z41=\"\",AD41=\"\"),\"\",AD42*AD43/(Z42*Z43))","v":""}]
[null,null,null,null,"Mol Weight",{"$f":"F46*F42+G46*G42+H46*H42","v":{"$error":"#N/A"}},null,null,null,null,"Cl",8.9999999999999998E-4,8.0000000000000004E-4,5.0000000000000001E-4,1E-4,5.7499999999999999E-4,0.6250393812419659]
[null,null,null,null,"Biomass composition",{"$f":"DS1_MEB!Z19","v":{"$error":"#N/A"}},{"$f":"DS1_MEB!AA19","v":{"$error":"#N/A"}},{"$f":"DS1_MEB!AB19","v":{"$error":"#N/A"}},null,null,"K2O",4.0399999999999998E-2,4.3999999999999997E-2,3.7999999999999999E-2,1.6299999999999999E-2,3.4675000000000004E-2,0.36036623677420176,null,null,null,null,null,null,"Reagents",null,null,null,"Products"]
[null,null,null,null,null,null,null,null,null,null,"CaO",1.2500000000000001E-2,8.3999999999999995E-3,6.1999999999999998E-3,2.4899999999999999E-2,1.3000000000000001E-2,0.6424497002544256,null,null,null,null,null,null,"Reagent 1",null,"Reagent 2",null,"Product 1",null,"Product 2"]
[null,null,null,null,null,null,null,null,null,null,"Ti",6.1999999999999998E-3,4.8999999999999998E-3,5.7000000000000002E-3,5.1999999999999998E-3,5.4999999999999997E-3,0.10391774666352878,null,null,null,null,null,null,"CH4",null,"O2",null,"H2O",null,"CO2"]
[null,null,null,null,null,null,null,null,null,null,"Fe2O3",5.04E-2,4.6699999999999998E-2,5.21E-2,6.6600000000000006E-2,5.3949999999999998E-2,0.16180634038464131,null,null,null,null,null,"Stoichiometric coefficient",1,null,1,null,2,null,1]
[null,null,null,null,null,null,null,null,null,null,"Others",5.0000000000000001E-3,5.0000000000000001E-3,5.0000000000000001E-3,5.0000000000000001E-3,5.0000000000000001E-3,0,null,null,null,null,null,"Molecular weight",{"$f":"IF(NOT(X50=\"\"),LOOKUP(X50,$AK$4:$AK$33,$AL$4:$AL$33),\"\")","v":16},null,{"$f":"IF(NOT(Z50=\"\"),LOOKUP(Z50,$AK$4:$AK$33,$AL$4:$AL$33),\"\")","v":32},null,{"$f":"IF(NOT(AB50=\"\"),LOOKUP(AB50,$AK$4:$AK$33,$AL$4:$AL$33),\"\")","v":18},null,{"$f":"IF(NOT(AD50=\"\"),LOOKUP(AD50,$AK$4:$AK$33,$AL$4:$AL$33),\"\")","v":44}]
[null,null,null,null,null,null,null,null,null,null,"SUM",{"$f":"SUM(L41:L52)","v":1.0007999999999999},{"$f":"SUM(M41:M52)","v":0.99990000000000001},{"$f":"SUM(N41:N52)","v":0.99950000000000006},{"$f":"SUM(O41:O52)","v":0.99970000000000003},null,null,null,null,null,null,null,null,{"$f":"IF(NOT(X50=\"\"),\"kg reagent/kg product\",\"\")","v":"kg reagent/kg product"},null,{"$f":"IF(NOT(Z50=\"\"),\"kg reagent/kg product\",\"\")","v":"kg reagent/kg product"},null,{"$f":"IF(NOT(AB50=\"\"),\"kg product/kg reagent\",\"\")","v":"kg product/kg reagent"},null,{"$f":"IF(NOT(AD50=\"\"),\"kg product/kg reagent\",\"\")","v":"kg product/kg reagent"}]
[null,null,null,null,null,null,null,null,null,null,null,null,null,null,null,null,null,null,null,null,null,null,null,{"$f":"IF(NOT(OR(AB50=\"\",X50=\"\")),AB50,\"\")","v":"H2O"},{"$f":"IF(NOT(OR(AD50=\"\",X50=\"\")),AD50,\"\")","v":"CO2"},{"$f":"IF(NOT(OR(AB50=\"\",Z50=\"\")),AB50,\"\")","v":"H2O"},{"$f":"IF(NOT(OR(AD50=\"\",Z50=\"\")),AD50,\"\")","v":"CO2"},{"$f":"IF(NOT(OR(X50=\"\",AB50=\"\")),X50,\"\")","v":"CH4"},{"$f":"IF(NOT(OR(Z50=\"\",AB50=\"\")),Z50,\"\")","v":"O2"},{"$f":"IF(NOT(OR(AD50=\"\",X50=\"\")),X50,\"\")","v":"CH4"},{"$f":"IF(NOT(OR(Z50=\"\",AD50=\"\")),Z50,\"\")","v":"O2"}]
[null,null,null,null,null,null,null,null,null,null,null,null,null,null,null,null,null,null,null,null,null,null,null,{"$f":"IF(OR(X50=\"\",AB50=\"\"),\"\",X51*X52/(AB51*AB52))","v":0.44444444444444442},{"$f":"IF(OR(X50=\"\",AD50=\"\"),\"\",X51*X52/(AD51*AD52))","v":0.36363636363636365},{"$f":"IF(OR(Z50=\"\",AB50=\"\"),\"\",Z51*Z52/(AB51*AB52))","v":0.88888888888888884},{"$f":"IF(OR(Z50=\"\",AD50=\"\"),\"\",Z51*Z52/(AD51*AD52))","v":0.72727272727272729},{"$f":"IF(OR(X50=\"\",AB50=\"\"),\"\",AB51*AB52/(X51*X52))","v":2.25},{"$f":"IF(OR(Z50=\"\",AB50=\"\"),\"\",AB51*AB52/(Z51*Z52))","v":1.125},{"$f":"IF(OR(X50=\"\",AD50=\"\"),\"\",AD51*AD52/(X51*X52))","v":2.75},{"$f":"IF(OR(Z50=\"\",AD50=\"\"),\"\",AD51*AD52/(Z51*Z52))","v":1.375}]
[]
[null,null,null,null,null,null,null,null,null,null,null,null,null,null,null,null,null,null,null,null,null,null,null,"Reagents",null,null,null,"Products"]
[null,null,null,null,null,null,null,null,null,null,null,null,null,null,null,null,null,null,null,null,null,null,null,"Reagent 1",null,"Reagent 2",null,"Product 1",null,"Product 2"]
[null,null,null,null,null,null,null,null,null,null,null,null,null,null,null,null,null,null,null,null,null,null,null,"H",null,"O2",null,"H2O"]
[null,null,null,null,null,null,null,null,null,null,null,null,null,null,null,null,null,null,null,null,null,null,"Stoichiometric coefficient",2,null,0.5,null,2]
[null,null,null,null,null,null,null,null,null,null,null,null,null,null,null,null,null,null,null,null,null,null,"Molecular weight",{"$f":"IF(NOT(X59=\"\"),LOOKUP(X59,$AK$4:$AK$33,$AL$4:$AL$33),\"\")","v":1},null,{"$f":"IF(NOT(Z59=\"\"),LOOKUP(Z59,$AK$4:$AK$33,$AL$4:$AL$33),\"\")","v":32},null,{"$f":"IF(NOT(AB59=\"\"),LOOKUP(AB59,$AK$4:$AK$33,$AL$4:$AL$33),\"\")","v":18},null,{"$f":"IF(NOT(AD59=\"\"),LOOKUP(AD59,$AK$4:$AK$33,$AL$4:$AL$33),\"\")","v":""}]
[null,null,null,null,null,null,null,null,null,null,null,null,null,null,null,null,null,null,null,null,null,null,null,{"$f":"IF(NOT(X59=\"\"),\"kg reagent/kg product\",\"\")","v":"kg reagent/kg product"},null,{"$f":"IF(NOT(Z59=\"\"),\"kg reagent/kg product\",\"\")","v":"kg reagent/kg product"},null,{"$f":"IF(NOT(AB59=\"\"),\"kg product/kg reagent\",\"\")","v":"kg product/kg reagent"},null,{"$f":"IF(NOT(AD59=\"\"),\"kg product/kg reagent\",\"\")","v":""}]
[null,null,null,null,null,null,null,null,null,null,null,null,null,null,null,null,null,null,null,null,null,null,null,{"$f":"IF(NOT(OR(AB59=\"\",X59=\"\")),AB59,\"\")","v":"H2O"},{"$f":"IF(NOT(OR(AD59=\"\",X59=\"\")),AD59,\"\")","v":""},{"$f":"IF(NOT(OR(AB59=\"\",Z59=\"\")),AB59,\"\")","v":"H2O"},{"$f":"IF(NOT(OR(AD59=\"\",Z59=\"\")),AD59,\"\")","v":""},{"$f":"IF(NOT(OR(X59=\"\",AB59=\"\")),X59,\"\")","v":"H"},{"$f":"IF(NOT(OR(Z59=\"\",AB59=\"\")),Z59,\"\")","v":"O2"},{"$f":"IF(NOT(OR(AD59=\"\",X59=\"\")),X59,\"\")","v":""},{"$f":"IF(NOT(OR(Z59=\"\",AD59=\"\")),Z59,\"\")","v":""}]
[null,null,null,null,null,null,null,null,null,null,null,null,null,null,null,null,null,null,null,null,null,null,null,{"$f":"IF(OR(X59=\"\",AB59=\"\"),\"\",X60*X61/(AB60*AB61))","v":5.5555555555555552E-2},{"$f":"IF(OR(X59=\"\",AD59=\"\"),\"\",X60*X61/(AD60*AD61))","v":""},{"$f":"IF(OR(Z59=\"\",AB59=\"\"),\"\",Z60*Z61/(AB60*AB61))","v":0.44444444444444442},{"$f":"IF(OR(Z59=\"\",AD59=\"\"),\"\",Z60*Z61/(AD60*AD61))","v":""},{"$f":"IF(OR(X59=\"\",AB59=\"\"),\"\",AB60*AB61/(X60*X61))","v":18},{"$f":"IF(OR(Z59=\"\",AB59=\"\"),\"\",AB60*AB61/(Z60*Z61))","v":2.25},{"$f":"IF(OR(X59=\"\",AD59=\"\"),\"\",AD60*AD61/(X60*X61))","v":""},{"$f":"IF(OR(Z59=\"\",AD59=\"\"),\"\",AD60*AD61/(Z60*Z61))","v":""}]
[]
[null,null,null,null,null,null,null,null,null,null,null,null,null,null,null,null,null,null,null,null,null,null,null,"Reagents",null,null,null,"Products"]
[null,null,null,null,null,null,null,null,null,null,null,null,null,null,null,null,null,null,null,null,null,null,null,"Biomass",null,"O2",null,"CO2",null,"H2O"]
[null,null,null,null,null,null,null,null,null,null,null,null,null,null,null,null,null,null,null,null,null,null,"Stoichiometric coefficient",1,null,{"$f":"(G46/2+F46-H46)/2","v":{"$error":"#N/A"}},null,{"$f":"F46/2","v":{"$error":"#N/A"}},null,{"$f":"G46/2","v":{"$error":"#N/A"}}]
[null,null,null,null,null,null,null,null,null,null,null,null,null,null,null,null,null,null,null,null,null,null,"Molecular weight",{"$f":"F47","v":{"$error":"#N/A"}},null,{"$f":"AI18","v":32},null,{"$f":"AI16","v":44},null,{"$f":"AI19","v":18}]
[null,null,null,null,null,null,null,null,null,null,null,null,null,null,null,null,null,null,null,null,null,null,null,"kg biomass/kg product",null,"kg O2/kg product",null,"kg CO2/kg reagent",null,"kg H2O/kg reagent"]
[null,null,null,null,null,null,null,null,null,null,null,null,null,null,null,null,null,null,null,null,null,null,null,"CO2","H2O","CO2","H2O","Biomass","O2","Biomass","O2","kg O2/kg biomass"]
[null,null,null,null,null,null,null,null,null,null,null,null,null,null,null,null,null,null,null,null,null,null,null,{"$f":"X69*X68/(AB69*AB68)","v":{"$error":"#N/A"}},{"$f":"X69*X68/(AD69*AD68)","v":{"$error":"#N/A"}},{"$f":"Z69*Z68/(AB69*AB68)","v":{"$error":"#N/A"}},{"$f":"Z69*Z68/(AD69*AD68)","v":{"$error":"#N/A"}},{"$f":"AB69*AB68/(X69*X68)","v":{"$error":"#N/A"}},{"$f":"AB69*AB68/(Z69*Z68)","v":{"$error":"#N/A"}},{"$f":"AD69*AD68/(X69*X68)","v":{"$error":"#N/A"}},{"$f":"AD69*AD68/(Z69*Z68)","v":{"$error":"#N/A"}},{"$f":"Z69*Z68/(X69*X68)","v":{"$error":"#N/A"}}]
[]
[null,null,null,null,null,null,null,null,null,null,null,null,null,null,null,null,null,null,null,null,null,null,null,"Reagents",null,null,null,"Products"]
[null,null,null,null,null,null,null,null,null,null,null,null,null,null,null,null,null,null,null,null,null,null,null,"Coal",null,"O2",null,"CO2",null,"H2O"]
[null,null,null,null,null,null,null,null,null,null,null,null,null,null,null,null,null,null,null,null,null,null,"Stoichiometric coefficient",1,null,{"$f":"(G36/2+2*F36-H36)/2","v":5.0825508376149102},null,{"$f":"F36","v":4.6577294828638331},null,{"$f":"G36/2","v":1.8496427095021546}]
[null,null,null,null,null,null,null,null,null,null,null,null,null,null,null,null,null,null,null,null,null,null,"Molecular weight",{"$f":"F37","v":75.592039213370313},null,{"$f":"AI18","v":32},null,{"$f":"AI16","v":44},null,{"$f":"AI19","v":18}]
[null,null,null,null,null,null,null,null,null,null,null,null,null,null,null,null,null,null,null,null,null,null,null,"kg Coal/kg product",null,"kg O2/kg product",null,"kg CO2/kg reagent",null,"kg H2O/kg reagent"]
[null,null,null,null,null,null,null,null,null,null,null,null,null,null,null,null,null,null,null,null,null,null,null,"CO2","H2O","CO2","H2O","Coal","O2","Coal","O2","kg O2/kg biomass"]
[null,null,null,null,null,null,null,null,null,null,null,null,null,null,null,null,null,null,null,null,null,null,null,{"$f":"X77*X76/(AB77*AB76)","v":0.36884943566036349},{"$f":"X77*X76/(AD77*AD76)","v":2.2704697034198951},{"$f":"Z77*Z76/(AB77*AB76)","v":0.79360568765829775},{"$f":"Z77*Z76/(AD77*AD76)","v":4.8850763918452289},{"$f":"AB77*AB76/(X77*X76)","v":2.7111333333333327},{"$f":"AB77*AB76/(Z77*Z76)","v":1.2600716143437838},{"$f":"AD77*AD76/(X77*X76)","v":0.44043749999999998},{"$f":"AD77*AD76/(Z77*Z76)","v":0.20470508949856409},{"$f":"Z77*Z76/(X77*X76)","v":2.1515708333333325}]

{"sheet":"DS1_MEB","index":3,"n_rows":58,"n_cols":37,"rows_kept":58,"cut":false,"hidden":true,"merged":[[22,32,23,32],[13,33,13,36],[14,1,20,1],[14,2,16,2],[14,33,14,36],[15,33,15,36],[16,24,16,27],[16,33,16,36],[17,32,21,32],[18,2,20,2],[6,1,10,1],[6,2,7,2],[9,2,10,2],[9,16,9,18],[10,32,16,32],[10,33,10,36],[11,20,11,28],[11,33,11,36],[12,16,12,18],[12,33,12,36],[2,27,4,27],[2,32,3,32],[3,8,3,14],[3,16,3,18],[4,8,4,10],[4,12,4,14],[4,16,4,18],[4,32,9,32]]}
[null,null,"Indicate the clinker production",8.2508250825082508E-2,"kg/s"]
[null,null,null,null,null,null,null,null,"Closure mass balance",null,null,{"$f":"1-ABS(N8/J11-1)","v":{"$error":"#N/A"}},null,null,null,null,null,null,null,null,null,null,null,null,null,null,null,null,null,null,null,null,"Data type","Magnitude","Units","Range/List","Effect"]
[null,null,null,null,null,null,null,null,null,null,null,null,null,null,null,null,null,null,null,null,"Clinker flow",{"$f":"D1/LOOKUP(E1,AD6:AD8,AC3:AC5)","v":8.2508250825082508E-2},"kg/s",null,null,null,null,"Factors",1,null,null,null,"User Inputs","Installed energy","MW","0.01-5"]
[null,null,"Feedstock type",{"$f":"'DS1'!B21","v":"0 0"},null,null,null,null,"MASS BALANCE",null,null,null,null,null,null,null,"Energy balance",null,null,null,null,null,null,null,null,null,null,null,28800,null,null,null,null,"Feedstock type","-","Feedstock list"]
[null,null,"Type",{"$f":"'DS1'!B22","v":{"$error":"#N/A"}},null,null,null,null,"IN",null,null,null,"OUT",null,null,null,"IN",null,null,null,"Target capacity",{"$f":"'DS1'!B19","v":0},"MW","BETWEEN 0.01 AND 5",null,null,null,null,3.6,null,null,null,"Amendable parameters","Cement production","-","Wet/ dry(1-stage)/ dry(multi-stage)","Determines the energy demand per kg of clinker"]
[null,null,null,null,null,null,null,null,{"$f":"V9","v":{"$error":"#N/A"}},{"$f":"J25*(1+J26)","v":{"$error":"#N/A"}},"kg/s (w.b.)",null,"Clinker",{"$f":"N11","v":{"$error":"#N/A"}},"kg/s",null,{"$f":"V9","v":{"$error":"#N/A"}},{"$f":"J25*J27","v":{"$error":"#N/A"}},"MW",null,"Type",{"$f":"Feedstocks_Pathways!G7","v":0},null,null,null,null,null,null,null,"kg/s",null,null,null,"Biomass use/coal substitution","%","0-100","Determines the percentage of the energy installed used to produced energy"]
[null,"Installed energy","MIN",10,"kW",null,null,null,"Biomass",{"$f":"J41","v":{"$error":"#N/A"}},"kg/s (w.b.)",null,"Flue gases",{"$f":"SUM(N42:N45)","v":{"$error":"#N/A"}},"kg/s",null,"Biomass",{"$f":"J41*J43","v":{"$error":"#N/A"}},"MW",null,"Energy demand",{"$f":"LOOKUP(V6,DS1_Information!E3:E5,DS1_Information!F3:F5)","v":{"$error":"#N/A"}},"MJ/kg or GJ/t",null,null,null,null,null,null,"t/a",null,null,null,"Excess air","%","0-100","Excess air for combustion"]
[null,null,null,0.01,"MW",null,null,null,"Air",{"$f":"SUM(J57:J58)","v":{"$error":"#N/A"}},"kg/s",null,"SUM",{"$f":"SUM(N6:N7)","v":{"$error":"#N/A"}},"kg/s",null,"Total",{"$f":"SUM(R6:R7)","v":{"$error":"#N/A"}},"MW",null,"Biomass use/ Fossil fuel substitution",{"$f":"'DS1'!B23","v":{"$error":"#N/A"}},null,null,null,null,null,null,null,"t/h",null,null,null,"Fossil fuel","-","Coal/Methane (95%)/ Natural Gas","Determines properties of the fossil fuel which is going to be substituted"]
[null,null,null,null,null,null,null,null,"Clay",{"$f":"J18","v":{"$error":"#N/A"}},"kg/s",null,null,null,null,null,null,null,null,null,"Fuel",{"$f":"'DS1'!B20","v":{"$error":"#N/A"}},null,null,null,null,null,null,null,null,null,null,null,"Biomass/coal composition","%","0-100","Composition of coal and biomass for mass balance"]
[null,null,"MAX",5000,"kW",null,null,null,"Limestone",{"$f":"J14","v":{"$error":"#N/A"}},"kg/s",null,"Clinker",null,null,null,"Consumed",null,null,null,"Hours per year",8000,null,"kg biomass/ kg clinker"," ",null,null,null,null,null,null,null,null,"Silica content in biomass ash","%","0-100","Silica added to clinker from biomass"]
[null,null,null,5,"MW",null,null,null,"SUM",{"$f":"SUM(J6:J10)","v":{"$error":"#N/A"}},"kg/s",null,"Total flow",{"$f":"V5/V7","v":{"$error":"#N/A"}},"kg/s",null,"Reaction",{"$f":"DS1_Information!G22*N11","v":{"$error":"#N/A"}},"MW",null,"Hours per day",24,null,"kg biomass/ MW"," ",null,null,null,null,null,null,null,"Methodology","1. Calculate biomass and coal to satisfy energy demand and coal substitution coefficient"]
[null,null,null,null,null,null,null,null,null,null,null,null,"CaO",{"$f":"$N$11*DS1_Information!L14","v":{"$error":"#N/A"}},"kg/s",null,null,null,null,null,"Clinker production",null,null,null,null,null,null,null,null,null,null,null,null,"2. Calculate the clinker production based on installed energy"]
[null,null,null,null,null,null,null,null,"Limestone",null,null,null,"SiO2",{"$f":"$N$11*DS1_Information!L15","v":{"$error":"#N/A"}},"kg/s",null,"OUT",null,null,null,"MAX",5,"MW",{"$f":"V13/V7","v":{"$error":"#N/A"}},"kg/s",{"$f":"X13*3600/1000","v":{"$error":"#N/A"}},"t/h",{"$f":"ROUND(Z13*8000,-3)","v":{"$error":"#N/A"}},"t/a",null,null,null,null,"3. Components (Silica, lime and others) added to the clinker by the fuels"]
[null,null,null,null,null,null,null,null,"Limestone",{"$f":"J15*DS1_Information!X10","v":{"$error":"#N/A"}},"kg/s",null,"Al2O3",{"$f":"$N$11*DS1_Information!L16","v":{"$error":"#N/A"}},"kg/s",null,"Total (Flue gases & clinker)",{"$f":"R8-R11","v":{"$error":"#N/A"}},"MW",null,"MIN",10,"kW",{"$f":"V14/1000/V7","v":{"$error":"#N/A"}},"kg/s",{"$f":"X14*3600/1000","v":{"$error":"#N/A"}},"t/h",{"$f":"ROUND(Z14*8000,-1)","v":{"$error":"#N/A"}},"t/a",null,null,null,null,"4. Adjust silica (SiO2) from clinker with clay. Calculate the flow of alumina (Al2O3), iron oxide (Fe2O3) and lime (CaO) from clay"]
[null,"Clinker production","MIN",{"$f":"X14","v":{"$error":"#N/A"}},{"$f":"AD6","v":"kg/s"},null,null,null,"Lime from limestone ",{"$f":"N12-J22","v":{"$error":"#N/A"}},"kg/s",null,"Fe2O3",{"$f":"$N$11*DS1_Information!L17","v":{"$error":"#N/A"}},"kg/s",null,null,null,null,null,null,null,null,null,null,null,null,null,null,null,null,null,null,"5. Adjust lime (CaO) from clinker with limestone (CaCO3)"]
[null,null,null,{"$f":"Z14","v":{"$error":"#N/A"}},{"$f":"AD8","v":"t/h"},null,null,null,null,null,null,null,"Others theory",{"$f":"N11-SUM(N12:N15)","v":{"$error":"#N/A"}},"kg/s",null,null,null,null,null,null,null,null,null,null,null,null,null,null,null,null,null,null,"6. Calculate the oxygen to burn the biomass and coal according to the reactions on sheet \"Information\" and composition"]
[null,null,null,{"$f":"AB14","v":{"$error":"#N/A"}},{"$f":"AD7","v":"t/a"},null,null,null,"Clay",null,null,null,"Exit",null,null,null,null,null,null,null,"Energy needed",{"$f":"N11*DS1_Information!F6","v":{"$error":"#N/A"}},"MW required",null,"Composition (d.b.)",null,null,null,null,null,null,null,null,"7. Correlate with nitrogen and excess air to find the total air input"]
[null,null,null,null,null,null,null,null,"Flow",{"$f":"J19/DS1_Information!T43","v":{"$error":"#N/A"}},"kg/s",null,"Total flow",{"$f":"SUM(N19:N22)","v":{"$error":"#N/A"}},"kg/s",null,"check",{"$f":"J11-N8","v":{"$error":"#N/A"}},"kg/s",null,null,500,"kW",null,null,"C","H","O",null,null,null,null,"Inputs Results","Coal","kg/s (w.b.)"]
[null,null,"MAX",{"$f":"X13","v":{"$error":"#N/A"}},{"$f":"AD6","v":"kg/s"},null,null,null,"SiO2",{"$f":"N13","v":{"$error":"#N/A"}},"kg/s",null,"CaO",{"$f":"J35+J15+J22","v":{"$error":"#N/A"}},"kg/s",null,null,{"$f":"R18/J11","v":{"$error":"#N/A"}},null,null,{"$f":"'DS1'!B20","v":{"$error":"#N/A"}},{"$f":"J25*J27","v":{"$error":"#N/A"}},"MW",null,"Biomass",{"$f":"Feedstocks_Pathways!AE58/100","v":{"$error":"#N/A"}},{"$f":"Feedstocks_Pathways!AF58/100","v":{"$error":"#N/A"}},{"$f":"Feedstocks_Pathways!AH58/100","v":{"$error":"#N/A"}},null,null,null,null,null,"Biomass","kg/s (w.b.)"]
[null,null,null,{"$f":"Z13","v":{"$error":"#N/A"}},{"$f":"AD8","v":"t/h"},null,null,null,"Al2O3",{"$f":"N14","v":{"$error":"#N/A"}},"kg/s",null,"SiO2",{"$f":"J32+J19+J41*(1-J42)*J44*J45","v":{"$error":"#N/A"}},"kg/s",null,null,null,null,null,"Biomass",{"$f":"J41*J43","v":{"$error":"#N/A"}},"MW",null,"Coal",0.73939999999999995,4.8937499999999995E-2,0.21166250000000009,null,null,null,null,null,"Air","kg/s"]
[null,null,null,{"$f":"AB13","v":{"$error":"#N/A"}},{"$f":"AD7","v":"t/a"},null,null,null,"Fe2O3",{"$f":"N15","v":{"$error":"#N/A"}},"kg/s",null,"Al2O3",{"$f":"J33+J20","v":{"$error":"#N/A"}},"kg/s",null,null,null,null,null,null,null,null,null,null,null,null,null,null,null,null,null,null,"Clay","kg/s"]
[null,null,null,null,null,null,null,null,"CaO",{"$f":"J18*DS1_Information!T46","v":{"$error":"#N/A"}},"kg/s",null,"Fe2O3",{"$f":"J34+J21","v":{"$error":"#N/A"}},"kg/s",null,null,null,null,null,null,null,null,null,null,null,null,null,null,null,null,null,null,"Limestone","kg/s"]
[null,null,null,null,null,null,null,null,null,null,null,null,"Others",{"$f":"J41*(1-J42)*J44*(1-J45)","v":{"$error":"#N/A"}},"kg/s",null,null,null,null,null,null,null,null,null,null,null,null,null,null,null,null,null,"Outputs Results","Clinker","kg/s"]
[null,null,null,null,null,null,null,null,{"$f":"Feedstocks_Pathways!G6","v":0},null,null,null,"Clinker composition",null,null,null,null,null,null,null,null,null,null,null,null,null,null,null,null,null,null,null,null,"Flue gases","kg/s"]
[null,null,null,null,null,null,null,null,"Flow",{"$f":"(100-V8)%*V5/J27","v":{"$error":"#N/A"}},"kg/s",null,"CaO",{"$f":"N19/$N$18","v":{"$error":"#N/A"}},null,null,null,null,null,null,null,null,null,null,null,null,null,null,null,null,null,null,"Closure Results","Closure","%","0-100","Accuracy of the calculations"]
[null,null,null,null,null,null,null,null,"Moisture content",{"$f":"LOOKUP(I24,DS1_Information!K36:K38,DS1_Information!L36:L38)","v":{"$error":"#N/A"}},null,null,"SiO2",{"$f":"N20/$N$18","v":{"$error":"#N/A"}}]
[null,null,null,null,null,null,null,null,"LHV",{"$f":"LOOKUP(I24,DS1_Information!K36:K38,DS1_Information!M36:M38)","v":{"$error":"#N/A"}},"MJ/kg (w.b.)",null,"Al2O3",{"$f":"N21/$N$18","v":{"$error":"#N/A"}}]
[null,null,null,null,null,null,null,null,"Ash content ",{"$f":"LOOKUP(I24,DS1_Information!K36:K38,DS1_Information!Q36:Q38)","v":{"$error":"#N/A"}},"d.b.",null,"Fe2O3",{"$f":"N22/$N$18","v":{"$error":"#N/A"}}]
[null,null,null,null,null,null,null,null,"FC+VM",{"$f":"(1-J28)*J25*(1-J26)","v":{"$error":"#N/A"}},"kg/s",null,"Others",{"$f":"N23/N18","v":{"$error":"#N/A"}}]
[null,null,null,null,null,null,null,null,"Ash flow",{"$f":"IF(N11-J15-J18<0,0,J25*(1-J26)*J28)","v":{"$error":"#N/A"}},"kg/s"]
[null,null,null,null,null,null,null,null,"Ash flow from fossil fuel",null,null,null,"Flue gas from fossil fuel"]
[null,null,null,null,null,null,null,null,"SiO2",{"$f":"J30*DS1_Information!K9","v":{"$error":"#N/A"}},"kg/s",null,"H2O",{"$f":"J25*J26+J29*DS1_Information!AD80","v":{"$error":"#N/A"}},"kg/s"]
[null,null,null,null,null,null,null,null,"Al2O3",{"$f":"DS1_Information!L10*J30","v":{"$error":"#N/A"}},"kg/s",null,"CO2",{"$f":"J29*DS1_Information!AB80","v":{"$error":"#N/A"}},"kg/s"]
[null,null,null,null,null,null,null,null,"Fe2O3",{"$f":"DS1_Information!M10*J30","v":{"$error":"#N/A"}},"kg/s",null,"Flue gas from limestone"]
[null,null,null,null,null,null,null,null,"CaO",{"$f":"DS1_Information!N10*J30","v":{"$error":"#N/A"}},"kg/s",null,"CO2",{"$f":"J14*DS1_Information!AD10","v":{"$error":"#N/A"}},"kg/s"]
[null,null,null,null,null,null,null,null,null,null,null,null,"Flue gases from biomass"]
[null,null,null,null,null,null,null,null,"Air for coal",null,null,null,"CO2",{"$f":"J41*(J47)*(1-J42)*DS1_Information!AB72","v":{"$error":"#N/A"}},"kg/s"]
[null,null,null,null,null,null,null,null,"O2 IN comb",{"$f":"IF(J29=0,0,N33*DS1_Information!Z72)","v":{"$error":"#N/A"}},"kg/s",null,"H2O",{"$f":"J41*(J47)*(1-J42)*DS1_Information!AD72+J42*J41","v":{"$error":"#N/A"}},"kg/s"]
[]
[null,null,null,null,null,null,null,null,"Biomass type",{"$f":"Feedstocks_Pathways!W56&\" \"&Feedstocks_Pathways!W57","v":"0 0"},"-"]
[null,null,null,null,null,null,null,null,"Flow",{"$f":"V5*V8%/J43","v":{"$error":"#N/A"}},"kg/s (w.b.)",null,"Flue gas total"]
[null,null,null,null,null,null,null,null,"Moisture content",{"$f":"Feedstocks_Pathways!Y58/100","v":{"$error":"#N/A"}},"wt.%",null,"O2",{"$f":"J57-J38-J51","v":{"$error":"#N/A"}},"kg/s"]
[null,null,null,null,null,null,null,null,"LHV",{"$f":"Feedstocks_Pathways!AC58","v":{"$error":"#N/A"}},"MJ/kg","ASSUME IT IS ALL SILICA","N2",{"$f":"J58","v":{"$error":"#N/A"}},"kg/s"]
[null,null,null,null,null,null,null,null,"Ash content ",{"$f":"Feedstocks_Pathways!Z58/100","v":{"$error":"#N/A"}},"d.b.",null,"H2O",{"$f":"SUM(N38,N32)","v":{"$error":"#N/A"}},"kg/s"]
[null,null,null,null,null,null,null,null,"%SiO2 in ash",0.6,null,null,"CO2",{"$f":"SUM(N33,N35,N37)","v":{"$error":"#N/A"}},"kg/s"]
[null,null,null,null,null,null,null,null,"Fixed carbon",{"$f":"Feedstocks_Pathways!AB58/100","v":{"$error":"#N/A"}},"d.b."]
[null,null,null,null,null,null,null,null,"Volatile matter",{"$f":"Feedstocks_Pathways!AA58/100","v":{"$error":"#N/A"}},"d.b."]
[]
[null,null,null,null,null,null,null,null,"Air for biomass"]
[]
[null,null,null,null,null,null,null,null,"O2 IN comb",{"$f":"N37*DS1_Information!Z80","v":{"$error":"#N/A"}},"kg/s"]
[]
[null,null,null,null,null,null,null,null,"O2 needed",{"$f":"J38+J51","v":{"$error":"#N/A"}}]
[null,null,null,null,null,null,null,null,"Excess air",{"$f":"'DS1'!B24","v":0.15}]
[null,null,null,null,null,null,null,null,"O2 in air",0.21]
[null,null,null,null,null,null,null,null,"N2 in air",0.79]
[null,null,null,null,null,null,null,null,"O2 IN",{"$f":"J53*(1+J54)","v":{"$error":"#N/A"}},"kg/s"]
[null,null,null,null,null,null,null,null,"N2 IN",{"$f":"J57/J55*J56","v":{"$error":"#N/A"}},"kg/s"]

{"sheet":"Methodology","index":4,"n_rows":0,"n_cols":0,"rows_kept":0,"cut":false,"hidden":false,"merged":[]}

{"sheet":"DS1","index":5,"n_rows":61,"n_cols":18,"rows_kept":61,"cut":false,"hidden":false,"merged":[[6,11,6,13],[7,11,7,13],[8,11,8,13],[3,6,12,6],[15,0,15,2],[48,5,48,8],[48,0,48,1],[1,0,1,4],[2,1,2,2],[2,3,2,4],[20,1,20,2]]}
[]
["Data summary from model"]
["Mass Balance","SI",null,"Annual",null,null,"DS1"]
["Biomass (d.b.)",{"$f":"I6","v":{"$error":"#N/A"}},"kg/s",{"$f":"B4*$B$18*3600/1000","v":{"$error":"#N/A"}},"annual tonnes"]
["Biomass (a.r.)",{"$f":"I7","v":{"$error":"#N/A"}},"kg/s",{"$error":"#N/A"},"annual tonnes"]
["Fossil fuel",{"$f":"I8","v":{"$error":"#N/A"}},"kg/s",{"$error":"#N/A"},"annual tonnes",null,null,"Biomass (d.b.)",{"$f":"I7*(1-DS1_MEB!J42)","v":{"$error":"#N/A"}},"kg/s"]
["Clay",{"$f":"I9","v":{"$error":"#N/A"}},"kg/s",{"$error":"#N/A"},"annual tonnes",null,null,"Biomass (a.r.)",{"$f":"DS1_MEB!J41","v":{"$error":"#N/A"}},"kg/s",null,"CALCINER",null,null,null,"Heat output",{"$f":"DS1_MEB!R14","v":{"$error":"#N/A"}},"MW"]
["Limestone",{"$f":"I10","v":{"$error":"#N/A"}},"kg/s",{"$error":"#N/A"},"annual tonnes",null,null,"Fossil fuel",{"$f":"DS1_MEB!J25","v":{"$error":"#N/A"}},"kg/s",null,"Process Type"]
["Combustion air",{"$f":"M11","v":{"$error":"#N/A"}},"kg/s",{"$error":"#N/A"},"annual tonnes",null,null,"Clay",{"$f":"DS1_MEB!J18","v":{"$error":"#N/A"}},"kg/s",null,{"$f":"B22","v":{"$error":"#N/A"}},null,null,null,"Flue gases",{"$f":"DS1_MEB!N7","v":{"$error":"#N/A"}},"kg/s"]
["Flue gases",{"$f":"Q9","v":{"$error":"#N/A"}},"kg/s",{"$error":"#N/A"},"annual tonnes",null,null,"Limestone",{"$f":"DS1_MEB!J14","v":{"$error":"#N/A"}},"kg/s",null,null,null,null,null,"Clinker",{"$f":"DS1_MEB!N6","v":{"$error":"#N/A"}},"kg/s"]
["Clinker",{"$f":"Q10","v":{"$error":"#N/A"}},"kg/s",{"$error":"#N/A"},"annual tonnes",null,null,null,null,null,null,"Combustion air",{"$f":"DS1_MEB!J8","v":{"$error":"#N/A"}},"kg/s"]
["Energy balance",null,null,null,null,null,null,null,null,null,null,"Excess air",{"$f":"B24","v":0.15}]
["Heat input",{"$f":"M5","v":0},"MW",{"$f":"B13*B18","v":0},"Annual MWh"]
["Heat output",{"$f":"Q7","v":{"$error":"#N/A"}},"MW",{"$f":"B14*B18","v":{"$error":"#N/A"}},"annual MWh"]
[]
["User defined parameters",null,null,null,"Operating information",null,null,null,null,"Operating limits:"]
["Capacity factor / plant availability",{"$f":"Feedstocks_Pathways!C12","v":0},null,null,"Calciner operating temperature",{"$f":"DS1_Information!F11","v":1450},"°C",null,null,"Installed energy","MIN",10,"kW"]
["Operational hours",{"$f":"Feedstocks_Pathways!I24","v":0},"h",null,null,null,null,null,null,null,null,0.01,"MW"]
["Target capacity",{"$f":"Feedstocks_Pathways!B24","v":0},"MW",null,null,null,null,null,null,null,"MAX",5000,"kW"]
["Fossil fuel type",{"$f":"B50","v":{"$error":"#N/A"}},null,null,null,null,null,null,null,null,null,5,"MW"]
["Feedstock",{"$f":"DS1_MEB!J40","v":"0 0"},null,null,null,null,null,null,null,"Clinker production","MIN",2.5627883136852894E-3,"kg/s"]
["Process type",{"$f":"B51","v":{"$error":"#N/A"}},null,null,null,null,null,null,null,null,null,9.2260379292670412E-3,"t/h"]
["Fossil fuel substitution by biomass (% of mass w.b.)",{"$f":"B53","v":{"$error":"#N/A"}},null,null,null,null,null,null,null,null,null,70,"t/a"]
["Excess air",0.15,null,null,null,null,null,null,null,null,"MAX",1.2813941568426448,"kg/s"]
[null,null,null,null,null,null,null,null,null,null,null,4.6130189646335209,"t/h"]
[null,null,null,null,null,null,null,null,null,null,null,37000,"t/a"]
[]
[]
[]
[]
[]
[]
[]
[]
[]
[]
[]
[]
[]
[]
[]
[]
[]
[]
[]
[]
[]
[]
["Inputs DS1",null,null,null,null,"Output"]
[{"$f":"A20","v":"Fossil fuel type"},{"$f":"IF(Feedstocks_Pathways!E22=Feedstocks_Pathways!C54,Feedstocks_Pathways!G6,'DS1'!D50)","v":{"$error":"#N/A"}}," ","Coal",null,null,null,"Dry basis","Wet basis",null,null,null,"Density fossil fuel",{"$f":"LOOKUP(B20,DS1_Information!K36:K38,DS1_Information!T36:T38)","v":{"$error":"#N/A"}},"kg/m3"]
[{"$f":"A22","v":"Process type"},{"$f":"IF(Feedstocks_Pathways!E22=Feedstocks_Pathways!C54,Feedstocks_Pathways!G7,'DS1'!D51)","v":{"$error":"#N/A"}}," ","Dry (multi-stage)",null,"Biomass flow","kg/s",{"$f":"B4","v":{"$error":"#N/A"}},{"$f":"B5","v":{"$error":"#N/A"}}]
[" "," "," ",0.1,null,null,"annual tonnes",{"$f":"D4","v":{"$error":"#N/A"}},{"$f":"D5","v":{"$error":"#N/A"}}]
[{"$f":"A23","v":"Fossil fuel substitution by biomass (% of mass w.b.)"},{"$f":"IF(Feedstocks_Pathways!E22=\"DS1\",Feedstocks_Pathways!G9,0)","v":{"$error":"#N/A"}}," ",null,null,"Feedstock 1 [annual tonnes]",null,{"$f":"IF(Feedstocks_Pathways!C10=0,'DS1'!H52,I53*(1-Feedstocks_Pathways!Y56/100))","v":{"$error":"#N/A"}},{"$f":"I52*(1-Feedstocks_Pathways!C10)","v":{"$error":"#N/A"}}]
[" "," "," ",null,null,"Feedstock 2 [annual tonnes]",null,{"$f":"I54*(1-Feedstocks_Pathways!Y57/100)","v":{"$error":"#N/A"}},{"$f":"I52*(Feedstocks_Pathways!C10)","v":{"$error":"#N/A"}},null,null,null,null,"annual tonnes","Annual Nm3",null,{"$f":"DS1_Information!K36","v":"Coal"}]
[" "," "," ",null,null,{"$f":"(M55&\" [\"&(IF(M55=Q54,N54,IF(M55=Q55,N54,O54)))&\"]\")","v":{"$error":"#N/A"}},null," ",{"$f":"IF(M55=Q54,N55,IF(M55=Q55,N55,O55))","v":{"$error":"#N/A"}},null,null,null,{"$f":"B20","v":{"$error":"#N/A"}},{"$f":"D6","v":{"$error":"#N/A"}},{"$f":"D6*1000*N50","v":{"$error":"#N/A"}},null,{"$f":"DS1_Information!K37","v":"Petcoke"}]
[" "," "," ",null,null,"Cement [annual tonnes]",null," ",{"$f":"D11/DS1_Information!Q3","v":{"$error":"#N/A"}},null,null,null,null,null,null,null,{"$f":"DS1_Information!K38","v":"Natural Gas"}]
[" "," "," "," ",null,"-"," ",null,"-"]
[" "," "," "," "," ","-",null,null,"-"]
[" "," "," ",null,null,null," "," "," "," "]
[" "," "," "]
[" "," "," "]

{"sheet":"DS2_Information","index":6,"n_rows":44,"n_cols":34,"rows_kept":44,"cut":false,"hidden":true,"merged":[[30,11,30,13],[25,20,25,21],[25,22,25,23],[25,24,25,25],[25,26,25,27],[26,20,26,21],[26,22,26,23],[26,24,26,25],[26,26,26,27],[24,20,24,21],[24,22,24,23],[24,24,24,25],[24,26,24,27],[20,1,20,4],[21,20,21,23],[21,24,21,27],[22,20,22,21],[22,22,22,23],[22,24,22,25],[22,26,22,27],[23,10,23,13],[23,20,23,21],[23,22,23,23],[23,24,23,25],[23,26,23,27],[16,20,16,21],[16,22,16,23],[16,24,16,25],[16,26,16,27],[17,20,17,21],[17,22,17,23],[17,24,17,25],[17,26,17,27],[14,20,14,21],[14,22,14,23],[14,24,14,25],[14,26,14,27],[15,20,15,21],[15,22,15,23],[15,24,15,25],[15,26,15,27],[11,8,11,16],[12,20,12,23],[12,24,12,27],[13,20,13,21],[13,22,13,23],[13,24,13,25],[13,26,13,27],[7,20,7,21],[7,22,7,23],[7,24,7,25],[7,26,7,27],[8,20,8,21],[8,22,8,23],[8,24,8,25],[8,26,8,27],[1,4,1,6],[3,20,3,23],[3,24,3,27],[4,8,7,8],[4,20,4,21],[4,22,4,23],[4,24,4,25],[4,26,4,27],[5,20,5,21],[5,22,5,23],[5,24,5,25],[5,26,5,27],[6,20,6,21],[6,22,6,23],[6,24,6,25],[6,26,6,27]]}
[]
[null,"Energy demand","GJ/t MT (MJ/kg MT)",null,"Water heats",null,null,null,null,null,"Moisture content (application)","Ash content","Volatile matter","Fixed carbon","LHV","HHV (energy potential)","% in briquettes"]
[null,"Min",30.5,null,"Vaporization heat",2256.4,"kJ/kg",null,null,"Hardwood - bark",25,10,75,15,13,17,"Eucalyptus and pine wood",null,null,null,null,null,null,null,null,null,null,null,null,"Molecular weight",null,null,"Molecular weight"]
[null,"Max",34.700000000000003,null,"Water",4.1870000000000003,"kJ/kgK",null,null,"Hardwood - residues",25,1.2,84,14.8,14,19,null,null,null,null,"Reagents",null,null,null,"Products",null,null,null,null,"Ca",40.1,null,"Al",27]
[null,null,null,null,"Steam",1.996,"kJ/kgK",null,"For briquettes","Sawdust",20,0.6,83.11,16.82,15,19,{"$f":"DS2_MEB!C16","v":0},null,null,null,"Reagent 1",null,"Reagent 2",null,"Product 1",null,"Product 2",null,null,"Si",28.1,null,"C",12]
[null,"Thermal",0.9,"(not used)","T exit steam",150,"°C",null,null,"Macadamia shell",10,0.41,76.22,23.78,18.5,21,{"$f":"DS2_MEB!C17","v":0},null,null,null,"H",null,"O2",null,"H2O",null,null,null,null,"Al",27,null,"Ca",40.1]
[null,"Electricity",{"$f":"1-C6","v":9.9999999999999978E-2},"(not used)","Vaporization T",100,"°C",null,null,"Cashew",6.47,1.05,72,20.48,19,20.5,{"$f":"DS2_MEB!C18","v":0},null,null,"Stoichiometric coefficient",2,null,0.5,null,1,null,null,null,null,"Fe",55.8,null,"CaCO3",100.1]
[null,null,null,null,null,null,null,null,null,"Rice husk",10,18,67,15,13,15,{"$f":"DS2_MEB!C19","v":0},null,null,"Molecular weight",{"$f":"IF(NOT(U6=\"\"),LOOKUP(U6,$AG$4:$AG$33,$AH$4:$AH$33),\"\")","v":1},null,{"$f":"IF(NOT(W6=\"\"),LOOKUP(W6,$AG$4:$AG$33,$AH$4:$AH$33),\"\")","v":32},null,{"$f":"IF(NOT(Y6=\"\"),LOOKUP(Y6,$AG$4:$AG$33,$AH$4:$AH$33),\"\")","v":18},null,{"$f":"IF(NOT(AA6=\"\"),LOOKUP(AA6,$AG$4:$AG$33,$AH$4:$AH$33),\"\")","v":""},null,null,"S",32.1,null,"CaO",56.1]
[null,"kg steam/kg made tea","ONLY DRYING",null,"Heating distribution",null,"(not used)",null,null,"Briquettes",{"$f":"(K5*$Q$5+K6*$Q$6+K7*$Q$7+K8*$Q$8)","v":0},{"$f":"L5*$Q$5+L6*$Q$6+L7*$Q$7+L8*$Q$8","v":0},{"$f":"M5*$Q$5+M6*$Q$6+M7*$Q$7+M8*$Q$8","v":0},{"$f":"N5*$Q$5+N6*$Q$6+N7*$Q$7+N8*$Q$8","v":0},{"$f":"O5*$Q$5+O6*$Q$6+O7*$Q$7+O8*$Q$8","v":0},{"$f":"P5*$Q$5+P6*$Q$6+P7*$Q$7+P8*$Q$8","v":0},null,null,null,null,{"$f":"IF(NOT(U6=\"\"),\"kg reagent/kg product\",\"\")","v":"kg reagent/kg product"},null,{"$f":"IF(NOT(W6=\"\"),\"kg reagent/kg product\",\"\")","v":"kg reagent/kg product"},null,{"$f":"IF(NOT(Y6=\"\"),\"kg product/kg reagent\",\"\")","v":"kg product/kg reagent"},null,{"$f":"IF(NOT(AA6=\"\"),\"kg product/kg reagent\",\"\")","v":""},null,null,"O",16,null,"CaSO4",136.19999999999999]
[null,"Min",3.5,null,{"$f":"H31","v":0.65},"Drying",null,null,null,"Firewood",{"$f":"AVERAGE(K3:K4)","v":25},3,83,16,13,{"$f":"AVERAGE(P3:P4)","v":18},null,null,null,null,{"$f":"IF(NOT(OR(Y6=\"\",U6=\"\")),Y6,\"\")","v":"H2O"},{"$f":"IF(NOT(OR(AA6=\"\",U6=\"\")),AA6,\"\")","v":""},{"$f":"IF(NOT(OR(Y6=\"\",W6=\"\")),Y6,\"\")","v":"H2O"},{"$f":"IF(NOT(OR(AA6=\"\",W6=\"\")),AA6,\"\")","v":""},{"$f":"IF(NOT(OR(U6=\"\",Y6=\"\")),U6,\"\")","v":"H"},{"$f":"IF(NOT(OR(W6=\"\",Y6=\"\")),W6,\"\")","v":"O2"},{"$f":"IF(NOT(OR(AA6=\"\",U6=\"\")),U6,\"\")","v":""},{"$f":"IF(NOT(OR(W6=\"\",AA6=\"\")),W6,\"\")","v":""},null,"H",1,null,"CaSO4.2H2O",172.2]
[null,"Max",4,null,{"$f":"1-E10","v":0.35},"Withering",null,null,null,null,null,null,null,null,null,null,null,null,null,null,{"$f":"IF(OR(U6=\"\",Y6=\"\"),\"\",U7*U8/(Y7*Y8))","v":0.1111111111111111},{"$f":"IF(OR(U6=\"\",AA6=\"\"),\"\",U7*U8/(AA7*AA8))","v":""},{"$f":"IF(OR(W6=\"\",Y6=\"\"),\"\",W7*W8/(Y7*Y8))","v":0.88888888888888884},{"$f":"IF(OR(W6=\"\",AA6=\"\"),\"\",W7*W8/(AA7*AA8))","v":""},{"$f":"IF(OR(U6=\"\",Y6=\"\"),\"\",Y7*Y8/(U7*U8))","v":9},{"$f":"IF(OR(W6=\"\",Y6=\"\"),\"\",Y7*Y8/(W7*W8))","v":1.125},{"$f":"IF(OR(U6=\"\",AA6=\"\"),\"\",AA7*AA8/(U7*U8))","v":""},{"$f":"IF(OR(W6=\"\",AA6=\"\"),\"\",AA7*AA8/(W7*W8))","v":""},null,"C",12,null,"CO2",44]
[null,null,null,null,null,null,null,null,"IN PERCENTAGES",null,null,null,null,null,null,null,null,null,null,null,null,null,null,null,null,null,null,null,null,"CaSO4",{"$f":"AE4+AE8+AE9*4","v":136.19999999999999},null,"Fe",55.8]
[null,18.79,"MJ/kgMT thermal energy",null,null,null,null,null,null,null,{"$f":"K2","v":"Moisture content (application)"},"Ash content","Volatile matter","Fixed carbon","LHV","HHV (energy potential)","% in briquettes",null,null,null,"Reagents",null,null,null,"Products",null,null,null,null,"CaO",{"$f":"($AE$9+$AE$4)","v":56.1},null,"H",1]
[null,1.98,"MJ/kgMT electrical",null,null,null,null,null,null,{"$f":"J3","v":"Hardwood - bark"},{"$f":"K3/100","v":0.25},{"$f":"L3/100","v":0.1},{"$f":"M3/100","v":0.75},{"$f":"N3/100","v":0.15},{"$f":"O3","v":13},{"$f":"P3","v":17},{"$f":"Q3","v":"Eucalyptus and pine wood"},null,null,null,"Reagent 1",null,"Reagent 2",null,"Product 1",null,"Product 2",null,null,"SO3",{"$f":"($AE$9*3+$AE$8)","v":80.099999999999994},null,"H2O",18]
[null,"Tea look-up",null,null,null,null,null,null,null,"Hardwood - residues",{"$f":"K4/100","v":0.25},1.2E-2,0.84,0.14800000000000002,{"$f":"O4","v":14},19,null,null,null,null,"C",null,"O2",null,"CO2",null,null,null,null,"CaCO3",{"$f":"($AE$9*3+$AE$11+$AE$4)","v":100.1},null,"O",16]
[null,"Drying",{"$f":"C17*H31","v":12.35},"MJ/kgMT","LTS value 15.8",null,null,null,{"$f":"Q5","v":0},"Sawdust",0.2,6.0000000000000001E-3,0.83109999999999995,0.16820000000000002,15,19,null,null,null,"Stoichiometric coefficient",1,null,1,null,1,null,null,null,null,"CO2",{"$f":"($AE$9*2+$AE$11)","v":44},null,"O2",32]
[null,"Drying + Withering",19,"MJ/kgMT","LTS value 22.7",null,null,null,{"$f":"Q6","v":0},"Macadamia shell",0.1,4.0999999999999995E-3,0.76219999999999999,0.23780000000000001,18.5,21,null,null,null,"Molecular weight",{"$f":"IF(NOT(U15=\"\"),LOOKUP(U15,$AG$4:$AG$33,$AH$4:$AH$33),\"\")","v":12},null,{"$f":"IF(NOT(W15=\"\"),LOOKUP(W15,$AG$4:$AG$33,$AH$4:$AH$33),\"\")","v":32},null,{"$f":"IF(NOT(Y15=\"\"),LOOKUP(Y15,$AG$4:$AG$33,$AH$4:$AH$33),\"\")","v":44},null,{"$f":"IF(NOT(AA15=\"\"),LOOKUP(AA15,$AG$4:$AG$33,$AH$4:$AH$33),\"\")","v":""},null,null,"CaSO4.2H2O",{"$f":"AE12+2*(AE19)","v":172.2},null,"S",32.1]
[null,null,null,null,null,null,null,null,{"$f":"Q7","v":0},"Cashew",6.4699999999999994E-2,1.0500000000000001E-2,0.72,0.20480000000000001,19,20.5,null,null,null,null,{"$f":"IF(NOT(U15=\"\"),\"kg reagent/kg product\",\"\")","v":"kg reagent/kg product"},null,{"$f":"IF(NOT(W15=\"\"),\"kg reagent/kg product\",\"\")","v":"kg reagent/kg product"},null,{"$f":"IF(NOT(Y15=\"\"),\"kg product/kg reagent\",\"\")","v":"kg product/kg reagent"},null,{"$f":"IF(NOT(AA15=\"\"),\"kg product/kg reagent\",\"\")","v":""},null,null,"O2",{"$f":"AE9*2","v":32},null,"Si",28.1]
[null,"Withering",{"$f":"C17*H32","v":6.6499999999999995},"MJ/kgMT","LTS value 6.8",null,null,null,{"$f":"Q8","v":0},"Rice husk",0.1,0.18,0.67,0.15,13,15,null,null,null,null,{"$f":"IF(NOT(OR(Y15=\"\",U15=\"\")),Y15,\"\")","v":"CO2"},{"$f":"IF(NOT(OR(AA15=\"\",U15=\"\")),AA15,\"\")","v":""},{"$f":"IF(NOT(OR(Y15=\"\",W15=\"\")),Y15,\"\")","v":"CO2"},{"$f":"IF(NOT(OR(AA15=\"\",W15=\"\")),AA15,\"\")","v":""},{"$f":"IF(NOT(OR(U15=\"\",Y15=\"\")),U15,\"\")","v":"C"},{"$f":"IF(NOT(OR(W15=\"\",Y15=\"\")),W15,\"\")","v":"O2"},{"$f":"IF(NOT(OR(AA15=\"\",U15=\"\")),U15,\"\")","v":""},{"$f":"IF(NOT(OR(W15=\"\",AA15=\"\")),W15,\"\")","v":""},null,"H2O",{"$f":"2*AE10+AE9","v":18},null,"SO3",80.099999999999994]
[null,"Total Energy demand",{"$f":"C16+C19","v":19},"MJ/kgMT","(not used)",null,null,null,null,"Briquettes",0,0,0,0,0,0,null,null,null,null,{"$f":"IF(OR(U15=\"\",Y15=\"\"),\"\",U16*U17/(Y16*Y17))","v":0.27272727272727271},{"$f":"IF(OR(U15=\"\",AA15=\"\"),\"\",U16*U17/(AA16*AA17))","v":""},{"$f":"IF(OR(W15=\"\",Y15=\"\"),\"\",W16*W17/(Y16*Y17))","v":0.72727272727272729},{"$f":"IF(OR(W15=\"\",AA15=\"\"),\"\",W16*W17/(AA16*AA17))","v":""},{"$f":"IF(OR(U15=\"\",Y15=\"\"),\"\",Y16*Y17/(U16*U17))","v":3.6666666666666665},{"$f":"IF(OR(W15=\"\",Y15=\"\"),\"\",Y16*Y17/(W16*W17))","v":1.375},{"$f":"IF(OR(U15=\"\",AA15=\"\"),\"\",AA16*AA17/(U16*U17))","v":""},{"$f":"IF(OR(W15=\"\",AA15=\"\"),\"\",AA16*AA17/(W16*W17))","v":""},null,"SO4"]
[null,"Ultimate analysis (d.b.) biomass fuels",null,null,null,null,null,null,null,"Firewood",{"$f":"K10/100","v":0.25},0.03,0.83,0.16,{"$f":"O10","v":13},18,null,null,null,null,null,null,null,null,null,null,null,null,null,"Biomass",{"$f":"L31","v":{"$error":"#N/A"}}]
[null,null,"Min","Max","Average",null,null,null,null,null,null,null,null,null,null,null,null,null,null,null,"Reagents",null,null,null,"Products"]
[null,"C",43.2,54.9,0.5,null,null,null,null,null,null,null,null,null,null,null,null,null,null,null,"Reagent 1",null,"Reagent 2",null,"Product 1",null,"Product 2"]
[null,"H",4.4000000000000004,7.2,0.05,null,null,null,null,null,"BIOMASS",null,null,null,null,null,null,null,null,null,"Biomass",null,"O2",null,"CO2",null,"H2O"]
[null,"O",34.1,48.2,{"$f":"40%/2","v":0.2},null,null,null,null,null,null,"C","H","O",null,null,null,null,null,"Stoichiometric coefficient",1,null,{"$f":"(M30/2+L30*2-N30)/2","v":{"$error":"#N/A"}},null,{"$f":"L30","v":{"$error":"#N/A"}},null,{"$f":"M30/2","v":{"$error":"#N/A"}}]
[null,null,null,null,null,null,null,null,null,null,"Molar weight",{"$f":"AE11","v":12},{"$f":"AE10","v":1},{"$f":"AE9","v":16},null,null,null,null,null,"Molecular weight",{"$f":"AE21","v":{"$error":"#N/A"}},null,{"$f":"IF(NOT(W24=\"\"),LOOKUP(W24,$AG$4:$AG$33,$AH$4:$AH$33),\"\")","v":32},null,{"$f":"IF(NOT(Y24=\"\"),LOOKUP(Y24,$AG$4:$AG$33,$AH$4:$AH$33),\"\")","v":44},null,{"$f":"IF(NOT(AA24=\"\"),LOOKUP(AA24,$AG$4:$AG$33,$AH$4:$AH$33),\"\")","v":18}]
[null,"O2",0.21,null,null,null,null,null,null,null,"Composition",{"$f":"L32","v":{"$error":"#N/A"}},{"$f":"M32","v":{"$error":"#N/A"}},{"$f":"N32","v":{"$error":"#N/A"}},null,null,null,null,null,null,{"$f":"IF(NOT(U24=\"\"),\"kg reagent/kg product\",\"\")","v":"kg reagent/kg product"},null,{"$f":"IF(NOT(W24=\"\"),\"kg reagent/kg product\",\"\")","v":"kg reagent/kg product"},null,{"$f":"IF(NOT(Y24=\"\"),\"kg product/kg reagent\",\"\")","v":"kg product/kg reagent"},null,{"$f":"IF(NOT(AA24=\"\"),\"kg product/kg reagent\",\"\")","v":"kg product/kg reagent"}]
[null,"N2",{"$f":"1-C27","v":0.79},null,null,null,null,null,null,null,"Mol tranf",{"$f":"L27/L26","v":{"$error":"#N/A"}},{"$f":"M27/M26","v":{"$error":"#N/A"}},{"$f":"N27/N26","v":{"$error":"#N/A"}},null,null,null,null,null,null,{"$f":"IF(NOT(OR(Y24=\"\",U24=\"\")),Y24,\"\")","v":"CO2"},{"$f":"IF(NOT(OR(AA24=\"\",U24=\"\")),AA24,\"\")","v":"H2O"},{"$f":"IF(NOT(OR(Y24=\"\",W24=\"\")),Y24,\"\")","v":"CO2"},{"$f":"IF(NOT(OR(AA24=\"\",W24=\"\")),AA24,\"\")","v":"H2O"},"Biomass",{"$f":"IF(NOT(OR(W24=\"\",Y24=\"\")),W24,\"\")","v":"O2"},"Biomass",{"$f":"IF(NOT(OR(W24=\"\",AA24=\"\")),W24,\"\")","v":"O2"}]
[null,null,null,null,null,null,null,null,null,null,"Mol fraction",{"$f":"L28/SUM($L$28:$N$28)","v":{"$error":"#N/A"}},{"$f":"M28/SUM($L$28:$N$28)","v":{"$error":"#N/A"}},{"$f":"N28/SUM($L$28:$N$28)","v":{"$error":"#N/A"}},null,null,null,null,null,null,{"$f":"IF(OR(U24=\"\",Y24=\"\"),\"\",U25*U26/(Y25*Y26))","v":{"$error":"#N/A"}},{"$f":"IF(OR(U24=\"\",AA24=\"\"),\"\",U25*U26/(AA25*AA26))","v":{"$error":"#N/A"}},{"$f":"IF(OR(W24=\"\",Y24=\"\"),\"\",W25*W26/(Y25*Y26))","v":{"$error":"#N/A"}},{"$f":"IF(OR(W24=\"\",AA24=\"\"),\"\",W25*W26/(AA25*AA26))","v":{"$error":"#N/A"}},{"$f":"IF(OR(U24=\"\",Y24=\"\"),\"\",Y25*Y26/(U25*U26))","v":{"$error":"#N/A"}},{"$f":"IF(OR(W24=\"\",Y24=\"\"),\"\",Y25*Y26/(W25*W26))","v":{"$error":"#N/A"}},{"$f":"IF(OR(U24=\"\",AA24=\"\"),\"\",AA25*AA26/(U25*U26))","v":{"$error":"#N/A"}},{"$f":"IF(OR(W24=\"\",AA24=\"\"),\"\",AA25*AA26/(W25*W26))","v":{"$error":"#N/A"}}]
[null,null,null,"Pressure (bar)","Temperature (degree)","Enthalpy (kJ/kg)",null,"energy demand in tea processing",null,null,"Formula",{"$f":"L29/MIN($L$29:$N$29)","v":{"$error":"#N/A"}},{"$f":"M29/MIN($L$29:$N$29)","v":{"$error":"#N/A"}},{"$f":"N29/MIN($L$29:$N$29)","v":{"$error":"#N/A"}}]
[null,"Steam","Drying",10,150,2780,"SUPERSTEAM",0.65,null,null,"Mol Weight",{"$f":"L30*L26+M30*M26+N30*N26","v":{"$error":"#N/A"}}]
[null,null,"Withering",4,90,2107.71,null,0.35,null,null,"Biomass composition",{"$f":"DS2_MEB!C22","v":{"$error":"#N/A"}},{"$f":"DS2_MEB!C23","v":{"$error":"#N/A"}},{"$f":"DS2_MEB!C24","v":{"$error":"#N/A"}}]
[]
[]
[null,"Water (20 degrees)",83.92,"kJ/kg","Enthalpy"]
[]
[null,"Energy required",{"$f":"DS2_MEB!H22","v":0}]
[null,"Required for:",{"$f":"'DS2'!B23","v":{"$error":"#N/A"}}]
[]
[null,null,"steam, kg/s"]
[null,"Drying",{"$f":"C37*1000/F31","v":0}]
[null,"Drying + Withering",{"$f":"(H31*C37*1000)/F31+(H32*C37*1000)/F32","v":0}]
[]
[null,"Withering",{"$f":"C37*1000/F32","v":0}]

{"sheet":"DS2_MEB","index":7,"n_rows":30,"n_cols":37,"rows_kept":30,"cut":false,"hidden":true,"merged":[[20,6,20,8],[10,32,13,32],[10,33,10,36],[11,33,11,36],[13,33,13,36],[14,32,17,32],[18,32,20,32],[1,6,1,12],[2,1,2,3],[2,6,2,8],[2,10,2,12],[2,32,3,32],[3,1,4,1],[4,32,9,32]]}
[null,null,null,null,null,null,null,null,null,{"$f":"1-ABS(L4/H4-1)","v":{"$error":"#N/A"}}]
[null,null,null,null,null,null,"Mass balance",null,null,null,null,null,null,null,null,null,null,null,null,null,null,null,null,null,null,null,null,null,null,null,null,null,"Data type","Magnitude","Units","Range/List","Effect"]
[null,"WATER/STEAM produced in heat exchanger",null,null,null,null,"IN",null,null,null,"OUT",null,null,null,null,null,null,null,null,null,null,null,null,null,null,null,null,null,null,null,null,null,"User Inputs","Installed energy","MW","0.01-5"]
[null,"Water",{"$f":"IF(C11=DS2_Information!B16,DS2_Information!C41,IF(DS2_MEB!C11=DS2_Information!B17,DS2_Information!C42,IF(DS2_MEB!C11=DS2_Information!B19,DS2_Information!C44,DS2_Information!C43)))","v":0},"kg/s",null,null,"Total",{"$f":"SUM(H5,H6)","v":{"$error":"#N/A"}},"kg/s",null,"Total",{"$f":"SUM(L5:L6)","v":{"$error":"#N/A"}},"kg/s",null,null,null,null,null,null,null,null,null,null,null,null,null,null,null,null,null,null,null,null,"Biomass substitution","%","0-100","Amount of firewood substituted by mixture of other biomasses"]
[null,null,{"$f":"C4*3.6","v":0},"t/h",null,null,"Fuel total",{"$f":"H7+H8","v":{"$error":"#N/A"}},"kg/s (w.b.)",null,"Flue gases",{"$f":"SUM(L8:L12)","v":{"$error":"#N/A"}},"kg/s",null,null,null,null,null,null,null,null,null,null,null,null,null,null,null,null,null,null,null,"Amendable parameters","Energy objective","-","Drying/ Thermal/ Total/ Withering","Determines the energy demand per kg of tea"]
[null,"T in",20,"°C",null,null,"Air",{"$f":"H18/DS2_Information!C27","v":{"$error":"#N/A"}},"kg/s",null,"Ash content",{"$f":"H5*(1-H11)*(H12+H14)","v":{"$error":"#N/A"}},"kg/s",null,null,null,null,null,null,null,null,null,null,null,null,null,null,null,null,null,null,null,null,null,"°C","0-100 / 100-500","Temperature at which water enters the system and steam exits"]
[null,null,null,null,null,null,"Firewood",{"$f":"C14/DS2_Information!O21*(100-H9)%","v":0},"kg/s",null,null,null,null,null,null,null,null,null,null,null,null,null,null,null,null,null,null,null,null,null,null,null,null,"Yield steam production","%","0-100","Efficiency on heat transfer to produce steam"]
[null,"With enthalpies",null,"kg/s",{"$f":"3000/3600*1999.43/1000","v":1.6661916666666667},null,"Biomass  ",{"$f":"C30/C25","v":{"$error":"#N/A"}},"kg/s",null,"H2O moist",{"$f":"H5*H11","v":{"$error":"#N/A"}},"kg/s",null,null,null,null,null,null,null,null,null,null,null,null,null,null,null,null,null,null,null,null,"Biomass composition","%","0-100","Percentage of oxygen, hydrogen and carbon in biomass"]
[null,"Boiler efficiency",0.8,null,null,null,"Substitution of Firewood by mass",{"$f":"Feedstocks_Pathways!G9","v":0},null,null,"H2O react",{"$f":"H5*(1-H11)*H13*DS2_Information!AA29","v":{"$error":"#N/A"}},"kg/s",null,null,null,null,null,null,null,null,null,null,null,null,null,null,null,null,null,null,null,null,"Excess air","%","0-100","Excess air for combustion"]
[null,null,null,null,null,null,"Biomass properties",null,null,null,"CO2 react",{"$f":"H5*(1-H11)*H13*DS2_Information!Y29","v":{"$error":"#N/A"}},"kg/s",null,null,null,null,null,null,null,null,null,null,null,null,null,null,null,null,null,null,null,null,"Biomass mixture","%","0-100","Determines properties of substitute biomass mixture, sawdust is calculated through difference"]
[null,"To provide",{"$f":"Feedstocks_Pathways!G6","v":0},null,null,null,{"$f":"DS2_Information!K13","v":"Moisture content (application)"},{"$f":"Feedstocks_Pathways!Y58/100","v":{"$error":"#N/A"}},"w.b.",null,"N2",{"$f":"H19","v":{"$error":"#N/A"}},"kg/s",null,null,null,null,null,null,null,null,null,null,null,null,null,null,null,null,null,null,null,"Methodology","1. With the biomass substitution and mixture, the LHV is defined"]
[null,"Coefficient",{"$f":"LOOKUP(C11,DS2_Information!B16:B19,DS2_Information!C16:C19)","v":{"$error":"#N/A"}},"MJ/kg",null,null,{"$f":"DS2_Information!L13","v":"Ash content"},{"$f":"Feedstocks_Pathways!Z61/100","v":{"$error":"#N/A"}},"d.b.",null,"O2",{"$f":"H18-H16","v":{"$error":"#N/A"}},"kg/s",null,null,null,null,null,null,null,null,null,null,null,null,null,null,null,null,null,null,null,null,"2. Based on installed energy, the biomass demand, and steam production are calculated"]
[null,"Tea Production",{"$f":"C15/C12","v":{"$error":"#N/A"}},"kg/s",null,null,{"$f":"DS2_Information!M13","v":"Volatile matter"},{"$f":"Feedstocks_Pathways!AA61/100","v":{"$error":"#N/A"}},"d.b.",null,null,null,null,null,null,null,null,null,null,null,null,null,null,null,null,null,null,null,null,null,null,null,null,"3. Calculate the flows of the other components based on reaction on \"Information\""]
[null,"Energy input",{"$f":"C15/C9","v":0},"MW",null,null,{"$f":"DS2_Information!N13","v":"Fixed carbon"},{"$f":"Feedstocks_Pathways!AB61/100","v":{"$error":"#N/A"}},"d.b.",null,null,null,null,null,null,null,null,null,null,null,null,null,null,null,null,null,null,null,null,null,null,null,null,"4. Correlate with nitrogen and excess air to find the total air input"]
[null,"Energy installed",{"$f":"'DS2'!B21","v":0},"MW",null,null,{"$f":"DS2_Information!O13","v":"LHV"},{"$f":"C25","v":{"$error":"#N/A"}},"MJ/kg",null,null,null,null,null,null,null,null,null,null,null,null,null,null,null,null,null,null,null,null,null,null,null,"Inputs Results","Biomass","kg/s (w.b.)"]
[null,null,null,null,null,null,"O2 comb",{"$f":"DS2_MEB!L10*DS2_Information!W29","v":{"$error":"#N/A"}},"kg/s",null,null,null,null,null,null,null,null,null,null,null,null,null,null,null,null,null,null,null,null,null,null,null,null,"Air","kg/s"]
[null,null,null,null,null,null,"Excess air",{"$f":"'DS2'!B19","v":0.15},null,null,null,null,null,null,null,null,null,null,null,null,null,null,null,null,null,null,null,null,null,null,null,null,null,"Firewood","kg/s"]
[null,null,null,null,null,null,"O2 IN",{"$f":"H16*(1+H17)","v":{"$error":"#N/A"}},"kg/s",null,null,null,null,null,null,null,null,null,null,null,null,null,null,null,null,null,null,null,null,null,null,null,null,"Briquettes","kg/s"]
[null,null,null,null,null,null,"N2 IN",{"$f":"H6*DS2_Information!C28","v":{"$error":"#N/A"}},"kg/s",null,null,null,null,null,null,null,null,null,null,null,null,null,null,null,null,null,null,null,null,null,null,null,"Outputs Results","Ash content","kg/s"]
[null,null,null,null,null,null,null,null,null,null,null,null,null,null,null,null,null,null,null,null,null,null,null,null,null,null,null,null,null,null,null,null,null,"Flue gases","kg/s"]
[null,"Average biomass composition (d.b.)",null,null,null,null,"Energy balance",null,null,null,null,null,null,null,null,null,null,null,null,null,null,null,null,null,null,null,null,null,null,null,null,null,null,"Steam production","kg/s"]
[null,"C",{"$f":"Feedstocks_Pathways!AE61/100","v":{"$error":"#N/A"}},null,null,null,"Input (biomass + firewood)",{"$f":"C14","v":0},"MW",null,null,null,null,null,null,null,null,null,null,null,null,null,null,null,null,null,null,null,null,null,null,null,"Closure Results","Closure","%","0-100","Accuracy of the calculations"]
[null,"H",{"$f":"Feedstocks_Pathways!AF61/100","v":{"$error":"#N/A"}},null,null,null,"Output (steam)",{"$f":"C15","v":0},"MW"]
[null,"O",{"$f":"Feedstocks_Pathways!AH61/100","v":{"$error":"#N/A"}},null,null,null,"Losses",{"$f":"H22-H23","v":0},"MW"]
[null,"LHV",{"$f":"Feedstocks_Pathways!AC61","v":{"$error":"#N/A"}},"MJ/kg"]
[null,"HHV",{"$f":"Feedstocks_Pathways!AD61","v":{"$error":"#N/A"}},"MJ/kg"]
[]
[]
[null,"Energy from firewood",{"$f":"H7*DS2_Information!O21","v":0},"MJ"]
[null,"Energy from biomass",{"$f":"C14-C29","v":0},"MJ"]

{"sheet":"DS2","index":8,"n_rows":59,"n_cols":24,"rows_kept":59,"cut":false,"hidden":false,"merged":[[5,17,7,19],[16,0,16,2],[53,5,53,6],[48,5,48,8],[49,5,49,6],[50,5,51,5],[4,11,4,13],[5,11,7,13],[2,6,11,6],[52,5,52,6],[55,5,55,6],[50,11,55,13],[54,5,54,6],[57,5,57,6],[56,5,56,6],[1,0,1,4],[2,1,2,2],[2,3,2,4],[48,0,48,1]]}
[]
["Data summary from model",null,null,null,null,null,"DS2"]
["Mass Balance","SI",null,"Annual"]
["Fuel total (d.b.)",{"$f":"I4","v":{"$error":"#N/A"}},"kg/s",{"$f":"B4*3600*$B$18/1000","v":{"$error":"#N/A"}},"annual tonnes",null,null,"Fuel total (d.b.)",{"$f":"(DS2_MEB!H8*(1-DS2_MEB!H11))+(DS2_MEB!H7*(1-DS2_Information!K10/100))","v":{"$error":"#N/A"}},"kg/s",null,null,null,null,null,null,null,"Water",{"$f":"S10","v":0},"kg/s"]
["Fuel total  (a.r.)",{"$f":"I5","v":{"$error":"#N/A"}},"kg/s",{"$error":"#N/A"},"annual tonnes",null,null,"Fuel total (a.r.)",{"$f":"DS2_MEB!H5","v":{"$error":"#N/A"}},"kg/s",null,{"$f":"B23","v":{"$error":"#N/A"}}]
["Fuelwood",{"$f":"I6","v":0},"kg/s",0,"annual tonnes",null,null,"Fuelwood",{"$f":"DS2_MEB!H7","v":0},"kg/s",null,"BOILER",null,null,"Exhaust gases",{"$f":"B8","v":{"$error":"#N/A"}},"kg/s","STEAM PRODUCTION"]
["Biomass",{"$f":"I7","v":{"$error":"#N/A"}},"kg/s",{"$error":"#N/A"},"annual tonnes",null,null,"Biomass  ",{"$f":"DS2_MEB!H8","v":{"$error":"#N/A"}},"kg/s",null,null,null,null,null,null,null,null,null,null,null,"Exhaust gases",{"$f":"P6","v":{"$error":"#N/A"}},"kg/s"]
["Combustion air",{"$f":"K10","v":{"$error":"#N/A"}},"kg/s",{"$error":"#N/A"},"annual tonnes",null,null,"Fuelwood substitution",{"$f":"B20","v":{"$error":"#N/A"}},null,null,null,null,null,"Solid residue",{"$f":"B10","v":{"$error":"#N/A"}},"kg/s",null,null,null,null,"Solid residue",{"$f":"P8","v":{"$error":"#N/A"}},"kg/s"]
["Steam production",{"$f":"DS2_MEB!C4","v":0},"kg/s",0,"annual tonnes"]
["Flue gases",{"$f":"DS2_MEB!L5","v":{"$error":"#N/A"}},"kg/s",{"$error":"#N/A"},"annual tonnes",null,null,null,null,"Combustion air",{"$f":"DS2_MEB!H6","v":{"$error":"#N/A"}},"kg/s",null,null,null,null,null,"Steam",{"$f":"B9","v":0},"kg/s"]
["Solid residue",{"$f":"DS2_MEB!L6","v":{"$error":"#N/A"}},"kg/s",{"$error":"#N/A"},"annual tonnes",null,null,null,null,"Excess air",{"$f":"B19","v":0.15}]
[{"$f":"DS2_MEB!B13","v":"Tea Production"},{"$f":"DS2_MEB!C13","v":{"$error":"#N/A"}},{"$f":"DS2_MEB!D13","v":"kg/s"},{"$error":"#N/A"},"annual tonnes"]
["Energy balance"]
["Heat input",0,"MW",{"$f":"B14*B18","v":0},"annual MWh"]
["Heat output",{"$f":"B21","v":0},"MW",{"$f":"B15*B18","v":0},"annual MWh"]
[]
["Amendable parameters"]
["Annual operation",{"$f":"Feedstocks_Pathways!I24","v":0},"h"]
["Excess air",0.15]
["Fuelwood substitution",{"$f":"B53","v":{"$error":"#N/A"}},"%"]
["Energy installed",{"$f":"Feedstocks_Pathways!B24","v":0},"MW"]
["Biomass",{"$f":"Feedstocks_Pathways!W56&\" \"&Feedstocks_Pathways!W57","v":"0 0"}]
["Process purpose",{"$f":"B50","v":{"$error":"#N/A"}}]
[{"$f":"Feedstocks_Pathways!B10","v":"Percentage of second feedstock"},{"$f":"Feedstocks_Pathways!C10","v":0}]
[]
[]
[]
[]
[]
[]
[]
[]
[]
[]
[]
[]
[]
[]
[]
[]
[]
[]
[]
[]
[]
[]
[]
[]
["Inputs DS2",null,null,null,null,"Output"]
[{"$f":"A23","v":"Process purpose"},{"$f":"IF(Feedstocks_Pathways!E22=Feedstocks_Pathways!D54,Feedstocks_Pathways!G6,D50)","v":{"$error":"#N/A"}}," ","Drying",null,null,null,"Dry basis","Wet basis"]
[" "," "," "," ",null,"Fuel total flow","kg/s",{"$f":"B4","v":{"$error":"#N/A"}},{"$f":"B5","v":{"$error":"#N/A"}}]
[" "," "," "," ",null,null,"annual tonnes",{"$f":"D4","v":{"$error":"#N/A"}},{"$f":"D5","v":{"$error":"#N/A"}}]
["Fuelwood substitution (% of mass w.b.)",{"$f":"IF(Feedstocks_Pathways!E22=\"DS2\",Feedstocks_Pathways!G9,0)","v":{"$error":"#N/A"}}," "," ",null,"MWh energy/ t biomass",null,{"$f":"D15/D4","v":{"$error":"#N/A"}},{"$f":"D15/D5","v":{"$error":"#N/A"}}]
[" "," "," ",null,null,"Feedstock 1 [annual tonnes]",null,{"$f":"IF(Feedstocks_Pathways!C11=0,'DS1'!H53,I54*(1-Feedstocks_Pathways!Y56/100))","v":{"$error":"#N/A"}},{"$f":"D7*(1-Feedstocks_Pathways!C10)","v":{"$error":"#N/A"}}]
[" "," "," ",null,null,"Feedstock 2 [annual tonnes]",null,{"$f":"I55*(1-Feedstocks_Pathways!Y57/100)","v":{"$error":"#N/A"}},{"$f":"D7*(Feedstocks_Pathways!C10)","v":{"$error":"#N/A"}}]
[" "," "," ",null,null,"Fuelwood [annual tonnes]",null,{"$f":"I56*(1-DS2_Information!K10/100)","v":0},{"$f":"D6","v":0}]
[" "," "," ",null,null,"Steam flow [tonnes per hour]",null,null,{"$f":"S10*3600/1000","v":0}]
[" "," "," ",null,null,"Tea production [annual tonnes]",null," ",{"$f":"D12","v":{"$error":"#N/A"}}]
[" "," "," "]

{"sheet":"DS3_Information","index":9,"n_rows":54,"n_cols":28,"rows_kept":54,"cut":false,"hidden":true,"merged":[[50,4,51,6],[52,4,53,6],[28,8,28,11],[35,9,35,11],[23,14,23,15],[23,16,23,17],[23,18,23,19],[30,14,30,16],[23,20,23,21],[24,14,24,15],[24,16,24,17],[24,18,24,19],[24,20,24,21],[21,1,21,4],[21,14,21,15],[21,16,21,17],[21,18,21,19],[21,20,21,21],[22,14,22,15],[22,16,22,17],[22,18,22,19],[22,20,22,21],[19,14,19,17],[19,18,19,21],[20,14,20,15],[20,16,20,17],[20,18,20,19],[20,20,20,21],[14,1,14,3],[14,14,14,15],[14,16,14,17],[14,18,14,19],[14,20,14,21],[15,14,15,15],[15,16,15,17],[15,18,15,19],[15,20,15,21],[12,14,12,15],[12,16,12,17],[12,18,12,19],[12,20,12,21],[13,14,13,15],[13,16,13,17],[13,18,13,19],[13,20,13,21],[10,14,10,17],[10,18,10,21],[11,14,11,15],[11,16,11,17],[11,18,11,19],[11,20,11,21],[6,14,6,15],[6,16,6,17],[6,18,6,19],[6,20,6,21],[9,6,9,7],[3,16,3,17],[3,18,3,19],[3,20,3,21],[5,14,5,15],[5,16,5,17],[5,18,5,19],[5,20,5,21],[4,14,4,15],[4,16,4,17],[4,18,4,19],[4,20,4,21],[3,14,3,15],[1,1,2,1],[1,2,2,2],[1,6,1,11],[1,14,1,17],[1,18,1,21],[2,7,2,9],[2,10,2,11],[2,14,2,15],[2,16,2,17],[2,18,2,19],[2,20,2,21]]}
[]
[null,"Scale","Technology","Electrical efficiency (%)","CHP efficiency (%)",null,"Table 6.6 Van Loo, S. and J. Koppejan (2007). The handbook of biomass combustion and co-firing, London ; Sterling, VA : Earthscan, 2007.",null,null,null,null,null,null,null,"Reagents",null,null,null,"Products",null,null,null,null,"Molecular weight",null,null,"Molecular weight"]
[null,null,null,"(MJe /MJbiomass )","(MJ[e+th) /MJbiomass )",null,null,"Today",null,null,"Future",null,null,null,"Reagent 1",null,"Reagent 2",null,"Product 1",null,"Product 2",null,null,"Ca",40.1,null,"Al",27]
[null,"Micro","Steam turbine","6-8%",">60%",null,null,"Heating Plant","CHP <1MWe","Power Plant >10MWe","CHP <1MWe","PowerPlant >10MWe",null,null,"H",null,"O2",null,"H2O",null,null,null,null,"Si",28.1,null,"C",12]
[null,"(< 50 kWe)","Internal combustion engine","13-25%","60-74%",null,"Technology","Wood boiler","Steam engine, steam turbine, ORC","Steam turbine","Gasifier and IC engine, Stirling","IGCC",null,"Stoichometric coefficient",2,null,0.5,null,1,null,null,null,null,"Al",27,null,"Ca",40.1]
[null,null,"Organic Rankine Cycle","7.5-13.5%","60-80%",null,"Nh",0.85,0.68,0,0.6,0,null,"Molecular weight",{"$f":"IF(NOT(O4=\"\"),LOOKUP(O4,AA3:AA32,AB3:AB32),\"\")","v":1},null,{"$f":"IF(NOT(Q4=\"\"),LOOKUP(Q4,AA3:AA32,AB3:AB32),\"\")","v":32},null,{"$f":"IF(NOT(S4=\"\"),LOOKUP(S4,AA3:AA32,AB3:AB32),\"\")","v":18},null,{"$f":"IF(NOT(U4=\"\"),LOOKUP(U4,AA3:AA32,AB3:AB32),\"\")","v":""},null,null,"Fe",55.8,null,"CaCO3",100.1]
[null,null,"Stirling engine","9.2-33%","65-92%",null,"Ne",0,0.12,0.25,0.2,0.42,null,null,{"$f":"IF(NOT(O4=\"\"),\"kg reagent/kg product\",\"\")","v":"kg reagent/kg product"},null,{"$f":"IF(NOT(Q4=\"\"),\"kg reagent/kg product\",\"\")","v":"kg reagent/kg product"},null,{"$f":"IF(NOT(S4=\"\"),\"kg product/kg reagent\",\"\")","v":"kg product/kg reagent"},null,{"$f":"IF(NOT(U4=\"\"),\"kg product/kg reagent\",\"\")","v":""},null,null,"S",32.1,null,"CaO",56.1]
[null,null,"Micro turbine[1]","12.3-26%","62-73%",null,"Nt",0.85,0.8,0.25,0.8,0.42,null,null,{"$f":"IF(NOT(OR(S4=\"\",O4=\"\")),S4,\"\")","v":"H2O"},{"$f":"IF(NOT(OR(U4=\"\",O4=\"\")),U4,\"\")","v":""},{"$f":"IF(NOT(OR(S4=\"\",Q4=\"\")),S4,\"\")","v":"H2O"},{"$f":"IF(NOT(OR(U4=\"\",Q4=\"\")),U4,\"\")","v":""},{"$f":"IF(NOT(OR(O4=\"\",S4=\"\")),O4,\"\")","v":"H"},{"$f":"IF(NOT(OR(Q4=\"\",S4=\"\")),Q4,\"\")","v":"O2"},{"$f":"IF(NOT(OR(U4=\"\",O4=\"\")),O4,\"\")","v":""},{"$f":"IF(NOT(OR(Q4=\"\",U4=\"\")),Q4,\"\")","v":""},null,"O",16,null,"CaSO4",136.19999999999999]
[null,"Small","Steam turbine","6-8% (500 kWe)","70-80% (500 kWe)",null,null,null,null,"30 bar 325 degrees",null,null,null,null,{"$f":"IF(OR(O4=\"\",S4=\"\"),\"\",O5*O6/(S5*S6))","v":0.1111111111111111},{"$f":"IF(OR(O4=\"\",U4=\"\"),\"\",O5*O6/(U5*U6))","v":""},{"$f":"IF(OR(Q4=\"\",S4=\"\"),\"\",Q5*Q6/(S5*S6))","v":0.88888888888888884},{"$f":"IF(OR(Q4=\"\",U4=\"\"),\"\",Q5*Q6/(U5*U6))","v":""},{"$f":"IF(OR(O4=\"\",S4=\"\"),\"\",S5*S6/(O5*O6))","v":9},{"$f":"IF(OR(Q4=\"\",S4=\"\"),\"\",S5*S6/(Q5*Q6))","v":1.125},{"$f":"IF(OR(O4=\"\",U4=\"\"),\"\",U5*U6/(O5*O6))","v":""},{"$f":"IF(OR(Q4=\"\",U4=\"\"),\"\",U5*U6/(Q5*Q6))","v":""},null,"H",1,null,"CaSO4.2H2O",172.2]
[null,"(<1 MWe)","Internal combustion engine","12.5-28%","75-95%",null,"Summary 6.10 Van Loo, S. and J. Koppejan (2007). The handbook of biomass combustion and co-firing, London ; Sterling, VA : Earthscan, 2007.",null,null,null,null,null,null,null,null,null,null,null,null,null,null,null,null,"C",12,null,"CO2",44]
[null,null,"Organic Rankine Cycle","7.5-23%","56-90%",null,"Steam engines","25kWe-1.5MWe",null,null,null,null,null,null,"Reagents",null,null,null,"Products",null,null,null,null,"CaSO4",{"$f":"Y3+Y7+Y8*4","v":136.19999999999999},null,"Fe",55.8]
[null,null,"Stirling engine","12-35%","85-90%",null,"Steam turbines","0.5MWe-500MWe",null,null,null,null,null,null,"Reagent 1",null,"Reagent 2",null,"Product 1",null,"Product 2",null,null,"CaO",{"$f":"($Y$8+$Y$3)","v":56.1},null,"H",1]
[null,null,"Micro turbine","25-33%","62-89%",null,"Biomass fired plant","50 Mwe",null,null,null,null,null,null,"C",null,"O2",null,"CO2",null,null,null,null,"SO3",{"$f":"($Y$8*3+$Y$7)","v":80.099999999999994},null,"H2O",18]
[null,null,null,null,null,null,"Smaller plants than 1MWe","Ne= 10-12%","Nh= up to 70%",null,null,null,null,"Stoichometric coefficient",1,null,1,null,1,null,null,null,null,"CaCO3",{"$f":"($Y$8*3+$Y$10+$Y$3)","v":100.1},null,"O",16]
[null,"Water heats",null,null,null,null,"Steam plants single stage expansion)","4-7% efficiency",null,null,null,null,null,"Molecular weight",{"$f":"IF(NOT(O13=\"\"),LOOKUP(O13,AA3:AA32,AB3:AB32),\"\")","v":12},null,{"$f":"IF(NOT(Q13=\"\"),LOOKUP(Q13,AA3:AA32,AB3:AB32),\"\")","v":32},null,{"$f":"IF(NOT(S13=\"\"),LOOKUP(S13,AA3:AA32,AB3:AB32),\"\")","v":44},null,{"$f":"IF(NOT(U13=\"\"),LOOKUP(U13,AA3:AA32,AB3:AB32),\"\")","v":""},null,null,"CO2",{"$f":"($Y$8*2+$Y$10)","v":44},null,"O2",32]
[null,"Vaporization heat",2256.4,"kJ/kg",null,null,"Steam plant multistage expansion","8-14% efficiency",null,null,null,null,null,null,{"$f":"IF(NOT(O13=\"\"),\"kg reagent/kg product\",\"\")","v":"kg reagent/kg product"},null,{"$f":"IF(NOT(Q13=\"\"),\"kg reagent/kg product\",\"\")","v":"kg reagent/kg product"},null,{"$f":"IF(NOT(S13=\"\"),\"kg product/kg reagent\",\"\")","v":"kg product/kg reagent"},null,{"$f":"IF(NOT(U13=\"\"),\"kg product/kg reagent\",\"\")","v":""},null,null,"CaSO4.2H2O",{"$f":"Y11+2*(Y18)","v":172.2},null,"S",32.1]
[null,"Water",{"$f":"DS3_MEB!C9","v":4.1870000000000003},"kJ/kgK",null,null,"5-10 Mwe","25% efficiency",null,null,null,null,null,null,{"$f":"IF(NOT(OR(S13=\"\",O13=\"\")),S13,\"\")","v":"CO2"},{"$f":"IF(NOT(OR(U13=\"\",O13=\"\")),U13,\"\")","v":""},{"$f":"IF(NOT(OR(S13=\"\",Q13=\"\")),S13,\"\")","v":"CO2"},{"$f":"IF(NOT(OR(U13=\"\",Q13=\"\")),U13,\"\")","v":""},{"$f":"IF(NOT(OR(O13=\"\",S13=\"\")),O13,\"\")","v":"C"},{"$f":"IF(NOT(OR(Q13=\"\",S13=\"\")),Q13,\"\")","v":"O2"},{"$f":"IF(NOT(OR(U13=\"\",O13=\"\")),O13,\"\")","v":""},{"$f":"IF(NOT(OR(Q13=\"\",U13=\"\")),Q13,\"\")","v":""},null,"O2",{"$f":"Y8*2","v":32},null,"Si",28.1]
[null,"Steam",1.996,"kJ/kgK",null,null,"50 Mwe","30% electric efficiency in co-generation",">40% as condensing",null,null,null,null,null,{"$f":"IF(OR(O13=\"\",S13=\"\"),\"\",O14*O15/(S14*S15))","v":0.27272727272727271},{"$f":"IF(OR(O13=\"\",U13=\"\"),\"\",O14*O15/(U14*U15))","v":""},{"$f":"IF(OR(Q13=\"\",S13=\"\"),\"\",Q14*Q15/(S14*S15))","v":0.72727272727272729},{"$f":"IF(OR(Q13=\"\",U13=\"\"),\"\",Q14*Q15/(U14*U15))","v":""},{"$f":"IF(OR(O13=\"\",S13=\"\"),\"\",S14*S15/(O14*O15))","v":3.6666666666666665},{"$f":"IF(OR(Q13=\"\",S13=\"\"),\"\",S14*S15/(Q14*Q15))","v":1.375},{"$f":"IF(OR(O13=\"\",U13=\"\"),\"\",U14*U15/(O14*O15))","v":""},{"$f":"IF(OR(Q13=\"\",U13=\"\"),\"\",U14*U15/(Q14*Q15))","v":""},null,"H2O",{"$f":"2*Y9+Y8","v":18},null,"SO3",80.099999999999994]
[null,"T exit steam",330,"°C",null,null,"0.4-1.5MWe","Alternative: Organic Rankine cycle (ORC)",null,null,null,null,null,null,null,null,null,null,null,null,null,null,null,"SO4"]
[null,"Vaporization T",{"$f":"DS3_MEB!C8","v":100},"°C",null,null,"<100kWe",">12% electrical efficiency",null,null,null,null,null,null,"Reagents",null,null,null,"Products",null,null,null,null,"Biomass",{"$f":"J36","v":{"$error":"#N/A"}}]
[null,null,null,null,null,null,null,null,null,null,null,null,null,null,"Reagent 1",null,"Reagent 2",null,"Product 1",null,"Product 2"]
[null,"Ultimate analysis (d.b.) biomass fuels",null,null,null,null,null,null,null,null,null,null,null,null,"Biomass",null,"O2",null,"CO2",null,"H2O"]
[null,null,"Min","Max","Average",null,null,null,null,null,null,null,null,"Stoichometric coefficient",1,null,{"$f":"(K35/2+2*J35-L35)/2","v":{"$error":"#N/A"}},null,{"$f":"J35","v":{"$error":"#N/A"}},null,{"$f":"K35/2","v":{"$error":"#N/A"}}]
[null,"C",43.2,54.9,0.5,null,null,null,null,null,null,null,null,"Molecular weight",{"$f":"Y20","v":{"$error":"#N/A"}},null,{"$f":"Y17","v":32},null,{"$f":"Y15","v":44},null,{"$f":"Y18","v":18}]
[null,"H",4.4000000000000004,7.2,0.05,null,null,null,null,null,null,null,null,null,{"$f":"IF(NOT(O22=\"\"),\"kg reagent/kg product\",\"\")","v":"kg reagent/kg product"},null,{"$f":"IF(NOT(Q22=\"\"),\"kg reagent/kg product\",\"\")","v":"kg reagent/kg product"},null,{"$f":"IF(NOT(S22=\"\"),\"kg product/kg reagent\",\"\")","v":"kg product/kg reagent"},null,{"$f":"IF(NOT(U22=\"\"),\"kg product/kg reagent\",\"\")","v":"kg product/kg reagent"}]
[null,"O",34.1,48.2,0.4,null,null,null,null,null,null,null,null,null,{"$f":"IF(NOT(OR(S22=\"\",O22=\"\")),S22,\"\")","v":"CO2"},{"$f":"IF(NOT(OR(U22=\"\",O22=\"\")),U22,\"\")","v":"H2O"},{"$f":"IF(NOT(OR(S22=\"\",Q22=\"\")),S22,\"\")","v":"CO2"},{"$f":"IF(NOT(OR(U22=\"\",Q22=\"\")),U22,\"\")","v":"H2O"},{"$f":"IF(NOT(OR(O22=\"\",S22=\"\")),O22,\"\")","v":"Biomass"},{"$f":"IF(NOT(OR(Q22=\"\",S22=\"\")),Q22,\"\")","v":"O2"},{"$f":"IF(NOT(OR(U22=\"\",O22=\"\")),O22,\"\")","v":"Biomass"},{"$f":"IF(NOT(OR(Q22=\"\",U22=\"\")),Q22,\"\")","v":"O2"}]
[null,null,null,null,null,null,null,null,null,null,null,null,null,null,{"$f":"IF(OR(O22=\"\",S22=\"\"),\"\",O23*O24/(S23*S24))","v":{"$error":"#N/A"}},{"$f":"IF(OR(O22=\"\",U22=\"\"),\"\",O23*O24/(U23*U24))","v":{"$error":"#N/A"}},{"$f":"IF(OR(Q22=\"\",S22=\"\"),\"\",Q23*Q24/(S23*S24))","v":{"$error":"#N/A"}},{"$f":"IF(OR(Q22=\"\",U22=\"\"),\"\",Q23*Q24/(U23*U24))","v":{"$error":"#N/A"}},{"$f":"IF(OR(O22=\"\",S22=\"\"),\"\",S23*S24/(O23*O24))","v":{"$error":"#N/A"}},{"$f":"IF(OR(Q22=\"\",S22=\"\"),\"\",S23*S24/(Q23*Q24))","v":{"$error":"#N/A"}},{"$f":"IF(OR(O22=\"\",U22=\"\"),\"\",U23*U24/(O23*O24))","v":{"$error":"#N/A"}},{"$f":"IF(OR(Q22=\"\",U22=\"\"),\"\",U23*U24/(Q23*Q24))","v":{"$error":"#N/A"}}]
[null,"O2",0.21,null,null,"Hardwood - bark"]
[null,"N2",0.79,null,"Moisture content (application)",0.25,"w.b.",null,"BIOMASS"]
[null,null,null,null,"Ash content",0.1,"d.b.",null,null,"C","H","O","Other",null,"Efficiency look-up"]
[null,null,null,null,"Volatile matter",0.75,"d.b.",null,"Molar weight",{"$f":"Y10","v":12},{"$f":"Y9","v":1},{"$f":"Y8","v":16},null,null,"CHP"]
[null,null,null,null,"Fixed carbon",0.15,"d.b.",null,"Composition",{"$f":"J37","v":{"$error":"#N/A"}},{"$f":"K37","v":{"$error":"#N/A"}},{"$f":"L37","v":{"$error":"#N/A"}},null,null,null,"Ne","Nh"]
[null,null,null,null,"LHV",13,"kJ/kg",null,"Mol tranf",{"$f":"J32/J31","v":{"$error":"#N/A"}},{"$f":"K32/K31","v":{"$error":"#N/A"}},{"$f":"L32/L31","v":{"$error":"#N/A"}},null,null,"CHP",0.15,0.65,{"$f":"SUM(P33:Q33)","v":0.8}]
[null,null,null,null,"C",0.5,null,null,"Mol fraction",{"$f":"J33/SUM($J$33:$L$33)","v":{"$error":"#N/A"}},{"$f":"K33/SUM($J$33:$L$33)","v":{"$error":"#N/A"}},{"$f":"L33/SUM($J$33:$L$33)","v":{"$error":"#N/A"}},null,null,"Electricity only",0.3,0]
[null,null,null,null,"H",0.05,null,null,"Formula",{"$f":"J34/MIN($J$34:$L$34)","v":{"$error":"#N/A"}},{"$f":"K34/MIN($J$34:$L$34)","v":{"$error":"#N/A"}},{"$f":"L34/MIN($J$34:$L$34)","v":{"$error":"#N/A"}},null,null,"Heat only",0,0.85]
[null,null,null,null,"O",{"$f":"0.4","v":0.4},null,null,"Mol Weight",{"$f":"J35*J31+K35*K31+L35*L31","v":{"$error":"#N/A"}}]
[null,"Enthalpies","kJ/kg","MJ/kg",null,null,null,null,"Biomass composition",{"$f":"DS3_MEB!C22","v":{"$error":"#N/A"}},{"$f":"DS3_MEB!C23","v":{"$error":"#N/A"}},{"$f":"DS3_MEB!C24","v":{"$error":"#N/A"}},{"$f":"1-(SUM(J37:L37))","v":{"$error":"#N/A"}}]
[null,"Water (20 °C)",83.915000000000006,{"$f":"C38/1000","v":8.3915000000000003E-2}]
[null,"Steam (300 °C, 30 bar)",2994.3,2.9943,null,null,null,null,"Mass flow",{"$f":"J37*'DS3'!$I$6","v":{"$error":"#N/A"}},{"$f":"K37*'DS3'!$I$6","v":{"$error":"#N/A"}},{"$f":"L37*'DS3'!$I$6","v":{"$error":"#N/A"}},{"$f":"M37*'DS3'!$I$6","v":{"$error":"#N/A"}},{"$f":"SUM(J39:M39)","v":{"$error":"#N/A"}}]
[null,"Steam (350 °C, 30 bar)",3116.1,3.1160999999999999,null,null,null,null,"Mol flow",{"$f":"J39/J31","v":{"$error":"#N/A"}},{"$f":"K39/K31","v":{"$error":"#N/A"}},{"$error":"#N/A"},"n/a"]
[null,"Steam (350 °C, 30 bar)",2794.2,2.7942]
[null,"Steam (350 °C, 30 bar)",3116.1,3.1160999999999999,null,null,null,null,"co2",{"$f":"J40*S24","v":{"$error":"#N/A"}}]
[null,"Steam (310 °C, 22 bar)",3530,3.53,"number from steam table"]
[]
[]
[]
[null,"Reference for steam property requirements:"]
[null,"https://www.energy.gov/sites/prod/files/2016/09/f33/CHP-Steam%20Turbine.pdf"]
[]
[null,"Based on 3MWe turbine",null,"Enthalpy, kJ/kg"]
[null,"Steam inlet pressure, bar",41.4,2958.6,"Supersteam - required for the CHP and Electricity case"]
[null,"Steam inlet temperature, C",302]
[null,"Steam outlet pressure, bar",10,1978,"For the heat only and CHP case"]
[null,"Steam outlet temperature, C",190]

{"sheet":"DS3_MEB","index":10,"n_rows":29,"n_cols":37,"rows_kept":29,"cut":false,"hidden":true,"merged":[[18,5,20,5],[15,32,17,32],[3,1,4,1],[3,32,9,32],[5,13,5,15],[10,32,12,32],[17,6,17,7],[17,8,17,9],[12,33,12,36],[13,32,14,32],[1,5,1,11],[1,13,1,15],[2,1,2,3],[2,5,2,7],[2,9,2,11],[2,13,2,15]]}
[null,null,null,null,null,null,null,null,{"$f":"1-ABS(K4/G4-1)","v":{"$error":"#N/A"}}]
[null,null,null,null,null,"Mass balance",null,null,null,null,null,null,null,"Energy balance",null,null,null,null,null,null,null,null,null,null,null,null,null,null,null,null,null,null,"Data type","Magnitude","Units","Range/List","Effect"]
[null,"Steam/water",null,null,null,"IN",null,null,null,"OUT",null,null,null,"IN",null,null,null,null,null,null,null,null,null,null,null,null,null,null,null,null,null,null,"User Inputs",{"$f":"Feedstocks_Pathways!B11","v":{"$error":"#N/A"}},"MW","0.01-5"]
[null,"Flow steam",{"$f":"C5/1000*60*60","v":{"$error":"#N/A"}},"t/h",null,"Total",{"$f":"SUM(G5:G6)","v":{"$error":"#N/A"}},"kg/s",null,"Total",{"$f":"SUM(K5:K6)","v":{"$error":"#N/A"}},"kg/s",null,"Biomass",{"$f":"G12*G5","v":{"$error":"#N/A"}},"MW",null,null,null,null,null,null,null,null,null,null,null,null,null,null,null,null,"Amendable parameters","Energy objective","-","CHP/Electricity/Heat","Determines the yields of the energy input used for each application, used in energy balance"]
[null,null,{"$f":"IF(C12=\"chp\",C27,IF(C12=\"heat only\",C28,C29))","v":{"$error":"#N/A"}},"kg/s",null,"Biomass total",{"$f":"C10/G12","v":{"$error":"#N/A"}},"kg/s (w.b.)",null,"Flue gases",{"$f":"SUM(K8:K12)","v":{"$error":"#N/A"}},"kg/s",null,null,null,null,null,null,null,null,null,null,null,null,null,null,null,null,null,null,null,null,null,"Biomass composition","%","0-100","Composition of C,H and O within the biomass"]
[null,"T out working fluid",{"$f":"DS3_Information!C19","v":330},"°C",null,"Air",{"$f":"SUM(G15:G16)","v":{"$error":"#N/A"}},"kg/s",null,"Ash content",{"$f":"G5*(1-G8)*G9","v":{"$error":"#N/A"}},"kg/s",null,"OUT",null,null,null,null,null,null,null,null,null,null,null,null,null,null,null,null,null,null,null,"Yield working fluid production","%","0-100","Efficiency on heat transfer to produce steam"]
[null,"T in working fluid",20,"°C",null,"Biomass properties",null,null,null,null,null,null,null,"Flue gases and ash content",0,"MW",null,null,null,null,null,null,null,null,null,null,null,null,null,null,null,null,null,"T evap","°C",null,"Temperature at which the working fluid within the system evaporates"]
[null,"T evap.",100,"°C",null,"Moisture content",{"$f":"Feedstocks_Pathways!Y58/100","v":{"$error":"#N/A"}},"w.b.",null,"H2O moist",{"$f":"G5*DS3_Information!F29","v":{"$error":"#N/A"}},"kg/s",null,"Losses Steam",{"$f":"C10-O9","v":{"$error":"#N/A"}},"MW",null,null,null,null,null,null,null,null,null,null,null,null,null,null,null,null,null,"Cp liquid","kJ/kgK",null,"Specific heat capacity of the working fluid to carry the energy"]
[null,"Cp liquid",4.1870000000000003,"kJ/kgK",null,"Ash content",{"$f":"Feedstocks_Pathways!Z58/100","v":{"$error":"#N/A"}},"d.b.",null,"H2O react",{"$f":"G5*(1-G8)*(G10)*DS3_Information!U27","v":{"$error":"#N/A"}},"kg/s",null,"Steam",{"$f":"O4*C11","v":{"$error":"#N/A"}},"MW",null,null,null,null,null,null,null,null,null,null,null,null,null,null,null,null,null,"T in / T out","°C","0-100 / 100-500","Temperature at which water enters the system and steam exits"]
[null,"Energy input",{"$f":"IF(C12=\"CHP\",C18/SUM(C13),IF(C12=\"heat only\",C18/C14,C18/C13))","v":{"$error":"#N/A"}},"Mwe,th",null,"Volatile matter",{"$f":"Feedstocks_Pathways!AA58/100","v":{"$error":"#N/A"}},"d.b.",null,"CO2 react",{"$f":"G5*(1-G8)*(G10)*DS3_Information!S27","v":{"$error":"#N/A"}},"kg/s",null,null,null,null,null,null,null,null,null,null,null,null,null,null,null,null,null,null,null,null,null,"Excess air","%","0-100","Excess air for combustion"]
[null,"Steam production efficiency",{"$f":"C14","v":{"$error":"#N/A"}},null,null,"Fixed carbon",{"$f":"Feedstocks_Pathways!AB58/100","v":{"$error":"#N/A"}},"d.b.",null,"N2",{"$f":"G16","v":{"$error":"#N/A"}},"kg/s",null,"Electricity",{"$f":"C15","v":{"$error":"#N/A"}},"MW",null,null,null,null,null,null,null,null,null,null,null,null,null,null,null,null,"Methodology","1. Based on target product capacity, the biomass demand, and steam production are calculated. Energy balance is calculated based on process type"]
[null,"Production",{"$f":"'DS3'!B21","v":{"$error":"#N/A"}},null,null,"LHV",{"$f":"Feedstocks_Pathways!AC58","v":{"$error":"#N/A"}},"MJ/kg",null,"O2",{"$f":"G15-G13","v":{"$error":"#N/A"}},"kg/s",null,"Heat",{"$f":"C16","v":{"$error":"#N/A"}},"MW",null,null,null,null,null,null,null,null,null,null,null,null,null,null,null,null,null,"2. Calculate the oxygen and the flue gases based on the reaction on sheet \"Information\""]
[null,"ηe",{"$f":"LOOKUP(C12,DS3_Information!O33:O35,DS3_Information!P33:P35)","v":{"$error":"#N/A"}},null,null,"O2 comb",{"$f":"K10*DS3_Information!Q27","v":{"$error":"#N/A"}},"kg/s",null,null,null,null,null,"Loss",{"$f":"C17","v":{"$error":"#N/A"}},"MW",null,null,null,null,null,null,null,null,null,null,null,null,null,null,null,null,null,"5. Correlate with nitrogen and excess air to find the total air input"]
[null,"ηh",{"$f":"LOOKUP(C12,DS3_Information!O33:O35,DS3_Information!Q33:Q35)","v":{"$error":"#N/A"}},null,null,"Excess air",{"$f":"'DS3'!B18","v":0.15},null,null,null,null,null,null,null,null,null,null,null,null,null,null,null,null,null,null,null,null,null,null,null,null,null,"Inputs Results","Biomass","kg/s (w.b.)"]
[null,"Electricity production",{"$f":"C13*C$10","v":{"$error":"#N/A"}},"Mwe",{"$f":"SUM(C15:C16)","v":{"$error":"#N/A"}},"O2 IN",{"$f":"G13*(1+G14)","v":{"$error":"#N/A"}},"kg/s",null,null,null,null,null,null,null,null,null,null,null,null,null,null,null,null,null,null,null,null,null,null,null,null,null,"Air","kg/s"]
[null,"Heat production",{"$f":"C14*C$10","v":{"$error":"#N/A"}},"MWth",null,"N2 IN",{"$f":"G15/DS3_Information!C28*DS3_Information!C29","v":{"$error":"#N/A"}},"kg/s",null,null,null,null,null,null,null,null,null,null,null,null,null,null,null,null,null,null,null,null,null,null,null,null,"Outputs Results","Ash content","kg/s"]
[null,"Loss",{"$f":"C10-C15-C16","v":{"$error":"#N/A"}},"MW",null,null,null,null,null,null,null,null,null,null,null,null,null,null,null,null,null,null,null,null,null,null,null,null,null,null,null,null,null,"Flue gases","kg/s"]
[null,{"$f":"Feedstocks_Pathways!B11","v":{"$error":"#N/A"}},{"$f":"'DS3'!B19/1","v":0},"Mwe",null,null,"Temperatures",null,"Efficiency",null,"Energy (MWh)",null,"Exergy (MWh)",null,null,null,null,null,null,null,null,null,null,null,null,null,null,null,null,null,null,null,null,"Steam production","kg/s"]
[null,null,null,null,null,"CHP","Tamb",{"$f":"H22+273.15","v":293.14999999999998},"Electricity ",1,19.100000000000001,{"$f":"K19/K21","v":0.21128318584070796},{"$f":"J19*K19","v":19.100000000000001},{"$f":"M19/M21","v":0.34262583549169151},null,null,null,null,null,null,null,null,null,null,null,null,null,null,null,null,null,null,"Closure Results","Closure","%","0-100","Accuracy of the calculations"]
[null,null,null,null,null,null,"Tsteam",{"$f":"H23+273.15","v":603.15},"Heat",{"$f":"(H20-H19)/H20","v":0.51396833291884281},{"$f":"71.3","v":71.3},{"$f":"K20/K21","v":0.78871681415929196},{"$f":"J20*K20","v":36.645942137113494},{"$f":"M20/M21","v":0.65737416450830854}]
[null,"Biomass composition (d.b.)",null,null,null,null,null,null,null,null,{"$f":"SUM(K19:K20)","v":90.4},null,{"$f":"SUM(M19:M20)","v":55.745942137113495},null,null,null,null,null,null,null,null,null,null,null,null,null,null,null,null,null,null,null,"Biomass case"]
[null,"C",{"$f":"Feedstocks_Pathways!AE58/100","v":{"$error":"#N/A"}},null,null,null,"Tamb",{"$f":"C7","v":20}]
[null,"H",{"$f":"Feedstocks_Pathways!AF58/100","v":{"$error":"#N/A"}},null,null,null,"Tsteam",{"$f":"C6","v":330}]
[null,"O",{"$f":"Feedstocks_Pathways!AH58/100","v":{"$error":"#N/A"}}]
[]
[null,null,"Useful steam leftover"]
[null,"For CHP",{"$f":"IF(C12=\"CHP\",C10*1000*C11/DS3_Information!D53,0)","v":{"$error":"#N/A"}},"kg/s"]
[null,"For heat only",{"$f":"IF(C12=\"chp\",0,C16*1000/DS3_Information!D53)","v":{"$error":"#N/A"}},"kg/s"]
[null,"For electricity only",{"$f":"IF(C12=\"Electricity only\",C10/DS3_Information!D51*1000,0)","v":{"$error":"#N/A"}},"kg/s"]

{"sheet":"DS3","index":11,"n_rows":67,"n_cols":24,"rows_kept":67,"cut":false,"hidden":false,"merged":[[48,0,48,1],[5,17,7,19],[15,0,15,2],[1,0,1,4],[2,1,2,2],[2,3,2,4],[5,11,7,13],[2,6,11,6],[52,5,52,6],[53,5,53,6],[66,5,66,6],[48,5,48,8],[49,5,49,6],[50,5,51,5],[54,5,54,6],[55,5,55,6],[56,5,56,6]]}
[]
["Data summary from model",null,null,null,null,null,"DS3"]
["Mass Balance","SI",null,"Annual"]
["Biomass (d.b.)",{"$f":"I6","v":{"$error":"#N/A"}},"kg/s",{"$f":"B4*3600*$B$17/1000","v":{"$error":"#N/A"}},"annual tonnes",null,null,null,null,null,null,null,null,null,null,null,null,"Water",{"$f":"S10","v":{"$error":"#N/A"}},"kg/s"]
["Biomass (a.r.)",{"$f":"I7","v":{"$error":"#N/A"}},"kg/s",{"$error":"#N/A"},"annual tonnes",null,null,null,null,null,null,null,null,null,null,null,null,null,null,null,null,"Exhaust gases",{"$f":"P6","v":{"$error":"#N/A"}},"kg/s"]
["Combustion air",{"$f":"K10","v":{"$error":"#N/A"}},"kg/s",{"$error":"#N/A"},"annual tonnes",null,null,"Biomass (d.b.)",{"$f":"I7*(1-DS3_MEB!G8)","v":{"$error":"#N/A"}},"kg/s",null,"BOILER",null,null,"Exhaust gases",{"$f":"B6","v":{"$error":"#N/A"}},"kg/s",{"$f":"B21","v":{"$error":"#N/A"}},null,null,null,"Solid residue",{"$f":"P8","v":{"$error":"#N/A"}},"kg/s"]
["Steam production",{"$f":"S10","v":{"$error":"#N/A"}},"kg/s",{"$error":"#N/A"},"annual tonnes",null,null,"Biomass (a.r.)",{"$f":"DS3_MEB!G5","v":{"$error":"#N/A"}},"kg/s"]
["Flue gases",{"$f":"P6","v":{"$error":"#N/A"}},"kg/s",{"$error":"#N/A"},"annual tonnes",null,null,null,null,null,null,null,null,null,"Solid residue",{"$f":"B9","v":{"$error":"#N/A"}},"kg/s",null,null,null,null,"Electricity",{"$f":"DS3_MEB!C15","v":{"$error":"#N/A"}},"MW"]
["Solid residue",{"$f":"DS3_MEB!K6","v":{"$error":"#N/A"}},"kg/s",{"$error":"#N/A"},"annual tonnes",null,null,null,null,null,null,null,null,null,null,null,null,null,null,null,null,"Heat",{"$f":"DS3_MEB!C16","v":{"$error":"#N/A"}},"MW"]
["Energy",null,null,null,null,null,null,null,null,"Combustion air",{"$f":"DS3_MEB!G6","v":{"$error":"#N/A"}},"kg/s",null,null,null,null,null,"Steam",{"$f":"DS3_MEB!C5","v":{"$error":"#N/A"}},"kg/s",null,"Losses",{"$f":"DS3_MEB!C17","v":{"$error":"#N/A"}},"MW"]
["Electricity",{"$f":"W8","v":{"$error":"#N/A"}},"MW",{"$f":"B11*$B$17","v":{"$error":"#N/A"}},"annual MWh",null,null,null,null,"Excess air",{"$f":"B18","v":0.15},null,null,null,null,null,null,"10bar, 190°C"]
["Heat",{"$f":"W9","v":{"$error":"#N/A"}},"MW",{"$f":"B12*$B$17","v":{"$error":"#N/A"}},"annual MWh"]
["Loss",{"$f":"W10","v":{"$error":"#N/A"}},"MW",{"$f":"B13*$B$17","v":{"$error":"#N/A"}},"annual MWh"]
["Input",{"$f":"O10","v":0},"MW",{"$f":"B14*$B$17","v":0},"annual MWh"]
[]
["Amendable parameters"]
["Annual operation",{"$f":"Feedstocks_Pathways!I24","v":0},"h"]
["Excess air",0.15]
[{"$f":"Feedstocks_Pathways!B11","v":{"$error":"#N/A"}},{"$f":"Feedstocks_Pathways!B24","v":0},"MW"]
["Biomass",{"$f":"Feedstocks_Pathways!W56&\" \"&Feedstocks_Pathways!W57","v":"0 0"}]
["Process purpose",{"$f":"B50","v":{"$error":"#N/A"}}]
[]
[]
[]
[]
[]
[]
[]
[]
[]
[]
[]
[]
[]
[]
[]
[]
[]
[]
[]
[]
[]
[]
[]
[]
[]
[]
[null,null,null,null,null,"Carnot index heat",{"$f":"DS3_MEB!J20","v":0.51396833291884281}]
["Inputs DS3",null,null,null,null,"Output"]
["Process purpose",{"$f":"IF(Feedstocks_Pathways!E22=Feedstocks_Pathways!E54,Feedstocks_Pathways!G6,D50)","v":{"$error":"#N/A"}}," ",null,null,null,null,"Dry basis","Wet basis"]
[" "," "," "," ",null,"Biomass flow","kg/s",{"$f":"B4","v":{"$error":"#N/A"}},{"$f":"B5","v":{"$error":"#N/A"}}]
[" "," "," "," ",null,null,"annual tonnes",{"$f":"D4","v":{"$error":"#N/A"}},{"$f":"D5","v":{"$error":"#N/A"}}]
[" "," "," "," ",null,"MWh electricity/ t biomass",null,{"$f":"D11/D4","v":{"$error":"#N/A"}},{"$f":"D11/D5","v":{"$error":"#N/A"}}]
[" "," "," "," ",null,"MWh heat/ t biomass",null,{"$f":"D12/D4","v":{"$error":"#N/A"}},{"$f":"D12/D5","v":{"$error":"#N/A"}}]
[" "," "," ",null,null,"Feedstock 1 [annual tonnes]",null,{"$f":"IF(Feedstocks_Pathways!C12=0,'DS1'!H54,I55*(1-Feedstocks_Pathways!Y56/100))","v":{"$error":"#N/A"}},{"$f":"D5*(1-Feedstocks_Pathways!$C$10)","v":{"$error":"#N/A"}}," "]
[" "," "," ",null,null,"Feedstock 2 [annual tonnes]",null,{"$f":"I56*(1-Feedstocks_Pathways!Y57/100)","v":{"$error":"#N/A"}},{"$f":"D5*(Feedstocks_Pathways!$C$10)","v":{"$error":"#N/A"}}]
[" "," "," ",null,null,"Steam flow [tonnes per hour]",null,null,{"$f":"S10*3600/1000","v":{"$error":"#N/A"}}]
[" "," "," ",null,null," "," "," "," "]
[" "," "," "]
[]
[]
[]
[]
[]
[]
[]
[null,null,null,null,null,"MWh exergy/t biomass",null,{"$f":"(D12*G48+D11)/D4","v":{"$error":"#N/A"}},{"$f":"(D12*G48+D11)/D5","v":{"$error":"#N/A"}}]

{"sheet":"DS4_MEB_v0","index":12,"n_rows":42,"n_cols":29,"rows_kept":42,"cut":false,"hidden":true,"merged":[[36,9,36,10],[36,11,36,12],[37,8,39,8],[5,1,5,2],[12,1,12,2],[16,24,17,24],[18,24,21,24],[20,16,20,22],[21,16,21,18],[21,20,21,22],[15,25,15,28],[1,8,1,14],[1,16,1,22],[2,8,2,10],[2,12,2,14],[2,16,2,18],[2,20,2,22],[2,24,3,24],[4,24,12,24],[13,24,15,24]]}
[null,null,null,null,null,null,null,null,null,null,null,{"$f":"1-ABS(N4/J4-1)","v":{"$error":"#N/A"}},null,null,null,null,null,null,null,{"$f":"1-ABS(V4/R4-1)","v":{"$error":"#N/A"}}]
[null,null,null,null,"Flow steam",{"$f":"F15*J13*J5/(((F5-F4)*F7+(F3-F5)*DS4_Information!H34+DS4_Information!H32)/1000)","v":{"$error":"#N/A"}},"kg/s",null,"CHP",null,null,null,null,null,null,null,"Anaerobic Digestion",null,null,null,null,null,null,null,"Data type","Magnitude","Units","Range/List","Effect"]
[null,"Process type",{"$f":"DS4_v1!B39","v":"CHP + AD"},null,"T out working fluid",330,"°C",null,"INPUT",null,null,null,"OUTPUTS",null,null,null,"INPUT",null,null,null,"OUTPUTS",null,null,null,"User Inputs","Installed energy","MW","0.01-5"]
[null,"Energy input",{"$f":"DS4_v1!B37/SUM(C23:C24)","v":{"$error":"#N/A"}},"MW","T in working fluid",{"$f":"DS4_v1!B42","v":{"$error":"#N/A"}},"°C",null,"Total",{"$f":"SUM(J5:J6)","v":{"$error":"#N/A"}},"kg/s",null,"Total",{"$f":"SUM(N5:N6)","v":{"$error":"#N/A"}},"kg/s",null,"TOTAL",{"$f":"R5+R9","v":{"$error":"#N/A"}},"kg/s",null,"TOTAL",{"$f":"SUM(V5:V9)","v":{"$error":"#N/A"}},"kg/s",null,null,"Process type","-","CHP/ AD/ CHP+AD"]
[null,"Energy input",{"$f":"DS4_v1!B37","v":0},"MW","T evap.",{"$f":"DS4_Information!H36","v":0},"°C",null,"Biomass",{"$f":"IF(C3=DS4_Information!M26,C4/(J13+C19*(1-C20)*DS4_Information!H3*DS4_Information!H29*DS4_Information!D3/1000),IF(C3=DS4_Information!M25,C4/J13,IF(C3=DS4_Information!M24,0)))","v":false},"kg/s",null,"Flue gases",{"$f":"SUM(N9:N13)","v":{"$error":"#N/A"}},"kg/s",null,"Biomass (d.b.)",{"$f":"(C4-J5*J13)/(DS4_Information!D3*DS4_Information!J20*DS4_Information!AG5*C31/1000)","v":{"$error":"#N/A"}},"kg/s",null,"Methane",{"$f":"R5*DS4_Information!J20*C31*C32","v":{"$error":"#N/A"}},"kg/s",null,"Amendable parameters","Energy objective","-","CHP/Electricity/Heat","Determines the yields of the energy input used for each application, used in energy balance"]
[null,"POME",null,null,"T digester",{"$f":"DS4_v1!V17","v":{"$error":"#N/A"}},"°C",null,"Air",{"$f":"SUM(J16:J17)","v":{"$error":"#N/A"}},"kg/s",null,"Ash content",{"$f":"J5*(1-J9)*(J10+J12)","v":{"$error":"#N/A"}},"kg/s",null,"Biomass (w.b.)",{"$f":"R5/(1-C20)","v":{"$error":"#N/A"}},"kg/s",null,null,null,null,null,null,"Biomass/ digestate composition","%","0-100","Composition of C,H and O within the biomass"]
[null,"C",0.5,null,"Cp liquid",4.1870000000000003,"kJ/kgK",null,null,null,null,null,null,null,null,null,"Water",{"$f":"IF(C3=DS4_Information!M26,J5*C19*DS4_Information!H3*(C20),IF(C3=DS4_Information!M24,R5*C20/(1-C20), IF(C3=DS4_Information!M25,0)))","v":false},"kg/s",null,"Carbon dioxide",{"$f":"R5*DS4_Information!L20*C31*C32","v":{"$error":"#N/A"}},"kg/s",null,null,"Yield working fluid production","%","0-100","Efficiency on heat transfer to produce steam"]
[null,"H",0.05,null,"Yield working fluid production",1,null,null,"Biomass properties",null,null,null,null,null,null,null,"Water Reaction",{"$f":"V5*DS4_Information!G20","v":{"$error":"#N/A"}},"kg/s",null,"Amonnia",{"$f":"R5*DS4_Information!N20*C31*C32","v":{"$error":"#N/A"}},"kg/s",null,null,"T evap","°C",null,"Temperature at which the working fluid within the system evaporates"]
[null,"O",0.4,null,"Production","CHP",null,null,"Moisture content",{"$f":"DS4_Information!AE4","v":{"$error":"#N/A"}},"w.b.",null,"H2O moist",{"$f":"J9*J5","v":{"$error":"#N/A"}},"kg/s",null,"Water fluent",{"$f":"R7-R8","v":{"$error":"#N/A"}},"kg/s",null,"Water fluent",{"$f":"R9+R5*(1-C32*C31)","v":{"$error":"#N/A"}},"kg/s",null,null,"POME Yield","%","0-100"]
[null,"N",0.05,null,"ηe",{"$f":"LOOKUP(F9,DS4_Information!C32:C34,DS4_Information!D32:D34)","v":{"$error":"#N/A"}},null,null,"Ash content",{"$f":"DS4_Information!AF4","v":{"$error":"#N/A"}},"d.b.",null,"H2O react",{"$f":"J5*(1-J9)*(J11)*DS4_Information!J29","v":{"$error":"#N/A"}},"kg/s",null,"Extra water",{"$f":"(R5-R7*C29)/C29","v":{"$error":"#N/A"}},"kg/s",null,"TOTAL",{"$f":"SUM(V11,V13,V14,V15)","v":{"$error":"#N/A"}},"kg/s",null,null,"POME H2O Content","%","0-100"]
[null,"Others",{"$f":"1-C10-C9-C8-C7","v":0},null,"ηh",{"$f":"LOOKUP(F9,DS4_Information!C32:C34,DS4_Information!E32:E34)","v":{"$error":"#N/A"}},null,null,"Volatile matter",{"$f":"DS4_Information!AG4","v":{"$error":"#N/A"}},"d.b.",null,"CO2 react",{"$f":"J5*(1-J9)*(J11)*DS4_Information!H29","v":{"$error":"#N/A"}},"kg/s",null,"TOTAL",{"$f":"SUM(R12,R18,R16,R15)","v":{"$error":"#N/A"}},"kg/s",null,"H2O",{"$f":"R12*DS4_Information!H43","v":{"$error":"#N/A"}},"kg/s",null,null,"Cp liquid","kJ/kgK",null,"Specific heat capacity of the working fluid to carry the energy"]
[null,null,null,null,"Electricity production",{"$f":"J5*J13*F10","v":{"$error":"#N/A"}},"MW",null,"Fixed carbon",{"$f":"DS4_Information!AH4","v":{"$error":"#N/A"}},"d.b.",null,"N2",{"$f":"J17","v":{"$error":"#N/A"}},"kg/s",null,"Methane",{"$f":"V5","v":{"$error":"#N/A"}},"kg/s",null,"CO2 reaction",{"$f":"R12*DS4_Information!J43","v":{"$error":"#N/A"}},"kg/s",null,null,"T in / T out water","°C","0-100 / 100-500","Temperature at which water enters the system and steam exits"]
[null,"Fruit bunches",null,null,"Heat production",{"$f":"J5*J13*F11","v":{"$error":"#N/A"}},"MW",null,"LHV",{"$f":"DS4_Information!AI4","v":{"$error":"#N/A"}},"MJ/kg",null,"O2",{"$f":"J16-J14","v":{"$error":"#N/A"}},"kg/s",null,"O2 needed",{"$f":"V11*DS4_Information!F43","v":{"$error":"#N/A"}},"kg/s",null,"CO2 total",{"$f":"V12+R18","v":{"$error":"#N/A"}},"kg/s",null,null,"Excess air","%","0-100","Excess air for combustion"]
[null,"C",0.5,null,"Loss",{"$f":"J5*J13-F13-F12","v":{"$error":"#N/A"}},"MW",null,"O2 comb",{"$f":"N11*DS4_Information!F29","v":{"$error":"#N/A"}},"kg/s",null,null,null,null,null,"Excess air",{"$f":"DS4_v1!AC22","v":0.15},null,null,"N2",{"$f":"R16","v":{"$error":"#N/A"}},"kg/s",null,"Methodology","1. Based on installed energy and process type, the biomass for CHP and/or the methane needed is calculated (methane satisfies the Energy installed in AD)"]
[null,"H",0.05,null,"Transfer efficiency",1,null,null,"Excess air",{"$f":"DS4_v1!B40","v":0.15},null,null,"Steam",{"$f":"DS4_MEB_v0!V24*1000/(DS4_Information!L35-DS4_Information!L32)","v":{"$error":"#N/A"}},"kg/s",null,"O2 IN",{"$f":"R13*(1+R14)","v":{"$error":"#N/A"}},"kg/s",null,"Excess O2",{"$f":"R15-R13","v":{"$error":"#N/A"}},"kg/s",null,null,"2. Calculate the other components according to the reactions in sheet \"Information\""]
[null,"O",0.4,null,null,null,null,null,"O2 IN",{"$f":"J14*(1+J15)","v":{"$error":"#N/A"}},"kg/s",null,null,null,null,null,"N2 IN",{"$f":"R15/0.21*0.79","v":{"$error":"#N/A"}},"kg/s",null,"Amonnia",{"$f":"V8","v":{"$error":"#N/A"}},"kg/s",null,null,"5. Calculate the other parameters such as nitrogen or excess water used"]
[null,"Others",{"$f":"1-C16-C15-C14","v":4.9999999999999933E-2},null,null,null,null,null,"N2 IN",{"$f":"J16/DS4_Information!L3*DS4_Information!L4","v":{"$error":"#N/A"}},"kg/s",null,null,null,null,null,"AIR IN",{"$f":"R16+R15","v":{"$error":"#N/A"}},"kg/s",null,null,null,null,null,"Inputs Results","Biomass","kg/s (w.b.)"]
[null,null,null,null,null,null,null,null,null,null,null,null,null,null,null,null,"Carbon dioxide",{"$f":"V7","v":{"$error":"#N/A"}},"kg/s",null,null,null,null,null,null,"Air","kg/s"]
[null,"Yield POME",0.85,"Vol./weight",null,null,null,null,null,null,null,null,null,null,null,null,null,null,null,null,null,null,null,null,"Outputs Results","Flue gases from CHP","kg/s"]
[null,"POME H2O Content",0.92500000000000004,null,null,null,null,null,null,null,null,null,null,null,null,null,null,null,null,{"$f":"1-ABS(SUM(V24,V31)/SUM(R25,R26)-1)","v":{"$error":"#N/A"}},null,null,null,null,null,"Solid residues from combustion","kg/s"]
[null,null,null,null,null,null,null,null,null,null,null,null,null,null,null,null,"ENERGY BALANCE",null,null,null,null,null,null,null,null,"Gases from AD","kg/s"]
[null,"CHP",{"$f":"DS4_v1!B43","v":{"$error":"#N/A"}},null,null,"AD",{"$f":"DS4_v1!B43","v":{"$error":"#N/A"}},null,null,null,null,null,null,null,null,null,"INPUT",null,null,null,"Output",null,null,null,null,"Steam production","kg/s"]
[null,"ηe",{"$f":"LOOKUP(C22,DS4_Information!C32:C34,DS4_Information!D32:D34)","v":{"$error":"#N/A"}},null,null,"ηe",{"$f":"LOOKUP(G22,DS4_Information!O32:O34,DS4_Information!P32:P34)","v":{"$error":"#N/A"}},null,null,null,null,null,null,null,null,null,"Biomass",{"$f":"J5","v":false},"kg/s",null,"CHP",null,null,null,"Closure Results","Closure","%","0-100","Accuracy of the calculations"]
[null,"ηh",{"$f":"LOOKUP(C22,DS4_Information!C32:C34,DS4_Information!E32:E34)","v":{"$error":"#N/A"}},null,null,"ηh",{"$f":"LOOKUP(G22,DS4_Information!O32:O34,DS4_Information!Q32:Q34)","v":{"$error":"#N/A"}},null,null,null,null,null,null,null,null,null,"LHV biomass",{"$f":"J13","v":{"$error":"#N/A"}},"kJ/kg",null,"Steam",{"$f":"J13*J5","v":{"$error":"#N/A"}},"MW"]
[null,"Electricity production",{"$f":"$R$25*C23","v":{"$error":"#N/A"}},"MW",null,"Electricity production",{"$f":"G23*V31","v":{"$error":"#N/A"}},"MW",null,null,null,null,null,null,null,null,"Energy input",{"$f":"R24*R23","v":{"$error":"#N/A"}},"MW",null,"Heat",{"$f":"V24*F11","v":{"$error":"#N/A"}},"MW"]
[null,"Heat production",{"$f":"$R$25*C24","v":{"$error":"#N/A"}},"MW",null,"Heat production",{"$f":"G24*V31","v":{"$error":"#N/A"}},"MW",null,null,null,null,null,null,null,null,"AD input (only biomass)",{"$f":"R5*DS4_Information!AI5","v":{"$error":"#N/A"}},"MW",null,"Electricity",{"$f":"F10*J5*J13","v":{"$error":"#N/A"}},"MW"]
[null,"Loss",{"$f":"R25-C26-C25","v":{"$error":"#N/A"}},"MW",null,"Loss",{"$f":"V31-G26-G25","v":{"$error":"#N/A"}},"MW",null,null,null,null,null,null,null,null,null,null,null,null,"Losses",{"$f":"V24-V25-V26","v":{"$error":"#N/A"}},"MW"]
[null,"%CHP",null,null,null,"%AD",null,null,null,null,null,null,null,null,null,null,null,null,null,null,"AD"]
[null,"Solids content",{"$f":"DS4_v1!P17","v":0.2},null,null,null,null,null,null,null,null,null,null,null,null,null,null,null,null,null,"Methane",{"$f":"DS4_Information!D3","v":50000},"kJ/kg"]
[null,null,null,null,null,null,null,null,null,null,null,null,null,null,null,null,null,null,null,null,"Methane Flow",{"$f":"V5","v":{"$error":"#N/A"}},"kg/s"]
[null,{"$f":"DS4_Information!#REF!","v":{"$error":"#REF!"}},{"$f":"DS4_Information!C46","v":0},null,null,null,null,null,null,null,null,null,null,null,null,null,null,null,null,null,"Energy output with Methane",{"$f":"V30*V29/1000","v":{"$error":"#N/A"}},"MW"]
[null,"VM AD",{"$f":"DS4_Information!AG5","v":0.93500000000000005},null,null,null,null,null,null,null,null,null,null,null,null,null,null,null,null,null,"Electricity",{"$f":"G25","v":{"$error":"#N/A"}},"MW"]
[null,null,null,null,null,null,null,null,null,null,null,null,null,null,null,null,null,null,null,null,"Heat",{"$f":"G26","v":{"$error":"#N/A"}},"MW"]
[null,null,null,null,null,null,null,null,null,null,null,null,null,null,null,null,null,null,null,null,"Losses",{"$f":"G27","v":{"$error":"#N/A"}},"MW"]
[null,null,null,null,null,null,null,null,null,null,null,null,null,null,null,null,null,null,null,null,"Energy input",{"$f":"(F6-F4)*(R5*DS4_Information!AM5+R9*DS4_Information!H33)/1000","v":{"$error":"#N/A"}},"MW"]
[]
[null,null,null,null,null,null,null,null,null,"Temperatures",null,"Carnot factor",null,"Energy (MWh)",null,"Exergy (MWh)"]
[null,null,null,null,null,null,null,null,"CHP","Tamb",{"$f":"K41+273.15","v":{"$error":"#N/A"}},"Electricity ",1,19.100000000000001,{"$f":"N38/N40","v":0.21128318584070796},{"$f":"M38*N38","v":19.100000000000001},{"$f":"P38/P40","v":{"$error":"#N/A"}}]
[null,null,null,null,null,null,null,null,null,"Tsteam",{"$f":"K42+273.15","v":603.15},"Heat",{"$f":"(K39-K38)/K39","v":{"$error":"#N/A"}},{"$f":"71.3","v":71.3},{"$f":"N39/N40","v":0.78871681415929196},{"$f":"M39*N39","v":{"$error":"#N/A"}},{"$f":"P39/P40","v":{"$error":"#N/A"}}]
[null,null,null,null,null,null,null,null,null,null,null,null,null,{"$f":"SUM(N38:N39)","v":90.4},null,{"$f":"SUM(P38:P39)","v":{"$error":"#N/A"}}]
[null,null,null,null,null,null,null,null,null,"Tamb",{"$f":"F4","v":{"$error":"#N/A"}}]
[null,null,null,null,null,null,null,null,null,"Tsteam",{"$f":"F3","v":330}]

{"sheet":"DS4_v1","index":13,"n_rows":60,"n_cols":48,"rows_kept":60,"cut":false,"hidden":true,"merged":[[17,44,17,45],[11,44,11,47],[15,44,15,45],[16,44,16,45],[13,44,14,44],[12,44,12,45],[34,0,34,2],[1,0,1,4],[2,1,2,2],[2,3,2,4],[3,0,3,4],[16,0,16,4],[54,5,54,6],[48,0,48,2],[48,5,48,8],[49,5,49,6],[50,5,51,5],[52,5,52,6],[2,6,12,6],[12,7,12,29],[2,30,12,30],[2,7,2,29],[14,23,16,25],[5,11,7,13],[5,17,7,19],[14,11,16,13],[14,17,16,19],[52,10,52,11],[53,10,53,11],[13,30,27,30],[13,6,27,6],[13,7,13,29],[27,7,27,29],[20,23,22,25],[53,5,53,6]]}
[]
["Data from model"]
["Mass Balance","SI",null,"Annual"]
["CHP",null,null,null,null,null,null,null,null,null,null,null,null,null,null,null,null,"Water",{"$f":"S10","v":{"$error":"#N/A"}},"kg/s"]
["Biomass (d.b.)",{"$f":"I6","v":{"$error":"#N/A"}},"kg/s",{"$f":"B5*$B$36*3600/1000","v":{"$error":"#N/A"}},"annual tonnes",null,null,null,null,null,null,null,null,null,null,null,null,null,null,null,null,"Exhaust gases",{"$f":"DS4_MEB_v0!N5","v":{"$error":"#N/A"}},"kg/s"]
["Biomass (a.r.)",{"$f":"I7","v":false},"kg/s",0,"annual tonnes",null,null,"Biomass (d.b.)",{"$f":"DS4_MEB_v0!J5*(1-DS4_MEB_v0!J9)","v":{"$error":"#N/A"}},"kg/s",null,"BOILER",null,null,"Exhaust gases",{"$f":"DS4_MEB_v0!N5","v":{"$error":"#N/A"}},"kg/s",{"$f":"B41","v":{"$error":"#N/A"}},null,null,null,"Solid residue",{"$f":"DS4_MEB_v0!N6","v":{"$error":"#N/A"}},"kg/s"]
["Combustion air",{"$f":"K10","v":{"$error":"#N/A"}},"kg/s",{"$error":"#N/A"},"annual tonnes",null,null,"Biomass (a.r.)",{"$f":"DS4_MEB_v0!J5","v":false},"kg/s"]
["Steam production",{"$f":"S10","v":{"$error":"#N/A"}},"kg/s",{"$error":"#N/A"},"annual tonnes",null,null,null,null,null,null,null,null,null,"Solid residue",{"$f":"DS4_MEB_v0!N6","v":{"$error":"#N/A"}},"kg/s",null,null,null,null,"Electricity",{"$f":"DS4_MEB_v0!V25","v":{"$error":"#N/A"}},"MW"]
["Flue gases",{"$f":"W5","v":{"$error":"#N/A"}},"kg/s",{"$error":"#N/A"},"annual tonnes",null,null,null,null,null,null,null,null,null,null,null,null,null,null,null,null,"Heat",{"$f":"DS4_MEB_v0!V26","v":{"$error":"#N/A"}},"MW"]
["Solid residue",{"$f":"W6","v":{"$error":"#N/A"}},"kg/s",{"$error":"#N/A"},"annual tonnes",null,null,null,null,"Combustion air",{"$f":"DS4_MEB_v0!J6","v":{"$error":"#N/A"}},"kg/s",null,"Heat input",0,"MW",null,"Steam",{"$f":"DS4_MEB_v0!N15","v":{"$error":"#N/A"}},"kg/s",null,"Losses",{"$f":"DS4_MEB_v0!V27","v":{"$error":"#N/A"}},"MW"]
["Energy",null,null,null,null,null,null,null,null,"Excess air",{"$f":"B40","v":0.15}]
["Electricity",{"$f":"W8","v":{"$error":"#N/A"}},"MW",{"$f":"B12*$B$36","v":{"$error":"#N/A"}},"annual MWh",null,null,null,null,null,null,null,null,null,null,null,null,null,null,null,null,null,null,null,null,null,null,null,null,null,null,null,null,null,null,null,null,null,null,null,null,null,null,null,"Output"]
["Heat",{"$f":"W9","v":{"$error":"#N/A"}},"MW",{"$f":"B13*$B$36","v":{"$error":"#N/A"}},"annual MWh",null,null,null,null,null,null,null,null,null,null,null,null,null,null,null,null,null,null,null,null,null,null,null,null,null,null,null,null,null,null,null,null,null,null,null,null,null,null,null,null,null,"Dry basis","Wet basis"]
["Loss",{"$f":"W10","v":{"$error":"#N/A"}},"MW",{"$f":"B14*$B$36","v":{"$error":"#N/A"}},"annual MWh",null,null,null,null,null,null,null,null,null,null,null,null,null,null,null,null,null,null,null,null,null,null,null,null,null,null,null,null,null,null,null,null,null,null,null,null,null,null,null,"Biomass flow","kg/s"]
["Input",{"$f":"O10","v":0},"MW",{"$f":"B15*$B$36","v":0},"annual MWh",null,null,null,null,null,null,"BLENDING",null,null,null,null,null,"PREHEATING",null,null,null,null,null,"DIGESTER",null,null,null,null,null,null,null,null,null,null,null,null,null,null,null,null,null,null,null,null,null,"Annual tonnes"]
[null,null,null,null,null,null,null,"Biomass (d.b.)",{"$f":"DS4_MEB_v0!R5","v":{"$error":"#N/A"}},"kg/s",null,null,null,null,null,null,null,null,null,null,null,null,null,null,null,null,null,"Water",{"$f":"DS4_MEB_v0!R9+DS4_MEB_v0!R10","v":{"$error":"#N/A"}},"kg/s",null,null,null,"mass flow (kg/s)","Vol. flow (m3/s)","Pm","Nm3/s","Nm3/h",null,null,"kg/s","Pm","Nm3/s",null,"MWh electricity/ t biomass"]
["AD",null,null,null,null,null,null,"Biomass (a.r.)",{"$f":"DS4_MEB_v0!R6","v":{"$error":"#N/A"}},"kg/s",null,null,null,null,"Solids content",0.2,null,null,null,null,"T digestor",{"$f":"B45","v":{"$error":"#N/A"}},"° C",null,null,null,null,null,null,null,null,null,"CH4",{"$f":"AA18","v":{"$error":"#N/A"}},{"$f":"AH17*1000/AJ17*$AH$23*($AI$23+$AG$23)/$AJ$23","v":{"$error":"#N/A"}},16,{"$f":"AI17*($AK$23+$AG$23)/($AI$23+$AG$23)","v":{"$error":"#N/A"}},{"$f":"AK17*$AG$25","v":{"$error":"#N/A"}},null,{"$f":"R21","v":"CO2"},{"$f":"S21","v":{"$error":"#N/A"}},44,{"$f":"AO17*1000/AP17*$AH$23*($AK$23+$AG$23)/$AJ$23","v":{"$error":"#N/A"}},null,"MWh heat/ t biomass"]
["Biomass (d.b.)",{"$f":"I16","v":{"$error":"#N/A"}},"kg/s",{"$f":"B18*$B$36*3600/1000","v":{"$error":"#N/A"}},"annual tonnes",null,null,"Ambient T",{"$f":"B42","v":{"$error":"#N/A"}},"° C",null,null,null,null,null,null,null,null,null,null,null,null,null,null,null,"Methane",{"$f":"DS4_MEB_v0!V5","v":{"$error":"#N/A"}},"kg/s","Total",null,null,null,"CO2",{"$f":"AA19","v":{"$error":"#N/A"}},{"$f":"AH18*1000/AJ18*$AH$23*($AI$23+$AG$23)/$AJ$23","v":{"$error":"#N/A"}},44,{"$f":"AI18*($AK$23+$AG$23)/($AI$23+$AG$23)","v":{"$error":"#N/A"}},{"$f":"AK18*$AG$25","v":{"$error":"#N/A"}},null,{"$f":"R22","v":"H2O"},{"$error":"#N/A"},18,{"$error":"#N/A"},null,"MW energy/t biomass"]
["Biomass (a.r.)",{"$f":"I17","v":{"$error":"#N/A"}},"kg/s",{"$error":"#N/A"},"annual tonnes",null,null,null,null,null,null,"Extra water",{"$f":"DS4_MEB_v0!R10","v":{"$error":"#N/A"}},"kg/s",null,null,null,"Heat input",{"$f":"DS4_MEB_v0!V35","v":{"$error":"#N/A"}},"MW",null,null,null,null,null,"Carbon dioxide",{"$f":"DS4_MEB_v0!V7","v":{"$error":"#N/A"}},"kg/s",null,null,null,null,"NH3",{"$f":"AA20","v":{"$error":"#N/A"}},{"$f":"AH19*1000/AJ19*$AH$23*($AI$23+$AG$23)/$AJ$23","v":{"$error":"#N/A"}},17,{"$f":"AI19*($AK$23+$AG$23)/($AI$23+$AG$23)","v":{"$error":"#N/A"}},{"$f":"AK19*$AG$25","v":{"$error":"#N/A"}},null,"N2",{"$error":"#N/A"},28,{"$error":"#N/A"}]
["Extra water",{"$f":"M19","v":{"$error":"#N/A"}},"kg/s",{"$error":"#N/A"},"annual tonnes",null,null,null,null,null,null,null,null,null,null,null,null,null,null,null,null,null,null,null,null,"Amonnia",{"$f":"DS4_MEB_v0!V8","v":{"$error":"#N/A"}},"kg/s",null,null,null,null,"Total",{"$f":"SUM(AH17:AH19)","v":{"$error":"#N/A"}},{"$f":"AH20*1000/AJ20*$AH$23*($AI$23+$AG$23)/$AJ$23","v":{"$error":"#N/A"}},{"$f":"AJ17*AH17/SUM($AH$17:$AH$19)+AJ18*AH18/SUM($AH$17:$AH$19)+AJ19*AH19/SUM($AH$17:$AH$19)","v":{"$error":"#N/A"}},{"$f":"AI20*($AK$23+$AG$23)/($AI$23+$AG$23)","v":{"$error":"#N/A"}},{"$f":"AK20*$AG$25","v":{"$error":"#N/A"}},null,"O2",{"$error":"#N/A"},32,{"$error":"#N/A"}]
["Air for combustion",{"$f":"AC21","v":{"$error":"#N/A"}},"kg/s",{"$error":"#N/A"},"annual tonnes",null,null,null,null,null,null,null,null,null,null,null,null,"CO2",{"$f":"DS4_MEB_v0!V13","v":{"$error":"#N/A"}},"kg/s",null,null,null,{"$f":"B43","v":{"$error":"#N/A"}},null,null,null,"Air",{"$f":"DS4_MEB_v0!R17","v":{"$error":"#N/A"}},"kg/s",null,null,null,null,null,null,null,null,null,"NH3",{"$error":"#N/A"},17,{"$error":"#N/A"}]
["Biogas production",{"$f":"AH20","v":{"$error":"#N/A"}},"kg/s",{"$error":"#N/A"},"annual tonnes",null,null,null,null,null,null,null,null,null,null,null,null,"H2O",{"$f":"DS4_MEB_v0!V11","v":{"$error":"#N/A"}},"kg/s",null,null,null,null,null,null,null,"Excess air",{"$f":"B47","v":0.15},null,null,null,"C->K","R","T dig (C)","Pressure","T standard (Degrees)",null,null,"Total",{"$f":"SUM(AO17:AO21)","v":{"$error":"#N/A"}},{"$f":"AO17/AO22*AP17+AO18/AO22*AP18+AO19/AO22*AP19+AO20/AO22*AP20+AO21/AO22*AP21","v":{"$error":"#N/A"}},{"$error":"#N/A"}]
["Exhaust gases",{"$f":"SUM(S21:S25)","v":{"$error":"#N/A"}},"kg/s",{"$error":"#N/A"},"annual tonnes",null,null,null,null,null,null,null,null,null,null,null,null,"N2",{"$f":"DS4_MEB_v0!V14","v":{"$error":"#N/A"}},"kg/s",null,null,null,null,null,null,null,null,null,null,null,null,273,8.3140000000000001,{"$f":"B45","v":{"$error":"#N/A"}},{"$f":"100000","v":100000},0]
["Output digestate post-digester",{"$f":"AC16","v":{"$error":"#N/A"}},"kg/s",{"$error":"#N/A"},"annual tonnes",null,null,null,null,null,null,null,null,null,null,null,null,"O2",{"$f":"DS4_MEB_v0!V15","v":{"$error":"#N/A"}},"kg/s",null,null,null,null,null,null,null,null,null,null,null,null,"s->h"]
["Biogas",{"$f":"AK20","v":{"$error":"#N/A"}},"Nm3/s",{"$error":"#N/A"},"Annual Nm3",null,null,null,null,null,null,null,null,null,null,null,null,"NH3",{"$f":"DS4_MEB_v0!V16","v":{"$error":"#N/A"}},"kg/s",null,"Heat input",0,"MW",null,"Electricity",{"$f":"DS4_MEB_v0!V32","v":{"$error":"#N/A"}},"MW",null,null,null,null,3600]
["Exhaust gases",{"$f":"AQ22","v":{"$error":"#N/A"}},"Nm3/s",{"$error":"#N/A"},"Annual Nm3",null,null,null,null,null,null,null,null,null,null,null,null,"Comb. Temperature (estimation)",{"$f":"B46","v":{"$error":"#N/A"}},"Degrees",null,null,null,null,null,"Heat",{"$f":"DS4_MEB_v0!V33","v":{"$error":"#N/A"}},"MW"]
["Energy",null,null,null,null,null,null,null,null,null,null,null,null,null,null,null,null,null,null,null,null,null,null,null,null,"Losses",{"$f":"DS4_MEB_v0!V34","v":{"$error":"#N/A"}},"MW"]
["Preheating",{"$f":"S19","v":{"$error":"#N/A"}},"MW",{"$f":"B28*$B$36","v":{"$error":"#N/A"}},"Annual MWh"]
["CHP Input",{"$f":"W25","v":0},"MW",0,"Annual MWh"]
["Heat produced",{"$f":"AA26","v":{"$error":"#N/A"}},"MW",{"$error":"#N/A"},"Annual MWh"]
["Electricity",{"$f":"AA25","v":{"$error":"#N/A"}},"MW",{"$error":"#N/A"},"Annual MWh"]
["Losses",{"$f":"AA27","v":{"$error":"#N/A"}},"MW",{"$error":"#N/A"},"Annual MWh"]
["Total Energy IN",{"$f":"B29+B28+B15","v":{"$error":"#N/A"}},"MW",{"$error":"#N/A"},"Annual MWh"]
[]
["Amendable parameters"]
["Annual operational hours",{"$f":"Feedstocks_Pathways!I24","v":0},"h."]
["Energy installed",{"$f":"Feedstocks_Pathways!B24","v":0},"MW"]
["Biomass type"]
["Overall process","CHP + AD"]
["Excess air CHP",0.15]
["Process CHP",{"$f":"B43","v":{"$error":"#N/A"}}]
["Ambient Temperature",{"$f":"B53","v":{"$error":"#N/A"}},"° C"]
["Energy process",{"$f":"B51","v":{"$error":"#N/A"}}]
["Solids content",{"$f":"B52","v":{"$error":"#N/A"}}]
["T digestate",{"$f":"B54","v":{"$error":"#N/A"}},"° C"]
["Comb. Temperature",{"$f":"B55","v":{"$error":"#N/A"}},"° C"]
["Excess air AD",0.15]
[null,null,null,null,null,"Carnot index heat",{"$f":"DS4_MEB_v0!M39","v":{"$error":"#N/A"}}]
["Inputs DS4",null,null,null,null,"Output"]
[{"$f":"A39","v":"Overall process"},{"$f":"IF(Feedstocks_Pathways!E22=Feedstocks_Pathways!F54,Feedstocks_Pathways!G6,DS4_v1!D50)","v":{"$error":"#N/A"}}," ","CHP + AD",null,null,null,"Dry basis","Wet basis"]
[{"$f":"A43","v":"Energy process"},{"$f":"IF(Feedstocks_Pathways!E22=Feedstocks_Pathways!F54,Feedstocks_Pathways!G7,DS4_v1!D51)","v":{"$error":"#N/A"}}," ","CHP",null,"Biomass flow","kg/s",{"$f":"B5","v":{"$error":"#N/A"}},{"$f":"B6","v":false}]
[{"$f":"A44","v":"Solids content"},{"$f":"IF(Feedstocks_Pathways!$E$22=Feedstocks_Pathways!$F$54,Feedstocks_Pathways!G8,DS4_v1!D52)","v":{"$error":"#N/A"}}," ",0.2,null,null,"Annual tonnes",{"$f":"D5","v":{"$error":"#N/A"}},{"$f":"D6","v":0}]
[{"$f":"A42","v":"Ambient Temperature"},{"$f":"IF(Feedstocks_Pathways!$E$22=Feedstocks_Pathways!$F$54,Feedstocks_Pathways!G9,DS4_v1!D53)","v":{"$error":"#N/A"}},{"$f":"C42","v":"° C"},20,null,"MWh heat/ t biomass",null,{"$f":"D30/D5","v":{"$error":"#N/A"}},{"$f":"D30/D6","v":{"$error":"#N/A"}}]
[{"$f":"A45","v":"T digestate"},{"$f":"IF(Feedstocks_Pathways!$E$22=Feedstocks_Pathways!$F$54,Feedstocks_Pathways!G10,DS4_v1!D54)","v":{"$error":"#N/A"}},{"$f":"C45","v":"° C"},35,null,"MWh electricity/ t biomass",null,{"$f":"D31/D5","v":{"$error":"#N/A"}},{"$f":"D31/D6","v":{"$error":"#N/A"}}]
[{"$f":"A46","v":"Comb. Temperature"},{"$f":"IF(Feedstocks_Pathways!$E$22=Feedstocks_Pathways!$F$54,Feedstocks_Pathways!G11,DS4_v1!D55)","v":{"$error":"#N/A"}},{"$f":"C46","v":"° C"},1000,null,"MWh exergy/t biomass",null,{"$f":"(D30+D31*G48)/D5","v":{"$error":"#N/A"}},{"$f":"(D30+D31*G48)/D6","v":{"$error":"#N/A"}}]
[" "," "," "," ",null,"Biogas production [annual tonnes]",null,null,{"$f":"D22","v":{"$error":"#N/A"}}]
[" "," "," "," ",null,"Biogas/biomass [wet basis]",null,null,{"$f":"I56/I52","v":{"$error":"#N/A"}}]
[" "," "," "," "]
[" "," "," "," "]
[" "," "," "," "]

{"sheet":"DS4_Information_v0","index":14,"n_rows":44,"n_cols":20,"rows_kept":44,"cut":false,"hidden":true,"merged":[[30,3,30,4],[30,5,30,6],[30,7,30,8],[30,9,30,10],[28,3,28,4],[28,5,28,6],[28,7,28,8],[28,9,28,10],[29,3,29,4],[29,5,29,6],[29,7,29,8],[29,9,29,10],[27,3,27,4],[27,5,27,6],[27,7,27,8],[27,9,27,10],[20,3,20,5],[15,3,15,5],[15,6,15,8],[15,9,15,10],[15,11,15,12],[15,13,15,14],[13,13,13,14],[14,3,14,5],[14,6,14,8],[14,9,14,10],[14,11,14,12],[14,13,14,14],[13,3,13,5],[13,6,13,8],[13,9,13,10],[13,11,13,12],[12,13,12,14],[1,2,1,4],[12,3,12,5],[12,6,12,8],[12,9,12,10],[12,11,12,12]]}
[]
[null,null,"LHV",null,null,null,null,null,null,null,"Heat reaction",null,null,"Slightly exothermic"]
[null,null,"Methane",50050,"kJ/kg",null,"Density POME",1,"kg/m3",null,"oxygen",0.21]
[null,null,"Hydrogen",120000,"kJ/kg",null,"Yield POME from Fruit benches",0.85,null,null,"nitrogen",0.79]
[]
[null,null,"Manure","Weight fraction","Molar weight","mol","mol (%)","mol (Formula)","Mol. Weight",null,null,"Moisture content (application)","Ash content","Volatile matter","Fixed carbon","LHV (MJ/kg)","C","H","O","Cp (kJ/kgK)"]
[null,null,"C",{"$f":"DS4_MEB!C18","v":{"$error":"#N/A"}},12,{"$f":"D7/E7","v":{"$error":"#N/A"}},{"$f":"F7/SUM($F$7:$F$10)","v":{"$error":"#N/A"}},{"$f":"G7/MIN($G$7:$G$10)","v":{"$error":"#N/A"}},{"$f":"H7*E7+H8*E8+H9*E9+H10*E10+H11*E11","v":{"$error":"#N/A"}},null,"Veg",{"$f":"Feedstocks_Pathways!X58/100","v":{"$error":"#N/A"}},{"$f":"Feedstocks_Pathways!Z58/100","v":{"$error":"#N/A"}},{"$f":"Feedstocks_Pathways!AA58/100","v":{"$error":"#N/A"}},{"$f":"Feedstocks_Pathways!AB58/100","v":{"$error":"#N/A"}},4,{"$f":"Feedstocks_Pathways!AE58/100","v":{"$error":"#N/A"}},{"$f":"Feedstocks_Pathways!AF58/100","v":{"$error":"#N/A"}},{"$f":"Feedstocks_Pathways!AG58/100","v":{"$error":"#N/A"}},{"$f":"Feedstocks_Pathways!AJ58","v":{"$error":"#N/A"}}]
[null,null,"H",{"$f":"DS4_MEB!C19","v":{"$error":"#N/A"}},1,{"$f":"D8/E8","v":{"$error":"#N/A"}},{"$f":"F8/SUM($F$7:$F$10)","v":{"$error":"#N/A"}},{"$f":"G8/MIN($G$7:$G$10)","v":{"$error":"#N/A"}},null,null,null,null,null,{"$f":"N7*0.3","v":{"$error":"#N/A"}}]
[null,null,"O",{"$f":"DS4_MEB!C20","v":{"$error":"#N/A"}},16,{"$f":"D9/E9","v":{"$error":"#N/A"}},{"$f":"F9/SUM($F$7:$F$10)","v":{"$error":"#N/A"}},{"$f":"G9/MIN($G$7:$G$10)","v":{"$error":"#N/A"}}]
[null,null,"N",{"$f":"DS4_MEB!C21","v":{"$error":"#N/A"}},14,{"$f":"D10/E10","v":{"$error":"#N/A"}},{"$f":"F10/SUM($F$7:$F$10)","v":{"$error":"#N/A"}},{"$f":"G10/MIN($G$7:$G$10)","v":{"$error":"#N/A"}}]
[]
[]
[null,null,null,"Biomass (Manure)",null,null,"H2O",null,null,"CH4",null,"CO2",null,"NH3"]
[null,null,"Stoic. Coeff.",1,null,null,{"$f":"(4*H7-H8-2*H9+3*H10)/4","v":{"$error":"#N/A"}},null,null,{"$f":"(4*H7+H8-2*H9-3*H10)/8","v":{"$error":"#N/A"}},null,{"$f":"(4*H7-H8+2*H9+3*H10)/8","v":{"$error":"#N/A"}},null,{"$f":"H10","v":{"$error":"#N/A"}},null,null,null,"C","O2","CO2"]
[null,null,"Weight",{"$f":"I7","v":{"$error":"#N/A"}},null,null,{"$f":"2*E8+E9","v":18},null,null,{"$f":"E7+4*E8","v":16},null,{"$f":"E7+2*E9","v":44},null,{"$f":"E10+3*E8","v":17},null,null,null,12,32,44]
[null,null,null,"kg biomass/kg product",null,null,"kg H2O/kg product",null,null,"kg CH4/kg reagent",null,"kg CO2/kg reagent",null,"kg NH3/kg reagent"]
[null,null,null,"CH4","CO2","NH3","CH4","CO2","NH3","Biomass","H2O","Biomass","H2O","Biomass","H2O"]
[null,null,null,{"$f":"D15*D14/(J15*J14)","v":{"$error":"#N/A"}},{"$f":"D15*D14/(L15*L14)","v":{"$error":"#N/A"}},{"$f":"D15*D14/(N15*N14)","v":{"$error":"#N/A"}},{"$f":"G15*G14/(J15*J14)","v":{"$error":"#N/A"}},{"$f":"G15*G14/(L15*L14)","v":{"$error":"#N/A"}},{"$f":"G15*G14/(N15*N14)","v":{"$error":"#N/A"}},{"$f":"J15*J14/(D14*D15)","v":{"$error":"#N/A"}},{"$f":"J15*J14/(G14*G15)","v":{"$error":"#N/A"}},{"$f":"L15*L14/(D14*D15)","v":{"$error":"#N/A"}},{"$f":"L15*L14/(G14*G15)","v":{"$error":"#N/A"}},{"$f":"N15*N14/(D14*D15)","v":{"$error":"#N/A"}},{"$f":"N15*N14/(G14*G15)","v":{"$error":"#N/A"}}]
[]
[]
[null,null,null,"Water heats",null,null,null,"CHP","CHP","Electricity only","Heat only",null,"Extra water"]
[null,null,null,"Vaporization heat",2256.4,"kJ/kg",null,"Ne",0.375,0.3,0,null,"Solids content"]
[null,null,null,"Water",4.1870000000000003,"kJ/kgK",null,"Nh",0.45500000000000002,0,0.85]
[null,null,null,"Steam",1.996,"kJ/kgK",null,"Nt",{"$f":"SUM(I22:I23)","v":0.83000000000000007},{"$f":"SUM(J22:J23)","v":0.3},{"$f":"SUM(K22:K23)","v":0.85}]
[null,null,null,"T exit steam",330,"°C",null,null,null,null,null,null,"Conversion efficiency (kg biogas/ biomass d.b.)","Range"]
[null,null,null,"Vaporization T",100,"°C",null,null,null,null,null,null,null,0.6,0.7]
[null,null,null,null,null,null,null,null,null,null,null,null,"Number to use",{"$f":"AVERAGE(N26:O26)","v":0.64999999999999991}]
[null,null,null,"CH4",null,"O2",null,"H2O",null,"CO2"]
[null,null,"Stoic. Coefficient",1,null,2,null,2,null,1]
[null,null,"Weight",{"$f":"E7+4*E8","v":16},null,{"$f":"E9*2","v":32},null,{"$f":"2*E8+E9","v":18},null,{"$f":"E7+2*E9","v":44}]
[null,null,null,"kgCH4/kg product",null,"kg O2/ kg product",null,"kg H2O/kg reagent",null,"kg CO2/ kg reagent"]
[null,null,null,"H2O","CO2","H2O","CO2","CH4","O2","CH4","O2"]
[null,null,null,{"$f":"D30*D29/(H30*H29)","v":0.44444444444444442},{"$f":"D30*D29/(J30*J29)","v":0.36363636363636365},{"$f":"F30*F29/(H30*H29)","v":1.7777777777777777},{"$f":"F30*F29/(J30*J29)","v":1.4545454545454546},{"$f":"H30*H29/(D30*D29)","v":2.25},{"$f":"H30*H29/(F30*F29)","v":0.5625},{"$f":"J30*J29/(D30*D29)","v":2.75},{"$f":"J30*J29/(F30*F29)","v":0.6875}]
[]
[]
[]
[]
[]
[]
[]
[]
[]
[]
[null,null,null,null,null,null,null,null,null,null,null,null,"Biomass conversion efficiency",0.6]

{"sheet":"DS4_Information","index":15,"n_rows":102,"n_cols":41,"rows_kept":102,"cut":false,"hidden":true,"merged":[[54,16,55,18],[56,16,57,18],[71,2,72,2],[15,11,15,12],[14,11,14,12],[15,13,15,14],[16,13,16,14],[16,3,16,5],[16,6,16,8],[16,9,16,10],[16,11,16,12],[15,3,15,5],[15,6,15,8],[15,9,15,10],[29,14,29,16],[99,0,101,0],[95,0,98,0],[95,1,96,1],[97,1,98,1],[83,0,83,3],[83,6,84,6],[84,3,88,3],[77,5,85,5],[77,6,78,6],[65,0,65,10],[70,0,72,0],[70,3,72,3],[70,4,72,4],[70,6,75,6],[72,7,73,7],[13,9,13,15],[14,9,14,10],[14,13,14,14],[13,3,13,8],[14,3,14,5],[14,6,14,8]]}
[]
[null,null,"LHV"]
[null,null,"Methane",50000,"kJ/kg",null,"Density POME",1,"kg/m3",null,"oxygen",0.21,null,null,null,null,null,null,null,null,null,null,null,null,null,null,null,null,null,null,"Moisture content (application)","Ash content","Volatile matter","Fixed carbon","LHV (MJ/kg)","C","H","O","Cp (kJ/kgK)"]
[null,null,"Hydrogen",120000,"kJ/kg",null,"Yield POME from Fruit benches",0.85,null,null,"nitrogen",0.79,null,null,null,null,null,null,null,null,null,null,null,null,null,null,null,null,null,"Fruit bunches",{"$f":"Feedstocks_Pathways!Y58/100","v":{"$error":"#N/A"}},{"$f":"Feedstocks_Pathways!Z58/100","v":{"$error":"#N/A"}},{"$f":"Feedstocks_Pathways!AA58/100","v":{"$error":"#N/A"}},{"$f":"Feedstocks_Pathways!AB58/100","v":{"$error":"#N/A"}},{"$f":"Feedstocks_Pathways!AC58","v":{"$error":"#N/A"}},{"$f":"Feedstocks_Pathways!AE56/100","v":{"$error":"#N/A"}},{"$f":"Feedstocks_Pathways!AF56/100","v":{"$error":"#N/A"}},{"$f":"Feedstocks_Pathways!AH56/100","v":{"$error":"#N/A"}},{"$f":"Feedstocks_Pathways!AJ58","v":{"$error":"#N/A"}}]
[null,null,null,null,null,null,null,null,null,null,null,null,null,null,null,null,null,null,null,null,null,null,null,null,null,null,null,null,null,"POME",0.7,5.7000000000000002E-2,0.93500000000000005,0.9,8,0.5,0.05,{"$f":"0.4","v":0.4},3]
[null,null,"POME","Weight fraction","Molar weight","mol","mol (%)","Average Mol. Weight biomass",null,null,null,"Moisture content (application)","Ash content","Volatile matter","Fixed carbon","LHV (MJ/kg)","C","H","O","Cp (kJ/kgK)","Solids"]
[null,null,"C",{"$f":"DS4_MEB!C18","v":{"$error":"#N/A"}},12,{"$f":"D7/E7","v":{"$error":"#N/A"}},{"$f":"F7/$F$12","v":{"$error":"#N/A"}},{"$f":"(G7*E7)+(G8*E8)+(G9*E9)+(G10*E10)+(E11*G11)","v":{"$error":"#N/A"}},null,null,"Feedstock",{"$f":"Feedstocks_Pathways!X58/100","v":{"$error":"#N/A"}},{"$f":"Feedstocks_Pathways!Z58/100","v":{"$error":"#N/A"}},{"$f":"Feedstocks_Pathways!AA58/100","v":{"$error":"#N/A"}},{"$f":"Feedstocks_Pathways!AB58/100","v":{"$error":"#N/A"}},{"$f":"Feedstocks_Pathways!AC58","v":{"$error":"#N/A"}},{"$f":"Feedstocks_Pathways!AE58/100","v":{"$error":"#N/A"}},{"$f":"Feedstocks_Pathways!AF58/100","v":{"$error":"#N/A"}},{"$f":"Feedstocks_Pathways!AG58/100","v":{"$error":"#N/A"}},{"$f":"Feedstocks_Pathways!AJ58","v":{"$error":"#N/A"}},{"$f":"Feedstocks_Pathways!AK58","v":{"$error":"#N/A"}}]
[null,null,"H",{"$f":"DS4_MEB!C19","v":{"$error":"#N/A"}},1,{"$f":"D8/E8","v":{"$error":"#N/A"}},{"$f":"F8/$F$12","v":{"$error":"#N/A"}}]
[null,null,"O",{"$f":"DS4_MEB!C20","v":{"$error":"#N/A"}},16,{"$f":"D9/E9","v":{"$error":"#N/A"}},{"$f":"F9/$F$12","v":{"$error":"#N/A"}}]
[null,null,"N",{"$f":"DS4_MEB!C21","v":{"$error":"#N/A"}},14,{"$f":"D10/E10","v":{"$error":"#N/A"}},{"$f":"F10/$F$12","v":{"$error":"#N/A"}}]
[null,null,"other",{"$f":"DS4_MEB!C22","v":{"$error":"#N/A"}},32,{"$f":"D11/E11","v":{"$error":"#N/A"}},{"$f":"F11/$F$12","v":{"$error":"#N/A"}}]
[null,null,null,null,null,{"$f":"SUM(F7:F11)","v":{"$error":"#N/A"}},{"$f":"SUM(G7:G11)","v":{"$error":"#N/A"}}]
[null,null,null,"Buswell theoretical biogas composition"]
[null,null,null,"Input",null,null,null,null,null,"Output"]
[null,null,null,"Biomass (Manure)",null,null,"H2O",null,null,"CH4",null,"CO2",null,"NH3",null,"H2S"]
[null,null,"Coefficients",null,null,null,{"$f":"(4*G7-G8-(2*G9)+(3*G10)+(2*G11))/4","v":{"$error":"#N/A"}},null,null,{"$f":"((4*G7)+G8-(2*G9)-(3*G10)-(2*G11))/8","v":{"$error":"#N/A"}},null,{"$f":"((4*G7)-G8+(2*G9)+(3*G10)+(2*G11))/8","v":{"$error":"#N/A"}},null,{"$f":"G10","v":{"$error":"#N/A"}},null,{"$f":"G11","v":{"$error":"#N/A"}}]
[null,null,"Mol.weight",{"$f":"H7","v":{"$error":"#N/A"}},null,null,{"$f":"2*E8+E9","v":18},null,null,{"$f":"E7+4*E8","v":16},null,{"$f":"E7+2*E9","v":44},null,{"$f":"E10+3*E8","v":17}]
[]
[]
[null,null,null,"Biogas composition","mol%","mol wt.","wt.","wt %"]
[null,null,null,"CH4",{"$f":"J16/(SUM(J16:O16))","v":{"$error":"#N/A"}},16,{"$f":"F21*E21","v":{"$error":"#N/A"}},{"$f":"G21/$G$24","v":{"$error":"#N/A"}}]
[null,null,null,"CO2",{"$f":"L16/(SUM(J16:O16))","v":{"$error":"#N/A"}},44,{"$f":"F22*E22","v":{"$error":"#N/A"}},{"$f":"G22/$G$24","v":{"$error":"#N/A"}}]
[null,null,null,"NH3",{"$f":"N16/(SUM(J16:O16))","v":{"$error":"#N/A"}},17,{"$f":"F23*E23","v":{"$error":"#N/A"}},{"$f":"G23/$G$24","v":{"$error":"#N/A"}}]
[null,null,null,null,null,null,{"$f":"SUM(G21:G23)","v":{"$error":"#N/A"}},{"$f":"G24/$G$24","v":{"$error":"#N/A"}}]
[null,null,null,null,null,null,null,null,null,null,null,null,null,null,null,null,null,null,null,null,null,null,null,null,null,null,null,null,null,null,"Meeting 16th November"]
[null,null,null,{"$f":"J16/(SUM(J16:M16))","v":{"$error":"#N/A"}},"% of carbon is degraded  to methane",null,null,null,null,null,null,null,null,null,null,null,null,null,null,null,null,null,null,null,null,null,null,null,null,null,null,null,null,"enthalpy"]
[null,null,null,{"$f":"1-D26","v":{"$error":"#N/A"}},"% of carbon degraded to CO2"]
[null,null,null,null,null,null,null,null,null,null,null,null,null,null,null,null,null,null,null,null,null,null,null,null,null,null,null,null,null,null,null,null,null,null,null,null,null,700,"kW electric"]
[null,null,null,"Biomass conversion efficiency",0.6,"Standard for all AD routes",null,null,null,null,null,null,null,null,null,null,null,null,null,null,null,null,null,null,null,null,null,null,null,null,null,null,"Steam (100 degrees)",2676,null,null,null,"???","kw heat"]
[null,null,null,"VM",{"$f":"DS4_MEB!C23","v":{"$error":"#N/A"}},null,null,null,null,null,null,null,null,null,"CHP",null,null,null,null,null,null,null,null,null,null,null,null,null,null,null,null,null,"Water (100 degrees)",419.17,"kJ/kg"]
[null,null,null,null,null,null,null,null,null,null,null,null,null,null,null,"Ne","Nh",null,null,null,null,null,null,null,null,null,null,null,null,null,null,null,"70 bar",2771.24,"kJ/kg",null,null,null,null,null,"MW"]
[null,null,null,null,"kg/s","Mols",null,null,null,null,null,null,null,null,"CHP",0.15,0.65,null,null,null,null,null,null,null,null,null,null,null,null,null,null,null,"90 bar",2741.19,"kJ/kg"]
[null,null,null,"Target methane production",{"$f":"DS4_MEB!K19","v":{"$error":"#N/A"}},{"$f":"E33/J17","v":{"$error":"#N/A"}},null,null,null,null,null,null,null,null,"Electricity only",0.3,0,null,null,null,null,null,null,null,null,null,null,null,null,null,null,null,"12.5 bar",2787.76,"kJ/kg",null,"Diesel",42.6,"MJ/kg",{"$f":"AL35*AL34*AL33","v":1.5155216662151703}]
[null,null,null,"CO2",{"$f":"E33/H21*H22","v":{"$error":"#N/A"}},{"$f":"E34/L17","v":{"$error":"#N/A"}},null,null,null,null,null,null,null,null,"Heat only",0,0.85,null,null,null,null,null,null,null,null,null,null,null,null,null,null,null,"water (20 degrees)",108.203,"kJ/kg",null,null,0.84599999999999997,"kg/L"]
[null,null,null,"NH3",{"$f":"E33/H21*H23","v":{"$error":"#N/A"}},{"$f":"E35/N17","v":{"$error":"#N/A"}},null,null,null,null,null,null,null,null,null,null,null,null,null,null,null,null,null,null,null,null,null,null,null,null,"kg steam/s","t steam/h",null,"kJ/kg","kW",null,null,{"$f":"AF38/(AL37*3600)","v":4.20515673374613E-2},"L/s"]
[null,null,null,null,null,null,null,null,null,null,null,null,null,null,null,null,null,null,null,null,null,null,null,null,null,null,null,null,null,null,{"$f":"AF36/3.6","v":0.50944444444444448},1.8340000000000001,"energy 70bar",{"$f":"AH31-AH30","v":2352.0699999999997},{"$f":"AH36*AE36","v":1198.2489944444444},700,"kWheat"]
[null,null,null,"Carbon required",{"$f":"F37*12","v":{"$error":"#N/A"}},{"$f":"F33/E29/D26/E30","v":{"$error":"#N/A"}},null,null,null,null,null,null,null,null,null,null,null,null,null,null,null,null,null,null,null,null,null,null,null,null,{"$f":"AF37/3.6","v":1.3888888888888888},5,"Energy 12.5 bar",{"$f":"AH33-AH30","v":2368.59},{"$f":"AH37*AE37","v":3289.7083333333335},null,null,5168,"Operational hours"]
[null,null,null,null,null,null,null,null,null,null,null,null,null,null,null,null,null,null,null,null,null,null,null,null,null,null,null,null,null,null,"Diesel consumption on low pressure boiler",782361,"L",null,{"$f":"((AI36+AI37)/1000-AN33)*AL39","v":1.9888294910002891}]
[null,null,null,"Therefore total mass biomass required",{"$f":"E37/D7","v":{"$error":"#N/A"}},"kg/s",{"$f":"E39*60*60","v":{"$error":"#N/A"}},"kg/h",null,null,null,null,null,null,null,"hfg",null,null,null,null,null,null,null,null,null,null,null,null,null,null,null,null,null,null,null,null,null,0.66909084584012912,"Around 90% for 0 value"]
[null,null,null,null,null,null,null,null,null,null,null,null,null,null,"Enthalpies","kJ/kg","MJ/kg",null,null,null,null,null,null,null,null,null,null,null,null,null,97569,"m3 Matthew data POME input",null,null,null,null,null,{"$f":"AE46-AE44","v":{"$error":"#REF!"}}]
[null,null,null,"Water required for reaction",{"$f":"E39-E33-E34-E35","v":{"$error":"#N/A"}},"kg/s",null,null,null,null,null,null,null,null,"Water (10 °C)",1017,{"$f":"P41/1000","v":1.0169999999999999},null,null,null,null,null,null,null,null,null,null,null,null,null,{"$f":"Feedstocks_Pathways!M8/700*1000000","v":{"$error":"#N/A"}},"annual m3 (wb)"]
[null,null,null,null,null,null,null,null,null,null,null,null,null,"High-pressure","Steam (291 °C, 75 bar)",1466.53,{"$f":"P42/1000","v":1.4665299999999999}]
[null,null,null,null,null,null,null,null,null,null,null,null,null,"Low-pressure","Steam (195 °C, 12 bar)",1970,{"$f":"P43/1000","v":1.97}]
[null,null,null,null,null,null,null,null,null,null,null,null,null,"CHP","Steam (330 C, 30 bar)",1786.07,{"$f":"P44/1000","v":1.78607},null,null,null,null,null,null,null,null,null,null,null,null,null,3023924,"Nm3 annual"]
[null,null,null,null,null,null,null,null,null,null,null,null,null,null,null,null,null,null,null,null,null,null,null,null,null,null,null,null,null,null,4000000,"biogas production capacity"]
[null,null,null,null,null,null,null,null,null,null,null,null,null,null,null,null,null,null,null,null,null,null,null,null,null,null,null,null,null,null,{"$f":"'DS4'!#REF!","v":{"$error":"#REF!"}},"biogas production capacity"]
[null,null,null,null,null,null,null,null,null,null,null,null,null,"Boiler data","700kW","1717 kg/h",null,null,null,null,null,null,null,null,null,null,null,null,null,null,0.30990000000000001,"m3 gas/ m3 feedstock"]
[null,null,null,null,null,null,null,null,null,null,null,null,null,"Boiler enthalpy",{"$f":"700/(1717/60/60)","v":1467.676179382644},"kJ/kg"]
[null,null,null,"Water heats"]
[null,null,null,"Vaporization heat",2256.4,"kJ/kg"]
[null,null,null,"Water",4.1870000000000003,"kJ/kgK",null,null,null,null,null,null,null,"Reference for steam property requirements:"]
[null,null,null,"Steam",1.996,"kJ/kgK",null,null,null,null,null,null,null,"https://www.energy.gov/sites/prod/files/2016/09/f33/CHP-Steam%20Turbine.pdf"]
[null,null,null,"T exit steam",330,"°C"]
[null,null,null,"Vaporization T",100,"°C",null,null,null,null,null,null,null,"Based on 3MWe turbine",null,"Enthalpy, kJ/kg"]
[null,null,null,null,null,null,null,null,null,null,null,null,null,"Steam inlet pressure, bar",41.4,2958.6,"Supersteam - required for the CHP and Electricity case"]
[null,null,null,null,"CH4",null,"O2",null,"H2O",null,"CO2",null,null,"Steam inlet temperature, C",302]
[null,null,null,"Stoic. Coefficient",1,null,2,null,2,null,1,null,null,"Steam outlet pressure, bar",10,1978,"For the heat only and CHP case"]
[null,null,null,"Weight",16,null,32,null,18,null,44,null,null,"Steam outlet temperature, C",190]
[null,null,null,"kg/s",{"$f":"E33","v":{"$error":"#N/A"}},null,{"$f":"G60*G58","v":{"$error":"#N/A"}},null,{"$f":"I58*I60","v":{"$error":"#N/A"}},null,{"$f":"K60*K58","v":{"$error":"#N/A"}}]
[null,null,null,"mols",{"$f":"E59/E58","v":{"$error":"#N/A"}},null,{"$f":"G57*E60","v":{"$error":"#N/A"}},null,{"$f":"I57*E60","v":{"$error":"#N/A"}},null,{"$f":"E60","v":{"$error":"#N/A"}}]
[]
[]
[]
[]
[]
["Report"]
[]
["Steam pressure",25,"bar",null,"Vyneke",30,"t/h",null,"Dresser-Rand Turbine",2.5,"MW"]
[null,null,null,null,"Vickers",30,"t/h",null,"Turbokraft",1.5,"MW"]
[]
["Feed","Palm kernel shells",0.3,120,"t/h",null,"Palm Oil Mill Effluent (POME)","Water",0.95]
[null,"Fruit fibre",0.7,null,null,null,null,"Others (Residual oil, soil particles, suspended solids)",0.05]
[null,"Empty fruit bunches (EFB)",null,null,null,null,null,"pH",5,"Max"]
[null,null,null,null,null,null,null,null,4,"Min"]
[null,null,null,null,null,null,null,"BOD (biological oxygen demand)",25000,"mg/l"]
[null,null,null,null,null,null,null,"COD (chemical oxygen demand)",50000,"mg/l"]
[]
["Lagoon/balloon (each, total of 2) (Feed to the one with lower amount of gas)","Capacity each",10000,"m3",null,"Process","POME retention",90,"days"]
[null,"T in min",30,"°C",null,null,null,120,"days"]
[null,"T in max",35,"°C",null,null,"Mesophilic temperatures"]
[null,"Portion of the digestate mixed with effluent",0.05,null,null,null,"No external heating"]
[null,"Open pond excess effluent storage",12000,"m3",null,null,"Agitators used"]
[null,null,null,null,null,null,"Inject air to prevent H2S formation"]
["Coefficients",null,null,null,null,null,"CH4 content in biogas",0.54]
["Fresh Fruit Bunches (FFB)",1,"t","Initial: Fresh Fruit",null,null,null,0.56000000000000005]
["POME Production",0.85,"m3",null,null,null,"COD Removal efficiency ",0.9]
["Water content","Max",0.95]
[null,"Min",0.9]
["Recirculating",0.5]
["Initial POME",0.65,"m3","Initial POME"]
["CH4",15,"m3",null,null,"Objective",0.85,"Energy from company from biomass"]
["Treated Effluent",0.5,"m3"]
["Biological sludge",0.5,"m3"]
["N2 content in biological sludge",1,"kg"]
["Steam energy content",60,"kWh"]
["Feed rate per day per reactor","Peak",300,"m3"]
[null,null,400,"m3"]
[null,"Lean",55,"m3"]
[null,null,200,"m3"]
[2019,"POME",195137,"m3"]
[null,"Biogas",3023924,"Nm3"]
[null,"Diesel substituted",910012,"L"]

{"sheet":"DS4_MEB","index":16,"n_rows":45,"n_cols":22,"rows_kept":45,"cut":false,"hidden":true,"merged":[[4,1,4,3],[37,5,37,7],[37,9,37,11],[36,5,36,11],[18,13,20,13],[23,5,23,11],[25,5,25,11],[26,5,26,7],[26,9,26,11],[5,13,7,13],[17,14,17,15],[17,16,17,17],[1,5,1,11],[2,5,2,7],[2,9,2,11],[3,13,4,13],[7,14,7,17],[14,5,14,11],[15,5,15,7],[15,9,15,11],[16,9,16,11]]}
[null,null,null,null,null,null,null,null,{"$f":"1-ABS(K4/G4-1)","v":{"$error":"#N/A"}}]
[null,{"$f":"Feedstocks_Pathways!B11","v":{"$error":"#N/A"}},{"$f":"'DS4'!B25","v":0},"MW",null,"Anaerobic Digestion",null,null,null,null,null,null,null,"Data type","Magnitude","Units","Range/List","Effect"]
[null,"Energy input",{"$f":"IF(C31=\"Heat only\",C2/C33,C2/C32)","v":{"$error":"#N/A"}},"Mwe,th",null,"INPUT",null,null,null,"OUTPUTS",null,null,null,"User Inputs",{"$f":"Feedstocks_Pathways!B11","v":{"$error":"#N/A"}},"MW","0.01-5"]
[null,null,null,null,null,"TOTAL",{"$f":"G5+G7+G10","v":{"$error":"#N/A"}},"kg/s",null,"TOTAL",{"$f":"SUM(K5:K12)","v":{"$error":"#N/A"}},"kg/s",null,"Amendable parameters","Manure composition","%","0-100","Composition of C,H, N and O within the manure"]
[null,"Steam/water",null,null,null,"Biomass (d.b.)",{"$f":"DS4_Information!E39","v":{"$error":"#N/A"}},"kg/s",null,"Methane",{"$f":"K19","v":{"$error":"#N/A"}},"kg/s",null,null,"Manure H2O Content","%","0-100"]
[null,"Flow steam",{"$f":"C7*3.6","v":{"$error":"#N/A"}},"t/h",null,"Biomass (w.b.)",{"$f":"G5/(1-C25)","v":{"$error":"#N/A"}},"kg/s",null,"Carbon dioxide",{"$f":"K5/DS4_Information!H21*DS4_Information!H22","v":{"$error":"#N/A"}},"kg/s",null,"Methodology","1. Based on target product capacity, the biomass demand, and steam production are calculated. Energy balance is calculated based on process type"]
[null,null,{"$f":"C3*C14/(DS4_Information!Q42)","v":{"$error":"#N/A"}},"kg/s",null,"Moisture content",{"$f":"G6-G5","v":{"$error":"#N/A"}},"kg/s",null,"Ammonia",{"$f":"K5/DS4_Information!H21*DS4_Information!H23","v":{"$error":"#N/A"}},"kg/s",null,null,"2. Calculate the other components according to the reactions in sheet \"Information\""]
[null,"Flow steam low pressure",{"$f":"C9*3.6","v":{"$error":"#N/A"}},"t/h",null,"Water Reaction",{"$f":"DS4_Information!E41","v":{"$error":"#N/A"}},"kg/s",null,"Other",{"$f":"G4-SUM(K5:K7,K9)","v":{"$error":"#N/A"}},"kg/s",null,null,"3. Calculate the other parameters such as excess water used and energy balance"]
[null,null,{"$f":"C3*C14/(DS4_Information!Q43)","v":{"$error":"#N/A"}},"kg/s",null,"Water fluent",{"$f":"G7-G8","v":{"$error":"#N/A"}},"kg/s",null,"Waste",{"$f":"G9+G10+G5*(1-C23*C39)","v":{"$error":"#N/A"}},"kg/s",null,"Inputs Results","Biomass","kg/s (w.b.)"]
[null,"CHP steam flow",{"$f":"C11*3.6","v":{"$error":"#N/A"}},"t/h",null,"Extra water",{"$f":"IF(C26=DS4_Information!M49,C27,(G5-G7*C28)/C28)","v":{"$error":"#N/A"}},"kg/s","Mass",null,null,null,null,"Outputs Results","Gases from AD","kg/s"]
[null,null,{"$f":"C3*C14/(DS4_Information!Q44)","v":{"$error":"#N/A"}},"kg/s",null,"Solids content",{"$f":"C28","v":{"$error":"#N/A"}},null,"Vol.",null,null,null,null,"Closure Results","Closure","%","0-100","Accuracy of the calculations"]
[null,null,null,null,null,"Total water",{"$f":"G10+G7","v":{"$error":"#N/A"}},"kg/s"]
[]
[null,"Yield working fluid production",1,""]
[null,null,null,null,null,"ENERGY BALANCE",null,null,null,null,null,null,null,"Energy methane input"]
[null,null,null,null,null,"INPUT",null,null,null,"Output"]
[null,"Feedstock",null,null,null,"Biomass",{"$f":"G5","v":{"$error":"#N/A"}},"kg/s",null,"AD"]
[null,"C",{"$f":"Feedstocks_Pathways!AE58/100","v":{"$error":"#N/A"}},null,null,"LHV biomass",{"$f":"DS4_Information!P7","v":{"$error":"#N/A"}},"kJ/kg",null,"Methane",{"$f":"DS4_Information!D3","v":50000},"kJ/kg",null,null,"Temperatures",null,"Carnot factor",null,"Energy (MWh)",null,"Exergy (MWh)"]
[null,"H",{"$f":"Feedstocks_Pathways!AF58/100","v":{"$error":"#N/A"}},null,null,"AD input",{"$f":"G17*G18","v":{"$error":"#N/A"}},"MW",null,"Methane Flow",{"$f":"K20*1000/K18","v":{"$error":"#N/A"}},"kg/s",null,"CHP","Tamb",{"$f":"P22+273.15","v":{"$error":"#N/A"}},"Electricity ",1,19.100000000000001,{"$f":"S19/S21","v":0.21128318584070796},{"$f":"R19*S19","v":19.100000000000001},{"$f":"U19/U21","v":{"$error":"#N/A"}}]
[null,"O",{"$f":"Feedstocks_Pathways!AH58/100","v":{"$error":"#N/A"}},null,null,"Energy input",{"$f":"(C36-C35)*(G5*DS4_Information!T7+DS4_MEB!G12*DS4_Information!E51)/1000","v":{"$error":"#N/A"}},"MW",null,"Energy output with Methane",{"$f":"C3","v":{"$error":"#N/A"}},"MW",null,null,"Tsteam",{"$f":"P23+273.15","v":603.15},"Heat",{"$f":"(P20-P19)/P20","v":{"$error":"#N/A"}},{"$f":"71.3","v":71.3},{"$f":"S20/S21","v":0.78871681415929196},{"$f":"R20*S20","v":{"$error":"#N/A"}},{"$f":"U20/U21","v":{"$error":"#N/A"}}]
[null,"N",{"$f":"Feedstocks_Pathways!AG58/100","v":{"$error":"#N/A"}},null,null,null,null,null,null,null,null,null,null,null,null,null,null,null,{"$f":"SUM(S19:S20)","v":90.4},null,{"$f":"SUM(U19:U20)","v":{"$error":"#N/A"}}]
[null,"Others",{"$f":"1-C21-C20-C19-C18","v":{"$error":"#N/A"}},"° C",null,null,null,null,null,null,null,null,null,null,"Tamb",{"$f":"C35","v":{"$error":"#N/A"}}]
[null,"VM",{"$f":"Feedstocks_Pathways!AA58/100","v":{"$error":"#N/A"}},"° C",null,null,null,null,null,null,null,null,null,null,"Tsteam",{"$f":"C37","v":330}]
[null,null,null,"° C",null,"ENERGY/ELECTRICITY PRODUCTION"]
[null,"Veg moisture content",{"$f":"Feedstocks_Pathways!X58/100","v":{"$error":"#N/A"}},null,null,null,null,null,{"$f":"1-ABS(K28/G28-1)","v":{"$error":"#N/A"}}]
[null,"Define","Solids content",null,null,"MASS"]
[null,"",0,null,null,"INPUT",null,null,null,"OUTPUT"]
[null,{"$f":"IF(C26=DS4_Information_v0!M22,\"Solids content\",\"\")","v":"Solids content"},{"$f":"Feedstocks_Pathways!AK58/100","v":{"$error":"#N/A"}},null,null,"TOTAL",{"$f":"SUM(G29,G35,G33,G32)","v":{"$error":"#N/A"}},"kg/s",null,"TOTAL",{"$f":"SUM(K29,K31,K32,K33)","v":{"$error":"#N/A"}},"kg/s"]
[null,null,null,null,null,"Methane",{"$f":"K19","v":{"$error":"#N/A"}},"kg/s",null,"H2O",{"$f":"DS4_Information!I59","v":{"$error":"#N/A"}},"kg/s"]
[null,"Pressure",{"$f":"IF(C31=\"heat only\",Feedstocks_Pathways!G7,0)","v":{"$error":"#N/A"}},null,null,"O2 needed",{"$f":"DS4_Information!G59","v":{"$error":"#N/A"}},"kg/s",null,"CO2 reaction",{"$f":"DS4_Information!K59","v":{"$error":"#N/A"}},"kg/s"]
[null,"Production",{"$f":"'DS4'!B27","v":{"$error":"#N/A"}},null,null,"Excess air",{"$f":"'DS4'!AC12","v":0.15},null,null,"CO2 total",{"$f":"K30+G35","v":{"$error":"#N/A"}},"kg/s"]
[null,"Ne",{"$f":"LOOKUP(C31,DS4_Information!O32:O34,DS4_Information!P32:P34)","v":{"$error":"#N/A"}},null,null,"O2 IN",{"$f":"G30*(1+G31)","v":{"$error":"#N/A"}},"kg/s",null,"N2",{"$f":"G33","v":{"$error":"#N/A"}},"kg/s"]
[null,"Nh",{"$f":"LOOKUP(C31,DS4_Information!O32:O34,DS4_Information!Q32:Q34)","v":{"$error":"#N/A"}},null,null,"N2 IN",{"$f":"G32/DS4_Information!L3*DS4_Information!L4","v":{"$error":"#N/A"}},"kg/s",null,"Excess O2",{"$f":"G32-G30","v":{"$error":"#N/A"}},"kg/s"]
[null,null,null,null,null,"AIR IN",{"$f":"G33+G32","v":{"$error":"#N/A"}},"kg/s"]
[null,"Ambient T",{"$f":"'DS4'!I8","v":{"$error":"#N/A"}},null,null,"Carbon dioxide",{"$f":"K6","v":{"$error":"#N/A"}},"kg/s"]
[null,"T digestor",{"$f":"'DS4'!V7","v":35}]
[null,"T working fluid",330,null,null,"ENERGY"]
[null,null,null,null,null,"INPUT",null,null,null,"OUTPUT"]
[null,{"$f":"DS4_Information!D29","v":"Biomass conversion efficiency"},{"$f":"DS4_Information!E29","v":0.6},null,null,"Methane",{"$f":"G29*DS4_Information!D3/1000","v":{"$error":"#N/A"}},"MW",null,"Electricity",{"$f":"C3*C32","v":{"$error":"#N/A"}},"MW"]
[null,null,null,null,null,null,null,null,null,"Heat",{"$f":"C3*C33","v":{"$error":"#N/A"}},"MW"]
[null,null,"Useful steam leftover",null,null,null,null,null,null,"Losses",{"$f":"C3-K39-K40","v":{"$error":"#N/A"}},"MW"]
[null,"For CHP:",{"$f":"IF(C31=\"chp\",C3*1000*C33/DS4_Information!P57,0)","v":{"$error":"#N/A"}},"kg/s",null,null,null,null,null,null,{"$f":"SUM(K39:K41)","v":{"$error":"#N/A"}}]
[null,"For heat only:"]
[null,"High pressure",{"$f":"IF(C30=\"high-pressure steam\",C3*1000*C33/DS4_Information!P42,0)","v":{"$error":"#N/A"}},"kg/s"]
[null,"Low pressure",{"$f":"IF(C30=\"low-pressure steam\", C3*1000*C33/DS4_Information!P43,0)","v":{"$error":"#N/A"}},"kg/s"]

{"sheet":"DS4","index":17,"n_rows":64,"n_cols":46,"rows_kept":64,"cut":false,"hidden":false,"merged":[[13,23,13,25],[14,23,14,25],[4,11,6,13],[4,17,6,19],[4,23,6,25],[10,23,11,25],[12,23,12,25],[63,5,63,6],[21,0,21,2],[48,5,48,8],[49,5,49,6],[50,5,51,5],[52,5,52,6],[48,0,48,1],[1,0,1,4],[2,1,2,2],[2,3,2,4],[3,6,17,6],[53,5,53,6]]}
[]
["Data summary from model",null,null,null,null,null,null,null,"Energy installed",{"$f":"B25","v":0},"MW",null,null,null,null,null,null,null,null,null,null,null,null,null,null,null,null,null,null,null,null,null,null,null,null,"Biogas 20C",null,null,"Biogas Nm3 (0C)"]
["Mass balance","SI",null,"Annual",null,null,"DS4","Nm3/kg biomass ar","Feedstock type",{"$f":"B26","v":"0 0"},null,null,null,null,null,null,null,null,null,null,null,null,null,null,"Biogas produced",null,null,null,null,null,null,null,null,"mass flow (kg/s)","%","density 20C","Vol. flow (m3/s)","%","density","Nm3/s",null,null,null,"kg/s","density","Nm3/s"]
["Biomass (d.b.)",{"$f":"I6","v":{"$error":"#N/A"}},"kg/s",{"$f":"B4*$AG$12*$B$23/1000","v":{"$error":"#N/A"}},"annual tonnes",null,null,null,"Process",{"$f":"B27","v":{"$error":"#N/A"}},null,null,null,null,null,null,null,null,null,null,null,null,null,null,null,null,null,null,null,null,null,null,"CH4",{"$f":"AA8","v":{"$error":"#N/A"}},{"$f":"AH4/SUM($AH$4:$AH$6)","v":{"$error":"#N/A"}},0.66800000000000004,{"$f":"AH4/AJ4","v":{"$error":"#N/A"}},{"$f":"AK4/SUM($AK$4:$AK$6)","v":{"$error":"#N/A"}},0.71599999999999997,{"$f":"AH4/AM4","v":{"$error":"#N/A"}},{"$f":"AN4/SUM($AN$4:$AN$6)","v":{"$error":"#N/A"}},null,{"$f":"R11","v":"CO2"},{"$error":"#N/A"},{"$f":"AM5","v":1.98},{"$f":"AR4/AS4","v":{"$error":"#N/A"}}]
["Biomass (a.r.)",{"$f":"I7","v":{"$error":"#N/A"}},"kg/s",{"$error":"#N/A"},"annual tonnes",null,null,null,null,null,null,"BLENDING",null,null,null,null,null,"PREHEATING",null,null,null,null,null,"DIGESTER",null,null,null,null,null,null,null,null,"CO2",{"$f":"AA9","v":{"$error":"#N/A"}},{"$f":"AH5/SUM($AH$4:$AH$6)","v":{"$error":"#N/A"}},1.8420000000000001,{"$f":"AH5/AJ5","v":{"$error":"#N/A"}},{"$f":"AK5/SUM($AK$4:$AK$6)","v":{"$error":"#N/A"}},1.98,{"$f":"AH5/AM5","v":{"$error":"#N/A"}},{"$f":"AN5/SUM($AN$4:$AN$6)","v":{"$error":"#N/A"}},null,"H2O",{"$error":"#N/A"},0.80400000000000005,{"$f":"AR5/AS5","v":{"$error":"#N/A"}}]
["Extra water",{"$f":"J29","v":{"$error":"#N/A"}},"kg/s",{"$error":"#N/A"},"annual tonnes",null,null,"Biomass (d.b.)",{"$f":"DS4_MEB!G5","v":{"$error":"#N/A"}},"kg/s",null,null,null,null,null,null,null,null,null,null,null,null,null,null,null,null,null,"Waste",{"$f":"DS4_MEB!K9+DS4_MEB!K8","v":{"$error":"#N/A"}},"kg/s",null,null,"NH3",{"$f":"AA10","v":{"$error":"#N/A"}},{"$error":"#N/A"},0.71699999999999997,{"$error":"#N/A"},{"$error":"#N/A"},0.76900000000000002,{"$f":"AH6/AM6","v":{"$error":"#N/A"}},{"$f":"AN6/SUM($AN$4:$AN$6)","v":{"$error":"#N/A"}},null,"N2",{"$error":"#N/A"},1.2505999999999999,{"$f":"AR6/AS6","v":{"$error":"#N/A"}}]
["Air for combustion",{"$f":"J30","v":{"$error":"#N/A"}},"kg/s",{"$error":"#N/A"},"annual tonnes",null,null,"Biomass (a.r.)",{"$f":"DS4_MEB!G6","v":{"$error":"#N/A"}},"kg/s",null,null,null,null,"Solids content",{"$f":"B28","v":{"$error":"#N/A"}},"%",null,null,null,"T digestor",{"$f":"B29","v":35},"° C",null,null,null,null,null,null,null,null,null,"Total",{"$f":"SUM(AH4:AH6)","v":{"$error":"#N/A"}},null,null,{"$f":"SUM(AK4:AK6)","v":{"$error":"#N/A"}},null,null,{"$f":"SUM(AN4:AN6)","v":{"$error":"#N/A"}},null,null,"O2",{"$error":"#N/A"},1.429,{"$f":"AR7/AS7","v":{"$error":"#N/A"}}]
["Biogas production",{"$f":"AD8","v":{"$error":"#N/A"}},"kg/s",{"$error":"#N/A"},"annual tonnes",null,null,"Ambient T",{"$f":"B24","v":{"$error":"#N/A"}},"° C",null,null,null,null,null,null,null,null,null,null,null,null,null,null,null,"Methane",{"$f":"DS4_MEB!K5","v":{"$error":"#N/A"}},"kg/s","Total",{"$f":"SUM(AA8:AA10)","v":{"$error":"#N/A"}},null,null,null,null,null,null,null,null,null,null,null,null,"NH3",{"$error":"#N/A"},{"$f":"AM6","v":0.76900000000000002},{"$f":"AR8/AS8","v":{"$error":"#N/A"}}]
["Steam production",{"$f":"Y18","v":{"$error":"#N/A"}},"kg/s",{"$error":"#N/A"},"annual tonnes",{"$f":"D9/D5","v":{"$error":"#N/A"}},null,null,null,null,null,"Extra water",{"$f":"DS4_MEB!G10","v":{"$error":"#N/A"}},"kg/s",null,null,null,"Heat input",{"$f":"DS4_MEB!G20","v":{"$error":"#N/A"}},"MW",null,null,null,null,null,"Carbon dioxide",{"$f":"DS4_MEB!K6","v":{"$error":"#N/A"}},"kg/s",null,"50-60%",null,null,"C->K","R",null,null,"T dig (C)",null,"Pressure","T standard (Degrees)",null,null,"Total",{"$f":"SUM(AR4:AR8)","v":{"$error":"#N/A"}},null,{"$f":"SUM(AT4:AT8)","v":{"$error":"#N/A"}}]
["Exhaust gases",{"$f":"M29","v":{"$error":"#N/A"}},"kg/s",{"$error":"#N/A"},"annual tonnes",null,null,null,null,null,null,null,null,null,null,null,null,null,null,null,null,null,null,null,null,"Amonnia",{"$f":"DS4_MEB!K7","v":{"$error":"#N/A"}},"kg/s",null,null,null,null,273,8.3140000000000001,null,null,20,null,{"$f":"100000","v":100000},0]
["Output waste post-digester",{"$f":"AC6","v":{"$error":"#N/A"}},"kg/s",{"$error":"#N/A"},"annual tonnes",null,null,null,null,null,null,null,null,null,null,null,null,"CO2",{"$f":"DS4_MEB!K31","v":{"$error":"#N/A"}},"kg/s",null,null,null,"Energy Production",null,null,null,"Air",{"$f":"DS4_MEB!G34","v":{"$error":"#N/A"}},"kg/s",null,null,"s->h"]
["Biogas",{"$f":"AN7","v":{"$error":"#N/A"}},"Nm3/s",{"$f":"B12*$AG$12*$B$23","v":{"$error":"#N/A"}},"annual Nm3",null,null,null,null,null,null,null,null,null,null,null,null,"H2O",{"$f":"DS4_MEB!K29","v":{"$error":"#N/A"}},"kg/s",null,null,null,null,null,null,null,"Excess air",{"$f":"B31","v":0.15},null,null,null,3600]
["Exhaust gases",{"$f":"AT9","v":{"$error":"#N/A"}},"Nm3/s",{"$f":"B13*$AG$12*$B$23","v":{"$error":"#N/A"}},"annual Nm3",null,null,null,null,null,null,null,null,null,null,null,null,"N2",{"$f":"DS4_MEB!K32","v":{"$error":"#N/A"}},"kg/s",null,null,null,{"$f":"J4","v":{"$error":"#N/A"}}]
["Energy balance",null,null,null,null,null,null,null,null,null,null,null,null,null,null,null,null,"O2",{"$f":"DS4_MEB!K33","v":{"$error":"#N/A"}},"kg/s",null,null,null,{"$f":"'DS4'!D26","v":{"$error":"#N/A"}}]
["Preheating",{"$f":"S9","v":{"$error":"#N/A"}},"MW",{"$f":"B15*$B$23","v":{"$error":"#N/A"}},"annual MWh",null,null,null,null,null,null,null,null,null,null,null,null,"NH3",{"$f":"DS4_MEB!K7","v":{"$error":"#N/A"}},"kg/s",null,null,null,null,null,null,null,null,null,null,null,null,null,{"$f":"AP7*24","v":0}]
["Energy production input",{"$f":"U18","v":0},"MW",0,"annual MWh"]
["Heat produced",{"$f":"AC18","v":{"$error":"#N/A"}},"MW",{"$error":"#N/A"},"annual MWh"]
["Electricity",{"$f":"AC19","v":{"$error":"#N/A"}},"MW",{"$error":"#N/A"},"annual MWh",null,null,null,"MASS BALANCE",null,null,null,null,null,null,"Efficiency",null,null,null,null,null,null,null,{"$f":"X14","v":{"$error":"#N/A"}},{"$f":"SUM(DS4_MEB!C42:C45)","v":{"$error":"#N/A"}},"kg/s",null,"Heat",{"$f":"DS4_MEB!K40","v":{"$error":"#N/A"}},"MW"]
["Losses",{"$f":"AC20","v":{"$error":"#N/A"}},"MW",{"$error":"#N/A"},"annual MWh",null,null,null,null,null,null,null,null,null,null,null,null,null,null,null,null,null,null,null,null,null,null,"Electricity",{"$f":"DS4_MEB!K39","v":{"$error":"#N/A"}},"MW"]
["Total Energy IN",{"$f":"B15+B16","v":{"$error":"#N/A"}},"MW",{"$error":"#N/A"},"annual MWh",null,null,null,null,null,null,null,null,null,null,null,null,null,null,null,null,null,null,null,null,null,null,"Losses",{"$f":"DS4_MEB!K41","v":{"$error":"#N/A"}},"MW"]
[]
["Amendable Parameters"]
["Operational hours per year",{"$f":"Feedstocks_Pathways!I24","v":0},"h"]
["Ambient temperature",{"$f":"B52","v":{"$error":"#N/A"}},"° C"]
[{"$f":"Feedstocks_Pathways!B11","v":{"$error":"#N/A"}},{"$f":"Feedstocks_Pathways!B24","v":0},"MW"]
["Feedstock",{"$f":"Feedstocks_Pathways!W56&\" \"&Feedstocks_Pathways!W57","v":"0 0"},null,{"$f":"IF(B27=\"heat only\",Feedstocks_Pathways!G7,\"-\")","v":{"$error":"#N/A"}},null,null,null,null,"IN",null,null,"OUT",null,null,null,"Biomass input x HV",null,null,null,null,null,{"$f":"D12*AO4*35.8/1000*0.3/3.6","v":{"$error":"#N/A"}}]
["Energy production process",{"$f":"B50","v":{"$error":"#N/A"}},null,null,null,null,null,null,"TOTAL",{"$f":"SUM(J28:J30)","v":{"$error":"#N/A"}},"kg/s","TOTAL",{"$f":"SUM(M28:M30)","v":{"$error":"#N/A"}},"kg/s",null,"Energy output/Biomass input",null,null,null,null,null,{"$f":"D8*AI4*50/3.6*0.3","v":{"$error":"#N/A"}},{"$f":"V27-V26","v":{"$error":"#N/A"}}]
["Solids content",{"$f":"B55","v":{"$error":"#N/A"}},null,null,null,null,null,null,"Biomass (a.r.)",{"$f":"I7","v":{"$error":"#N/A"}},"kg/s","Waste",{"$f":"AC6","v":{"$error":"#N/A"}},"kg/s",null,null,null,null,null,null,null,null,{"$f":"AD8/I6","v":{"$error":"#N/A"}}]
["T digester",35,"° C",null,null,null,null,null,"Extra water",{"$f":"M9","v":{"$error":"#N/A"}},"kg/s","Flue gases",{"$f":"SUM(S11:S15)","v":{"$error":"#N/A"}},"kg/s"]
["Comb. Temperature",350,"° C",null,null,null,null,null,"Air",{"$f":"AC11","v":{"$error":"#N/A"}},"kg/s"]
["Excess air",0.15,null,null,null,null,null,null,null,null,"Units!","kg/s"]
[]
[]
[]
[]
[]
[]
[]
[]
[]
[]
[]
[]
[]
[]
[]
[]
[null,null,null,null,null,"Carnot index heat",{"$f":"DS4_MEB!R20","v":{"$error":"#N/A"}}]
["Inputs DS4",null,null,null,null,"Output"]
[{"$f":"A27","v":"Energy production process"},{"$f":"IF(Feedstocks_Pathways!E22=Feedstocks_Pathways!F54,Feedstocks_Pathways!G6,D50)","v":{"$error":"#N/A"}}," ","CHP",null,null,null,"Dry basis","Wet basis"]
[{"$f":"IF(B27=\"heat only\", \"Process type\", \" \")","v":{"$error":"#N/A"}}," "," ","Low-pressure steam",null,"Biomass flow","kg/s",{"$f":"B4","v":{"$error":"#N/A"}},{"$f":"B5","v":{"$error":"#N/A"}}]
[{"$f":"A24","v":"Ambient temperature"},{"$f":"IF(Feedstocks_Pathways!$E$22=Feedstocks_Pathways!$F$54,Feedstocks_Pathways!G8,'DS4'!D52)","v":{"$error":"#N/A"}},"° C",20,null,null,"annual tonnes",{"$f":"D4","v":{"$error":"#N/A"}},{"$f":"D5","v":{"$error":"#N/A"}}]
[" "," ",{"$f":"C29","v":"° C"},35,null,"MWh electricity/ t biomass",null,{"$f":"D18/D4","v":{"$error":"#N/A"}},{"$f":"D18/D5","v":{"$error":"#N/A"}}]
["Comb. Temperature",350,"° C",350,null,"MWh heat/ t biomass",null,{"$f":"D17/D4","v":{"$error":"#N/A"}},{"$f":"D17/D5","v":{"$error":"#N/A"}}]
[{"$f":"A28","v":"Solids content"},{"$f":"IF(Feedstocks_Pathways!$E$22=Feedstocks_Pathways!$F$54,Feedstocks_Pathways!AK58,\"-\")","v":{"$error":"#N/A"}}," ",null,null,"Steam flow [tonnes per hour]",null," ",{"$f":"Y18/1000*3600","v":{"$error":"#N/A"}}]
[" "," "," "," ",null,"Biogas production [annual Nm3]",null," ",{"$f":"D12","v":{"$error":"#N/A"}}]
[" "," "," "," ",null,"Biogas/biomass [Nm3/ t w.b.]",null," ",{"$f":"I56/I52","v":{"$error":"#N/A"}}]
[" "," "," "," ",null,"Methane content biogas (%)"," "," ",{"$f":"AO4*100","v":{"$error":"#N/A"}}]
[" "," "," "]
[]
[]
[]
[]
[null,null,null,null,null,"MWh exergy/t biomass",null,{"$f":"(D18*G48+D17)/D4","v":{"$error":"#N/A"}},{"$f":"(D18*G48+D17)/D5","v":{"$error":"#N/A"}}]

{"sheet":"DS5_Information","index":18,"n_rows":65,"n_cols":26,"rows_kept":65,"cut":false,"hidden":true,"merged":[[16,3,16,5],[16,6,16,8],[14,13,14,14],[13,3,13,8],[13,9,13,15],[15,3,15,5],[15,6,15,8],[15,9,15,10],[15,11,15,12],[1,2,1,4],[14,3,14,5],[14,6,14,8],[14,9,14,10],[14,11,14,12],[15,13,15,14],[16,9,16,10],[16,11,16,12],[53,6,54,8],[55,6,56,8],[16,13,16,14]]}
[]
[null,null,"LHV"]
[null,null,"Methane",50000,"kJ/kg",null,"Density POME",1,"kg/m3",null,"oxygen",0.21]
[null,null,"Hydrogen",120000,"kJ/kg",null,"Yield POME from Fruit benches",0.85,null,null,"nitrogen",0.79]
[]
[null,null,"Manure","Weight fraction","Molar weight","mol","mol (%)","Average Mol. Weight biomass",null,null,null,"Moisture content (application)","Ash content","Volatile matter","Fixed carbon","LHV (MJ/kg)","C","H","O","Cp (kJ/kgK)","Solids"]
[null,null,"C",{"$f":"DS5_MEB!C6","v":{"$error":"#N/A"}},12,{"$f":"D7/E7","v":{"$error":"#N/A"}},{"$f":"F7/$F$12","v":{"$error":"#N/A"}},{"$f":"(G7*E7)+(G8*E8)+(G9*E9)+(G10*E10)+(E11*G11)","v":{"$error":"#N/A"}},null,null,"Feedstock",{"$f":"Feedstocks_Pathways!X58/100","v":{"$error":"#N/A"}},{"$f":"Feedstocks_Pathways!Z58/100","v":{"$error":"#N/A"}},{"$f":"Feedstocks_Pathways!AA58/100","v":{"$error":"#N/A"}},{"$f":"Feedstocks_Pathways!AB58/100","v":{"$error":"#N/A"}},{"$f":"Feedstocks_Pathways!AC58","v":{"$error":"#N/A"}},{"$f":"Feedstocks_Pathways!AE58/100","v":{"$error":"#N/A"}},{"$f":"Feedstocks_Pathways!AF58/100","v":{"$error":"#N/A"}},{"$f":"Feedstocks_Pathways!AG58/100","v":{"$error":"#N/A"}},{"$f":"Feedstocks_Pathways!AJ58","v":{"$error":"#N/A"}},{"$f":"Feedstocks_Pathways!AK58","v":{"$error":"#N/A"}}]
[null,null,"H",{"$f":"DS5_MEB!C7","v":{"$error":"#N/A"}},1,{"$f":"D8/E8","v":{"$error":"#N/A"}},{"$f":"F8/$F$12","v":{"$error":"#N/A"}}]
[null,null,"O",{"$f":"DS5_MEB!C8","v":{"$error":"#N/A"}},16,{"$f":"D9/E9","v":{"$error":"#N/A"}},{"$f":"F9/$F$12","v":{"$error":"#N/A"}}]
[null,null,"N",{"$f":"DS5_MEB!C9","v":{"$error":"#N/A"}},14,{"$f":"D10/E10","v":{"$error":"#N/A"}},{"$f":"F10/$F$12","v":{"$error":"#N/A"}}]
[null,null,"others",{"$f":"DS5_MEB!C10","v":{"$error":"#N/A"}},32,{"$f":"D11/E11","v":{"$error":"#N/A"}},{"$f":"F11/$F$12","v":{"$error":"#N/A"}}]
[null,null,null,{"$f":"SUM(D7:D11)","v":{"$error":"#N/A"}},null,{"$f":"SUM(F7:F11)","v":{"$error":"#N/A"}}]
[null,null,null,"Buswell theoretical biogas composition"]
[null,null,null,"Input",null,null,null,null,null,"Output"]
[null,null,null,"Biomass (Manure)",null,null,"H2O",null,null,"CH4",null,"CO2",null,"NH3",null,"H2S"]
[null,null,"Coefficients",null,null,null,{"$f":"(4*G7-G8-(2*G9)+(3*G10)+(2*G11))/4","v":{"$error":"#N/A"}},null,null,{"$f":"((4*G7)+G8-(2*G9)-(3*G10)-(2*G11))/8","v":{"$error":"#N/A"}},null,{"$f":"((4*G7)-G8+(2*G9)+(3*G10)+(2*G11))/8","v":{"$error":"#N/A"}},null,{"$f":"G10","v":{"$error":"#N/A"}},null,{"$f":"G11","v":{"$error":"#N/A"}}]
[null,null,"Mol.weight",{"$f":"H7","v":{"$error":"#N/A"}},null,null,{"$f":"2*E8+E9","v":18},null,null,{"$f":"E7+4*E8","v":16},null,{"$f":"E7+2*E9","v":44},null,{"$f":"E10+3*E8","v":17}]
[]
[]
[null,null,null,"Biogas composition","mol%","mol wt","wt","wt %"]
[null,null,null,"CH4",{"$f":"J16/(SUM(J16:O16))","v":{"$error":"#N/A"}},16,{"$f":"F21*E21","v":{"$error":"#N/A"}},{"$f":"G21/$G$24","v":{"$error":"#N/A"}}]
[null,null,null,"CO2",{"$f":"L16/(SUM(J16:O16))","v":{"$error":"#N/A"}},44,{"$f":"F22*E22","v":{"$error":"#N/A"}},{"$f":"G22/$G$24","v":{"$error":"#N/A"}}]
[null,null,null,"NH3",{"$f":"N16/(SUM(J16:O16))","v":{"$error":"#N/A"}},17,{"$f":"F23*E23","v":{"$error":"#N/A"}},{"$f":"G23/$G$24","v":{"$error":"#N/A"}}]
[null,null,null,null,null,null,{"$f":"SUM(G21:G23)","v":{"$error":"#N/A"}},{"$f":"G24/$G$24","v":{"$error":"#N/A"}}]
[]
[null,null,null,{"$f":"J16/(SUM(J16:M16))","v":{"$error":"#N/A"}},"% of carbon is degraded  to methane",null,null,null,null,{"$f":"J16/(SUM(J16:P16))","v":{"$error":"#N/A"}},"Methane content biogas"]
[null,null,null,{"$f":"1-D26","v":{"$error":"#N/A"}},"% of carbon degraded to CO2"]
[]
[null,null,null,"Biomass conversion efficiency",0.6]
[null,null,null,"VM",{"$f":"DS5_MEB!C11","v":{"$error":"#N/A"}}]
[]
[null,null,null,null,"kg/s","Mols",null,null,null,null,null,null,null,null,null,null,null,null,null,null,null,"Report",null,null,"Recent response"]
[null,null,null,"Target methane production",{"$f":"DS5_MEB!K19","v":{"$error":"#N/A"}},{"$f":"E33/J17","v":{"$error":"#N/A"}},null,null,null,null,null,null,null,null,null,null,null,null,null,null,null,4000,"t fruit",null,4000,"t fruit"]
[null,null,null,"CO2",{"$f":"E33/H21*H22","v":{"$error":"#N/A"}},{"$f":"E34/L17","v":{"$error":"#N/A"}},null,null,null,null,null,null,null,null,null,null,null,null,null,null,null,3600,"t residues",null,3600,"t residues"]
[null,null,null,"NH3",{"$f":"E33/H21*H23","v":{"$error":"#N/A"}},{"$f":"E35/N17","v":{"$error":"#N/A"}},null,null,null,null,null,null,null,null,null,null,null,null,null,null,null,{"$f":"V34*0.095","v":342},"t Volatile solids",null,{"$f":"Y34*0.095","v":342},"t Volatile solids"]
[null,null,null,null,null,null,null,null,null,null,null,null,null,null,null,null,null,null,null,null,null,0.35,"Nm3/kg VS",null,{"$f":"Y37/Y35/1000","v":0.8832000000000001},"Nm3/kg VS"]
[null,null,null,"Carbon required",{"$f":"F37*12","v":{"$error":"#N/A"}},{"$f":"F33/E29/D26/E30","v":{"$error":"#N/A"}},null,null,null,null,null,null,null,null,null,null,null,null,null,null,null,{"$f":"V35*V36*1000","v":119699.99999999999},"Nm3 CH4",null,{"$f":"Y38*0.64","v":302054.40000000002},"Nm3 CH4"]
[null,null,null,null,null,null,null,null,null,null,null,null,null,null,null,null,null,null,null,null,null,{"$f":"V37/0.64","v":187031.24999999997},"Nm3 biogas (64% CH4)",null,471960,"Nm3 biogas per year"]
[null,null,null,"Therefore total mass biomass required",{"$f":"E37/D7","v":{"$error":"#N/A"}},"kg/s",{"$f":"E39*60*60","v":{"$error":"#N/A"}},"kg/h",null,null,null,null,null,null,null,null,null,null,null,null,null,{"$f":"V38/V34","v":51.953124999999993},"Nm3 biogas/t residues",null,{"$f":"Y38/V34","v":131.1},"Nm3/t residue"]
[null,null,null,null,null,null,null,null,null,null,null,null,null,null,null,null,null,null,null,null,null,null,null,null,{"$f":"Y38/Y33","v":117.99},"or Nm3/ t of fruit"]
[null,null,null,"Water required for reaction",{"$f":"E39-E33-E34-E35","v":{"$error":"#N/A"}},"kg/s",null,null,null,null,null,null,null,null,null,null,null,null,null,null,null,{"$f":"V37*0.0139","v":1663.8299999999997},"MWh input",null,{"$f":"Y37*0.0139","v":4198.5561600000001},"MWh input"]
[null,null,null,null,null,null,null,null,null,null,null,null,null,null,null,null,null,null,null,null,null,{"$f":"V41*0.35","v":582.34049999999991},"MWh output",null,{"$f":"Y41*0.35","v":1469.4946559999998},"MWh output"]
[]
[null,null,null,null,null,null,null,"CHP","CHP","Electricity only","Heat only",null,"Extra water"]
[null,null,null,null,null,null,null,"Ne",0.15,0.3,0,null,"Solids content"]
[null,null,null,null,null,null,null,"Nh",0.65,0,0.85]
[null,null,null,null,null,null,null,"Nt",{"$f":"SUM(I45:I46)","v":0.8},{"$f":"SUM(J45:J46)","v":0.3},{"$f":"SUM(K45:K46)","v":0.85}]
[]
[]
[null,null,null,"Reference for steam property requirements:"]
[null,null,null,"https://www.energy.gov/sites/prod/files/2016/09/f33/CHP-Steam%20Turbine.pdf"]
[]
[null,null,null,"Based on 3MWe turbine",null,"Enthalpy, kJ/kg"]
[null,null,null,"Steam inlet pressure, bar",41.4,2958.6,"Supersteam - required for the CHP and Electricity case"]
[null,null,null,"Steam inlet temperature, C",302]
[null,null,null,"Steam outlet pressure, bar",10,1978,"For the heat only and CHP case"]
[null,null,null,"Steam outlet temperature, C",190]
[]
[]
[null,null,null,"Combustion"]
[null,null,null,null,"CH4",null,"O2",null,"H2O",null,"CO2"]
[null,null,null,"Stoic. Coefficient",1,null,2,null,2,null,1]
[null,null,null,"Weight",16,null,32,null,18,null,44]
[null,null,null,"kg/s",{"$f":"E33","v":{"$error":"#N/A"}},null,{"$f":"G65*G63","v":{"$error":"#N/A"}},null,{"$f":"I63*I65","v":{"$error":"#N/A"}},null,{"$f":"K65*K63","v":{"$error":"#N/A"}}]
[null,null,null,"mols",{"$f":"E64/E63","v":{"$error":"#N/A"}},null,{"$f":"G62*E65","v":{"$error":"#N/A"}},null,{"$f":"I62*E65","v":{"$error":"#N/A"}},null,{"$f":"E65","v":{"$error":"#N/A"}}]

{"sheet":"DS5_MEB","index":19,"n_rows":42,"n_cols":22,"rows_kept":42,"cut":false,"hidden":true,"merged":[[35,1,36,1],[36,5,36,11],[37,5,37,7],[37,9,37,11],[7,14,7,17],[14,5,14,11],[15,5,15,7],[15,9,15,11],[16,9,16,11],[17,14,17,15],[17,16,17,17],[18,13,20,13],[25,5,25,11],[26,5,26,7],[26,9,26,11],[4,1,4,2],[5,13,7,13],[23,5,23,11],[1,5,1,11],[2,5,2,7],[2,9,2,11],[3,13,4,13]]}
[null,null,null,null,null,null,null,null,{"$f":"1-ABS(K4/G4-1)","v":{"$error":"#N/A"}}]
[null,{"$f":"Feedstocks_Pathways!B11","v":{"$error":"#N/A"}},{"$f":"'DS5'!B25","v":0},"Mwe",null,"Anaerobic Digestion",null,null,null,null,null,null,null,"Data type","Magnitude","Units","Range/List","Effect"]
[null,"Energy input",{"$f":"IF(C19=\"Heat only\",C2/C21,C2/C20)","v":{"$error":"#N/A"}},"Mwe,th",null,"INPUT",null,null,null,"OUTPUTS",null,null,null,"User Inputs",{"$f":"Feedstocks_Pathways!B11","v":{"$error":"#N/A"}},"MW","0.01-5"]
[null,null,null,null,null,"TOTAL",{"$f":"G5+G7+G10","v":{"$error":"#N/A"}},"kg/s",null,"TOTAL",{"$f":"SUM(K5:K9)","v":{"$error":"#N/A"}},"kg/s",null,"Amendable parameters","Manure composition","%","0-100","Composition of C,H, N and O within the manure"]
[null,"Manure",null,null,null,"Biomass (d.b.)",{"$f":"DS5_Information!E39","v":{"$error":"#N/A"}},"kg/s",null,"Methane",{"$f":"K19","v":{"$error":"#N/A"}},"kg/s",null,null,"Manure H2O Content","%","0-100"]
[null,"C",{"$f":"Feedstocks_Pathways!AE58/100","v":{"$error":"#N/A"}},null,null,"Biomass (w.b.)",{"$f":"G5/(1-C13)","v":{"$error":"#N/A"}},"kg/s",null,"Carbon dioxide",{"$f":"K5/DS5_Information!H21*DS5_Information!H22","v":{"$error":"#N/A"}},"kg/s",null,"Methodology","1. Based on target product capacity, the biomass demand, and steam production are calculated. Energy balance is calculated based on process type"]
[null,"H",{"$f":"Feedstocks_Pathways!AF58/100","v":{"$error":"#N/A"}},null,null,"Moisture content",{"$f":"G6-G5","v":{"$error":"#N/A"}},"kg/s",null,"Ammonia",{"$f":"K5/DS5_Information!H21*DS5_Information!H23","v":{"$error":"#N/A"}},"kg/s",null,null,"2. Calculate the other components according to the reactions in sheet \"Information\""]
[null,"O",{"$f":"Feedstocks_Pathways!AH58/100","v":{"$error":"#N/A"}},null,null,"Water Reaction",{"$f":"DS5_Information!E41","v":{"$error":"#N/A"}},"kg/s",null,"Other",{"$f":"G4-SUM(K5:K7,K9)","v":{"$error":"#N/A"}},"kg/s",null,null,"3. Calculate the other parameters such as excess water used and energy balance"]
[null,"N",{"$f":"Feedstocks_Pathways!AG58/100","v":{"$error":"#N/A"}},null,null,"Water fluent",{"$f":"G7-G8","v":{"$error":"#N/A"}},"kg/s",null,"Wastewater",{"$f":"G9+G10+G5*(1-C11*C27)","v":{"$error":"#N/A"}},"kg/s",null,"Inputs Results","Biomass","kg/s (w.b.)"]
[null,"Others",{"$f":"1-C9-C8-C7-C6","v":{"$error":"#N/A"}},null,null,"Extra water",{"$f":"IF(C14=DS5_Information!M44,C15,(G5-G7*C16)/C16)","v":{"$error":"#N/A"}},"kg/s","Mass",null,null,null,null,"Outputs Results","Gases from AD","kg/s"]
[null,"VM",{"$f":"Feedstocks_Pathways!AA58/100","v":{"$error":"#N/A"}},null,null,"Solids content",{"$f":"C16","v":{"$error":"#N/A"}},null,"Vol.",null,null,null,null,"Closure Results","Closure","%","0-100","Accuracy of the calculations"]
[null,null,null,null,null,"Total water",{"$f":"G10+G7","v":{"$error":"#N/A"}},"kg/s"]
[null,"Manure H2O Content",{"$f":"Feedstocks_Pathways!X58/100","v":{"$error":"#N/A"}}]
[null,"Define","Solids content"]
[null,{"$f":"IF(C14=DS5_Information!M44,\"Flow extra water\",\"\")","v":""},0,{"$f":"IF(C14=DS5_Information!M21,\"kg/s\",\"\")","v":""},null,"ENERGY BALANCE",null,null,null,null,null,null,null,"Energy methane input"]
[null,{"$f":"IF(C14=DS5_Information!M45,\"Solids content\",\"\")","v":"Solids content"},{"$f":"Feedstocks_Pathways!AK58/100","v":{"$error":"#N/A"}},null,null,"INPUT",null,null,null,"Output"]
[null,null,null,null,null,"Biomass",{"$f":"G6","v":{"$error":"#N/A"}},"kg/s",null,"AD"]
[null,null,null,null,null,"LHV biomass",{"$f":"DS5_Information!P7","v":{"$error":"#N/A"}},"kJ/kg",null,"Methane",{"$f":"DS5_Information!D3","v":50000},"kJ/kg",null,null,"Temperatures",null,"Carnot factor",null,"Energy (MWh)",null,"Exergy (MWh)"]
[null,"Production",{"$f":"'DS5'!B27","v":{"$error":"#N/A"}},null,null,"AD input",{"$f":"G18*G17","v":{"$error":"#N/A"}},"MW",null,"Methane Flow",{"$f":"K20*1000/K18","v":{"$error":"#N/A"}},"kg/s",null,"CHP","Tamb",{"$f":"P22+273.15","v":{"$error":"#N/A"}},"Electricity ",1,19.100000000000001,{"$f":"S19/S21","v":0.21128318584070796},{"$f":"R19*S19","v":19.100000000000001},{"$f":"U19/U21","v":{"$error":"#N/A"}}]
[null,"Ne",{"$f":"LOOKUP(C19,DS5_Information!I44:K44,DS5_Information!I45:K45)","v":{"$error":"#N/A"}},null,null,"Energy input",{"$f":"(C24-C23)*(G5*DS5_Information!T7+DS5_MEB!G12*DS5_Information!E23)/1000","v":{"$error":"#N/A"}},"MW",null,"Energy output with Methane",{"$f":"C3","v":{"$error":"#N/A"}},"MW",null,null,"Tsteam",{"$f":"P23+273.15","v":603.15},"Heat",{"$f":"(P20-P19)/P20","v":{"$error":"#N/A"}},{"$f":"71.3","v":71.3},{"$f":"S20/S21","v":0.78871681415929196},{"$f":"R20*S20","v":{"$error":"#N/A"}},{"$f":"U20/U21","v":{"$error":"#N/A"}}]
[null,"Nh",{"$f":"LOOKUP(C19,DS5_Information!I44:K44,DS5_Information!I46:K46)","v":{"$error":"#N/A"}},null,null,null,null,null,null,null,null,null,null,null,null,null,null,null,{"$f":"SUM(S19:S20)","v":90.4},null,{"$f":"SUM(U19:U20)","v":{"$error":"#N/A"}}]
[null,null,null,null,null,null,null,null,null,null,null,null,null,null,"Tamb",{"$f":"C23","v":{"$error":"#N/A"}}]
[null,"Ambient T",{"$f":"'DS5'!I8","v":{"$error":"#N/A"}},"° C",null,null,null,null,null,null,null,null,null,null,"Tsteam",{"$f":"C25","v":330}]
[null,"T digestor",{"$f":"'DS5'!V7","v":35},"° C",null,"ENERGY/ELECTRICITY PRODUCTION"]
[null,"T working fluid",330,"° C",null,null,null,null,{"$f":"1-ABS(K28/G28-1)","v":{"$error":"#N/A"}}]
[null,null,null,null,null,"MASS"]
[null,{"$f":"DS5_Information!D29","v":"Biomass conversion efficiency"},{"$f":"DS5_Information!E29","v":0.6},null,null,"INPUT",null,null,null,"OUTPUT"]
[null,null,null,null,null,"TOTAL",{"$f":"SUM(G29,G35,G33,G32)","v":{"$error":"#N/A"}},"kg/s",null,"TOTAL",{"$f":"SUM(K29,K31,K32,K33)","v":{"$error":"#N/A"}},"kg/s",null,null,{"$f":"50000/3600000","v":1.3888888888888888E-2}]
[null,"Chosen output",{"$f":"Feedstocks_Pathways!G6","v":0},null,null,"Methane",{"$f":"K19","v":{"$error":"#N/A"}},"kg/s",null,"H2O",{"$f":"DS5_Information!I64","v":{"$error":"#N/A"}},"kg/s"]
[null,null,null,null,null,"O2 needed",{"$f":"DS5_Information!G64","v":{"$error":"#N/A"}},"kg/s",null,"CO2 reaction",{"$f":"DS5_Information!K64","v":{"$error":"#N/A"}},"kg/s"]
[null,null,"Steam output",null,null,"Excess air",{"$f":"'DS5'!AC12","v":0.15},null,null,"CO2 total",{"$f":"K30+G35","v":{"$error":"#N/A"}},"kg/s"]
[null,"For CHP",{"$f":"IF(C29=\"chp\",K40/DS5_Information!F54*1000,0)","v":0},"kg/s",null,"O2 IN",{"$f":"G30*(1+G31)","v":{"$error":"#N/A"}},"kg/s",null,"N2",{"$f":"G33","v":{"$error":"#N/A"}},"kg/s"]
[null,"For heat only",{"$f":"IF(C29=\"heat only\",K40/DS5_Information!F56*1000,0)","v":0},"kg/s",null,"N2 IN",{"$f":"G32/DS5_Information!L3*DS5_Information!L4","v":{"$error":"#N/A"}},"kg/s",null,"Excess O2",{"$f":"G32-G30","v":{"$error":"#N/A"}},"kg/s"]
[null,"For electricity only",{"$f":"IF(C29=\"electricity only\",0,0)","v":0},"kg/s",{"$f":"IF(C29=\"electricity only\",K39/DS5_Information!F54*1000,0)","v":0},"AIR IN",{"$f":"G33+G32","v":{"$error":"#N/A"}},"kg/s"]
[null,null,null,null,null,"Carbon dioxide",{"$f":"K6","v":{"$error":"#N/A"}},"kg/s"]
[null,"Flow steam",{"$f":"C37/1000*60*60","v":0},"t/h"]
[null,null,{"$f":"IF(C29=\"chp\",C32,IF(C29=\"heat only\",C33,C34))","v":0},"kg/s",null,"ENERGY"]
[null,null,null,null,null,"INPUT",null,null,null,"OUTPUT"]
[null,null,null,null,null,"Methane",{"$f":"G29*DS5_Information!D3/1000","v":{"$error":"#N/A"}},"MW",null,"Electricity",{"$f":"C3*C20","v":{"$error":"#N/A"}},"MW"]
[null,null,null,null,null,null,null,null,null,"Heat",{"$f":"C3*C21","v":{"$error":"#N/A"}},"MW"]
[null,null,null,null,null,null,null,null,null,"Losses",{"$f":"C3-K39-K40","v":{"$error":"#N/A"}},"MW"]
[null,null,null,null,null,null,null,null,null,null,{"$f":"SUM(K39:K41)","v":{"$error":"#N/A"}}]

{"sheet":"DS5","index":20,"n_rows":71,"n_cols":49,"rows_kept":71,"cut":false,"hidden":false,"merged":[[68,5,68,6],[48,5,48,8],[49,5,49,6],[50,5,51,5],[52,5,52,6],[2,1,2,2],[2,3,2,4],[1,0,1,4],[3,30,17,30],[53,5,53,6],[10,23,11,25],[12,23,12,25],[4,11,6,13],[4,17,6,19],[3,6,17,6],[4,23,6,25],[48,0,48,1]]}
[]
["Data summary from model",null,null,null,null,null,null,null,"Energy installed",{"$f":"B25","v":0},"MW",null,null,null,null,null,null,null,null,null,null,null,null,null,null,null,null,null,null,null,null,null,null,null,null,"Biogas 20C",null,null,"Biogas Nm3 (0C)"]
["Mass balance","SI",null,"Annual",null,null,"DS5","Nm3/kg biomass ar","Feedstock type",{"$f":"B26","v":"0 0"},null,null,null,null,null,null,null,null,null,null,null,null,null,null,"Biogas produced",null,null,null,null,null,null,null,null,"mass flow (kg/s)","%","density 20C","Vol. flow (m3/s)","%","density","Nm3/s",null,null,null,"kg/s","density","Nm3/s"]
["Biomass (d.b.)",{"$f":"I6","v":{"$error":"#N/A"}},"kg/s",{"$f":"B4*$AG$12*$B$23/1000","v":{"$error":"#N/A"}},"annual tonnes",null,null,null,"Process",{"$f":"B27","v":{"$error":"#N/A"}},null,null,null,null,null,null,null,null,null,null,null,null,null,null,null,null,null,null,null,null,null,null,"CH4",{"$f":"AA8","v":{"$error":"#N/A"}},{"$f":"AH4/SUM($AH$4:$AH$6)","v":{"$error":"#N/A"}},0.66800000000000004,{"$f":"AH4/AJ4","v":{"$error":"#N/A"}},{"$f":"AK4/SUM($AK$4:$AK$6)","v":{"$error":"#N/A"}},0.71599999999999997,{"$f":"AH4/AM4","v":{"$error":"#N/A"}},{"$f":"AN4/SUM($AN$4:$AN$6)","v":{"$error":"#N/A"}},null,{"$f":"R11","v":"CO2"},{"$error":"#N/A"},{"$f":"AM5","v":1.98},{"$f":"AR4/AS4","v":{"$error":"#N/A"}}]
["Biomass (a.r.)",{"$f":"I7","v":{"$error":"#N/A"}},"kg/s",{"$error":"#N/A"},"annual tonnes",null,null,null,null,null,null,"BLENDING",null,null,null,null,null,"PREHEATING",null,null,null,null,null,"DIGESTER",null,null,null,null,null,null,null,null,"CO2",{"$f":"AA9","v":{"$error":"#N/A"}},{"$f":"AH5/SUM($AH$4:$AH$6)","v":{"$error":"#N/A"}},1.8420000000000001,{"$f":"AH5/AJ5","v":{"$error":"#N/A"}},{"$f":"AK5/SUM($AK$4:$AK$6)","v":{"$error":"#N/A"}},1.98,{"$f":"AH5/AM5","v":{"$error":"#N/A"}},{"$f":"AN5/SUM($AN$4:$AN$6)","v":{"$error":"#N/A"}},null,"H2O",{"$error":"#N/A"},0.80400000000000005,{"$f":"AR5/AS5","v":{"$error":"#N/A"}}]
["Extra water",{"$f":"J22","v":{"$error":"#N/A"}},"kg/s",{"$error":"#N/A"},"annual tonnes",null,null,"Biomass (d.b.)",{"$f":"DS5_MEB!G5","v":{"$error":"#N/A"}},"kg/s",null,null,null,null,null,null,null,null,null,null,null,null,null,null,null,null,null,"Waste",{"$f":"DS5_MEB!K8","v":{"$error":"#N/A"}},"kg/s",null,null,"NH3",{"$f":"AA10","v":{"$error":"#N/A"}},{"$error":"#N/A"},0.71699999999999997,{"$error":"#N/A"},{"$error":"#N/A"},0.76900000000000002,{"$f":"AH6/AM6","v":{"$error":"#N/A"}},{"$error":"#N/A"},null,"N2",{"$error":"#N/A"},1.2505999999999999,{"$f":"AR6/AS6","v":{"$error":"#N/A"}}]
["Air for combustion",{"$f":"J23","v":{"$error":"#N/A"}},"kg/s",{"$error":"#N/A"},"annual tonnes",null,null,"Biomass (a.r.)",{"$f":"DS5_MEB!G6","v":{"$error":"#N/A"}},"kg/s",null,null,null,null,"Solids content",{"$f":"B28","v":{"$error":"#N/A"}},"%",null,null,null,"T digestor",{"$f":"B29","v":35},"° C",null,null,null,null,null,null,null,null,null,"Total",{"$f":"SUM(AH4:AH6)","v":{"$error":"#N/A"}},null,null,{"$f":"SUM(AK4:AK6)","v":{"$error":"#N/A"}},null,null,{"$f":"SUM(AN4:AN6)","v":{"$error":"#N/A"}},null,null,"O2",{"$error":"#N/A"},1.429,{"$f":"AR7/AS7","v":{"$error":"#N/A"}}]
["Biogas production",{"$f":"AD8","v":{"$error":"#N/A"}},"kg/s",{"$error":"#N/A"},"annual tonnes",null,null,"Ambient T",{"$f":"B24","v":{"$error":"#N/A"}},"° C",null,null,null,null,null,null,null,null,null,null,null,null,null,null,null,"Methane",{"$f":"DS5_MEB!K5","v":{"$error":"#N/A"}},"kg/s","Total",{"$f":"SUM(AA8:AA10)","v":{"$error":"#N/A"}},null,null,null,null,null,null,null,null,null,null,null,null,"NH3",{"$error":"#N/A"},{"$f":"AM6","v":0.76900000000000002},{"$f":"AR8/AS8","v":{"$error":"#N/A"}}]
["Steam production",{"$f":"W15","v":0},"kg/s",0,"annual tonnes",null,null,null,null,null,null,"Extra water",{"$f":"DS5_MEB!G10","v":{"$error":"#N/A"}},"kg/s",null,null,null,"Heat input",{"$f":"DS5_MEB!G20","v":{"$error":"#N/A"}},"MW",null,null,null,null,null,"Carbon dioxide",{"$f":"DS5_MEB!K6","v":{"$error":"#N/A"}},"kg/s",null,"50-60%",null,null,"C->K","R",null,null,"T dig (C)",null,"Pressure","T standard (Degrees)",null,null,"Total",{"$f":"SUM(AR4:AR8)","v":{"$error":"#N/A"}},null,{"$f":"SUM(AT4:AT8)","v":{"$error":"#N/A"}}]
["Exhaust gases",{"$f":"M22","v":{"$error":"#N/A"}},"kg/s",{"$error":"#N/A"},"annual tonnes",null,null,null,null,null,null,null,null,null,null,null,null,null,null,null,null,null,null,null,null,"Ammonia",{"$f":"DS5_MEB!K7","v":{"$error":"#N/A"}},"kg/s",null,null,null,null,273,8.3140000000000001,null,null,20,null,{"$f":"100000","v":100000},0]
["Output waste post-digester",{"$f":"AC6","v":{"$error":"#N/A"}},"kg/s",{"$error":"#N/A"},"annual tonnes",null,null,null,null,null,null,null,null,null,null,null,null,"CO2",{"$f":"DS5_MEB!K31","v":{"$error":"#N/A"}},"kg/s",null,null,null,"Energy Production",null,null,null,"Air",{"$f":"DS5_MEB!G34","v":{"$error":"#N/A"}},"kg/s",null,null,"s->h"]
["Biogas",{"$f":"AN7","v":{"$error":"#N/A"}},"Nm3/s",{"$f":"B12*$AG$12*$B$23","v":{"$error":"#N/A"}},"annual Nm3",null,null,null,null,null,null,null,null,null,null,null,null,"H2O",{"$f":"DS5_MEB!K29","v":{"$error":"#N/A"}},"kg/s",null,null,null,null,null,null,null,"Excess air",{"$f":"B31","v":0.15},null,null,null,3600]
["Exhaust gases",{"$f":"AT9","v":{"$error":"#N/A"}},"Nm3/s",{"$f":"B13*$AG$12*$B$23","v":{"$error":"#N/A"}},"annual Nm3",null,null,null,null,null,null,null,null,null,null,null,null,"N2",{"$f":"DS5_MEB!K32","v":{"$error":"#N/A"}},"kg/s",null,null,null,{"$f":"J4","v":{"$error":"#N/A"}}]
["Energy balance",null,null,null,null,null,null,null,null,null,null,null,null,null,null,null,null,"O2",{"$f":"DS5_MEB!K33","v":{"$error":"#N/A"}},"kg/s"]
["Preheating",{"$f":"S9","v":{"$error":"#N/A"}},"MW",{"$f":"B15*$B$23","v":{"$error":"#N/A"}},"annual MWh",null,null,null,null,null,null,null,null,null,null,null,null,"NH3",{"$f":"DS5_MEB!K7","v":{"$error":"#N/A"}},"kg/s",null,"Steam",{"$f":"SUM(DS5_MEB!C32:C34)","v":0},"kg/s",null,"Heat",{"$f":"DS5_MEB!K40","v":{"$error":"#N/A"}},"MW",null,null,null,null,null,{"$f":"AP7*24","v":0}]
["Energy production input",{"$f":"W15","v":0},"MW",0,"annual MWh",null,null,null,null,null,null,null,null,null,null,null,null,null,null,null,null,null,null,null,null,"Electricity",{"$f":"DS5_MEB!K39","v":{"$error":"#N/A"}},"MW"]
["Heat produced",{"$f":"AA15","v":{"$error":"#N/A"}},"MW",{"$error":"#N/A"},"annual MWh",null,null,null,null,null,null,null,null,null,null,null,null,null,null,null,null,null,null,null,null,"Losses",{"$f":"DS5_MEB!K41","v":{"$error":"#N/A"}},"MW"]
["Electricity",{"$f":"AA16","v":{"$error":"#N/A"}},"MW",{"$error":"#N/A"},"annual MWh",null,null,null,"MASS BALANCE",null,null,null,null,null,null,"Efficiency"]
["Losses",{"$f":"AA17","v":{"$error":"#N/A"}},"MW",{"$error":"#N/A"},"annual MWh",null,null,null,"IN",null,null,"OUT",null,null,null,"Biomass input x HV"]
["Total Energy IN",{"$f":"B15+B16","v":{"$error":"#N/A"}},"MW",{"$error":"#N/A"},"annual MWh",null,null,null,"TOTAL",{"$f":"SUM(J21:J23)","v":{"$error":"#N/A"}},"kg/s","TOTAL",{"$f":"SUM(M21:M22)","v":{"$error":"#N/A"}},"kg/s",null,"Energy output/Biomass input"]
[null,null,null,null,null,null,null,null,"Biomass (a.r.)",{"$f":"I7","v":{"$error":"#N/A"}},"kg/s","Water",{"$f":"AC6","v":{"$error":"#N/A"}},"kg/s",null,null,null,null,null,null,null,null,null,null,null,null,null,null,null,null,null,null,null,"CH4",0.64,{"$f":"AI21*AJ23","v":64},null,0.94,null,null,null,null,null,null,null,{"$f":"AJ21","v":64},null,{"$f":"D12","v":{"$error":"#N/A"}},{"$f":"AV21*AT23/100","v":{"$error":"#N/A"}}]
["Amendable Parameters",null,null,null,null,null,null,null,"Extra water",{"$f":"M9","v":{"$error":"#N/A"}},"kg/s","Flue gases",{"$f":"SUM(S11:S15)","v":{"$error":"#N/A"}},"kg/s",null,null,null,null,null,null,null,null,null,null,null,null,null,null,null,null,null,null,null,"CO3",0.36,{"$f":"AI22*AJ23","v":36},null,0.06,null,null,null,null,null,null,null,{"$f":"AT23-AT21","v":4.0851063829787222},null,614790,{"$f":"AV22*AT23/100","v":418580.42553191492}]
["Operational hours per year",{"$f":"Feedstocks_Pathways!I24","v":0},"h",null,null,null,null,null,"Air",{"$f":"AC11","v":{"$error":"#N/A"}},"kg/s",null,null,null,null,null,null,null,null,null,null,null,null,null,null,null,null,null,null,null,null,null,null,null,null,100,null,null,null,null,null,null,null,null,null,{"$f":"AT21/AL21","v":68.085106382978722}]
["Ambient temperature",{"$f":"IF(Feedstocks_Pathways!E22=\"DS5\",Feedstocks_Pathways!G8,0)","v":{"$error":"#N/A"}},"° C",null,null,null,null,null,null,null,"Units!","kg/s"]
["Energy installed",{"$f":"Feedstocks_Pathways!B24","v":0},"MW"]
["Feedstock",{"$f":"Feedstocks_Pathways!W56&\" \"&Feedstocks_Pathways!W57","v":"0 0"},null,null,null,null,null,null,null,null,null,null,null,null,null,null,null,null,null,null,null,{"$f":"D12*AO4*35.8/1000*0.3/3.6","v":{"$error":"#N/A"}}]
["Energy production process",{"$f":"B50","v":{"$error":"#N/A"}},null,null,null,null,null,null,null,null,null,null,null,null,null,null,null,null,null,null,null,{"$f":"D8*AI4*50/3.6*0.3","v":{"$error":"#N/A"}},{"$f":"V27-V26","v":{"$error":"#N/A"}}]
["Solids content",{"$f":"B69","v":{"$error":"#N/A"}}]
["T digester",35,"° C"]
["Comb. Temperature",1000,"° C"]
["Excess air",0.15]
[]
[]
[]
[]
[]
[]
[]
[]
[]
[]
[]
[]
[]
[]
[]
[]
[null,null,null,null,null,"Carnot index heat",{"$f":"DS5_MEB!R20","v":{"$error":"#N/A"}}]
["Inputs DS5",null,null,null,null,"Output"]
[{"$f":"A27","v":"Energy production process"},{"$f":"IF(Feedstocks_Pathways!E22=Feedstocks_Pathways!G54,Feedstocks_Pathways!G6,D50)","v":{"$error":"#N/A"}}," ","CHP",null,null,null,"Dry basis","Wet basis"]
[" "," "," ",null,null,"Biomass flow","kg/s",{"$f":"B4","v":{"$error":"#N/A"}},{"$f":"B5","v":{"$error":"#N/A"}}]
[{"$f":"A24","v":"Ambient temperature"},{"$f":"B24","v":{"$error":"#N/A"}},{"$f":"C24","v":"° C"},{"$f":"B24","v":{"$error":"#N/A"}},null,null,"annual tonnes",{"$f":"D4","v":{"$error":"#N/A"}},{"$f":"D5","v":{"$error":"#N/A"}}]
[" "," ",null,null,null,"MWh electricity/ t biomass",null,{"$f":"D18/D4","v":{"$error":"#N/A"}},{"$f":"D18/D5","v":{"$error":"#N/A"}}]
[" "," "," "," ",null,"MWh heat/ t biomass",null,{"$f":"D17/D4","v":{"$error":"#N/A"}},{"$f":"D17/D5","v":{"$error":"#N/A"}}]
[" "," "," "," "," ","Steam flow [tonnes per hour]",null," ",{"$f":"B9*3600/1000","v":0}]
[" "," "," "," "," ","Biogas production [annual Nm3]",null," ",{"$f":"D12","v":{"$error":"#N/A"}}]
[" "," "," "," ",null,"Biogas/biomass [Nm3/ t w.b.]",null," ",{"$f":"I56/I52","v":{"$error":"#N/A"}}]
[" "," "," "," ",null,"Methane content biogas (%)",null," ",{"$f":"AO4*100","v":{"$error":"#N/A"}}]
[" "," "," "]
[]
[]
[]
[]
[]
[]
[]
[]
[]
[{"$f":"A28","v":"Solids content"},{"$f":"IF(Feedstocks_Pathways!$E$22=Feedstocks_Pathways!$G$54,Feedstocks_Pathways!AK58,'DS5'!D69)","v":{"$error":"#N/A"}}," ","-",null,"MWh exergy/t biomass",null,{"$f":"(D18*G48+D17)/D4","v":{"$error":"#N/A"}},{"$f":"(D18*G48+D17)/D5","v":{"$error":"#N/A"}}]
[{"$f":"A29","v":"T digester"},35,{"$f":"C29","v":"° C"},35]
[{"$f":"A30","v":"Comb. Temperature"},1000,{"$f":"C30","v":"° C"},1000]

{"sheet":"DS6_Information","index":21,"n_rows":63,"n_cols":21,"rows_kept":63,"cut":false,"hidden":true,"merged":[[54,6,55,8],[56,6,57,8],[15,11,15,12],[15,13,15,14],[16,3,16,5],[16,6,16,8],[16,9,16,10],[16,11,16,12],[16,13,16,14],[15,3,15,5],[15,6,15,8],[15,9,15,10],[14,13,14,14],[1,2,1,4],[14,3,14,5],[14,6,14,8],[14,9,14,10],[14,11,14,12],[13,3,13,8],[13,9,13,15]]}
[]
[null,null,"LHV"]
[null,null,"Methane",50000,"kJ/kg",null,"Density POME",1,"kg/m3",null,"oxygen",0.21]
[null,null,"Hydrogen",120000,"kJ/kg",null,"Yield POME from Fruit benches",0.85,null,null,"nitrogen",0.79]
[]
[null,null,"Manure","Weight fraction","Molar weight","mol","mol (%)","Average Mol. Weight biomass",null,null,null,"Moisture content (application)","Ash content","Volatile matter","Fixed carbon","LHV (MJ/kg)","C","H","O","Cp (kJ/kgK)","Solids"]
[null,null,"C",{"$f":"DS6_MEB!C6","v":{"$error":"#N/A"}},12,{"$f":"D7/E7","v":{"$error":"#N/A"}},{"$f":"F7/$F$12","v":{"$error":"#N/A"}},{"$f":"(G7*E7)+(G8*E8)+(G9*E9)+(G10*E10)+(E11*G11)","v":{"$error":"#N/A"}},null,null,"Feedstock",{"$f":"Feedstocks_Pathways!X58/100","v":{"$error":"#N/A"}},{"$f":"Feedstocks_Pathways!Z58/100","v":{"$error":"#N/A"}},{"$f":"Feedstocks_Pathways!AA58/100","v":{"$error":"#N/A"}},{"$f":"Feedstocks_Pathways!AB58/100","v":{"$error":"#N/A"}},{"$f":"Feedstocks_Pathways!AC58","v":{"$error":"#N/A"}},{"$f":"Feedstocks_Pathways!AE58/100","v":{"$error":"#N/A"}},{"$f":"Feedstocks_Pathways!AF58/100","v":{"$error":"#N/A"}},{"$f":"Feedstocks_Pathways!AG58/100","v":{"$error":"#N/A"}},{"$f":"Feedstocks_Pathways!AJ58","v":{"$error":"#N/A"}},{"$f":"Feedstocks_Pathways!AK58","v":{"$error":"#N/A"}}]
[null,null,"H",{"$f":"DS6_MEB!C7","v":{"$error":"#N/A"}},1,{"$f":"D8/E8","v":{"$error":"#N/A"}},{"$f":"F8/$F$12","v":{"$error":"#N/A"}}]
[null,null,"O",{"$f":"DS6_MEB!C8","v":{"$error":"#N/A"}},16,{"$f":"D9/E9","v":{"$error":"#N/A"}},{"$f":"F9/$F$12","v":{"$error":"#N/A"}}]
[null,null,"N",{"$f":"DS6_MEB!C9","v":{"$error":"#N/A"}},14,{"$f":"D10/E10","v":{"$error":"#N/A"}},{"$f":"F10/$F$12","v":{"$error":"#N/A"}}]
[null,null,"others",{"$f":"DS6_MEB!C10","v":{"$error":"#N/A"}},32,{"$f":"D11/E11","v":{"$error":"#N/A"}},{"$f":"F11/$F$12","v":{"$error":"#N/A"}}]
[null,null,null,null,null,{"$f":"SUM(F7:F11)","v":{"$error":"#N/A"}}]
[null,null,null,"Buswell theoretical biogas composition"]
[null,null,null,"Input",null,null,null,null,null,"Output"]
[null,null,null,"Biomass (Manure)",null,null,"H2O",null,null,"CH4",null,"CO2",null,"NH3",null,"H2S"]
[null,null,"Coefficients",null,null,null,{"$f":"(4*G7-G8-(2*G9)+(3*G10)+(2*G11))/4","v":{"$error":"#N/A"}},null,null,{"$f":"((4*G7)+G8-(2*G9)-(3*G10)-(2*G11))/8","v":{"$error":"#N/A"}},null,{"$f":"((4*G7)-G8+(2*G9)+(3*G10)+(2*G11))/8","v":{"$error":"#N/A"}},null,{"$f":"G10","v":{"$error":"#N/A"}},null,{"$f":"G11","v":{"$error":"#N/A"}}]
[null,null,"Mol.weight",{"$f":"H7","v":{"$error":"#N/A"}},null,null,{"$f":"2*E8+E9","v":18},null,null,{"$f":"E7+4*E8","v":16},null,{"$f":"E7+2*E9","v":44},null,{"$f":"E10+3*E8","v":17}]
[]
[]
[null,null,null,"Biogas composition","mol%","mol wt","wt","wt %"]
[null,null,null,"CH4",{"$f":"J16/(SUM(J16:O16))","v":{"$error":"#N/A"}},16,{"$f":"F21*E21","v":{"$error":"#N/A"}},{"$f":"G21/$G$24","v":{"$error":"#N/A"}}]
[null,null,null,"CO2",{"$f":"L16/(SUM(J16:O16))","v":{"$error":"#N/A"}},44,{"$f":"F22*E22","v":{"$error":"#N/A"}},{"$f":"G22/$G$24","v":{"$error":"#N/A"}}]
[null,null,null,"NH3",{"$f":"N16/(SUM(J16:O16))","v":{"$error":"#N/A"}},17,{"$f":"F23*E23","v":{"$error":"#N/A"}},{"$f":"G23/$G$24","v":{"$error":"#N/A"}}]
[null,null,null,null,null,null,{"$f":"SUM(G21:G23)","v":{"$error":"#N/A"}},{"$f":"G24/$G$24","v":{"$error":"#N/A"}}]
[]
[null,null,null,{"$f":"J16/(SUM(J16:M16))","v":{"$error":"#N/A"}},"% of carbon is degraded  to methane",null,null,null,null,{"$f":"J16/(SUM(J16:P16))","v":{"$error":"#N/A"}},"Methane content biogas"]
[null,null,null,{"$f":"1-D26","v":{"$error":"#N/A"}},"% of carbon degraded to CO2"]
[]
[null,null,null,"Biomass conversion efficiency",0.6]
[null,null,null,"VM",{"$f":"DS6_MEB!C11","v":{"$error":"#N/A"}}]
[]
[null,null,null,null,"kg/s","Mols"]
[null,null,null,"Target methane production",{"$f":"DS6_MEB!K19","v":{"$error":"#N/A"}},{"$f":"E33/J17","v":{"$error":"#N/A"}}]
[null,null,null,"CO2",{"$f":"E33/H21*H22","v":{"$error":"#N/A"}},{"$f":"E34/L17","v":{"$error":"#N/A"}}]
[null,null,null,"NH3",{"$f":"E33/H21*H23","v":{"$error":"#N/A"}},{"$f":"E35/N17","v":{"$error":"#N/A"}}]
[]
[null,null,null,"Carbon required",{"$f":"F37*12","v":{"$error":"#N/A"}},{"$f":"F33/E29/D26/E30","v":{"$error":"#N/A"}}]
[]
[null,null,null,"Therefore total mass biomass required",{"$f":"E37/D7","v":{"$error":"#N/A"}},"kg/s",{"$f":"E39*60*60","v":{"$error":"#N/A"}},"kg/h"]
[]
[null,null,null,"Water required for reaction",{"$f":"E39-E33-E34-E35","v":{"$error":"#N/A"}},"kg/s"]
[]
[]
[]
[null,null,null,"Water heats"]
[null,null,null,"Vaporization heat",2256.4,"kJ/kg"]
[null,null,null,"Water",4.1870000000000003,"kJ/kgK"]
[null,null,null,"Steam",1.996,"kJ/kgK"]
[null,null,null,"T exit steam",330,"°C",null,null,null,null,"CHP","CHP","Electricity only","Heat only",null,"Extra water"]
[null,null,null,"Vaporization T",100,"°C",null,null,null,null,"Ne",0.15,0.3,0,null,"Solids content"]
[null,null,null,"Reference for steam property requirements:",null,null,null,null,null,null,"Nh",0.65,0,0.85]
[null,null,null,"https://www.energy.gov/sites/prod/files/2016/09/f33/CHP-Steam%20Turbine.pdf",null,null,null,null,null,null,"Nt",{"$f":"SUM(L50:L51)","v":0.8},{"$f":"SUM(M50:M51)","v":0.3},{"$f":"SUM(N50:N51)","v":0.85}]
[]
[null,null,null,"Based on 3MWe turbine",null,"Enthalpy, kJ/kg"]
[null,null,null,"Steam inlet pressure, bar",41.4,2958.6,"Supersteam - required for the CHP and Electricity case"]
[null,null,null,"Steam inlet temperature, C",302]
[null,null,null,"Steam outlet pressure, bar",10,1978,"For the heat only and CHP case"]
[null,null,null,"Steam outlet temperature, C",190]
[null,null,null,null,"CH4",null,"O2",null,"H2O",null,"CO2"]
[null,null,null,"Stoic. Coefficient",1,null,2,null,2,null,1]
[null,null,null,"Weight",16,null,32,null,18,null,44]
[null,null,null,"kg/s",{"$f":"E33","v":{"$error":"#N/A"}},null,{"$f":"G63*G61","v":{"$error":"#N/A"}},null,{"$f":"I61*I63","v":{"$error":"#N/A"}},null,{"$f":"K63*K61","v":{"$error":"#N/A"}}]
[null,null,null,"mols",{"$f":"E62/E61","v":{"$error":"#N/A"}},null,{"$f":"G60*E63","v":{"$error":"#N/A"}},null,{"$f":"I60*E63","v":{"$error":"#N/A"}},null,{"$f":"E63","v":{"$error":"#N/A"}}]

{"sheet":"DS6_MEB","index":22,"n_rows":42,"n_cols":25,"rows_kept":42,"cut":false,"hidden":true,"merged":[[36,5,36,11],[37,5,37,7],[37,9,37,11],[7,17,7,20],[14,5,14,11],[15,5,15,7],[15,9,15,11],[16,9,16,11],[17,17,17,18],[17,19,17,20],[18,16,20,16],[25,5,25,11],[26,5,26,7],[26,9,26,11],[4,1,4,2],[5,16,7,16],[23,5,23,11],[1,5,1,11],[2,5,2,7],[2,9,2,11],[3,16,4,16]]}
[null,null,null,null,null,null,null,null,{"$f":"1-ABS(K4/G4-1)","v":{"$error":"#N/A"}}]
[null,{"$f":"Feedstocks_Pathways!B11","v":{"$error":"#N/A"}},{"$f":"'DS6'!B25","v":0},"MW",null,"Anaerobic Digestion",null,null,null,null,null,null,null,null,null,null,"Data type","Magnitude","Units","Range/List","Effect"]
[null,"Energy input",{"$f":"IF(C19=\"Heat only\",C2/C21,C2/C20)","v":{"$error":"#N/A"}},"Mwe,th",null,"INPUT",null,null,null,"OUTPUTS",null,null,null,null,null,null,"User Inputs",{"$f":"Feedstocks_Pathways!B11","v":{"$error":"#N/A"}},"MW","0.01-5"]
[null,null,null,null,null,"TOTAL",{"$f":"G5+G7+G10","v":{"$error":"#N/A"}},"kg/s",null,"TOTAL",{"$f":"SUM(K5:K9)","v":{"$error":"#N/A"}},"kg/s",null,null,null,null,"Amendable parameters","Manure composition","%","0-100","Composition of C,H, N and O within the manure"]
[null,"Manure",null,null,null,"Biomass (d.b.)",{"$f":"DS6_Information!E39","v":{"$error":"#N/A"}},"kg/s",null,"Methane",{"$f":"K19","v":{"$error":"#N/A"}},"kg/s",null,null,null,null,null,"Manure H2O Content","%","0-100"]
[null,"C",{"$f":"Feedstocks_Pathways!AE58/100","v":{"$error":"#N/A"}},null,null,"Biomass (w.b.)",{"$f":"G5/(1-C13)","v":{"$error":"#N/A"}},"kg/s",null,"Carbon dioxide",{"$f":"K5/DS6_Information!H21*DS6_Information!H22","v":{"$error":"#N/A"}},"kg/s",null,null,null,null,"Methodology","1. Based on target product capacity, the biomass demand, and steam production are calculated. Energy balance is calculated based on process type"]
[null,"H",{"$f":"Feedstocks_Pathways!AF58/100","v":{"$error":"#N/A"}},null,null,"Water",{"$f":"G6-G5","v":{"$error":"#N/A"}},"kg/s",null,"Ammonia",{"$f":"K5/DS6_Information!H21*DS6_Information!H23","v":{"$error":"#N/A"}},"kg/s",null,null,null,null,null,"2. Calculate the other components according to the reactions in sheet \"Information\""]
[null,"O",{"$f":"Feedstocks_Pathways!AH58/100","v":{"$error":"#N/A"}},null,null,"Water Reaction",{"$f":"DS6_Information!E41","v":{"$error":"#N/A"}},"kg/s",null,"Other",{"$f":"G4-SUM(K5:K7,K9)","v":{"$error":"#N/A"}},"kg/s",null,null,null,null,null,"3. Calculate the other parameters such as excess water used and energy balance"]
[null,"N",{"$f":"Feedstocks_Pathways!AG58/100","v":{"$error":"#N/A"}},null,null,"Water fluent",{"$f":"G7-G8","v":{"$error":"#N/A"}},"kg/s",null,"Wastewater",{"$f":"G9+G10+G5*(1-C11*C27)","v":{"$error":"#N/A"}},"kg/s",null,null,null,null,"Inputs Results","Biomass","kg/s (w.b.)"]
[null,"Others",{"$f":"1-C9-C8-C7-C6","v":{"$error":"#N/A"}},null,null,"Extra water",{"$f":"IF(C14=DS6_Information!P49,C15,(G5-G7*C16)/C16)","v":{"$error":"#N/A"}},"kg/s",null,null,null,null,null,null,null,null,"Outputs Results","Gases from AD","kg/s"]
[null,"VM",{"$f":"Feedstocks_Pathways!AA58/100","v":{"$error":"#N/A"}},null,null,"Solids content",{"$f":"C16","v":{"$error":"#N/A"}},null,null,null,null,null,null,null,null,null,"Closure Results","Closure","%","0-100","Accuracy of the calculations"]
[null,null,null,null,null,"Total water",{"$f":"G10+G7","v":{"$error":"#N/A"}},"kg/s"]
[null,"Manure H2O Content",{"$f":"Feedstocks_Pathways!X58/100","v":{"$error":"#N/A"}}]
[null,"Define","Solids content",null,null,null,null,null,{"$f":"1-ABS(K20/G19-1)","v":{"$error":"#N/A"}},null,null,null,null,"Methane per volatile matter"]
[null,{"$f":"IF(C14=DS6_Information!P49,\"Flow extra water\",\"\")","v":""},0,{"$f":"IF(C14=DS6_Information!P49,\"kg/s\",\"\")","v":""},null,"ENERGY BALANCE",null,null,null,null,null,null,null,"grams methane / grams VM"]
[null,{"$f":"IF(C14=DS6_Information!P50,\"Solids content\",\"\")","v":"Solids content"},{"$f":"Feedstocks_Pathways!AK58/100","v":{"$error":"#N/A"}},null,null,"INPUT",null,null,null,"Output"]
[null,null,null,null,null,"Biomass",{"$f":"G5","v":{"$error":"#N/A"}},"kg/s",null,"AD"]
[null,null,null,null,null,"LHV biomass",{"$f":"DS6_Information!P7","v":{"$error":"#N/A"}},"MJ/kg",null,"Methane",{"$f":"DS6_Information!D3","v":50000},"kJ/kg",null,null,null,null,null,"Temperatures",null,"Carnot factor",null,"Energy (MWh)",null,"Exergy (MWh)"]
[null,"Production",{"$f":"'DS6'!B27","v":{"$error":"#N/A"}},null,null,"AD input",{"$f":"G17*G18","v":{"$error":"#N/A"}},"MW",null,"Methane Flow",{"$f":"K20*1000/K18","v":{"$error":"#N/A"}},"kg/s",null,null,null,null,"CHP","Tamb",{"$f":"S22+273.15","v":{"$error":"#N/A"}},"Electricity ",1,19.100000000000001,{"$f":"V19/V21","v":0.21128318584070796},{"$f":"U19*V19","v":19.100000000000001},{"$f":"X19/X21","v":{"$error":"#N/A"}}]
[null,"Ne",{"$f":"LOOKUP(C19,DS6_Information!L49:N49,DS6_Information!L50:N50)","v":{"$error":"#N/A"}},null,null,"Energy input",{"$f":"(C24-C23)*(G5*DS6_Information!T7+DS6_MEB!G12*DS6_Information!E47)/1000","v":{"$error":"#N/A"}},"MW",null,"Energy output with Methane",{"$f":"C3","v":{"$error":"#N/A"}},"MW",null,null,null,null,null,"Tsteam",{"$f":"S23+273.15","v":603.15},"Heat",{"$f":"(S20-S19)/S20","v":{"$error":"#N/A"}},{"$f":"71.3","v":71.3},{"$f":"V20/V21","v":0.78871681415929196},{"$f":"U20*V20","v":{"$error":"#N/A"}},{"$f":"X20/X21","v":{"$error":"#N/A"}}]
[null,"Nh",{"$f":"LOOKUP(C19,DS6_Information!L49:N49,DS6_Information!L51:N51)","v":{"$error":"#N/A"}},null,null,null,null,null,null,null,null,null,null,null,null,null,null,null,null,null,null,{"$f":"SUM(V19:V20)","v":90.4},null,{"$f":"SUM(X19:X20)","v":{"$error":"#N/A"}}]
[null,null,null,null,null,null,{"$f":"G19*3600","v":{"$error":"#N/A"}},"MWh",null,null,null,null,null,null,null,null,null,"Tamb",{"$f":"C23","v":{"$error":"#N/A"}}]
[null,"Ambient T",{"$f":"'DS6'!I8","v":{"$error":"#N/A"}},null,null,null,null,null,null,null,null,null,null,null,null,null,null,"Tsteam",{"$f":"C25","v":330}]
[null,"T digestor",{"$f":"'DS6'!V7","v":35},null,null,"ENERGY/ELECTRICITY PRODUCTION"]
[null,"T working fluid",330,null,null,null,null,null,{"$f":"1-ABS(K28/G28-1)","v":{"$error":"#N/A"}}]
[null,null,null,null,null,"MASS"]
[null,{"$f":"DS6_Information!D29","v":"Biomass conversion efficiency"},{"$f":"DS6_Information!E29","v":0.6},null,null,"INPUT",null,null,null,"OUTPUT"]
[null,null,null,null,null,"TOTAL",{"$f":"SUM(G29,G35,G33,G32)","v":{"$error":"#N/A"}},"kg/s",null,"TOTAL",{"$f":"SUM(K29,K31,K32,K33)","v":{"$error":"#N/A"}},"kg/s"]
[null,"Chosen output",{"$f":"Feedstocks_Pathways!G6","v":0},null,null,"Methane",{"$f":"K19","v":{"$error":"#N/A"}},"kg/s",null,"H2O",{"$f":"DS6_Information!I62","v":{"$error":"#N/A"}},"kg/s"]
[null,null,null,null,null,"O2 needed",{"$f":"DS6_Information!G62","v":{"$error":"#N/A"}},"kg/s",null,"CO2 reaction",{"$f":"DS6_Information!K62","v":{"$error":"#N/A"}},"kg/s"]
[null,null,"Steam output",null,null,"Excess air",{"$f":"'DS6'!AC12","v":0.15},null,null,"CO2 total",{"$f":"K30+G35","v":{"$error":"#N/A"}},"kg/s"]
[null,"For CHP",{"$f":"IF(C29=\"chp\",K40/DS6_Information!F57*1000,0)","v":0},"kg/s",null,"O2 IN",{"$f":"G30*(1+G31)","v":{"$error":"#N/A"}},"kg/s",null,"N2",{"$f":"G33","v":{"$error":"#N/A"}},"kg/s"]
[null,"For heat only",{"$f":"IF(C29=\"heat only\",K40/DS6_Information!F57*1000,0)","v":0},"kg/s",null,"N2 IN",{"$f":"G32/DS6_Information!L3*DS6_Information!L4","v":{"$error":"#N/A"}},"kg/s",null,"Excess O2",{"$f":"G32-G30","v":{"$error":"#N/A"}},"kg/s"]
[null,"For electricity only",{"$f":"IF(C29=\"electricity only\",0,0)","v":0},"kg/s",{"$f":"IF(C29=\"electricity only\",K39/DS6_Information!F55*1000,0)","v":0},"AIR IN",{"$f":"G33+G32","v":{"$error":"#N/A"}},"kg/s"]
[null,null,null,null,null,"Carbon dioxide",{"$f":"K6","v":{"$error":"#N/A"}},"kg/s"]
[]
[null,null,null,null,null,"ENERGY"]
[null,null,null,null,null,"INPUT",null,null,null,"OUTPUT"]
[null,null,null,null,null,"Methane",{"$f":"G29*DS6_Information!D3/1000","v":{"$error":"#N/A"}},"MW",null,"Electricity",{"$f":"C3*C20","v":{"$error":"#N/A"}},"MW"]
[null,null,null,null,null,null,null,null,null,"Heat",{"$f":"C3*C21","v":{"$error":"#N/A"}},"MW"]
[null,null,null,null,null,null,null,null,null,"Losses",{"$f":"C3-K39-K40","v":{"$error":"#N/A"}},"MW"]
[null,null,null,null,null,null,null,null,null,null,{"$f":"SUM(K39:K41)","v":{"$error":"#N/A"}}]

{"sheet":"DS6","index":23,"n_rows":68,"n_cols":46,"rows_kept":68,"cut":false,"hidden":false,"merged":[[48,0,48,1],[53,5,53,6],[66,5,66,6],[48,5,48,8],[49,5,49,6],[50,5,51,5],[52,5,52,6],[2,1,2,2],[2,3,2,4],[1,0,1,4],[3,30,17,30],[10,23,11,25],[12,23,12,25],[4,11,6,13],[4,17,6,19],[3,6,17,6],[4,23,6,25]]}
[]
["Data summary from model",null,null,null,null,null,null,null,null,null,null,null,null,null,null,null,null,null,null,null,null,null,null,null,null,null,null,null,null,null,null,null,null,null,null,"Biogas 20C",null,null,"Biogas Nm3 (0C)"]
["Mass balance","SI",null,"Annual",null,null,"DS6",null,null,null,null,null,null,null,null,null,null,null,null,null,null,null,null,null,"Biogas produced",null,null,null,null,null,null,null,null,"mass flow (kg/s)","%","density 20C","Vol. flow (m3/s)","%","density","Nm3/s",null,null,null,"kg/s","density","Nm3/s"]
["Biomass (d.b.)",{"$f":"I6","v":{"$error":"#N/A"}},"kg/s",{"$f":"B4*$AG$12*$B$23/1000","v":{"$error":"#N/A"}},"annual tonnes",null,{"$f":"D17/D5","v":{"$error":"#N/A"}},null,null,null,null,null,null,null,null,null,null,null,null,null,null,null,null,null,null,null,null,null,null,null,null,null,"CH4",{"$f":"AA8","v":{"$error":"#N/A"}},{"$f":"AH4/SUM($AH$4:$AH$6)","v":{"$error":"#N/A"}},0.66800000000000004,{"$f":"AH4/AJ4","v":{"$error":"#N/A"}},{"$f":"AK4/SUM($AK$4:$AK$6)","v":{"$error":"#N/A"}},0.71599999999999997,{"$f":"AH4/AM4","v":{"$error":"#N/A"}},{"$f":"AN4/SUM($AN$4:$AN$6)","v":{"$error":"#N/A"}},null,{"$f":"R11","v":"CO2"},{"$error":"#N/A"},{"$f":"AM5","v":1.98},{"$f":"AR4/AS4","v":{"$error":"#N/A"}}]
["Biomass (a.r.)",{"$f":"I7","v":{"$error":"#N/A"}},"kg/s",{"$error":"#N/A"},"annual tonnes",null,null,null,null,null,null,"BLENDING",null,null,null,null,null,"PREHEATING",null,null,null,null,null,"DIGESTER",null,null,null,null,null,null,null,null,"CO2",{"$f":"AA9","v":{"$error":"#N/A"}},{"$f":"AH5/SUM($AH$4:$AH$6)","v":{"$error":"#N/A"}},1.8420000000000001,{"$f":"AH5/AJ5","v":{"$error":"#N/A"}},{"$f":"AK5/SUM($AK$4:$AK$6)","v":{"$error":"#N/A"}},1.98,{"$f":"AH5/AM5","v":{"$error":"#N/A"}},{"$f":"AN5/SUM($AN$4:$AN$6)","v":{"$error":"#N/A"}},null,"H2O",{"$error":"#N/A"},0.80400000000000005,{"$f":"AR5/AS5","v":{"$error":"#N/A"}}]
["Extra water",{"$f":"J23","v":{"$error":"#N/A"}},"kg/s",{"$error":"#N/A"},"annual tonnes",null,null,"Biomass (d.b.)",{"$f":"DS6_MEB!G5","v":{"$error":"#N/A"}},"kg/s",null,null,null,null,null,null,null,null,null,null,null,null,null,null,null,null,null,"Waste",{"$f":"DS6_MEB!K7","v":{"$error":"#N/A"}},"kg/s",null,null,"NH3",{"$f":"AA10","v":{"$error":"#N/A"}},{"$error":"#N/A"},0.71699999999999997,{"$error":"#N/A"},{"$error":"#N/A"},0.76900000000000002,{"$f":"AH6/AM6","v":{"$error":"#N/A"}},{"$error":"#N/A"},null,"N2",{"$error":"#N/A"},1.2505999999999999,{"$f":"AR6/AS6","v":{"$error":"#N/A"}}]
["Air for combustion",{"$f":"J24","v":{"$error":"#N/A"}},"kg/s",{"$error":"#N/A"},"annual tonnes",null,null,"Biomass (a.r.)",{"$f":"DS6_MEB!G6","v":{"$error":"#N/A"}},"kg/s",null,null,null,null,"Solids content",{"$f":"B28","v":{"$error":"#N/A"}},"%",null,null,null,"T digester",{"$f":"B29","v":35},"° C",null,null,null,null,null,null,null,null,null,"Total",{"$f":"SUM(AH4:AH6)","v":{"$error":"#N/A"}},null,null,{"$f":"SUM(AK4:AK6)","v":{"$error":"#N/A"}},null,null,{"$f":"SUM(AN4:AN6)","v":{"$error":"#N/A"}},null,null,"O2",{"$error":"#N/A"},1.429,{"$f":"AR7/AS7","v":{"$error":"#N/A"}}]
["Biogas production",{"$f":"AD8","v":{"$error":"#N/A"}},"kg/s",{"$error":"#N/A"},"annual tonnes",null,null,"Ambient T",{"$f":"B24","v":{"$error":"#N/A"}},"° C",null,null,null,null,null,null,null,null,null,null,null,null,null,null,null,"Methane",{"$f":"DS6_MEB!K5","v":{"$error":"#N/A"}},"kg/s","Total",{"$f":"SUM(AA8:AA10)","v":{"$error":"#N/A"}},null,null,null,null,null,null,null,null,null,null,null,null,"NH3",{"$error":"#N/A"},{"$f":"AM6","v":0.76900000000000002},{"$f":"AR8/AS8","v":{"$error":"#N/A"}}]
["Steam production",{"$f":"W15","v":0},"kg/s",0,"annual tonnes",null,null,null,null,null,null,"Extra water",{"$f":"DS6_MEB!G10","v":{"$error":"#N/A"}},"kg/s",null,null,null,"Heat input",{"$f":"DS6_MEB!G20","v":{"$error":"#N/A"}},"MW",null,null,null,null,null,"Carbon dioxide",{"$f":"DS6_MEB!K6","v":{"$error":"#N/A"}},"kg/s",null,null,null,null,"C->K","R",null,null,"T dig (C)",null,"Pressure","T standard (Degrees)",null,null,"Total",{"$f":"SUM(AR4:AR8)","v":{"$error":"#N/A"}},null,{"$f":"SUM(AT4:AT8)","v":{"$error":"#N/A"}}]
["Exhaust gases",{"$f":"M23","v":{"$error":"#N/A"}},"kg/s",{"$error":"#N/A"},"annual tonnes",null,null,null,null,null,null,null,null,null,null,null,null,null,null,null,null,null,null,null,null,"Ammonia",{"$f":"DS6_MEB!K7","v":{"$error":"#N/A"}},"kg/s",null,null,null,null,273,8.3140000000000001,null,null,20,null,{"$f":"100000","v":100000},0]
["Output waste post-digester",{"$f":"AC6","v":{"$error":"#N/A"}},"kg/s",{"$error":"#N/A"},"annual tonnes",null,null,null,null,null,null,null,null,null,null,null,null,"CO2",{"$f":"DS6_MEB!K31","v":{"$error":"#N/A"}},"kg/s",null,null,null,"Energy Production",null,null,null,"Air",{"$f":"DS6_MEB!G34","v":{"$error":"#N/A"}},"kg/s",null,null,"s->h"]
["Biogas",{"$f":"AN7","v":{"$error":"#N/A"}},"Nm3/s",{"$f":"B12*$AG$12*$B$23","v":{"$error":"#N/A"}},"annual Nm3",null,null,null,null,null,null,null,null,null,null,null,null,"H2O",{"$f":"DS6_MEB!K29","v":{"$error":"#N/A"}},"kg/s",null,null,null,null,null,null,null,"Excess air",{"$f":"B31","v":0.15},null,null,null,3600,null,null,null,null,null,null,{"$f":"AP7*B23/D5","v":{"$error":"#N/A"}}]
["Exhaust gases",{"$f":"AT9","v":{"$error":"#N/A"}},"Nm3/s",{"$f":"B13*$AG$12*$B$23","v":{"$error":"#N/A"}},"annual Nm3",null,null,"MWh/ tonne of biomass",null,null,null,null,null,null,null,null,null,"N2",{"$f":"DS6_MEB!K32","v":{"$error":"#N/A"}},"kg/s",null,null,null,{"$f":"F24","v":{"$error":"#N/A"}}]
["Energy inputs",null,null,null,null,null,null,null,null,null,null,null,null,null,null,null,null,"O2",{"$f":"DS6_MEB!K33","v":{"$error":"#N/A"}},"kg/s"]
["Preheating",{"$f":"S9","v":{"$error":"#N/A"}},"MW",{"$f":"B15*$B$23","v":{"$error":"#N/A"}},"annual MWh",null,null,null,null,null,null,null,null,null,null,null,null,"NH3",{"$f":"DS6_MEB!K6","v":{"$error":"#N/A"}},"kg/s",null,"Steam",{"$f":"SUM(DS6_MEB!C32:C34)","v":0},"kg/s",null,"Heat",{"$f":"DS6_MEB!K40","v":{"$error":"#N/A"}},"MW"]
["CHP Input",{"$f":"W15","v":0},"MW",0,"annual MWh",null,null,null,null,null,null,null,null,null,null,null,null,null,null,null,null,null,null,null,null,"Electricity",{"$f":"DS6_MEB!K39","v":{"$error":"#N/A"}},"MW"]
["Heat produced",{"$f":"AA15","v":{"$error":"#N/A"}},"MW",{"$error":"#N/A"},"annual MWh",null,null,null,null,null,null,null,null,null,null,null,null,null,null,null,null,null,null,null,null,"Losses",{"$f":"DS6_MEB!K41","v":{"$error":"#N/A"}},"MW"]
["Electricity",{"$f":"AA16","v":{"$error":"#N/A"}},"MW",{"$error":"#N/A"},"annual MWh",null,null,null,"MASS BALANCE",null,null,null,null,null,null,"Efficiency"]
["Losses",{"$f":"AA17","v":{"$error":"#N/A"}},"MW",{"$error":"#N/A"},"annual MWh"]
["Total Energy IN",{"$f":"B15+B16","v":{"$error":"#N/A"}},"MW",{"$error":"#N/A"},"annual MWh",null,null,null,"IN",null,null,"OUT",null,null,null,"Biomass input x HV"]
[null,null,null,null,null,null,null,null,"TOTAL",{"$f":"SUM(J22:J24)","v":{"$error":"#N/A"}},"kg/s","TOTAL",{"$f":"SUM(M22:M23)","v":{"$error":"#N/A"}},"kg/s",null,"Energy output/Biomass input"]
["Amendable Parameters",null,null,null,null,{"$f":"B25","v":0},"MW",null,"Biomass (a.r.)",{"$f":"I7","v":{"$error":"#N/A"}},"kg/s","Water",{"$f":"AC6","v":{"$error":"#N/A"}},"kg/s"]
["Operational hours per year",{"$f":"Feedstocks_Pathways!I24","v":0},"h",null,{"$f":"A25","v":{"$error":"#N/A"}},{"$f":"B26","v":"0 0"},null,null,"Extra water",{"$f":"M9","v":{"$error":"#N/A"}},"kg/s","Flue gases",{"$f":"SUM(S11:S15)","v":{"$error":"#N/A"}},"kg/s"]
["Ambient temperature",{"$f":"B52","v":{"$error":"#N/A"}},"° C",null,"Feedstock type",{"$f":"B27","v":{"$error":"#N/A"}},null,null,"Air",{"$f":"AC11","v":{"$error":"#N/A"}},"kg/s"]
[{"$f":"Feedstocks_Pathways!B11","v":{"$error":"#N/A"}},{"$f":"Feedstocks_Pathways!B24","v":0},"MW",null,"Process",null,null,null,null,null,"Units!","kg/s"]
["Feedstock",{"$f":"Feedstocks_Pathways!W56&\" \"&Feedstocks_Pathways!W57","v":"0 0"},null,null,null,null,null,null,null,null,null,null,null,null,null,null,null,null,null,null,null,{"$f":"D12*AO4*35.8/1000*0.3/3.6","v":{"$error":"#N/A"}}]
["Energy production process",{"$f":"B50","v":{"$error":"#N/A"}},null,null,null,null,null,null,null,null,null,null,null,null,null,null,null,null,null,null,null,{"$f":"D8*AI4*50/3.6*0.3","v":{"$error":"#N/A"}},{"$f":"V27-V26","v":{"$error":"#N/A"}}]
["Solids content",{"$f":"B67","v":{"$error":"#N/A"}}]
["T digester",{"$f":"B68","v":35},"° C"]
[]
["Excess air",0.15]
[]
[]
[]
[]
[]
[]
[]
[]
[]
[]
[]
[]
[]
[]
[]
[]
[null,null,null,null,null,"Carnot index heat",{"$f":"DS6_MEB!U20","v":{"$error":"#N/A"}}]
["Inputs DS6",null,null,null,null,"Output"]
[{"$f":"A27","v":"Energy production process"},{"$f":"IF(Feedstocks_Pathways!E22=Feedstocks_Pathways!H54,Feedstocks_Pathways!G6,D50)","v":{"$error":"#N/A"}}," ","CHP",null,null,null,"Dry basis","Wet basis"]
[" "," "," ",null,null,"Biomass flow","kg/s",{"$f":"B4","v":{"$error":"#N/A"}},{"$f":"B5","v":{"$error":"#N/A"}}]
[{"$f":"A24","v":"Ambient temperature"},{"$f":"IF(Feedstocks_Pathways!$E$22=Feedstocks_Pathways!$H$54,Feedstocks_Pathways!G8,'DS6'!D52)","v":{"$error":"#N/A"}},{"$f":"C24","v":"° C"},20,null,null,"annual tonnes",{"$f":"D4","v":{"$error":"#N/A"}},{"$f":"D5","v":{"$error":"#N/A"}}]
[" "," "," "," ",null,"MWh electricity/ t biomass",null,{"$f":"D18/D4","v":{"$error":"#N/A"}},{"$f":"D18/D5","v":{"$error":"#N/A"}}]
[" "," "," "," ",null,"MWh heat/ t biomass",null,{"$f":"D17/D4","v":{"$error":"#N/A"}},{"$f":"D17/D5","v":{"$error":"#N/A"}}]
[" "," "," "," ",null,"Steam flow [tonnes per hour]",null," ",{"$f":"B9*3600/1000","v":0}]
[" "," "," "," ",null,"Biogas production [annual Nm3]",null," ",{"$f":"D12","v":{"$error":"#N/A"}}]
[" "," "," "," ",null,"Biogas/biomass [Nm3/ t w.b.]",null," ",{"$f":"I56/I52","v":{"$error":"#N/A"}}," "]
[" "," "," "," ",null,"Methane content biogas (%)",null," ",{"$f":"AO4*100","v":{"$error":"#N/A"}}]
[" "," "," "," "]
[" "," "," "," "]
[]
[]
[]
[]
[]
[]
[{"$f":"A28","v":"Solids content"},{"$f":"IF(Feedstocks_Pathways!$E$22=Feedstocks_Pathways!$H$54,Feedstocks_Pathways!AK58,'DS6'!D67)","v":{"$error":"#N/A"}}," ","-",null,"MWh exergy/t biomass",null,{"$f":"(D18*G48+D17)/D4","v":{"$error":"#N/A"}},{"$f":"(D18*G48+D17)/D5","v":{"$error":"#N/A"}}]
[{"$f":"A29","v":"T digester"},35,{"$f":"C29","v":"° C"},35]

{"sheet":"DS7_Information","index":24,"n_rows":65,"n_cols":31,"rows_kept":65,"cut":false,"hidden":true,"merged":[[54,16,55,18],[56,16,57,18],[1,2,1,4],[13,3,13,8],[13,9,13,15],[15,3,15,5],[16,3,16,5],[16,6,16,8],[16,9,16,10],[16,11,16,12],[16,13,16,14],[14,3,14,5],[14,6,14,8],[14,9,14,10],[14,11,14,12],[14,13,14,14],[48,3,48,5],[15,11,15,12],[15,13,15,14],[15,6,15,8],[15,9,15,10]]}
[]
[null,null,"LHV"]
[null,null,"Methane",50000,"kJ/kg",null,"Density POME",1,"kg/m3",null,"oxygen",0.21]
[null,null,"Hydrogen",120000,"kJ/kg",null,"Yield POME from Fruit benches",0.85,null,null,"nitrogen",0.79]
[]
[null,null,"Manure","Weight fraction","Molar weight","mol","mol (%)","Average Mol. Weight biomass",null,null,null,"Moisture content (application)","Ash content","Volatile matter","Fixed carbon","LHV (MJ/kg)","C","H","O","Cp (kJ/kgK)","Solids"]
[null,null,"C",{"$f":"DS7_MEB!C6","v":{"$error":"#N/A"}},12,{"$f":"D7/E7","v":{"$error":"#N/A"}},{"$f":"F7/$F$12","v":{"$error":"#N/A"}},{"$f":"(G7*E7)+(G8*E8)+(G9*E9)+(G10*E10)+(E11*G11)","v":{"$error":"#N/A"}},null,null,"Feedstock",{"$f":"Feedstocks_Pathways!X58/100","v":{"$error":"#N/A"}},{"$f":"Feedstocks_Pathways!Z58/100","v":{"$error":"#N/A"}},{"$f":"Feedstocks_Pathways!AA58/100","v":{"$error":"#N/A"}},{"$f":"Feedstocks_Pathways!AB58/100","v":{"$error":"#N/A"}},{"$f":"Feedstocks_Pathways!AC58","v":{"$error":"#N/A"}},{"$f":"Feedstocks_Pathways!AE58/100","v":{"$error":"#N/A"}},{"$f":"Feedstocks_Pathways!AF58/100","v":{"$error":"#N/A"}},{"$f":"Feedstocks_Pathways!AG58/100","v":{"$error":"#N/A"}},{"$f":"Feedstocks_Pathways!AJ58","v":{"$error":"#N/A"}},{"$f":"Feedstocks_Pathways!AK58","v":{"$error":"#N/A"}}]
[null,null,"H",{"$f":"DS7_MEB!C7","v":{"$error":"#N/A"}},1,{"$f":"D8/E8","v":{"$error":"#N/A"}},{"$f":"F8/$F$12","v":{"$error":"#N/A"}}]
[null,null,"O",{"$f":"DS7_MEB!C8","v":{"$error":"#N/A"}},16,{"$f":"D9/E9","v":{"$error":"#N/A"}},{"$f":"F9/$F$12","v":{"$error":"#N/A"}}]
[null,null,"N",{"$f":"DS7_MEB!C9","v":{"$error":"#N/A"}},14,{"$f":"D10/E10","v":{"$error":"#N/A"}},{"$f":"F10/$F$12","v":{"$error":"#N/A"}}]
[null,null,"others",{"$f":"DS7_MEB!C10","v":{"$error":"#N/A"}},32,{"$f":"D11/E11","v":{"$error":"#N/A"}},{"$f":"F11/$F$12","v":{"$error":"#N/A"}}]
[null,null,null,null,null,{"$f":"SUM(F7:F11)","v":{"$error":"#N/A"}}]
[null,null,null,"Buswell theoretical biogas composition"]
[null,null,null,"Input",null,null,null,null,null,"Output"]
[null,null,null,"Biomass (Manure)",null,null,"H2O",null,null,"CH4",null,"CO2",null,"NH3",null,"H2S"]
[null,null,"Coefficients",null,null,null,{"$f":"(4*G7-G8-(2*G9)+(3*G10)+(2*G11))/4","v":{"$error":"#N/A"}},null,null,{"$f":"((4*G7)+G8-(2*G9)-(3*G10)-(2*G11))/8","v":{"$error":"#N/A"}},null,{"$f":"((4*G7)-G8+(2*G9)+(3*G10)+(2*G11))/8","v":{"$error":"#N/A"}},null,{"$f":"G10","v":{"$error":"#N/A"}},null,{"$f":"G11","v":{"$error":"#N/A"}}]
[null,null,"Mol.weight",{"$f":"H7","v":{"$error":"#N/A"}},null,null,{"$f":"2*E8+E9","v":18},null,null,{"$f":"E7+4*E8","v":16},null,{"$f":"E7+2*E9","v":44},null,{"$f":"E10+3*E8","v":17}]
[]
[]
[null,null,null,"Biogas composition","mol%","mol wt","wt","wt %"]
[null,null,null,"CH4",{"$f":"J16/(SUM(J16:O16))","v":{"$error":"#N/A"}},16,{"$f":"F21*E21","v":{"$error":"#N/A"}},{"$f":"G21/$G$24","v":{"$error":"#N/A"}}]
[null,null,null,"CO2",{"$f":"L16/(SUM(J16:O16))","v":{"$error":"#N/A"}},44,{"$f":"F22*E22","v":{"$error":"#N/A"}},{"$f":"G22/$G$24","v":{"$error":"#N/A"}}]
[null,null,null,"NH3",{"$f":"N16/(SUM(J16:O16))","v":{"$error":"#N/A"}},17,{"$f":"F23*E23","v":{"$error":"#N/A"}},{"$f":"G23/$G$24","v":{"$error":"#N/A"}}]
[null,null,null,null,null,null,{"$f":"SUM(G21:G23)","v":{"$error":"#N/A"}},{"$f":"G24/$G$24","v":{"$error":"#N/A"}}]
[]
[null,null,null,{"$f":"J16/(SUM(J16:M16))","v":{"$error":"#N/A"}},"% of carbon is degraded  to methane",null,null,null,null,{"$f":"J16/(SUM(J16:P16))","v":{"$error":"#N/A"}},"Methane content biogas"]
[null,null,null,{"$f":"1-D26","v":{"$error":"#N/A"}},"% of carbon degraded to CO2"]
[]
[null,null,null,"Biomass conversion efficiency",0.6]
[null,null,null,"VM",{"$f":"DS7_MEB!C11","v":{"$error":"#N/A"}}]
[]
[null,null,null,null,"kg/s","Mols"]
[null,null,null,"Target methane production",{"$f":"DS7_MEB!K19","v":{"$error":"#N/A"}},{"$f":"E33/J17","v":{"$error":"#N/A"}}]
[null,null,null,"CO2",{"$f":"E33/H21*H22","v":{"$error":"#N/A"}},{"$f":"E34/L17","v":{"$error":"#N/A"}}]
[null,null,null,"NH3",{"$f":"E33/H21*H23","v":{"$error":"#N/A"}},{"$f":"E35/N17","v":{"$error":"#N/A"}}]
[]
[null,null,null,"Carbon required",{"$f":"F37*12","v":{"$error":"#N/A"}},{"$f":"F33/E29/D26/E30","v":{"$error":"#N/A"}},null,null,null,null,null,null,null,null,null,null,null,null,null,null,null,null,null,null,null,null,null,"CHP","CHP","Electricity only","Heat only"]
[null,null,null,null,null,null,null,null,null,null,null,null,null,null,null,null,null,null,null,null,null,null,null,null,null,null,null,"Ne",0.15,0.3,0]
[null,null,null,"Therefore total mass biomass required",{"$f":"E37/D7","v":{"$error":"#N/A"}},"kg/s",{"$f":"E39*60*60","v":{"$error":"#N/A"}},"kg/h",null,null,null,null,null,null,null,null,null,null,null,null,null,null,null,null,null,null,null,"Nh",0.65,{"$f":"'DS7'!AT39","v":0},0.85]
[null,null,null,null,null,null,null,null,null,null,null,null,null,null,null,null,null,null,null,null,null,null,null,null,null,null,null,"Nt",{"$f":"SUM(AC38:AC39)","v":0.8},{"$f":"SUM(AD38:AD39)","v":0.3},{"$f":"SUM(AE38:AE39)","v":0.85}]
[null,null,null,"Water required for reaction",{"$f":"E39-E33-E34-E35","v":{"$error":"#N/A"}},"kg/s"]
[]
[]
[]
[]
[]
[]
[]
[null,null,null,"Water heats",null,null,null,"CHP","CHP","Electricity only","Heat only",null,"Extra water"]
[null,null,null,"Vaporization heat",2256.4,"kJ/kg",null,"Ne",0.15,0.3,0,null,"Solids content"]
[null,null,null,"Water",4.1870000000000003,"kJ/kgK",null,"Nh",0.65,0,0.85,null,null,"Reference for steam property requirements:"]
[null,null,null,"Steam",1.996,"kJ/kgK",null,"Nt",{"$f":"SUM(I50:I51)","v":0.8},{"$f":"SUM(J50:J51)","v":0.3},{"$f":"SUM(K50:K51)","v":0.85},null,null,"https://www.energy.gov/sites/prod/files/2016/09/f33/CHP-Steam%20Turbine.pdf"]
[null,null,null,"T exit steam",330,"°C"]
[null,null,null,"Vaporization T",100,"°C",null,null,null,null,null,null,null,"Based on 3MWe turbine",null,"Enthalpy, kJ/kg"]
[null,null,null,null,null,null,null,null,null,null,null,null,null,"Steam inlet pressure, bar",41.4,2958.6,"Supersteam - required for the CHP and Electricity case"]
[null,null,null,null,"CH4",null,"O2",null,"H2O",null,"CO2",null,null,"Steam inlet temperature, C",302]
[null,null,null,"Stoic. Coefficient",1,null,2,null,2,null,1,null,null,"Steam outlet pressure, bar",10,1978,"For the heat only and CHP case"]
[null,null,null,"Weight",16,null,32,null,18,null,44,null,null,"Steam outlet temperature, C",190]
[null,null,null,"kg/s",{"$f":"E33","v":{"$error":"#N/A"}},null,{"$f":"G60*G58","v":{"$error":"#N/A"}},null,{"$f":"I58*I60","v":{"$error":"#N/A"}},null,{"$f":"K60*K58","v":{"$error":"#N/A"}}]
[null,null,null,"mols",{"$f":"E59/E58","v":{"$error":"#N/A"}},null,{"$f":"G57*E60","v":{"$error":"#N/A"}},null,{"$f":"I57*E60","v":{"$error":"#N/A"}},null,{"$f":"E60","v":{"$error":"#N/A"}}]
[]
[null,null,null,null,null,null,null,"CHP","CHP","Electricity only","Heat only"]
[null,null,null,null,null,null,null,"Ne",0.15,0.3,0]
[null,null,null,null,null,null,null,"Nh",0.65,0,0.85]
[null,null,null,null,null,null,null,"Nt",{"$f":"SUM(I63:I64)","v":0.8},{"$f":"SUM(J63:J64)","v":0.3},{"$f":"SUM(K63:K64)","v":0.85}]

{"sheet":"DS7_MEB","index":25,"n_rows":42,"n_cols":25,"rows_kept":42,"cut":false,"hidden":true,"merged":[[14,5,14,11],[15,5,15,7],[15,9,15,11],[16,9,16,11],[4,1,4,2],[4,16,6,16],[1,5,1,11],[2,5,2,7],[2,9,2,11],[2,16,3,16],[37,5,37,7],[37,9,37,11],[17,16,19,16],[23,5,23,11],[25,5,25,11],[26,5,26,7],[26,9,26,11],[36,5,36,11]]}
[null,null,null,null,null,null,null,null,{"$f":"1-ABS(K4/G4-1)","v":{"$error":"#N/A"}},null,null,null,null,null,null,null,"Data type","Magnitude","Units","Range/List","Effect"]
[null,{"$f":"Feedstocks_Pathways!B11","v":{"$error":"#N/A"}},{"$f":"'DS7'!B25","v":0},"MW",null,"Anaerobic Digestion",null,null,null,null,null,null,null,null,null,null,"User Inputs",{"$f":"Feedstocks_Pathways!B11","v":{"$error":"#N/A"}},"MW","0.01-5"]
[null,"Energy input",{"$f":"IF(C19=\"Heat only\",C2/C21,C2/C20)","v":{"$error":"#N/A"}},"MW",null,"INPUT",null,null,null,"OUTPUTS",null,null,null,null,null,null,"Amendable parameters","Manure composition","%","0-100","Composition of C,H, N and O within the manure"]
[null,null,null,null,null,"TOTAL",{"$f":"G5+G7+G10","v":{"$error":"#N/A"}},"kg/s",null,"TOTAL",{"$f":"SUM(K5:K9)","v":{"$error":"#N/A"}},"kg/s",null,null,null,null,null,"Manure H2O Content","%","0-100"]
[null,"Manure",null,null,null,"Biomass (d.b.)",{"$f":"DS7_Information!E39","v":{"$error":"#N/A"}},"kg/s",null,"Methane",{"$f":"K19","v":{"$error":"#N/A"}},"kg/s",null,null,null,null,"Methodology","1. Based on target product capacity, the biomass demand, and steam production are calculated. Energy balance is calculated based on process type"]
[null,"C",{"$f":"Feedstocks_Pathways!AE58/100","v":{"$error":"#N/A"}},null,null,"Biomass (w.b.)",{"$f":"G5/(1-C13)","v":{"$error":"#N/A"}},"kg/s",null,"Carbon dioxide",{"$f":"K5/DS7_Information!H21*DS7_Information!H22","v":{"$error":"#N/A"}},"kg/s",null,null,null,null,null,"2. Calculate the other components according to the reactions in sheet \"Information\""]
[null,"H",{"$f":"Feedstocks_Pathways!AF58/100","v":{"$error":"#N/A"}},null,null,"Water",{"$f":"G6-G5","v":{"$error":"#N/A"}},"kg/s",null,"Ammonia",{"$f":"K5/DS7_Information!H21*DS7_Information!H23","v":{"$error":"#N/A"}},"kg/s",null,null,null,null,null,"3. Calculate the other parameters such as excess water used and energy balance"]
[null,"O",{"$f":"Feedstocks_Pathways!AH58/100","v":{"$error":"#N/A"}},null,null,"Water Reaction",{"$f":"DS7_Information!E41","v":{"$error":"#N/A"}},"kg/s",null,"Other",{"$f":"G4-SUM(K5:K7,K9)","v":{"$error":"#N/A"}},"kg/s",null,null,null,null,"Inputs Results","Biomass","kg/s (w.b.)"]
[null,"N",{"$f":"Feedstocks_Pathways!AG58/100","v":{"$error":"#N/A"}},null,null,"Water fluent",{"$f":"G7-G8","v":{"$error":"#N/A"}},"kg/s",null,"Wastewater",{"$f":"G9+G10+G5*(1-C11*C27)","v":{"$error":"#N/A"}},"kg/s",null,null,null,null,"Outputs Results","Gases from AD","kg/s"]
[null,"Others",{"$f":"1-C9-C8-C7-C6","v":{"$error":"#N/A"}},null,null,"Extra water",{"$f":"IF(C14=DS7_Information!M49,C15,(G5-G7*C16)/C16)","v":{"$error":"#N/A"}},"kg/s",null,null,null,null,null,null,null,null,"Closure Results","Closure","%","0-100","Accuracy of the calculations"]
[null,"VM",{"$f":"Feedstocks_Pathways!AA58/100","v":{"$error":"#N/A"}},null,null,"Solids content",{"$f":"C16","v":{"$error":"#N/A"}}]
[null,null,null,null,null,"Total water",{"$f":"G10+G7","v":{"$error":"#N/A"}},"kg/s"]
[null,"Manure H2O Content",{"$f":"Feedstocks_Pathways!X58/100","v":{"$error":"#N/A"}}]
[null,"Define","Solids content",null,null,null,null,null,{"$f":"1-ABS(K20/G19-1)","v":{"$error":"#N/A"}}]
[null,{"$f":"IF(C14=DS7_Information!M21,\"Flow extra water\",\"\")","v":""},0,{"$f":"IF(C14=DS7_Information!M21,\"kg/s\",\"\")","v":""},null,"ENERGY BALANCE"]
[null,{"$f":"IF(C14=DS7_Information!M22,\"Solids content\",\"\")","v":""},{"$f":"Feedstocks_Pathways!AK58/100","v":{"$error":"#N/A"}},null,null,"INPUT",null,null,null,"Output"]
[null,null,null,null,null,"Biomass",{"$f":"G5","v":{"$error":"#N/A"}},"kg/s",null,"AD",null,null,null,null,null,null,null,"Temperatures",null,"Carnot factor",null,"Energy (MWh)",null,"Exergy (MWh)"]
[null,null,null,null,null,"LHV biomass",{"$f":"DS7_Information!P7","v":{"$error":"#N/A"}},"kJ/kg",null,"Methane",{"$f":"DS7_Information!D3","v":50000},"kJ/kg",null,null,null,null,"CHP","Tamb",{"$f":"S21+273.15","v":{"$error":"#N/A"}},"Electricity ",1,19.100000000000001,{"$f":"V18/V20","v":0.21128318584070796},{"$f":"U18*V18","v":19.100000000000001},{"$f":"X18/X20","v":{"$error":"#N/A"}}]
[null,"Production",{"$f":"'DS7'!B27","v":{"$error":"#N/A"}},null,null,"AD input",{"$f":"G17*G18","v":{"$error":"#N/A"}},"MW",null,"Methane Flow",{"$f":"K20*1000/K18","v":{"$error":"#N/A"}},"kg/s",null,null,null,null,null,"Tsteam",{"$f":"S22+273.15","v":603.15},"Heat",{"$f":"(S19-S18)/S19","v":{"$error":"#N/A"}},{"$f":"71.3","v":71.3},{"$f":"V19/V20","v":0.78871681415929196},{"$f":"U19*V19","v":{"$error":"#N/A"}},{"$f":"X19/X20","v":{"$error":"#N/A"}}]
[null,"Ne",{"$f":"LOOKUP(C19,DS7_Information!I49:K49,DS7_Information!I50:K50)","v":{"$error":"#N/A"}},null,null,"Energy input",{"$f":"(C24-C23)*(G5*DS7_Information!T7+DS7_MEB!G12*DS7_Information!E51)/1000","v":{"$error":"#N/A"}},"MW",null,"Energy output with Methane",{"$f":"C3","v":{"$error":"#N/A"}},"MW",null,null,null,null,null,null,null,null,null,{"$f":"SUM(V18:V19)","v":90.4},null,{"$f":"SUM(X18:X19)","v":{"$error":"#N/A"}}]
[null,"Nh",{"$f":"LOOKUP(C19,DS7_Information!I49:K49,DS7_Information!I51:K51)","v":{"$error":"#N/A"}},null,null,null,null,null,null,null,null,null,null,null,null,null,null,"Tamb",{"$f":"C23","v":{"$error":"#N/A"}}]
[null,null,null,null,null,null,null,null,null,null,null,null,null,null,null,null,null,"Tsteam",{"$f":"C25","v":330}]
[null,"Ambient T",{"$f":"'DS7'!I8","v":{"$error":"#N/A"}}]
[null,"T digestor",{"$f":"'DS7'!V7","v":35},null,null,"ENERGY/ELECTRICITY PRODUCTION"]
[null,"T working fluid",330,null,null,null,null,null,{"$f":"1-ABS(K28/G28-1)","v":{"$error":"#N/A"}}]
[null,null,null,null,null,"MASS"]
[null,{"$f":"DS7_Information!D29","v":"Biomass conversion efficiency"},{"$f":"DS7_Information!E29","v":0.6},null,null,"INPUT",null,null,null,"OUTPUT"]
[null,null,null,null,null,"TOTAL",{"$f":"SUM(G29,G35,G33,G32)","v":{"$error":"#N/A"}},"kg/s",null,"TOTAL",{"$f":"SUM(K29,K31,K32,K33)","v":{"$error":"#N/A"}},"kg/s"]
[null,"Chosen output",{"$f":"Feedstocks_Pathways!G6","v":0},null,null,"Methane",{"$f":"K19","v":{"$error":"#N/A"}},"kg/s",null,"H2O",{"$f":"DS7_Information!I59","v":{"$error":"#N/A"}},"kg/s"]
[null,null,null,null,null,"O2 needed",{"$f":"DS7_Information!G59","v":{"$error":"#N/A"}},"kg/s",null,"CO2 reaction",{"$f":"DS7_Information!K59","v":{"$error":"#N/A"}},"kg/s"]
[null,null,"Steam output",null,null,"Excess air",{"$f":"'DS7'!AC12","v":0.15},null,null,"CO2 total",{"$f":"K30+G35","v":{"$error":"#N/A"}},"kg/s"]
[null,"For CHP",{"$f":"IF(C29=\"chp\",K40/DS7_Information!P57*1000,0)","v":0},"kg/s",null,"O2 IN",{"$f":"G30*(1+G31)","v":{"$error":"#N/A"}},"kg/s",null,"N2",{"$f":"G33","v":{"$error":"#N/A"}},"kg/s"]
[null,"For heat only",{"$f":"IF(C29=\"heat only\",K40/DS7_Information!P57*1000,0)","v":0},"kg/s",null,"N2 IN",{"$f":"G32/DS7_Information!L3*DS7_Information!L4","v":{"$error":"#N/A"}},"kg/s",null,"Excess O2",{"$f":"G32-G30","v":{"$error":"#N/A"}},"kg/s"]
[null,"For electricity only",{"$f":"IF(C29=\"electricity only\",0,0)","v":0},"kg/s",{"$f":"IF(C29=\"electricity only\",K39/DS7_Information!P55*1000,0)","v":0},"AIR IN",{"$f":"G33+G32","v":{"$error":"#N/A"}},"kg/s"]
[null,null,null,null,null,"Carbon dioxide",{"$f":"K6","v":{"$error":"#N/A"}},"kg/s"]
[]
[null,null,null,null,null,"ENERGY"]
[null,null,null,null,null,"INPUT",null,null,null,"OUTPUT"]
[null,null,null,null,null,"Methane",{"$f":"G29*DS7_Information!D3/1000","v":{"$error":"#N/A"}},"MW",null,"Electricity",{"$f":"C3*C20","v":{"$error":"#N/A"}},"MW"]
[null,null,null,null,null,null,null,null,null,"Heat",{"$f":"C3*C21","v":{"$error":"#N/A"}},"MW"]
[null,null,null,null,null,null,null,null,null,"Losses",{"$f":"C3-K39-K40","v":{"$error":"#N/A"}},"MW"]
[null,null,null,null,null,null,null,null,null,null,{"$f":"SUM(K39:K41)","v":{"$error":"#N/A"}}]

{"sheet":"DS7","index":26,"n_rows":68,"n_cols":46,"rows_kept":68,"cut":false,"hidden":false,"merged":[[1,0,1,4],[3,30,17,30],[52,5,52,6],[2,1,2,2],[2,3,2,4],[50,5,51,5],[4,11,6,13],[48,5,48,8],[48,0,48,1],[53,5,53,6],[65,5,65,6],[10,23,11,25],[12,23,12,25],[49,5,49,6],[3,6,17,6],[4,17,6,19],[4,23,6,25]]}
[]
["Data summary from model",null,null,null,null,null,null,null,null,null,null,null,null,null,null,null,null,null,null,null,null,null,null,null,null,null,null,null,null,null,null,null,null,null,null,"Biogas 20C",null,null,"Biogas Nm3 (0C)"]
["Mass balance","SI",null,"Annual",null,null,"DS7",null,null,null,null,null,null,null,null,null,null,null,null,null,null,null,null,null,"Biogas produced",null,null,null,null,null,null,null,null,"mass flow (kg/s)","%","density 20C","Vol. flow (m3/s)","%","density","Nm3/s",null,null,null,"kg/s","density","Nm3/s"]
["Biomass (d.b.)",{"$f":"I6","v":{"$error":"#N/A"}},"kg/s",{"$f":"B4*$AG$12*$B$23/1000","v":{"$error":"#N/A"}},"annual tonnes",null,{"$f":"D17/D5","v":{"$error":"#N/A"}},null,null,null,null,null,null,null,null,null,null,null,null,null,null,null,null,null,null,null,null,null,null,null,null,null,"CH4",{"$f":"AA8","v":{"$error":"#N/A"}},{"$f":"AH4/SUM($AH$4:$AH$6)","v":{"$error":"#N/A"}},0.66800000000000004,{"$f":"AH4/AJ4","v":{"$error":"#N/A"}},{"$f":"AK4/SUM($AK$4:$AK$6)","v":{"$error":"#N/A"}},0.71599999999999997,{"$f":"AH4/AM4","v":{"$error":"#N/A"}},{"$f":"AN4/SUM($AN$4:$AN$6)","v":{"$error":"#N/A"}},null,{"$f":"R11","v":"CO2"},{"$error":"#N/A"},{"$f":"AM5","v":1.98},{"$f":"AR4/AS4","v":{"$error":"#N/A"}}]
["Biomass (a.r.)",{"$f":"I7","v":{"$error":"#N/A"}},"kg/s",{"$error":"#N/A"},"annual tonnes",null,null,null,null,null,null,"BLENDING",null,null,null,null,null,"PREHEATING",null,null,null,null,null,"DIGESTER",null,null,null,null,null,null,null,null,"CO2",{"$f":"AA9","v":{"$error":"#N/A"}},{"$f":"AH5/SUM($AH$4:$AH$6)","v":{"$error":"#N/A"}},1.8420000000000001,{"$f":"AH5/AJ5","v":{"$error":"#N/A"}},{"$f":"AK5/SUM($AK$4:$AK$6)","v":{"$error":"#N/A"}},1.98,{"$f":"AH5/AM5","v":{"$error":"#N/A"}},{"$f":"AN5/SUM($AN$4:$AN$6)","v":{"$error":"#N/A"}},null,"H2O",{"$error":"#N/A"},0.80400000000000005,{"$f":"AR5/AS5","v":{"$error":"#N/A"}}]
["Extra water",{"$f":"J22","v":0},"kg/s",0,"annual tonnes",null,null,"Biomass (d.b.)",{"$f":"DS7_MEB!G5","v":{"$error":"#N/A"}},"kg/s",null,null,null,null,null,null,null,null,null,null,null,null,null,null,null,null,null,"Waste",{"$f":"DS7_MEB!K7","v":{"$error":"#N/A"}},"kg/s",null,null,"NH3",{"$f":"AA10","v":{"$error":"#N/A"}},{"$error":"#N/A"},0.71699999999999997,{"$error":"#N/A"},{"$error":"#N/A"},0.76900000000000002,{"$f":"AH6/AM6","v":{"$error":"#N/A"}},{"$error":"#N/A"},null,"N2",{"$error":"#N/A"},1.2505999999999999,{"$f":"AR6/AS6","v":{"$error":"#N/A"}}]
["Air for combustion",{"$f":"J23","v":{"$error":"#N/A"}},"kg/s",{"$error":"#N/A"},"annual tonnes",null,null,"Biomass (a.r.)",{"$f":"DS7_MEB!G6","v":{"$error":"#N/A"}},"kg/s",null,null,null,null,"Solids content",{"$f":"B28","v":{"$error":"#N/A"}},null,null,null,null,"T digester",{"$f":"B29","v":35},"° C",null,null,null,null,null,null,null,null,null,"Total",{"$f":"SUM(AH4:AH6)","v":{"$error":"#N/A"}},null,null,{"$f":"SUM(AK4:AK6)","v":{"$error":"#N/A"}},null,null,{"$f":"SUM(AN4:AN6)","v":{"$error":"#N/A"}},null,null,"O2",{"$error":"#N/A"},1.429,{"$f":"AR7/AS7","v":{"$error":"#N/A"}}]
["Biogas production",{"$f":"AD8","v":{"$error":"#N/A"}},"kg/s",{"$error":"#N/A"},"annual tonnes",null,null,"Ambient T",{"$f":"B24","v":{"$error":"#N/A"}},"° C",null,null,null,null,null,null,null,null,null,null,null,null,null,null,null,"Methane",{"$f":"DS7_MEB!K5","v":{"$error":"#N/A"}},"kg/s","Total",{"$f":"SUM(AA8:AA10)","v":{"$error":"#N/A"}},null,null,null,null,null,null,null,null,null,null,{"$f":"SUM(AM4:AM5)","v":2.6959999999999997},{"$f":"AO8*$AG$12","v":9705.5999999999985},"NH3",{"$error":"#N/A"},{"$f":"AM6","v":0.76900000000000002},{"$f":"AR8/AS8","v":{"$error":"#N/A"}}]
["Steam production",{"$f":"W15","v":0},"kg/s",0,"annual tonnes",null,null,null,null,null,null,"Extra water",0,"kg/s",null,null,null,"Heat input",{"$f":"DS7_MEB!G20","v":{"$error":"#N/A"}},"MW",null,null,null,null,null,"Carbon dioxide",{"$f":"DS7_MEB!K6","v":{"$error":"#N/A"}},"kg/s",null,null,null,null,null,"R",null,null,null,"C->K","T dig (C)","Pressure","T standard (Degrees)",null,"Total",{"$f":"SUM(AR4:AR8)","v":{"$error":"#N/A"}},null,{"$f":"SUM(AT4:AT8)","v":{"$error":"#N/A"}}]
["Exhaust gases",{"$f":"M22","v":{"$error":"#N/A"}},"kg/s",{"$error":"#N/A"},"annual tonnes",null,null,null,null,null,null,null,null,null,null,null,null,null,null,null,null,null,null,null,null,"Ammonia",{"$f":"DS7_MEB!K7","v":{"$error":"#N/A"}},"kg/s",null,null,null,null,null,{"$f":"'DS6'!AH10","v":8.3140000000000001},null,null,null,273,{"$f":"B52","v":{"$error":"#N/A"}},{"$f":"100000","v":100000},0]
["Output waste post-digester",{"$f":"AC6","v":{"$error":"#N/A"}},"kg/s",{"$error":"#N/A"},"annual tonnes",null,null,null,null,null,null,null,null,null,null,null,null,"CO2",{"$f":"DS7_MEB!K31","v":{"$error":"#N/A"}},"kg/s",null,null,null,"Energy Production",null,null,null,"Air",{"$f":"DS7_MEB!G34","v":{"$error":"#N/A"}},"kg/s",null,null,"s->h"]
["Biogas",{"$f":"AN7","v":{"$error":"#N/A"}},"Nm3/s",{"$f":"B12*$AG$12*$B$23","v":{"$error":"#N/A"}},"annual Nm3",null,null,null,null,null,null,null,null,null,null,null,null,"H2O",{"$f":"DS7_MEB!K29","v":{"$error":"#N/A"}},"kg/s",null,null,null,null,null,null,null,"Excess air",{"$f":"B31","v":0.15},null,null,null,3600,null,null,null,null,null,null,null,{"$f":"AH4/0.657","v":{"$error":"#N/A"}}]
["Exhaust gases",{"$f":"AT9","v":{"$error":"#N/A"}},"Nm3/s",{"$f":"B13*$AG$12*$B$23","v":{"$error":"#N/A"}},"annual Nm3",null,null,"MWh/ tonne of biomass",null,null,null,null,null,null,null,null,null,"N2",{"$f":"DS7_MEB!K32","v":{"$error":"#N/A"}},"kg/s",null,null,null,{"$f":"F24","v":{"$error":"#N/A"}},null,null,null,null,null,null,null,null,null,null,null,null,null,null,{"$f":"AM4/I6*1000","v":{"$error":"#N/A"}},null,{"$f":"AH5/1.9842","v":{"$error":"#N/A"}}]
["Energy inputs",null,null,null,null,null,null,null,null,null,null,null,null,null,null,null,null,"O2",{"$f":"DS7_MEB!K33","v":{"$error":"#N/A"}},"kg/s",null,null,null,null,null,null,null,null,null,null,null,null,null,null,null,null,null,null,null,null,{"$f":"AH6/0.73","v":{"$error":"#N/A"}}]
["Preheating",{"$f":"S9","v":{"$error":"#N/A"}},"MW",{"$f":"B15*$B$23","v":{"$error":"#N/A"}},"annual MWh",null,null,null,null,null,null,null,null,null,null,null,null,"NH3",{"$f":"DS7_MEB!K6","v":{"$error":"#N/A"}},"kg/s",null,"Steam output",{"$f":"SUM(DS7_MEB!C32:C34)","v":0},"kg/s",null,"Heat",{"$f":"DS7_MEB!K40","v":{"$error":"#N/A"}},"MW",null,null,null,null,null,null,null,null,null,null,null,null,{"$f":"SUM(AO12:AO14)","v":{"$error":"#N/A"}}]
["CHP Input",{"$f":"W15","v":0},"MW",0,"annual MWh",null,null,null,null,null,null,null,null,null,null,null,null,null,null,null,null,null,null,null,null,"Electricity",{"$f":"DS7_MEB!K39","v":{"$error":"#N/A"}},"MW"]
["Heat produced",{"$f":"AA15","v":{"$error":"#N/A"}},"MW",{"$error":"#N/A"},"annual MWh",null,null,null,null,null,null,null,null,null,null,null,null,null,null,null,null,null,null,null,null,"Losses",{"$f":"DS7_MEB!K41","v":{"$error":"#N/A"}},"MW"]
["Electricity",{"$f":"AA16","v":{"$error":"#N/A"}},"MW",{"$f":"B18*$B$23","v":{"$error":"#N/A"}},"annual MWh",null,null,null,"MASS BALANCE",null,null,null,null,null,null,"Efficiency",null,null,null,null,null,null,null,null,null,null,null,null,null,null,null,null,null,null,null,20,null,null,"MJ/m3"]
["Losses",{"$f":"AA17","v":{"$error":"#N/A"}},"MW",{"$error":"#N/A"},"annual MWh",null,null,null,"IN",null,null,"OUT",null,null,null,"Biomass input x HV"]
["Total Energy IN",{"$f":"B15+B16","v":{"$error":"#N/A"}},"MW",{"$error":"#N/A"},"annual MWh",null,null,null,"TOTAL",{"$f":"SUM(J21:J23)","v":{"$error":"#N/A"}},"kg/s","TOTAL",{"$f":"SUM(M21:M22)","v":{"$error":"#N/A"}},"kg/s",null,"Energy output/Biomass input"]
[null,null,null,null,null,null,null,null,"Biomass (a.r.)",{"$f":"I7","v":{"$error":"#N/A"}},"kg/s","Water",{"$f":"AC6","v":{"$error":"#N/A"}},"kg/s",null,null,null,null,null,null,null,null,null,null,null,null,null,null,null,null,null,null,null,null,null,50000,null,null,"kJ/kg"]
["Amendable Parameters",null,null,null,null,{"$f":"B25","v":0},"MW",null,"Extra water",{"$f":"M9","v":0},"kg/s","Flue gases",{"$f":"SUM(S11:S15)","v":{"$error":"#N/A"}},"kg/s",null,null,null,null,null,null,null,null,null,null,null,null,null,null,null,null,null,null,null,null,null,{"$f":"AM4/AH4","v":{"$error":"#N/A"}},null,null,"Nm3/kg"]
["Operational hours per year",{"$f":"Feedstocks_Pathways!I24","v":0},"h",null,{"$f":"Feedstocks_Pathways!B11","v":{"$error":"#N/A"}},{"$f":"B26","v":"0 0"},null,null,"Air",{"$f":"AC11","v":{"$error":"#N/A"}},"kg/s",null,null,null,null,null,null,null,null,null,null,null,5.0499717728084155E-2,null,null,null,null,null,null,null,null,null,null,null,null,{"$f":"AJ21/AJ22","v":{"$error":"#N/A"}},null,null,"kJ/ Nm3"]
["Ambient temperature",{"$f":"IF(Feedstocks_Pathways!E22=\"ds7\",Feedstocks_Pathways!G8,B52)","v":{"$error":"#N/A"}},"° C",null,"Feedstock type",{"$f":"B27","v":{"$error":"#N/A"}},null,null,null,null,"Units!","kg/s",null,null,null,null,null,null,null,null,null,null,{"$f":"ABS(S9-AA15)","v":{"$error":"#N/A"}}]
[{"$f":"Feedstocks_Pathways!B11","v":{"$error":"#N/A"}},{"$f":"Feedstocks_Pathways!B24","v":0},"MW",null,"Process"]
["Feedstock",{"$f":"Feedstocks_Pathways!W56&\" \"&Feedstocks_Pathways!W57","v":"0 0"},null,null,null,null,null,null,null,null,null,null,null,null,null,null,null,null,null,null,null,{"$f":"D12*AO4*35.8/1000*0.3/3.6","v":{"$error":"#N/A"}}]
["Energy production process",{"$f":"B50","v":{"$error":"#N/A"}},null,null,null,null,null,null,null,null,null,null,null,null,null,null,null,null,null,null,null,{"$f":"D8*AI4*50/3.6*0.3","v":{"$error":"#N/A"}},{"$f":"V27-V26","v":{"$error":"#N/A"}}]
["Solids content",{"$f":"B66","v":{"$error":"#N/A"}}]
["T digester",35,"° C"]
["Comb. Temperature",1000,"° C"]
["Excess air",0.15,null,null,null,null,null,null,null,null,null,null,null,null,null,null,null,{"$f":"D18/45","v":{"$error":"#N/A"}}]
[]
[]
[]
[]
[]
[]
[]
[]
[]
[]
[]
[]
[]
[]
[]
[]
[null,null,null,null,null,"Carnot index heat",{"$f":"DS7_MEB!U19","v":{"$error":"#N/A"}}]
["Inputs DS6",null,null,null,null,"Output"]
[{"$f":"A27","v":"Energy production process"},{"$f":"IF(Feedstocks_Pathways!$E$22=Feedstocks_Pathways!$I$54,Feedstocks_Pathways!G6,'DS7'!D50)","v":{"$error":"#N/A"}}," ","CHP",null,null,null,"Dry basis","Wet basis"]
[" "," "," "," ",null,"Biomass flow","kg/s",{"$f":"B4","v":{"$error":"#N/A"}},{"$f":"B5","v":{"$error":"#N/A"}}]
[{"$f":"A24","v":"Ambient temperature"},{"$f":"IF(Feedstocks_Pathways!$E$22=Feedstocks_Pathways!$H$54,Feedstocks_Pathways!G8,'DS6'!D52)","v":{"$error":"#N/A"}},{"$f":"C24","v":"° C"},20,null,null,"annual tonnes",{"$f":"D4","v":{"$error":"#N/A"}},{"$f":"D5","v":{"$error":"#N/A"}}]
[" ",null,null,null,null,"MWh electricity/ t biomass",null,{"$f":"D18/D4","v":{"$error":"#N/A"}},{"$f":"D18/D5","v":{"$error":"#N/A"}}]
[" "," "," "," ",null,"MWh heat/ t biomass",null,{"$f":"D17/D4","v":{"$error":"#N/A"}},{"$f":"D17/D5","v":{"$error":"#N/A"}}]
[" "," "," "," ",null,"Steam flow [tonnes per hour]",null," ",{"$f":"B9*3600/1000","v":0}]
[" "," "," "," ",null,"Biogas production [annual Nm3]",null," ",{"$f":"D12","v":{"$error":"#N/A"}}]
[" "," "," "," ",null,"Biogas/biomass [Nm3/ t w.b.]",null," ",{"$f":"I56/I52","v":{"$error":"#N/A"}}]
[" "," "," "," ",null,"Methane content biogas (%)",null," ",{"$f":"AO4*100","v":{"$error":"#N/A"}}]
[" "," "," "," "]
[" "," "," "," "]
[]
[]
[]
[]
[]
[{"$f":"A28","v":"Solids content"},{"$f":"IF(Feedstocks_Pathways!$E$22=Feedstocks_Pathways!$I$54,Feedstocks_Pathways!AK58,'DS7'!D66)","v":{"$error":"#N/A"}}," ",0.42,null,"MWh exergy/t biomass",null,{"$f":"(D18*G48+D17)/D4","v":{"$error":"#N/A"}},{"$f":"(D18*G48+D17)/D5","v":{"$error":"#N/A"}}]
[{"$f":"A29","v":"T digester"},{"$f":"B29","v":35},{"$f":"C29","v":"° C"}]
[{"$f":"A30","v":"Comb. Temperature"},{"$f":"B30","v":1000},{"$f":"C30","v":"° C"}]

{"sheet":"Feedstock information","index":27,"n_rows":39,"n_cols":8,"rows_kept":39,"cut":false,"hidden":false,"merged":[[1,7,2,7]]}
[]
[null,"Moisture content","Ash content","Volatile matter","Fixed carbon","LHV","HHV","References"]
[null,{"$f":"'Feedstock Info'!E3","v":"wt%"},{"$f":"'Feedstock Info'!G3","v":"wt%"},{"$f":"'Feedstock Info'!H3","v":"wt%"},{"$f":"'Feedstock Info'!I3","v":"MJ/kg"},{"$f":"'Feedstock Info'!I3","v":"MJ/kg"},{"$f":"'Feedstock Info'!J3","v":"MJ/kg"}]
[{"$f":"'Feedstock Info'!AJ4","v":"Avocado waste"},{"$f":"'Feedstock Info'!E4","v":82.75},{"$f":"'Feedstock Info'!F4","v":2.2000000000000002},{"$f":"'Feedstock Info'!G4","v":95},{"$f":"'Feedstock Info'!H4","v":16},{"$f":"'Feedstock Info'!I4","v":16.7},{"$f":"'Feedstock Info'!J4","v":18},"Sánchez, F., Araus, K., Domínguez, M.P., et al. Thermochemical Transformation of Residual Avocado Seeds: Torrefaction and Carbonization. Waste and Biomass Valorization 2017; 8:2495-510. 10.1007/s12649-016-9699-6\nCostagli, G., Betti, M. Avocado oil extraction processes: method for cold-pressed high-quality edible oil production versus traditional production. Journal of Agricultural Engineering 2015; 46:115-22. 10.4081/jae.2015.467"]
[{"$f":"'Feedstock Info'!AJ36","v":"Bagasse"},{"$f":"'Feedstock Info'!E36","v":20},{"$f":"'Feedstock Info'!F36","v":3},{"$f":"'Feedstock Info'!G36","v":83},{"$f":"'Feedstock Info'!H36","v":16},{"$f":"'Feedstock Info'!I36","v":13},{"$f":"'Feedstock Info'!J36","v":19},"TNO. (2021). Phyllis2—Database for the physico-chemical composition of (treated) lignocellulosic biomass, micro- and macroalgae, various feedstocks for biogas production and biochar. https://phyllis.nl/\nCelignis. (2020). Analysis of Sugarcane Bagasse, Cellulose Content of Sugarcane Bagasse, Lignin Content of Sugarcane Bagasse. https://www.celignis.com/feedstock.php?value=13 \nMotta, I. L., Miranda, N. T., Maciel Filho, R., & Wolf Maciel, M. R. (2019). Sugarcane bagasse gasification: Simulation and analysis of different operating parameters, fluidizing media, and gasifier types. Biomass and Bioenergy, 122, 433–445. https://doi.org/10.1016/j.biombioe.2019.01.051\nKumar, R., & Kumar, M. (2016). AN EXPERIMENTAL STUDY TO EVALUATE THE CALORIFIC VALUES OF BAGASSE AFTER OPEN SUN DRYING. International Journal of Science, Engineering and Technology Research, 5(6), 4. http://ijsetr.org/wp-content/uploads/2016/06/IJSETR-VOL-5-ISSUE-6-2153-2156.pdf"]
[{"$f":"'Feedstock Info'!AJ40","v":"Briquettes"},{"$f":"'Feedstock Info'!E40","v":10},{"$f":"'Feedstock Info'!F40","v":2},{"$f":"'Feedstock Info'!G40","v":85},{"$f":"'Feedstock Info'!H40","v":20},{"$f":"'Feedstock Info'!I40","v":17},{"$f":"'Feedstock Info'!J40","v":19},"TNO. (2021). Phyllis2—Database for the physico-chemical composition of (treated) lignocellulosic biomass, micro- and macroalgae, various feedstocks for biogas production and biochar. https://phyllis.nl/"]
[{"$f":"'Feedstock Info'!AJ7","v":"Cassava stalks"},{"$f":"'Feedstock Info'!E7","v":40},{"$f":"'Feedstock Info'!F7","v":3},{"$f":"'Feedstock Info'!G7","v":75},{"$f":"'Feedstock Info'!H7","v":22.8},{"$f":"'Feedstock Info'!I7","v":10},{"$f":"'Feedstock Info'!J7","v":18},"García-Velásquez, C. A., Daza, L., & Cardona, C. A. (2020). Economic and Energy Valorization of Cassava Stalks as Feedstock for Ethanol and Electricity Production. BioEnergy Research. doi:10.1007/s12155-020-10098-8 \nTNO. (2021). Phyllis2—Database for the physico-chemical composition of (treated) lignocellulosic biomass, micro- and macroalgae, various feedstocks for biogas production and biochar. https://phyllis.nl/\nZhu, W., Lestander, T. A., Örberg, H., Wei, M., Hedman, B., Ren, J., Xie, G., & Xiong, S. (2015). Cassava stems: A new resource to increase food and fuel production. GCB Bioenergy, 7(1), 72–83. https://doi.org/10.1111/gcbb.12112"]
[{"$f":"'Feedstock Info'!AJ8","v":"Cattle manure"},{"$f":"'Feedstock Info'!E8","v":75},{"$f":"'Feedstock Info'!F8","v":13},{"$f":"'Feedstock Info'!G8","v":80},{"$f":"'Feedstock Info'!H8","v":18},{"$f":"'Feedstock Info'!I8","v":"n/a"},{"$f":"'Feedstock Info'!J8","v":20},"Achinas, S., Euverink, G.J.W. Theoretical analysis of biogas potential prediction from agricultural waste. Resource-Efficient Technologies 2016; 2:143-7. https://doi.org/10.1016/j.reffit.2016.08.001\nTNO. (2021). Phyllis2—Database for the physico-chemical composition of (treated) lignocellulosic biomass, micro- and macroalgae, various feedstocks for biogas production and biochar. https://phyllis.nl/\nBayerisches Staatsministerium für Ernährung. (2020). Biogasausbeuten verschiedener Substrate. https://www.lfl.bayern.de/iba/energie/049711/?sel_list=51%2Cl&anker0=substratanker#substratanker"]
[{"$f":"'Feedstock Info'!AJ9","v":"Chicken manure"},{"$f":"'Feedstock Info'!E9","v":85},{"$f":"'Feedstock Info'!F9","v":20},{"$f":"'Feedstock Info'!G9","v":75},{"$f":"'Feedstock Info'!H9","v":10},{"$f":"'Feedstock Info'!I9","v":10},{"$f":"'Feedstock Info'!J9","v":18},"Achinas, S., Euverink, G.J.W. Theoretical analysis of biogas potential prediction from agricultural waste. Resource-Efficient Technologies 2016; 2:143-7. https://doi.org/10.1016/j.reffit.2016.08.001\nTNO. (2021). Phyllis2—Database for the physico-chemical composition of (treated) lignocellulosic biomass, micro- and macroalgae, various feedstocks for biogas production and biochar. https://phyllis.nl/\nBayerisches Staatsministerium für Ernährung. (2020). Biogasausbeuten verschiedener Substrate. https://www.lfl.bayern.de/iba/energie/049711/?sel_list=51%2Cl&anker0=substratanker#substratanker"]
[{"$f":"'Feedstock Info'!AJ11","v":"Coconut husk"},{"$f":"'Feedstock Info'!E11","v":15},{"$f":"'Feedstock Info'!F11","v":2},{"$f":"'Feedstock Info'!G11","v":67.400000000000006},{"$f":"'Feedstock Info'!H11","v":25.2},{"$f":"'Feedstock Info'!I11","v":16},{"$f":"'Feedstock Info'!J11","v":20},"TNO. (2021). Phyllis2—Database for the physico-chemical composition of (treated) lignocellulosic biomass, micro- and macroalgae, various feedstocks for biogas production and biochar. https://phyllis.nl/\nBolivar-Telleria, M., et al. (2018). Second-Generation Bioethanol from Coconut Husk. BioMed Research International, 2018, 4916497. doi:10.1155/2018/4916497 \nTsamba, A. J., et al. (2006). \"Pyrolysis characteristics and global kinetics of coconut and cashew nut shells.\" Fuel Processing Technology 87(6): 523-530."]
[{"$f":"'Feedstock Info'!AJ13","v":"Cotton straw"},{"$f":"'Feedstock Info'!E13","v":17},{"$f":"'Feedstock Info'!F13","v":7},{"$f":"'Feedstock Info'!G13","v":75},{"$f":"'Feedstock Info'!H13","v":25},{"$f":"'Feedstock Info'!I13","v":13},{"$f":"'Feedstock Info'!J13","v":18},"TNO. (2021). Phyllis2—Database for the physico-chemical composition of (treated) lignocellulosic biomass, micro- and macroalgae, various feedstocks for biogas production and biochar. https://phyllis.nl/ \nGemtos, T.A., Tsiricoglou, T. Harvesting of cotton residue for energy production. Biomass and Bioenergy 1999; 16:51-9. https://doi.org/10.1016/S0961-9534(98)00065-8"]
[{"$f":"'Feedstock Info'!AJ14","v":"Cow slurry"},{"$f":"'Feedstock Info'!E14","v":90},{"$f":"'Feedstock Info'!F14","v":0},{"$f":"'Feedstock Info'!G14","v":85},{"$f":"'Feedstock Info'!H14","v":20},{"$f":"'Feedstock Info'!I14","v":"n/a"},{"$f":"'Feedstock Info'!J14","v":18},"TNO. (2021). Phyllis2—Database for the physico-chemical composition of (treated) lignocellulosic biomass, micro- and macroalgae, various feedstocks for biogas production and biochar. https://phyllis.nl/\nBayerisches Staatsministerium für Ernährung. (2020). Biogasausbeuten verschiedener Substrate. https://www.lfl.bayern.de/iba/energie/049711/?sel_list=51%2Cl&anker0=substratanker#substratanker"]
[{"$f":"'Feedstock Info'!AJ15","v":"Fruit waste"},{"$f":"'Feedstock Info'!E15","v":90},{"$f":"'Feedstock Info'!F15","v":5},{"$f":"'Feedstock Info'!G15","v":85},{"$f":"'Feedstock Info'!H15","v":15},{"$f":"'Feedstock Info'!I15","v":"n/a"},{"$f":"'Feedstock Info'!J15","v":18},"Adeniyi, A. G., Otoikhian, K. S., Ighalo, J. O., & Alhassan, I. (2019). Pyrolysis of Different Fruit Peel Waste Via a Thermodynamic Model. Ournal of Engineering Research and Development, 2(2), 16–24. http://ajerd.abuad.edu.ng/wp-content/uploads/2019/12/AJERD0202_03.pdf \nOuadi, M., Bashir, M. A., Speranza, L. G., Jahangiri, H., & Hornung, A. (2019). Food and Market Waste–A Pathway to Sustainable Fuels and Waste Valorization. Energy & Fuels, 33(10), 9843–9850. https://doi.org/10.1021/acs.energyfuels.9b01650 \nTNO. (2021). Phyllis2—Database for the physico-chemical composition of (treated) lignocellulosic biomass, micro- and macroalgae, various feedstocks for biogas production and biochar. https://phyllis.nl/ \nBayerisches Staatsministerium für Ernährung. (2020). Biogasausbeuten verschiedener Substrate. https://www.lfl.bayern.de/iba/energie/049711/?sel_list=51%2Cl&anker0=substratanker#substratanker"]
[{"$f":"'Feedstock Info'!AJ16","v":"Groundnut shells"},{"$f":"'Feedstock Info'!E16","v":10},{"$f":"'Feedstock Info'!F16","v":4},{"$f":"'Feedstock Info'!G16","v":75},{"$f":"'Feedstock Info'!H16","v":20},{"$f":"'Feedstock Info'!I16","v":17},{"$f":"'Feedstock Info'!J16","v":21},"TNO. (2021). Phyllis2—Database for the physico-chemical composition of (treated) lignocellulosic biomass, micro- and macroalgae, various feedstocks for biogas production and biochar. https://phyllis.nl/"]
[{"$f":"'Feedstock Info'!AJ17","v":"Macadamia shells"},{"$f":"'Feedstock Info'!E17","v":10},{"$f":"'Feedstock Info'!F17","v":1},{"$f":"'Feedstock Info'!G17","v":75},{"$f":"'Feedstock Info'!H17","v":23},{"$f":"'Feedstock Info'!I17","v":19},{"$f":"'Feedstock Info'!J17","v":21},"TNO. (2021). Phyllis2—Database for the physico-chemical composition of (treated) lignocellulosic biomass, micro- and macroalgae, various feedstocks for biogas production and biochar. https://phyllis.nl/ \nT. P. Xavier et al., (2016) A Study of Pyrolysis of Macadamia Nut Shell: Parametric Sensitivity Analysis of the IPR Model, Brazilian Journal of Chemical Engineering, Vol. 33,  No. 01,  pp. 115 - 122,  January - March,  2016 dx.doi.org/10.1590/0104-6632.20160331s00003629"]
[{"$f":"'Feedstock Info'!AJ19","v":"Maize stalks & cobs"},{"$f":"'Feedstock Info'!E19","v":10},{"$f":"'Feedstock Info'!F19","v":3},{"$f":"'Feedstock Info'!G19","v":80},{"$f":"'Feedstock Info'!H19","v":18},{"$f":"'Feedstock Info'!I19","v":16},{"$f":"'Feedstock Info'!J19","v":18},"TNO. (2021). Phyllis2—Database for the physico-chemical composition of (treated) lignocellulosic biomass, micro- and macroalgae, various feedstocks for biogas production and biochar. https://phyllis.nl/"]
[{"$f":"'Feedstock Info'!AJ20","v":"Mango pulp"},{"$f":"'Feedstock Info'!E20","v":60},{"$f":"'Feedstock Info'!F20","v":3},{"$f":"'Feedstock Info'!G20","v":75},{"$f":"'Feedstock Info'!H20","v":26},{"$f":"'Feedstock Info'!I20","v":"n/a"},{"$f":"'Feedstock Info'!J20","v":19},"TNO. (2021). Phyllis2—Database for the physico-chemical composition of (treated) lignocellulosic biomass, micro- and macroalgae, various feedstocks for biogas production and biochar. https://phyllis.nl/"]
[{"$f":"'Feedstock Info'!AJ5","v":"Nutshells"},{"$f":"'Feedstock Info'!E5","v":10},{"$f":"'Feedstock Info'!F5","v":2},{"$f":"'Feedstock Info'!G5","v":73},{"$f":"'Feedstock Info'!H5","v":20},{"$f":"'Feedstock Info'!I5","v":19},{"$f":"'Feedstock Info'!J5","v":21},{"$f":"'Feedstock Info'!AC5","v":"Uamusse, M. et al., Gasification of Cashew Nut Shell Using Gasifier Stovein Mozambique , \nJournal of Power and Energy Engineering > Vol.2 No.7, July 2014, DOI: 10.4236/jpee.2014.27002 "}]
[{"$f":"'Feedstock Info'!AJ23","v":"Oil Palm Effluent POME"},{"$f":"'Feedstock Info'!E23","v":90},{"$f":"'Feedstock Info'!F23","v":4.75},{"$f":"'Feedstock Info'!G23","v":85},{"$f":"'Feedstock Info'!H23","v":17.52},{"$f":"'Feedstock Info'!I23","v":"n/a"},{"$f":"'Feedstock Info'!J23","v":17},"Elbersen, W. Valorization of palm oil (mill) residues. Identifying and solving the challenges. 2013; 38 p., URL: https://english.rvo.nl/sites/default/files/2013/12/Report%20palm%20oil%20byproducts.pdf\nHassan, S., Kee, L. S., & Al-Kayiem, H. H. (2013). EXPERIMENTAL STUDY OF PALM OIL MILL EFFLUENT AND OIL PALM FROND WASTE MIXTURE AS AN ALTERNATIVE BIOMASS FUEL. Journal of Engineering Science and Technology, 8(6), 703–712. http://jestec.taylors.edu.my/Vol%208%20Issue%206%20December%2013/Volume%20(8)%20Issue%20(6)%20703-%20712.pdf\nWilson, L., Yang, W., Blasiak, W., John, G. R., & Mhilu, C. F. (2011). Thermal characterization of tropical biomass feedstocks. Energy Conversion and Management, 52(1), 191–198. https://doi.org/10.1016/j.enconman.2010.06.058"]
[{"$f":"'Feedstock Info'!AJ22","v":"Oil Palm Empty fruit bunch"},{"$f":"'Feedstock Info'!E22","v":60},{"$f":"'Feedstock Info'!F22","v":5},{"$f":"'Feedstock Info'!G22","v":71},{"$f":"'Feedstock Info'!H22","v":21.26},{"$f":"'Feedstock Info'!I22","v":6.4},{"$f":"'Feedstock Info'!J22","v":17.5},"Elbersen, W. Valorization of palm oil (mill) residues. Identifying and solving the challenges. 2013; 38 p., URL: https://english.rvo.nl/sites/default/files/2013/12/Report%20palm%20oil%20byproducts.pdf \nTNO. (2021). Phyllis2—Database for the physico-chemical composition of (treated) lignocellulosic biomass, micro- and macroalgae, various feedstocks for biogas production and biochar. https://phyllis.nl/ \nWilson, L., Yang, W., Blasiak, W., John, G. R., & Mhilu, C. F. (2011). Thermal characterization of tropical biomass feedstocks. Energy Conversion and Management, 52(1), 191–198. https://doi.org/10.1016/j.enconman.2010.06.058"]
[{"$f":"'Feedstock Info'!AJ24","v":"Oil Palm Fruit Fibre "},{"$f":"'Feedstock Info'!E24","v":20},{"$f":"'Feedstock Info'!F24","v":5},{"$f":"'Feedstock Info'!G24","v":73},{"$f":"'Feedstock Info'!H24","v":18.8},{"$f":"'Feedstock Info'!I24","v":15},{"$f":"'Feedstock Info'!J24","v":20},"Elbersen, W. Valorization of palm oil (mill) residues. Identifying and solving the challenges. 2013; 38 p., URL: https://english.rvo.nl/sites/default/files/2013/12/Report%20palm%20oil%20byproducts.pdf \nYusoff, S. (2006). Renewable energy from palm oil – innovation on effective utilization of waste. Journal of Cleaner Production, 14(1), 87–93. https://doi.org/10.1016/j.jclepro.2004.07.005 \nWilson, L., Yang, W., Blasiak, W., John, G. R., & Mhilu, C. F. (2011). Thermal characterization of tropical biomass feedstocks. Energy Conversion and Management, 52(1), 191–198. https://doi.org/10.1016/j.enconman.2010.06.058"]
[{"$f":"'Feedstock Info'!AJ25","v":"Oil Palm Fruit Kernel "},{"$f":"'Feedstock Info'!E25","v":10},{"$f":"'Feedstock Info'!F25","v":3},{"$f":"'Feedstock Info'!G25","v":70},{"$f":"'Feedstock Info'!H25","v":25},{"$f":"'Feedstock Info'!I25","v":18},{"$f":"'Feedstock Info'!J25","v":21},"Elbersen, W. Valorization of palm oil (mill) residues. Identifying and solving the challenges. 2013; 38 p., URL: https://english.rvo.nl/sites/default/files/2013/12/Report%20palm%20oil%20byproducts.pdf                                                TNO. (2021). Phyllis2—Database for the physico-chemical composition of (treated) lignocellulosic biomass, micro- and macroalgae, various feedstocks for biogas production and biochar. https://phyllis.nl/\nYusoff, S. (2006). Renewable energy from palm oil – innovation on effective utilization of waste. Journal of Cleaner Production, 14(1), 87–93. https://doi.org/10.1016/j.jclepro.2004.07.005 \nWilson, L., Yang, W., Blasiak, W., John, G. R., & Mhilu, C. F. (2011). Thermal characterization of tropical biomass feedstocks. Energy Conversion and Management, 52(1), 191–198. https://doi.org/10.1016/j.enconman.2010.06.059"]
[{"$f":"'Feedstock Info'!AJ21","v":"Oil Palm residue mix"},{"$f":"'Feedstock Info'!E21","v":25},{"$f":"'Feedstock Info'!F21","v":4},{"$f":"'Feedstock Info'!G21","v":77},{"$f":"'Feedstock Info'!H21","v":23.13},{"$f":"'Feedstock Info'!I21","v":15},{"$f":"'Feedstock Info'!J21","v":18},"Elbersen, W. Valorization of palm oil (mill) residues. Identifying and solving the challenges. 2013; 38 p., URL: https://english.rvo.nl/sites/default/files/2013/12/Report%20palm%20oil%20byproducts.pdf \nTNO. (2021). Phyllis2—Database for the physico-chemical composition of (treated) lignocellulosic biomass, micro- and macroalgae, various feedstocks for biogas production and biochar. https://phyllis.nl/ \nAbdullah, N., & Sulaiman, F. (2013). The Properties of the Washed Empty Fruit Bunches of Oil Palm. Journal of Physical Science, 24(2), 117–137. https://jps.usm.my/wp-content/uploads/2014/10/24-2-8.pdf"]
[{"$f":"'Feedstock Info'!AJ26","v":"Pig manure"},{"$f":"'Feedstock Info'!E26","v":77.5},{"$f":"'Feedstock Info'!F26","v":12},{"$f":"'Feedstock Info'!G26","v":83},{"$f":"'Feedstock Info'!H26","v":24},{"$f":"'Feedstock Info'!I26","v":"n/a"},{"$f":"'Feedstock Info'!J26","v":21},"TNO. (2021). Phyllis2—Database for the physico-chemical composition of (treated) lignocellulosic biomass, micro- and macroalgae, various feedstocks for biogas production and biochar. https://phyllis.nl/ \nCantrell, K.B., Martin II, J.H. Stochastic state-space temperature regulation of biochar production. Part II: Application to manure processing via pyrolysis.  2012; 92:490-5. https://doi.org/10.1002/jsfa.4617 \nAchinas, S., Euverink, G.J.W. Theoretical analysis of biogas potential prediction from agricultural waste. Resource-Efficient Technologies 2016; 2:143-7. https://doi.org/10.1016/j.reffit.2016.08.001\nBayerisches Staatsministerium für Ernährung. (2020). Biogasausbeuten verschiedener Substrate. https://www.lfl.bayern.de/iba/energie/049711/?sel_list=51%2Cl&anker0=substratanker#substratanker"]
[{"$f":"'Feedstock Info'!AJ27","v":"Pig slurry"},{"$f":"'Feedstock Info'!E27","v":94},{"$f":"'Feedstock Info'!F27","v":20},{"$f":"'Feedstock Info'!G27","v":85},{"$f":"'Feedstock Info'!H27","v":23},{"$f":"'Feedstock Info'!I27","v":"n/a"},{"$f":"'Feedstock Info'!J27","v":20},"Sommer, S.G., Hjorth, M., Leahy, J.J., et al. Pig slurry characteristics, nutrient balance and biogas production as affected by separation and acidification. The Journal of Agricultural Science 2015; 153:177-91. 10.1017/S0021859614000367 \nBayerisches Staatsministerium für Ernährung. (2020). Biogasausbeuten verschiedener Substrate. https://www.lfl.bayern.de/iba/energie/049711/?sel_list=51%2Cl&anker0=substratanker#substratanker"]
[{"$f":"'Feedstock Info'!AJ28","v":"Pineapple pulp"},{"$f":"'Feedstock Info'!E28","v":90},{"$f":"'Feedstock Info'!F28","v":4},{"$f":"'Feedstock Info'!G28","v":83},{"$f":"'Feedstock Info'!H28","v":18},{"$f":"'Feedstock Info'!I28","v":"n/a"},{"$f":"'Feedstock Info'!J28","v":18},"TNO. (2021). Phyllis2—Database for the physico-chemical composition of (treated) lignocellulosic biomass, micro- and macroalgae, various feedstocks for biogas production and biochar. https://phyllis.nl/ \nRani, D.S., Nand, K. Ensilage of pineapple processing waste for methane generation. Waste Management 2004; 24:523-8. https://doi.org/10.1016/j.wasman.2003.10.010 \nEngineering Tool Box (2021), https://www.engineeringtoolbox.com/specific-heat-capacity-food-d_295.html"]
[{"$f":"'Feedstock Info'!AJ29","v":"Potato processing"},{"$f":"'Feedstock Info'!E29","v":89},{"$f":"'Feedstock Info'!F29","v":5},{"$f":"'Feedstock Info'!G29","v":93},{"$f":"'Feedstock Info'!H29","v":14.2},{"$f":"'Feedstock Info'!I29","v":"n/a"},{"$f":"'Feedstock Info'!J29","v":18},"Liang, S., Han, Y., Wei, L., et al. Production and characterization of bio-oil and bio-char from pyrolysis of potato peel wastes. Biomass Conversion and Biorefinery 2015; 5:237-46. 10.1007/s13399-014-0130-x\nBayerisches Staatsministerium für Ernährung. (2020). Biogasausbeuten verschiedener Substrate. https://www.lfl.bayern.de/iba/energie/049711/?sel_list=51%2Cl&anker0=substratanker#substratanker \nEngineering Tool Box (2021), https://www.engineeringtoolbox.com/specific-heat-capacity-food-d_295.html"]
[{"$f":"'Feedstock Info'!AJ30","v":"Rice husk"},{"$f":"'Feedstock Info'!E30","v":10},{"$f":"'Feedstock Info'!F30","v":18},{"$f":"'Feedstock Info'!G30","v":75},{"$f":"'Feedstock Info'!H30","v":23},{"$f":"'Feedstock Info'!I30","v":17},{"$f":"'Feedstock Info'!J30","v":19},"IRRI. Rice husk - IRRI Rice Knowledge Bank. 2020, http://www.knowledgebank.irri.org/step-by-step-production/postharvest/rice-by-products/rice-husk \nWilson, L., Yang, W., Blasiak, W., John, G. R., & Mhilu, C. F. (2011). Thermal characterization of tropical biomass feedstocks. Energy Conversion and Management, 52(1), 191–198. https://doi.org/10.1016/j.enconman.2010.06.058 \nTNO. (2021). Phyllis2—Database for the physico-chemical composition of (treated) lignocellulosic biomass, micro- and macroalgae, various feedstocks for biogas production and biochar. https://phyllis.nl/"]
[{"$f":"'Feedstock Info'!AJ31","v":"Rice straw"},{"$f":"'Feedstock Info'!E31","v":15},{"$f":"'Feedstock Info'!F31","v":18},{"$f":"'Feedstock Info'!G31","v":75},{"$f":"'Feedstock Info'!H31","v":19},{"$f":"'Feedstock Info'!I31","v":16},{"$f":"'Feedstock Info'!J31","v":19},"Van Hung, N., Maguyon-Detras, M.C., Migo, M.V., et al. Rice Straw Overview: Availability, Properties, and Management Practices. In: Gummert, Martin, et al., editors. Sustainable Rice Straw Management. Cham: Springer International Publishing; 2020. p. 1-13 \nTNO. (2021). Phyllis2—Database for the physico-chemical composition of (treated) lignocellulosic biomass, micro- and macroalgae, various feedstocks for biogas production and biochar. https://phyllis.nl/"]
[{"$f":"'Feedstock Info'!AJ34","v":"Sisal Sisal ball"},{"$f":"'Feedstock Info'!E34","v":70},{"$f":"'Feedstock Info'!F34","v":6.1},{"$f":"'Feedstock Info'!G34","v":93},{"$f":"'Feedstock Info'!H34","v":14.6},{"$f":"'Feedstock Info'!I34","v":6},{"$f":"'Feedstock Info'!J34","v":17.350000000000001},"Terrapon-Pfaff, J. C., Fischedick, M., & Monheim, H. (2012). Energy potentials and sustainability—the case of sisal residues in Tanzania. Energy for Sustainable Development, 16(3), 312-319. doi:https://doi.org/10.1016/j.esd.2012.06.001 \nWilson, L., et al. (2011). \"Thermal characterization of tropical biomass feedstocks.\" Energy Conversion and Management 52(1): 191-198."]
[{"$f":"'Feedstock Info'!AJ33","v":"Sisal Sisal pulp"},{"$f":"'Feedstock Info'!E33","v":85.5},{"$f":"'Feedstock Info'!F33","v":6.1},{"$f":"'Feedstock Info'!G33","v":85},{"$f":"'Feedstock Info'!H33","v":12.6},{"$f":"'Feedstock Info'!I33","v":"n/a"},{"$f":"'Feedstock Info'!J33","v":17.350000000000001},"Terrapon-Pfaff, J. C., Fischedick, M., & Monheim, H. (2012). Energy potentials and sustainability—the case of sisal residues in Tanzania. Energy for Sustainable Development, 16(3), 312-319. doi:https://doi.org/10.1016/j.esd.2012.06.001 \nWilson, L., et al. (2011). \"Thermal characterization of tropical biomass feedstocks.\" Energy Conversion and Management 52(1): 191-198."]
[{"$f":"'Feedstock Info'!AJ35","v":"Sisal Sisal wastewater"},{"$f":"'Feedstock Info'!E35","v":99.88},{"$f":"'Feedstock Info'!F35","v":6.1},{"$f":"'Feedstock Info'!G35","v":87},{"$f":"'Feedstock Info'!H35","v":13.6},{"$f":"'Feedstock Info'!I35","v":"n/a"},{"$f":"'Feedstock Info'!J35","v":17.350000000000001},"Terrapon-Pfaff, J. C., Fischedick, M., & Monheim, H. (2012). Energy potentials and sustainability—the case of sisal residues in Tanzania. Energy for Sustainable Development, 16(3), 312-319. doi:https://doi.org/10.1016/j.esd.2012.06.001"]
[{"$f":"'Feedstock Info'!AJ38","v":"Vegetable waste"},{"$f":"'Feedstock Info'!E38","v":90},{"$f":"'Feedstock Info'!F38","v":10},{"$f":"'Feedstock Info'!G38","v":85},{"$f":"'Feedstock Info'!H38","v":15},{"$f":"'Feedstock Info'!I38","v":"n/a"},{"$f":"'Feedstock Info'!J38","v":18},"TNO. (2021). Phyllis2—Database for the physico-chemical composition of (treated) lignocellulosic biomass, micro- and macroalgae, various feedstocks for biogas production and biochar. https://phyllis.nl/\nOuadi, M., Bashir, M. A., Speranza, L. G., Jahangiri, H., & Hornung, A. (2019). Food and Market Waste–A Pathway to Sustainable Fuels and Waste Valorization. Energy & Fuels, 33(10), 9843–9850. https://doi.org/10.1021/acs.energyfuels.9b01650 \nBayerisches Staatsministerium für Ernährung. (2020). Biogasausbeuten verschiedener Substrate. https://www.lfl.bayern.de/iba/energie/049711/?sel_list=51%2Cl&anker0=substratanker#substratanker"]
[{"$f":"'Feedstock Info'!AJ39","v":"Wood chips"},{"$f":"'Feedstock Info'!E39","v":20},{"$f":"'Feedstock Info'!F39","v":1},{"$f":"'Feedstock Info'!G39","v":83},{"$f":"'Feedstock Info'!H39","v":17},{"$f":"'Feedstock Info'!I39","v":15},{"$f":"'Feedstock Info'!J39","v":19},"Forest Research. (2021). Moisture content. Forest Research. https://www.forestresearch.gov.uk/tools-and-resources/biomass-energy-resources/reference-biomass/facts-figures/moisture-content/ \nTNO. (2021). Phyllis2—Database for the physico-chemical composition of (treated) lignocellulosic biomass, micro- and macroalgae, various feedstocks for biogas production and biochar. https://phyllis.nl/"]
[{"$f":"'Feedstock Info'!AJ10","v":"Wood logs"},{"$f":"'Feedstock Info'!E10","v":25},{"$f":"'Feedstock Info'!F10","v":2},{"$f":"'Feedstock Info'!G10","v":82},{"$f":"'Feedstock Info'!H10","v":16},{"$f":"'Feedstock Info'!I10","v":13.6},{"$f":"'Feedstock Info'!J10","v":19},"TNO. (2021). Phyllis2—Database for the physico-chemical composition of (treated) lignocellulosic biomass, micro- and macroalgae, various feedstocks for biogas production and biochar. https://phyllis.nl/\nForest Research. (2021). Moisture content. Forest Research. https://www.forestresearch.gov.uk/tools-and-resources/biomass-energy-resources/reference-biomass/facts-figures/moisture-content/"]
[{"$f":"'Feedstock Info'!AJ32","v":"Wood processing residue"},{"$f":"'Feedstock Info'!E32","v":20},{"$f":"'Feedstock Info'!F32","v":1},{"$f":"'Feedstock Info'!G32","v":83},{"$f":"'Feedstock Info'!H32","v":17},{"$f":"'Feedstock Info'!I32","v":15},{"$f":"'Feedstock Info'!J32","v":19},"TNO. (2021). Phyllis2—Database for the physico-chemical composition of (treated) lignocellulosic biomass, micro- and macroalgae, various feedstocks for biogas production and biochar. https://phyllis.nl/"]
["Coal",9,9.9,null,null,26,null,"TNO. (2021). Phyllis2—Database for the physico-chemical composition of (treated) lignocellulosic biomass, micro- and macroalgae, various feedstocks for biogas production and biochar. https://phyllis.nl/                                                                          Department for Business, Energy & Industrial Strategy (2020). Digest of UK Energy Statistics (DUKES): calorific values"]
["Petcoke",3,1,null,null,33,null,"TNO. (2021). Phyllis2—Database for the physico-chemical composition of (treated) lignocellulosic biomass, micro- and macroalgae, various feedstocks for biogas production and biochar. https://phyllis.nl/                                                                          Department for Business, Energy & Industrial Strategy (2020). Digest of UK Energy Statistics (DUKES): calorific values"]
["Natural Gas",0,0,null,null,50,null,"TNO. (2021). Phyllis2—Database for the physico-chemical composition of (treated) lignocellulosic biomass, micro- and macroalgae, various feedstocks for biogas production and biochar. https://phyllis.nl/                                                                          Department for Business, Energy & Industrial Strategy (2020). Digest of UK Energy Statistics (DUKES): calorific values"]